Workbook

Sheet 【記載例】（ユニット型）
G1: （参考様式） | Q1: 従業者の勤務の体制及び勤務形態一覧表 | AW1: サービス種別（ | AX1: 指定介護老人保健施設（ユニット型） | BN1: ）
AF2: 令和 | AG2: 2 | AI2: ( | AJ2: =IF(AG2=0,"",YEAR(DATE(2018+AG2,1,1))) -> 2020 | AL2: ) | AM2: 年 | AN2: 4 | AP2: 月 | AW2: 事業所名（ | AX2: ○○○○ | BN2: ）
BH3: (1) | BI3: 計画
AO5: (2) 事業所における常勤の従業者が勤務すべき時間数 | BA5: 8 | BC5: 時間/日 | BE5: 40 | BG5: 時間/週 | BI5: 160 | BK5: 時間/月
BF7: 当月の日数 | BI7: =DAY(EOMONTH(DATE(AJ2,AN2,1),0)) -> 30 | BK7: 日
AO8: (介護老人保健施設） | BB8: (短期入所療養介護）
AO9: (4) 入所定員 | AS9: (5) 入所者数 | BB9: (6) 利用定員 | BF9: (7) 利用者数
B10: (3) 日中／夜勤の時間帯の区分 | AP10: 40 | AR10: 人 | AT10: 前年度の平均値 | AZ10: 人 | BE10: 人 | BG10: 前年度の平均値 | BM10: 人
B11: 日中（夜勤時間帯以外）の時間帯 | Q11: =U12 -> 09:00:00 | T11: ～ | U11: =Q12 -> 17:00:00 | AT11: （新規に指定を受ける場合） | BG11: （新規に指定を受ける場合）
B12: 夜勤時間帯 | Q12: 17:00:00 | T12: ～ | U12: 09:00:00 | AT12: 推定数 | AX12: 36 | AZ12: 人 | BG12: 推定数 | BM12: 人
B14: No | C14: (8) ユニットリーダー | D14: (9) ユニット名 | G14: (10) 職種 | M14: (11) 勤務 形態 | O14: (12) 資格 | S14: (13) 氏 名 | V14: 日中／夜勤時間帯 の区分 | AA14: (14) 勤 務 時 間 数 | BF14: =IF(BI3="計画","(15)1～4週目の勤務時間数合計","(15)1か月の勤務時間数 合計") -> (15)1～4週目の勤務時間数合計 | BH14: (16) 週平均 勤務時間数 | BJ14: (17) 兼務状況 （兼務先/兼務する職務の内容 /兼務時間数））
AA15: 1週目 | AH15: 2週目 | AO15: 3週目 | AV15: 4週目 | BC15: 5週目
AA16: 1 | AB16: 2 | AC16: 3 | AD16: 4 | AE16: 5 | AF16: 6 | AG16: 7 | AH16: 8 | AI16: 9 | AJ16: 10 | AK16: 11 | AL16: 12 | AM16: 13 | AN16: 14 | AO16: 15 | AP16: 16 | AQ16: 17 | AR16: 18 | AS16: 19 | AT16: 20 | AU16: 21 | AV16: 22 | AW16: 23 | AX16: 24 | AY16: 25 | AZ16: 26 | BA16: 27 | BB16: 28 | BC16: =IF($BI$3="実績",IF(DAY(DATE($AJ$2,$AN$2,29))=29,29,""),"") ->  | BD16: =IF($BI$3="実績",IF(DAY(DATE($AJ$2,$AN$2,30))=30,30,""),"") ->  | BE16: =IF($BI$3="実績",IF(DAY(DATE($AJ$2,$AN$2,31))=31,31,""),"") -> 
AA17: =WEEKDAY(DATE($AJ$2,$AN$2,1)) -> 4 | AB17: =WEEKDAY(DATE($AJ$2,$AN$2,2)) -> 5 | AC17: =WEEKDAY(DATE($AJ$2,$AN$2,3)) -> 6 | AD17: =WEEKDAY(DATE($AJ$2,$AN$2,4)) -> 7 | AE17: =WEEKDAY(DATE($AJ$2,$AN$2,5)) -> 1 | AF17: =WEEKDAY(DATE($AJ$2,$AN$2,6)) -> 2 | AG17: =WEEKDAY(DATE($AJ$2,$AN$2,7)) -> 3 | AH17: =WEEKDAY(DATE($AJ$2,$AN$2,8)) -> 4 | AI17: =WEEKDAY(DATE($AJ$2,$AN$2,9)) -> 5 | AJ17: =WEEKDAY(DATE($AJ$2,$AN$2,10)) -> 6 | AK17: =WEEKDAY(DATE($AJ$2,$AN$2,11)) -> 7 | AL17: =WEEKDAY(DATE($AJ$2,$AN$2,12)) -> 1 | AM17: =WEEKDAY(DATE($AJ$2,$AN$2,13)) -> 2 | AN17: =WEEKDAY(DATE($AJ$2,$AN$2,14)) -> 3 | AO17: =WEEKDAY(DATE($AJ$2,$AN$2,15)) -> 4 | AP17: =WEEKDAY(DATE($AJ$2,$AN$2,16)) -> 5 | AQ17: =WEEKDAY(DATE($AJ$2,$AN$2,17)) -> 6 | AR17: =WEEKDAY(DATE($AJ$2,$AN$2,18)) -> 7 | AS17: =WEEKDAY(DATE($AJ$2,$AN$2,19)) -> 1 | AT17: =WEEKDAY(DATE($AJ$2,$AN$2,20)) -> 2 | AU17: =WEEKDAY(DATE($AJ$2,$AN$2,21)) -> 3 | AV17: =WEEKDAY(DATE($AJ$2,$AN$2,22)) -> 4 | AW17: =WEEKDAY(DATE($AJ$2,$AN$2,23)) -> 5 | AX17: =WEEKDAY(DATE($AJ$2,$AN$2,24)) -> 6 | AY17: =WEEKDAY(DATE($AJ$2,$AN$2,25)) -> 7 | AZ17: =WEEKDAY(DATE($AJ$2,$AN$2,26)) -> 1 | BA17: =WEEKDAY(DATE($AJ$2,$AN$2,27)) -> 2 | BB17: =WEEKDAY(DATE($AJ$2,$AN$2,28)) -> 3 | BC17: =IF(BC16=29,WEEKDAY(DATE($AJ$2,$AN$2,29)),0) -> 0 | BD17: =IF(BD16=30,WEEKDAY(DATE($AJ$2,$AN$2,30)),0) -> 0 | BE17: =IF(BE16=31,WEEKDAY(DATE($AJ$2,$AN$2,31)),0) -> 0
AA18: =IF(AA17=1,"日",IF(AA17=2,"月",IF(AA17=3,"火",IF(AA17=4,"水",IF(AA17=5,"木",IF(AA17=6,"金","土")))))) -> 水 | AB18: =IF(AB17=1,"日",IF(AB17=2,"月",IF(AB17=3,"火",IF(AB17=4,"水",IF(AB17=5,"木",IF(AB17=6,"金","土")))))) -> 木 | AC18: 金 | AD18: 土 | AE18: 日 | AF18: 月 | AG18: 火 | AH18: =IF(AH17=1,"日",IF(AH17=2,"月",IF(AH17=3,"火",IF(AH17=4,"水",IF(AH17=5,"木",IF(AH17=6,"金","土")))))) -> 水 | AI18: 木 | AJ18: 金 | AK18: 土 | AL18: 日 | AM18: 月 | AN18: 火 | AO18: =IF(AO17=1,"日",IF(AO17=2,"月",IF(AO17=3,"火",IF(AO17=4,"水",IF(AO17=5,"木",IF(AO17=6,"金","土")))))) -> 水 | AP18: 木 | AQ18: 金 | AR18: 土 | AS18: 日 | AT18: 月 | AU18: 火 | AV18: =IF(AV17=1,"日",IF(AV17=2,"月",IF(AV17=3,"火",IF(AV17=4,"水",IF(AV17=5,"木",IF(AV17=6,"金","土")))))) -> 水 | AW18: 木 | AX18: 金 | AY18: 土 | AZ18: 日 | BA18: 月 | BB18: 火 | BC18: =IF(BC17=1,"日",IF(BC17=2,"月",IF(BC17=3,"火",IF(BC17=4,"水",IF(BC17=5,"木",IF(BC17=6,"金",IF(BC17=0,"","土"))))))) ->  | BD18: =IF(BD17=1,"日",IF(BD17=2,"月",IF(BD17=3,"火",IF(BD17=4,"水",IF(BD17=5,"木",IF(BD17=6,"金",IF(BD17=0,"","土"))))))) ->  | BE18: =IF(BE17=1,"日",IF(BE17=2,"月",IF(BE17=3,"火",IF(BE17=4,"水",IF(BE17=5,"木",IF(BE17=6,"金",IF(BE17=0,"","土"))))))) -> 
S19: 厚労 太郎 | V19: シフト記号 | AA19: b | AB19: b | AC19: b | AD19: 休 | AE19: 休 | AF19: b | AG19: b | AH19: b | AI19: b | AJ19: b | AK19: 休 | AL19: 休 | AM19: b | AN19: b | AO19: b | AP19: b | AQ19: b | AR19: 休 | AS19: 休 | AT19: b | AU19: b | AV19: b | AW19: b | AX19: b | AY19: 休 | AZ19: 休 | BA19: b | BB19: b
B20: 1 | G20: 管理者 | M20: A | O20: ー | V20: 日中の勤務時間数 | AA20: =IF(AA19="","",VLOOKUP(AA19,'【記載例】（ユニット型）シフト記号表'!$C$5:$W$46,21,FALSE)) -> 7 | AB20: =IF(AB19="","",VLOOKUP(AB19,'【記載例】（ユニット型）シフト記号表'!$C$5:$W$46,21,FALSE)) -> 7 | AC20: =IF(AC19="","",VLOOKUP(AC19,'【記載例】（ユニット型）シフト記号表'!$C$5:$W$46,21,FALSE)) -> 7 | AD20: =IF(AD19="","",VLOOKUP(AD19,'【記載例】（ユニット型）シフト記号表'!$C$5:$W$46,21,FALSE)) -> - | AE20: =IF(AE19="","",VLOOKUP(AE19,'【記載例】（ユニット型）シフト記号表'!$C$5:$W$46,21,FALSE)) -> - | AF20: =IF(AF19="","",VLOOKUP(AF19,'【記載例】（ユニット型）シフト記号表'!$C$5:$W$46,21,FALSE)) -> 7 | AG20: =IF(AG19="","",VLOOKUP(AG19,'【記載例】（ユニット型）シフト記号表'!$C$5:$W$46,21,FALSE)) -> 7 | AH20: =IF(AH19="","",VLOOKUP(AH19,'【記載例】（ユニット型）シフト記号表'!$C$5:$W$46,21,FALSE)) -> 7 | AI20: =IF(AI19="","",VLOOKUP(AI19,'【記載例】（ユニット型）シフト記号表'!$C$5:$W$46,21,FALSE)) -> 7 | AJ20: =IF(AJ19="","",VLOOKUP(AJ19,'【記載例】（ユニット型）シフト記号表'!$C$5:$W$46,21,FALSE)) -> 7 | AK20: =IF(AK19="","",VLOOKUP(AK19,'【記載例】（ユニット型）シフト記号表'!$C$5:$W$46,21,FALSE)) -> - | AL20: =IF(AL19="","",VLOOKUP(AL19,'【記載例】（ユニット型）シフト記号表'!$C$5:$W$46,21,FALSE)) -> - | AM20: =IF(AM19="","",VLOOKUP(AM19,'【記載例】（ユニット型）シフト記号表'!$C$5:$W$46,21,FALSE)) -> 7 | AN20: =IF(AN19="","",VLOOKUP(AN19,'【記載例】（ユニット型）シフト記号表'!$C$5:$W$46,21,FALSE)) -> 7 | AO20: =IF(AO19="","",VLOOKUP(AO19,'【記載例】（ユニット型）シフト記号表'!$C$5:$W$46,21,FALSE)) -> 7 | AP20: =IF(AP19="","",VLOOKUP(AP19,'【記載例】（ユニット型）シフト記号表'!$C$5:$W$46,21,FALSE)) -> 7 | AQ20: =IF(AQ19="","",VLOOKUP(AQ19,'【記載例】（ユニット型）シフト記号表'!$C$5:$W$46,21,FALSE)) -> 7 | AR20: =IF(AR19="","",VLOOKUP(AR19,'【記載例】（ユニット型）シフト記号表'!$C$5:$W$46,21,FALSE)) -> - | AS20: =IF(AS19="","",VLOOKUP(AS19,'【記載例】（ユニット型）シフト記号表'!$C$5:$W$46,21,FALSE)) -> - | AT20: =IF(AT19="","",VLOOKUP(AT19,'【記載例】（ユニット型）シフト記号表'!$C$5:$W$46,21,FALSE)) -> 7 | AU20: =IF(AU19="","",VLOOKUP(AU19,'【記載例】（ユニット型）シフト記号表'!$C$5:$W$46,21,FALSE)) -> 7 | AV20: =IF(AV19="","",VLOOKUP(AV19,'【記載例】（ユニット型）シフト記号表'!$C$5:$W$46,21,FALSE)) -> 7 | AW20: =IF(AW19="","",VLOOKUP(AW19,'【記載例】（ユニット型）シフト記号表'!$C$5:$W$46,21,FALSE)) -> 7 | AX20: =IF(AX19="","",VLOOKUP(AX19,'【記載例】（ユニット型）シフト記号表'!$C$5:$W$46,21,FALSE)) -> 7 | AY20: =IF(AY19="","",VLOOKUP(AY19,'【記載例】（ユニット型）シフト記号表'!$C$5:$W$46,21,FALSE)) -> - | AZ20: =IF(AZ19="","",VLOOKUP(AZ19,'【記載例】（ユニット型）シフト記号表'!$C$5:$W$46,21,FALSE)) -> - | BA20: =IF(BA19="","",VLOOKUP(BA19,'【記載例】（ユニット型）シフト記号表'!$C$5:$W$46,21,FALSE)) -> 7 | BB20: =IF(BB19="","",VLOOKUP(BB19,'【記載例】（ユニット型）シフト記号表'!$C$5:$W$46,21,FALSE)) -> 7 | BC20: =IF(BC19="","",VLOOKUP(BC19,'【記載例】（ユニット型）シフト記号表'!$C$5:$W$46,21,FALSE)) ->  | BD20: =IF(BD19="","",VLOOKUP(BD19,'【記載例】（ユニット型）シフト記号表'!$C$5:$W$46,21,FALSE)) ->  | BE20: =IF(BE19="","",VLOOKUP(BE19,'【記載例】（ユニット型）シフト記号表'!$C$5:$W$46,21,FALSE)) ->  | BF20: =IF($BI$3="計画",SUM(AA20:BB20),IF($BI$3="実績",SUM(AA20:BE20),"")) -> 140 | BH20: =IF($BI$3="計画",BF20/4,IF($BI$3="実績",(BF20/($BI$7/7)),"")) -> 35
I21: =G20 -> 管理者 | K21: =M20 -> A | V21: 夜勤時間帯の勤務時間数 | AA21: =IF(AA19="","",VLOOKUP(AA19,'【記載例】（ユニット型）シフト記号表'!$C$5:$Y$46,23,FALSE)) -> 1 | AB21: =IF(AB19="","",VLOOKUP(AB19,'【記載例】（ユニット型）シフト記号表'!$C$5:$Y$46,23,FALSE)) -> 1 | AC21: =IF(AC19="","",VLOOKUP(AC19,'【記載例】（ユニット型）シフト記号表'!$C$5:$Y$46,23,FALSE)) -> 1 | AD21: =IF(AD19="","",VLOOKUP(AD19,'【記載例】（ユニット型）シフト記号表'!$C$5:$Y$46,23,FALSE)) -> - | AE21: =IF(AE19="","",VLOOKUP(AE19,'【記載例】（ユニット型）シフト記号表'!$C$5:$Y$46,23,FALSE)) -> - | AF21: =IF(AF19="","",VLOOKUP(AF19,'【記載例】（ユニット型）シフト記号表'!$C$5:$Y$46,23,FALSE)) -> 1 | AG21: =IF(AG19="","",VLOOKUP(AG19,'【記載例】（ユニット型）シフト記号表'!$C$5:$Y$46,23,FALSE)) -> 1 | AH21: =IF(AH19="","",VLOOKUP(AH19,'【記載例】（ユニット型）シフト記号表'!$C$5:$Y$46,23,FALSE)) -> 1 | AI21: =IF(AI19="","",VLOOKUP(AI19,'【記載例】（ユニット型）シフト記号表'!$C$5:$Y$46,23,FALSE)) -> 1 | AJ21: =IF(AJ19="","",VLOOKUP(AJ19,'【記載例】（ユニット型）シフト記号表'!$C$5:$Y$46,23,FALSE)) -> 1 | AK21: =IF(AK19="","",VLOOKUP(AK19,'【記載例】（ユニット型）シフト記号表'!$C$5:$Y$46,23,FALSE)) -> - | AL21: =IF(AL19="","",VLOOKUP(AL19,'【記載例】（ユニット型）シフト記号表'!$C$5:$Y$46,23,FALSE)) -> - | AM21: =IF(AM19="","",VLOOKUP(AM19,'【記載例】（ユニット型）シフト記号表'!$C$5:$Y$46,23,FALSE)) -> 1 | AN21: =IF(AN19="","",VLOOKUP(AN19,'【記載例】（ユニット型）シフト記号表'!$C$5:$Y$46,23,FALSE)) -> 1 | AO21: =IF(AO19="","",VLOOKUP(AO19,'【記載例】（ユニット型）シフト記号表'!$C$5:$Y$46,23,FALSE)) -> 1 | AP21: =IF(AP19="","",VLOOKUP(AP19,'【記載例】（ユニット型）シフト記号表'!$C$5:$Y$46,23,FALSE)) -> 1 | AQ21: =IF(AQ19="","",VLOOKUP(AQ19,'【記載例】（ユニット型）シフト記号表'!$C$5:$Y$46,23,FALSE)) -> 1 | AR21: =IF(AR19="","",VLOOKUP(AR19,'【記載例】（ユニット型）シフト記号表'!$C$5:$Y$46,23,FALSE)) -> - | AS21: =IF(AS19="","",VLOOKUP(AS19,'【記載例】（ユニット型）シフト記号表'!$C$5:$Y$46,23,FALSE)) -> - | AT21: =IF(AT19="","",VLOOKUP(AT19,'【記載例】（ユニット型）シフト記号表'!$C$5:$Y$46,23,FALSE)) -> 1 | AU21: =IF(AU19="","",VLOOKUP(AU19,'【記載例】（ユニット型）シフト記号表'!$C$5:$Y$46,23,FALSE)) -> 1 | AV21: =IF(AV19="","",VLOOKUP(AV19,'【記載例】（ユニット型）シフト記号表'!$C$5:$Y$46,23,FALSE)) -> 1 | AW21: =IF(AW19="","",VLOOKUP(AW19,'【記載例】（ユニット型）シフト記号表'!$C$5:$Y$46,23,FALSE)) -> 1 | AX21: =IF(AX19="","",VLOOKUP(AX19,'【記載例】（ユニット型）シフト記号表'!$C$5:$Y$46,23,FALSE)) -> 1 | AY21: =IF(AY19="","",VLOOKUP(AY19,'【記載例】（ユニット型）シフト記号表'!$C$5:$Y$46,23,FALSE)) -> - | AZ21: =IF(AZ19="","",VLOOKUP(AZ19,'【記載例】（ユニット型）シフト記号表'!$C$5:$Y$46,23,FALSE)) -> - | BA21: =IF(BA19="","",VLOOKUP(BA19,'【記載例】（ユニット型）シフト記号表'!$C$5:$Y$46,23,FALSE)) -> 1 | BB21: =IF(BB19="","",VLOOKUP(BB19,'【記載例】（ユニット型）シフト記号表'!$C$5:$Y$46,23,FALSE)) -> 1 | BC21: =IF(BC19="","",VLOOKUP(BC19,'【記載例】（ユニット型）シフト記号表'!$C$5:$Y$46,23,FALSE)) ->  | BD21: =IF(BD19="","",VLOOKUP(BD19,'【記載例】（ユニット型）シフト記号表'!$C$5:$Y$46,23,FALSE)) ->  | BE21: =IF(BE19="","",VLOOKUP(BE19,'【記載例】（ユニット型）シフト記号表'!$C$5:$Y$46,23,FALSE)) ->  | BF21: =IF($BI$3="計画",SUM(AA21:BB21),IF($BI$3="実績",SUM(AA21:BE21),"")) -> 20 | BH21: =IF($BI$3="計画",BF21/4,IF($BI$3="実績",(BF21/($BI$7/7)),"")) -> 5
S22: ○○ A男 | V22: シフト記号 | AA22: b | AB22: b | AC22: b | AD22: 休 | AE22: 休 | AF22: b | AG22: b | AH22: b | AI22: b | AJ22: b | AK22: 休 | AL22: 休 | AM22: b | AN22: b | AO22: b | AP22: b | AQ22: b | AR22: 休 | AS22: 休 | AT22: b | AU22: b | AV22: b | AW22: b | AX22: b | AY22: 休 | AZ22: 休 | BA22: b | BB22: b
B23: =B20+1 -> 2 | G23: 医師 | M23: A | O23: 医師 | V23: 日中の勤務時間数 | AA23: =IF(AA22="","",VLOOKUP(AA22,'【記載例】（ユニット型）シフト記号表'!$C$5:$W$46,21,FALSE)) -> 7 | AB23: =IF(AB22="","",VLOOKUP(AB22,'【記載例】（ユニット型）シフト記号表'!$C$5:$W$46,21,FALSE)) -> 7 | AC23: =IF(AC22="","",VLOOKUP(AC22,'【記載例】（ユニット型）シフト記号表'!$C$5:$W$46,21,FALSE)) -> 7 | AD23: =IF(AD22="","",VLOOKUP(AD22,'【記載例】（ユニット型）シフト記号表'!$C$5:$W$46,21,FALSE)) -> - | AE23: =IF(AE22="","",VLOOKUP(AE22,'【記載例】（ユニット型）シフト記号表'!$C$5:$W$46,21,FALSE)) -> - | AF23: =IF(AF22="","",VLOOKUP(AF22,'【記載例】（ユニット型）シフト記号表'!$C$5:$W$46,21,FALSE)) -> 7 | AG23: =IF(AG22="","",VLOOKUP(AG22,'【記載例】（ユニット型）シフト記号表'!$C$5:$W$46,21,FALSE)) -> 7 | AH23: =IF(AH22="","",VLOOKUP(AH22,'【記載例】（ユニット型）シフト記号表'!$C$5:$W$46,21,FALSE)) -> 7 | AI23: =IF(AI22="","",VLOOKUP(AI22,'【記載例】（ユニット型）シフト記号表'!$C$5:$W$46,21,FALSE)) -> 7 | AJ23: =IF(AJ22="","",VLOOKUP(AJ22,'【記載例】（ユニット型）シフト記号表'!$C$5:$W$46,21,FALSE)) -> 7 | AK23: =IF(AK22="","",VLOOKUP(AK22,'【記載例】（ユニット型）シフト記号表'!$C$5:$W$46,21,FALSE)) -> - | AL23: =IF(AL22="","",VLOOKUP(AL22,'【記載例】（ユニット型）シフト記号表'!$C$5:$W$46,21,FALSE)) -> - | AM23: =IF(AM22="","",VLOOKUP(AM22,'【記載例】（ユニット型）シフト記号表'!$C$5:$W$46,21,FALSE)) -> 7 | AN23: =IF(AN22="","",VLOOKUP(AN22,'【記載例】（ユニット型）シフト記号表'!$C$5:$W$46,21,FALSE)) -> 7 | AO23: =IF(AO22="","",VLOOKUP(AO22,'【記載例】（ユニット型）シフト記号表'!$C$5:$W$46,21,FALSE)) -> 7 | AP23: =IF(AP22="","",VLOOKUP(AP22,'【記載例】（ユニット型）シフト記号表'!$C$5:$W$46,21,FALSE)) -> 7 | AQ23: =IF(AQ22="","",VLOOKUP(AQ22,'【記載例】（ユニット型）シフト記号表'!$C$5:$W$46,21,FALSE)) -> 7 | AR23: =IF(AR22="","",VLOOKUP(AR22,'【記載例】（ユニット型）シフト記号表'!$C$5:$W$46,21,FALSE)) -> - | AS23: =IF(AS22="","",VLOOKUP(AS22,'【記載例】（ユニット型）シフト記号表'!$C$5:$W$46,21,FALSE)) -> - | AT23: =IF(AT22="","",VLOOKUP(AT22,'【記載例】（ユニット型）シフト記号表'!$C$5:$W$46,21,FALSE)) -> 7 | AU23: =IF(AU22="","",VLOOKUP(AU22,'【記載例】（ユニット型）シフト記号表'!$C$5:$W$46,21,FALSE)) -> 7 | AV23: =IF(AV22="","",VLOOKUP(AV22,'【記載例】（ユニット型）シフト記号表'!$C$5:$W$46,21,FALSE)) -> 7 | AW23: =IF(AW22="","",VLOOKUP(AW22,'【記載例】（ユニット型）シフト記号表'!$C$5:$W$46,21,FALSE)) -> 7 | AX23: =IF(AX22="","",VLOOKUP(AX22,'【記載例】（ユニット型）シフト記号表'!$C$5:$W$46,21,FALSE)) -> 7 | AY23: =IF(AY22="","",VLOOKUP(AY22,'【記載例】（ユニット型）シフト記号表'!$C$5:$W$46,21,FALSE)) -> - | AZ23: =IF(AZ22="","",VLOOKUP(AZ22,'【記載例】（ユニット型）シフト記号表'!$C$5:$W$46,21,FALSE)) -> - | BA23: =IF(BA22="","",VLOOKUP(BA22,'【記載例】（ユニット型）シフト記号表'!$C$5:$W$46,21,FALSE)) -> 7 | BB23: =IF(BB22="","",VLOOKUP(BB22,'【記載例】（ユニット型）シフト記号表'!$C$5:$W$46,21,FALSE)) -> 7 | BC23: =IF(BC22="","",VLOOKUP(BC22,'【記載例】（ユニット型）シフト記号表'!$C$5:$W$46,21,FALSE)) ->  | BD23: =IF(BD22="","",VLOOKUP(BD22,'【記載例】（ユニット型）シフト記号表'!$C$5:$W$46,21,FALSE)) ->  | BE23: =IF(BE22="","",VLOOKUP(BE22,'【記載例】（ユニット型）シフト記号表'!$C$5:$W$46,21,FALSE)) ->  | BF23: =IF($BI$3="計画",SUM(AA23:BB23),IF($BI$3="実績",SUM(AA23:BE23),"")) -> 140 | BH23: =IF($BI$3="計画",BF23/4,IF($BI$3="実績",(BF23/($BI$7/7)),"")) -> 35
I24: =G23 -> 医師 | K24: =M23 -> A | V24: 夜勤時間帯の勤務時間数 | AA24: =IF(AA22="","",VLOOKUP(AA22,'【記載例】（ユニット型）シフト記号表'!$C$5:$Y$46,23,FALSE)) -> 1 | AB24: =IF(AB22="","",VLOOKUP(AB22,'【記載例】（ユニット型）シフト記号表'!$C$5:$Y$46,23,FALSE)) -> 1 | AC24: =IF(AC22="","",VLOOKUP(AC22,'【記載例】（ユニット型）シフト記号表'!$C$5:$Y$46,23,FALSE)) -> 1 | AD24: =IF(AD22="","",VLOOKUP(AD22,'【記載例】（ユニット型）シフト記号表'!$C$5:$Y$46,23,FALSE)) -> - | AE24: =IF(AE22="","",VLOOKUP(AE22,'【記載例】（ユニット型）シフト記号表'!$C$5:$Y$46,23,FALSE)) -> - | AF24: =IF(AF22="","",VLOOKUP(AF22,'【記載例】（ユニット型）シフト記号表'!$C$5:$Y$46,23,FALSE)) -> 1 | AG24: =IF(AG22="","",VLOOKUP(AG22,'【記載例】（ユニット型）シフト記号表'!$C$5:$Y$46,23,FALSE)) -> 1 | AH24: =IF(AH22="","",VLOOKUP(AH22,'【記載例】（ユニット型）シフト記号表'!$C$5:$Y$46,23,FALSE)) -> 1 | AI24: =IF(AI22="","",VLOOKUP(AI22,'【記載例】（ユニット型）シフト記号表'!$C$5:$Y$46,23,FALSE)) -> 1 | AJ24: =IF(AJ22="","",VLOOKUP(AJ22,'【記載例】（ユニット型）シフト記号表'!$C$5:$Y$46,23,FALSE)) -> 1 | AK24: =IF(AK22="","",VLOOKUP(AK22,'【記載例】（ユニット型）シフト記号表'!$C$5:$Y$46,23,FALSE)) -> - | AL24: =IF(AL22="","",VLOOKUP(AL22,'【記載例】（ユニット型）シフト記号表'!$C$5:$Y$46,23,FALSE)) -> - | AM24: =IF(AM22="","",VLOOKUP(AM22,'【記載例】（ユニット型）シフト記号表'!$C$5:$Y$46,23,FALSE)) -> 1 | AN24: =IF(AN22="","",VLOOKUP(AN22,'【記載例】（ユニット型）シフト記号表'!$C$5:$Y$46,23,FALSE)) -> 1 | AO24: =IF(AO22="","",VLOOKUP(AO22,'【記載例】（ユニット型）シフト記号表'!$C$5:$Y$46,23,FALSE)) -> 1 | AP24: =IF(AP22="","",VLOOKUP(AP22,'【記載例】（ユニット型）シフト記号表'!$C$5:$Y$46,23,FALSE)) -> 1 | AQ24: =IF(AQ22="","",VLOOKUP(AQ22,'【記載例】（ユニット型）シフト記号表'!$C$5:$Y$46,23,FALSE)) -> 1 | AR24: =IF(AR22="","",VLOOKUP(AR22,'【記載例】（ユニット型）シフト記号表'!$C$5:$Y$46,23,FALSE)) -> - | AS24: =IF(AS22="","",VLOOKUP(AS22,'【記載例】（ユニット型）シフト記号表'!$C$5:$Y$46,23,FALSE)) -> - | AT24: =IF(AT22="","",VLOOKUP(AT22,'【記載例】（ユニット型）シフト記号表'!$C$5:$Y$46,23,FALSE)) -> 1 | AU24: =IF(AU22="","",VLOOKUP(AU22,'【記載例】（ユニット型）シフト記号表'!$C$5:$Y$46,23,FALSE)) -> 1 | AV24: =IF(AV22="","",VLOOKUP(AV22,'【記載例】（ユニット型）シフト記号表'!$C$5:$Y$46,23,FALSE)) -> 1 | AW24: =IF(AW22="","",VLOOKUP(AW22,'【記載例】（ユニット型）シフト記号表'!$C$5:$Y$46,23,FALSE)) -> 1 | AX24: =IF(AX22="","",VLOOKUP(AX22,'【記載例】（ユニット型）シフト記号表'!$C$5:$Y$46,23,FALSE)) -> 1 | AY24: =IF(AY22="","",VLOOKUP(AY22,'【記載例】（ユニット型）シフト記号表'!$C$5:$Y$46,23,FALSE)) -> - | AZ24: =IF(AZ22="","",VLOOKUP(AZ22,'【記載例】（ユニット型）シフト記号表'!$C$5:$Y$46,23,FALSE)) -> - | BA24: =IF(BA22="","",VLOOKUP(BA22,'【記載例】（ユニット型）シフト記号表'!$C$5:$Y$46,23,FALSE)) -> 1 | BB24: =IF(BB22="","",VLOOKUP(BB22,'【記載例】（ユニット型）シフト記号表'!$C$5:$Y$46,23,FALSE)) -> 1 | BC24: =IF(BC22="","",VLOOKUP(BC22,'【記載例】（ユニット型）シフト記号表'!$C$5:$Y$46,23,FALSE)) ->  | BD24: =IF(BD22="","",VLOOKUP(BD22,'【記載例】（ユニット型）シフト記号表'!$C$5:$Y$46,23,FALSE)) ->  | BE24: =IF(BE22="","",VLOOKUP(BE22,'【記載例】（ユニット型）シフト記号表'!$C$5:$Y$46,23,FALSE)) ->  | BF24: =IF($BI$3="計画",SUM(AA24:BB24),IF($BI$3="実績",SUM(AA24:BE24),"")) -> 20 | BH24: =IF($BI$3="計画",BF24/4,IF($BI$3="実績",(BF24/($BI$7/7)),"")) -> 5
S25: ○○ B子 | V25: シフト記号 | AA25: b | AB25: b | AC25: b | AD25: 休 | AE25: 休 | AF25: b | AG25: b | AH25: b | AI25: b | AJ25: b | AK25: 休 | AL25: 休 | AM25: b | AN25: b | AO25: b | AP25: b | AQ25: b | AR25: 休 | AS25: 休 | AT25: b | AU25: b | AV25: b | AW25: b | AX25: b | AY25: 休 | AZ25: 休 | BA25: b | BB25: b
B26: =B23+1 -> 3 | G26: 薬剤師 | M26: A | O26: 薬剤師 | V26: 日中の勤務時間数 | AA26: =IF(AA25="","",VLOOKUP(AA25,'【記載例】（ユニット型）シフト記号表'!$C$5:$W$46,21,FALSE)) -> 7 | AB26: =IF(AB25="","",VLOOKUP(AB25,'【記載例】（ユニット型）シフト記号表'!$C$5:$W$46,21,FALSE)) -> 7 | AC26: =IF(AC25="","",VLOOKUP(AC25,'【記載例】（ユニット型）シフト記号表'!$C$5:$W$46,21,FALSE)) -> 7 | AD26: =IF(AD25="","",VLOOKUP(AD25,'【記載例】（ユニット型）シフト記号表'!$C$5:$W$46,21,FALSE)) -> - | AE26: =IF(AE25="","",VLOOKUP(AE25,'【記載例】（ユニット型）シフト記号表'!$C$5:$W$46,21,FALSE)) -> - | AF26: =IF(AF25="","",VLOOKUP(AF25,'【記載例】（ユニット型）シフト記号表'!$C$5:$W$46,21,FALSE)) -> 7 | AG26: =IF(AG25="","",VLOOKUP(AG25,'【記載例】（ユニット型）シフト記号表'!$C$5:$W$46,21,FALSE)) -> 7 | AH26: =IF(AH25="","",VLOOKUP(AH25,'【記載例】（ユニット型）シフト記号表'!$C$5:$W$46,21,FALSE)) -> 7 | AI26: =IF(AI25="","",VLOOKUP(AI25,'【記載例】（ユニット型）シフト記号表'!$C$5:$W$46,21,FALSE)) -> 7 | AJ26: =IF(AJ25="","",VLOOKUP(AJ25,'【記載例】（ユニット型）シフト記号表'!$C$5:$W$46,21,FALSE)) -> 7 | AK26: =IF(AK25="","",VLOOKUP(AK25,'【記載例】（ユニット型）シフト記号表'!$C$5:$W$46,21,FALSE)) -> - | AL26: =IF(AL25="","",VLOOKUP(AL25,'【記載例】（ユニット型）シフト記号表'!$C$5:$W$46,21,FALSE)) -> - | AM26: =IF(AM25="","",VLOOKUP(AM25,'【記載例】（ユニット型）シフト記号表'!$C$5:$W$46,21,FALSE)) -> 7 | AN26: =IF(AN25="","",VLOOKUP(AN25,'【記載例】（ユニット型）シフト記号表'!$C$5:$W$46,21,FALSE)) -> 7 | AO26: =IF(AO25="","",VLOOKUP(AO25,'【記載例】（ユニット型）シフト記号表'!$C$5:$W$46,21,FALSE)) -> 7 | AP26: =IF(AP25="","",VLOOKUP(AP25,'【記載例】（ユニット型）シフト記号表'!$C$5:$W$46,21,FALSE)) -> 7 | AQ26: =IF(AQ25="","",VLOOKUP(AQ25,'【記載例】（ユニット型）シフト記号表'!$C$5:$W$46,21,FALSE)) -> 7 | AR26: =IF(AR25="","",VLOOKUP(AR25,'【記載例】（ユニット型）シフト記号表'!$C$5:$W$46,21,FALSE)) -> - | AS26: =IF(AS25="","",VLOOKUP(AS25,'【記載例】（ユニット型）シフト記号表'!$C$5:$W$46,21,FALSE)) -> - | AT26: =IF(AT25="","",VLOOKUP(AT25,'【記載例】（ユニット型）シフト記号表'!$C$5:$W$46,21,FALSE)) -> 7 | AU26: =IF(AU25="","",VLOOKUP(AU25,'【記載例】（ユニット型）シフト記号表'!$C$5:$W$46,21,FALSE)) -> 7 | AV26: =IF(AV25="","",VLOOKUP(AV25,'【記載例】（ユニット型）シフト記号表'!$C$5:$W$46,21,FALSE)) -> 7 | AW26: =IF(AW25="","",VLOOKUP(AW25,'【記載例】（ユニット型）シフト記号表'!$C$5:$W$46,21,FALSE)) -> 7 | AX26: =IF(AX25="","",VLOOKUP(AX25,'【記載例】（ユニット型）シフト記号表'!$C$5:$W$46,21,FALSE)) -> 7 | AY26: =IF(AY25="","",VLOOKUP(AY25,'【記載例】（ユニット型）シフト記号表'!$C$5:$W$46,21,FALSE)) -> - | AZ26: =IF(AZ25="","",VLOOKUP(AZ25,'【記載例】（ユニット型）シフト記号表'!$C$5:$W$46,21,FALSE)) -> - | BA26: =IF(BA25="","",VLOOKUP(BA25,'【記載例】（ユニット型）シフト記号表'!$C$5:$W$46,21,FALSE)) -> 7 | BB26: =IF(BB25="","",VLOOKUP(BB25,'【記載例】（ユニット型）シフト記号表'!$C$5:$W$46,21,FALSE)) -> 7 | BC26: =IF(BC25="","",VLOOKUP(BC25,'【記載例】（ユニット型）シフト記号表'!$C$5:$W$46,21,FALSE)) ->  | BD26: =IF(BD25="","",VLOOKUP(BD25,'【記載例】（ユニット型）シフト記号表'!$C$5:$W$46,21,FALSE)) ->  | BE26: =IF(BE25="","",VLOOKUP(BE25,'【記載例】（ユニット型）シフト記号表'!$C$5:$W$46,21,FALSE)) ->  | BF26: =IF($BI$3="計画",SUM(AA26:BB26),IF($BI$3="実績",SUM(AA26:BE26),"")) -> 140 | BH26: =IF($BI$3="計画",BF26/4,IF($BI$3="実績",(BF26/($BI$7/7)),"")) -> 35
I27: =G26 -> 薬剤師 | K27: =M26 -> A | V27: 夜勤時間帯の勤務時間数 | AA27: =IF(AA25="","",VLOOKUP(AA25,'【記載例】（ユニット型）シフト記号表'!$C$5:$Y$46,23,FALSE)) -> 1 | AB27: =IF(AB25="","",VLOOKUP(AB25,'【記載例】（ユニット型）シフト記号表'!$C$5:$Y$46,23,FALSE)) -> 1 | AC27: =IF(AC25="","",VLOOKUP(AC25,'【記載例】（ユニット型）シフト記号表'!$C$5:$Y$46,23,FALSE)) -> 1 | AD27: =IF(AD25="","",VLOOKUP(AD25,'【記載例】（ユニット型）シフト記号表'!$C$5:$Y$46,23,FALSE)) -> - | AE27: =IF(AE25="","",VLOOKUP(AE25,'【記載例】（ユニット型）シフト記号表'!$C$5:$Y$46,23,FALSE)) -> - | AF27: =IF(AF25="","",VLOOKUP(AF25,'【記載例】（ユニット型）シフト記号表'!$C$5:$Y$46,23,FALSE)) -> 1 | AG27: =IF(AG25="","",VLOOKUP(AG25,'【記載例】（ユニット型）シフト記号表'!$C$5:$Y$46,23,FALSE)) -> 1 | AH27: =IF(AH25="","",VLOOKUP(AH25,'【記載例】（ユニット型）シフト記号表'!$C$5:$Y$46,23,FALSE)) -> 1 | AI27: =IF(AI25="","",VLOOKUP(AI25,'【記載例】（ユニット型）シフト記号表'!$C$5:$Y$46,23,FALSE)) -> 1 | AJ27: =IF(AJ25="","",VLOOKUP(AJ25,'【記載例】（ユニット型）シフト記号表'!$C$5:$Y$46,23,FALSE)) -> 1 | AK27: =IF(AK25="","",VLOOKUP(AK25,'【記載例】（ユニット型）シフト記号表'!$C$5:$Y$46,23,FALSE)) -> - | AL27: =IF(AL25="","",VLOOKUP(AL25,'【記載例】（ユニット型）シフト記号表'!$C$5:$Y$46,23,FALSE)) -> - | AM27: =IF(AM25="","",VLOOKUP(AM25,'【記載例】（ユニット型）シフト記号表'!$C$5:$Y$46,23,FALSE)) -> 1 | AN27: =IF(AN25="","",VLOOKUP(AN25,'【記載例】（ユニット型）シフト記号表'!$C$5:$Y$46,23,FALSE)) -> 1 | AO27: =IF(AO25="","",VLOOKUP(AO25,'【記載例】（ユニット型）シフト記号表'!$C$5:$Y$46,23,FALSE)) -> 1 | AP27: =IF(AP25="","",VLOOKUP(AP25,'【記載例】（ユニット型）シフト記号表'!$C$5:$Y$46,23,FALSE)) -> 1 | AQ27: =IF(AQ25="","",VLOOKUP(AQ25,'【記載例】（ユニット型）シフト記号表'!$C$5:$Y$46,23,FALSE)) -> 1 | AR27: =IF(AR25="","",VLOOKUP(AR25,'【記載例】（ユニット型）シフト記号表'!$C$5:$Y$46,23,FALSE)) -> - | AS27: =IF(AS25="","",VLOOKUP(AS25,'【記載例】（ユニット型）シフト記号表'!$C$5:$Y$46,23,FALSE)) -> - | AT27: =IF(AT25="","",VLOOKUP(AT25,'【記載例】（ユニット型）シフト記号表'!$C$5:$Y$46,23,FALSE)) -> 1 | AU27: =IF(AU25="","",VLOOKUP(AU25,'【記載例】（ユニット型）シフト記号表'!$C$5:$Y$46,23,FALSE)) -> 1 | AV27: =IF(AV25="","",VLOOKUP(AV25,'【記載例】（ユニット型）シフト記号表'!$C$5:$Y$46,23,FALSE)) -> 1 | AW27: =IF(AW25="","",VLOOKUP(AW25,'【記載例】（ユニット型）シフト記号表'!$C$5:$Y$46,23,FALSE)) -> 1 | AX27: =IF(AX25="","",VLOOKUP(AX25,'【記載例】（ユニット型）シフト記号表'!$C$5:$Y$46,23,FALSE)) -> 1 | AY27: =IF(AY25="","",VLOOKUP(AY25,'【記載例】（ユニット型）シフト記号表'!$C$5:$Y$46,23,FALSE)) -> - | AZ27: =IF(AZ25="","",VLOOKUP(AZ25,'【記載例】（ユニット型）シフト記号表'!$C$5:$Y$46,23,FALSE)) -> - | BA27: =IF(BA25="","",VLOOKUP(BA25,'【記載例】（ユニット型）シフト記号表'!$C$5:$Y$46,23,FALSE)) -> 1 | BB27: =IF(BB25="","",VLOOKUP(BB25,'【記載例】（ユニット型）シフト記号表'!$C$5:$Y$46,23,FALSE)) -> 1 | BC27: =IF(BC25="","",VLOOKUP(BC25,'【記載例】（ユニット型）シフト記号表'!$C$5:$Y$46,23,FALSE)) ->  | BD27: =IF(BD25="","",VLOOKUP(BD25,'【記載例】（ユニット型）シフト記号表'!$C$5:$Y$46,23,FALSE)) ->  | BE27: =IF(BE25="","",VLOOKUP(BE25,'【記載例】（ユニット型）シフト記号表'!$C$5:$Y$46,23,FALSE)) ->  | BF27: =IF($BI$3="計画",SUM(AA27:BB27),IF($BI$3="実績",SUM(AA27:BE27),"")) -> 20 | BH27: =IF($BI$3="計画",BF27/4,IF($BI$3="実績",(BF27/($BI$7/7)),"")) -> 5
S28: ○○ C太 | V28: シフト記号 | AA28: b | AB28: b | AC28: b | AD28: 休 | AE28: 休 | AF28: b | AG28: b | AH28: b | AI28: b | AJ28: b | AK28: 休 | AL28: 休 | AM28: b | AN28: b | AO28: b | AP28: b | AQ28: b | AR28: 休 | AS28: 休 | AT28: b | AU28: b | AV28: b | AW28: b | AX28: b | AY28: 休 | AZ28: 休 | BA28: b | BB28: b
B29: =B26+1 -> 4 | G29: 支援相談員 | M29: A | O29: ー | V29: 日中の勤務時間数 | AA29: =IF(AA28="","",VLOOKUP(AA28,'【記載例】（ユニット型）シフト記号表'!$C$5:$W$46,21,FALSE)) -> 7 | AB29: =IF(AB28="","",VLOOKUP(AB28,'【記載例】（ユニット型）シフト記号表'!$C$5:$W$46,21,FALSE)) -> 7 | AC29: =IF(AC28="","",VLOOKUP(AC28,'【記載例】（ユニット型）シフト記号表'!$C$5:$W$46,21,FALSE)) -> 7 | AD29: =IF(AD28="","",VLOOKUP(AD28,'【記載例】（ユニット型）シフト記号表'!$C$5:$W$46,21,FALSE)) -> - | AE29: =IF(AE28="","",VLOOKUP(AE28,'【記載例】（ユニット型）シフト記号表'!$C$5:$W$46,21,FALSE)) -> - | AF29: =IF(AF28="","",VLOOKUP(AF28,'【記載例】（ユニット型）シフト記号表'!$C$5:$W$46,21,FALSE)) -> 7 | AG29: =IF(AG28="","",VLOOKUP(AG28,'【記載例】（ユニット型）シフト記号表'!$C$5:$W$46,21,FALSE)) -> 7 | AH29: =IF(AH28="","",VLOOKUP(AH28,'【記載例】（ユニット型）シフト記号表'!$C$5:$W$46,21,FALSE)) -> 7 | AI29: =IF(AI28="","",VLOOKUP(AI28,'【記載例】（ユニット型）シフト記号表'!$C$5:$W$46,21,FALSE)) -> 7 | AJ29: =IF(AJ28="","",VLOOKUP(AJ28,'【記載例】（ユニット型）シフト記号表'!$C$5:$W$46,21,FALSE)) -> 7 | AK29: =IF(AK28="","",VLOOKUP(AK28,'【記載例】（ユニット型）シフト記号表'!$C$5:$W$46,21,FALSE)) -> - | AL29: =IF(AL28="","",VLOOKUP(AL28,'【記載例】（ユニット型）シフト記号表'!$C$5:$W$46,21,FALSE)) -> - | AM29: =IF(AM28="","",VLOOKUP(AM28,'【記載例】（ユニット型）シフト記号表'!$C$5:$W$46,21,FALSE)) -> 7 | AN29: =IF(AN28="","",VLOOKUP(AN28,'【記載例】（ユニット型）シフト記号表'!$C$5:$W$46,21,FALSE)) -> 7 | AO29: =IF(AO28="","",VLOOKUP(AO28,'【記載例】（ユニット型）シフト記号表'!$C$5:$W$46,21,FALSE)) -> 7 | AP29: =IF(AP28="","",VLOOKUP(AP28,'【記載例】（ユニット型）シフト記号表'!$C$5:$W$46,21,FALSE)) -> 7 | AQ29: =IF(AQ28="","",VLOOKUP(AQ28,'【記載例】（ユニット型）シフト記号表'!$C$5:$W$46,21,FALSE)) -> 7 | AR29: =IF(AR28="","",VLOOKUP(AR28,'【記載例】（ユニット型）シフト記号表'!$C$5:$W$46,21,FALSE)) -> - | AS29: =IF(AS28="","",VLOOKUP(AS28,'【記載例】（ユニット型）シフト記号表'!$C$5:$W$46,21,FALSE)) -> - | AT29: =IF(AT28="","",VLOOKUP(AT28,'【記載例】（ユニット型）シフト記号表'!$C$5:$W$46,21,FALSE)) -> 7 | AU29: =IF(AU28="","",VLOOKUP(AU28,'【記載例】（ユニット型）シフト記号表'!$C$5:$W$46,21,FALSE)) -> 7 | AV29: =IF(AV28="","",VLOOKUP(AV28,'【記載例】（ユニット型）シフト記号表'!$C$5:$W$46,21,FALSE)) -> 7 | AW29: =IF(AW28="","",VLOOKUP(AW28,'【記載例】（ユニット型）シフト記号表'!$C$5:$W$46,21,FALSE)) -> 7 | AX29: =IF(AX28="","",VLOOKUP(AX28,'【記載例】（ユニット型）シフト記号表'!$C$5:$W$46,21,FALSE)) -> 7 | AY29: =IF(AY28="","",VLOOKUP(AY28,'【記載例】（ユニット型）シフト記号表'!$C$5:$W$46,21,FALSE)) -> - | AZ29: =IF(AZ28="","",VLOOKUP(AZ28,'【記載例】（ユニット型）シフト記号表'!$C$5:$W$46,21,FALSE)) -> - | BA29: =IF(BA28="","",VLOOKUP(BA28,'【記載例】（ユニット型）シフト記号表'!$C$5:$W$46,21,FALSE)) -> 7 | BB29: =IF(BB28="","",VLOOKUP(BB28,'【記載例】（ユニット型）シフト記号表'!$C$5:$W$46,21,FALSE)) -> 7 | BC29: =IF(BC28="","",VLOOKUP(BC28,'【記載例】（ユニット型）シフト記号表'!$C$5:$W$46,21,FALSE)) ->  | BD29: =IF(BD28="","",VLOOKUP(BD28,'【記載例】（ユニット型）シフト記号表'!$C$5:$W$46,21,FALSE)) ->  | BE29: =IF(BE28="","",VLOOKUP(BE28,'【記載例】（ユニット型）シフト記号表'!$C$5:$W$46,21,FALSE)) ->  | BF29: =IF($BI$3="計画",SUM(AA29:BB29),IF($BI$3="実績",SUM(AA29:BE29),"")) -> 140 | BH29: =IF($BI$3="計画",BF29/4,IF($BI$3="実績",(BF29/($BI$7/7)),"")) -> 35
I30: =G29 -> 支援相談員 | K30: =M29 -> A | V30: 夜勤時間帯の勤務時間数 | AA30: =IF(AA28="","",VLOOKUP(AA28,'【記載例】（ユニット型）シフト記号表'!$C$5:$Y$46,23,FALSE)) -> 1 | AB30: =IF(AB28="","",VLOOKUP(AB28,'【記載例】（ユニット型）シフト記号表'!$C$5:$Y$46,23,FALSE)) -> 1 | AC30: =IF(AC28="","",VLOOKUP(AC28,'【記載例】（ユニット型）シフト記号表'!$C$5:$Y$46,23,FALSE)) -> 1 | AD30: =IF(AD28="","",VLOOKUP(AD28,'【記載例】（ユニット型）シフト記号表'!$C$5:$Y$46,23,FALSE)) -> - | AE30: =IF(AE28="","",VLOOKUP(AE28,'【記載例】（ユニット型）シフト記号表'!$C$5:$Y$46,23,FALSE)) -> - | AF30: =IF(AF28="","",VLOOKUP(AF28,'【記載例】（ユニット型）シフト記号表'!$C$5:$Y$46,23,FALSE)) -> 1 | AG30: =IF(AG28="","",VLOOKUP(AG28,'【記載例】（ユニット型）シフト記号表'!$C$5:$Y$46,23,FALSE)) -> 1 | AH30: =IF(AH28="","",VLOOKUP(AH28,'【記載例】（ユニット型）シフト記号表'!$C$5:$Y$46,23,FALSE)) -> 1 | AI30: =IF(AI28="","",VLOOKUP(AI28,'【記載例】（ユニット型）シフト記号表'!$C$5:$Y$46,23,FALSE)) -> 1 | AJ30: =IF(AJ28="","",VLOOKUP(AJ28,'【記載例】（ユニット型）シフト記号表'!$C$5:$Y$46,23,FALSE)) -> 1 | AK30: =IF(AK28="","",VLOOKUP(AK28,'【記載例】（ユニット型）シフト記号表'!$C$5:$Y$46,23,FALSE)) -> - | AL30: =IF(AL28="","",VLOOKUP(AL28,'【記載例】（ユニット型）シフト記号表'!$C$5:$Y$46,23,FALSE)) -> - | AM30: =IF(AM28="","",VLOOKUP(AM28,'【記載例】（ユニット型）シフト記号表'!$C$5:$Y$46,23,FALSE)) -> 1 | AN30: =IF(AN28="","",VLOOKUP(AN28,'【記載例】（ユニット型）シフト記号表'!$C$5:$Y$46,23,FALSE)) -> 1 | AO30: =IF(AO28="","",VLOOKUP(AO28,'【記載例】（ユニット型）シフト記号表'!$C$5:$Y$46,23,FALSE)) -> 1 | AP30: =IF(AP28="","",VLOOKUP(AP28,'【記載例】（ユニット型）シフト記号表'!$C$5:$Y$46,23,FALSE)) -> 1 | AQ30: =IF(AQ28="","",VLOOKUP(AQ28,'【記載例】（ユニット型）シフト記号表'!$C$5:$Y$46,23,FALSE)) -> 1 | AR30: =IF(AR28="","",VLOOKUP(AR28,'【記載例】（ユニット型）シフト記号表'!$C$5:$Y$46,23,FALSE)) -> - | AS30: =IF(AS28="","",VLOOKUP(AS28,'【記載例】（ユニット型）シフト記号表'!$C$5:$Y$46,23,FALSE)) -> - | AT30: =IF(AT28="","",VLOOKUP(AT28,'【記載例】（ユニット型）シフト記号表'!$C$5:$Y$46,23,FALSE)) -> 1 | AU30: =IF(AU28="","",VLOOKUP(AU28,'【記載例】（ユニット型）シフト記号表'!$C$5:$Y$46,23,FALSE)) -> 1 | AV30: =IF(AV28="","",VLOOKUP(AV28,'【記載例】（ユニット型）シフト記号表'!$C$5:$Y$46,23,FALSE)) -> 1 | AW30: =IF(AW28="","",VLOOKUP(AW28,'【記載例】（ユニット型）シフト記号表'!$C$5:$Y$46,23,FALSE)) -> 1 | AX30: =IF(AX28="","",VLOOKUP(AX28,'【記載例】（ユニット型）シフト記号表'!$C$5:$Y$46,23,FALSE)) -> 1 | AY30: =IF(AY28="","",VLOOKUP(AY28,'【記載例】（ユニット型）シフト記号表'!$C$5:$Y$46,23,FALSE)) -> - | AZ30: =IF(AZ28="","",VLOOKUP(AZ28,'【記載例】（ユニット型）シフト記号表'!$C$5:$Y$46,23,FALSE)) -> - | BA30: =IF(BA28="","",VLOOKUP(BA28,'【記載例】（ユニット型）シフト記号表'!$C$5:$Y$46,23,FALSE)) -> 1 | BB30: =IF(BB28="","",VLOOKUP(BB28,'【記載例】（ユニット型）シフト記号表'!$C$5:$Y$46,23,FALSE)) -> 1 | BC30: =IF(BC28="","",VLOOKUP(BC28,'【記載例】（ユニット型）シフト記号表'!$C$5:$Y$46,23,FALSE)) ->  | BD30: =IF(BD28="","",VLOOKUP(BD28,'【記載例】（ユニット型）シフト記号表'!$C$5:$Y$46,23,FALSE)) ->  | BE30: =IF(BE28="","",VLOOKUP(BE28,'【記載例】（ユニット型）シフト記号表'!$C$5:$Y$46,23,FALSE)) ->  | BF30: =IF($BI$3="計画",SUM(AA30:BB30),IF($BI$3="実績",SUM(AA30:BE30),"")) -> 20 | BH30: =IF($BI$3="計画",BF30/4,IF($BI$3="実績",(BF30/($BI$7/7)),"")) -> 5
S31: ○○ D美 | V31: シフト記号 | AA31: b | AB31: b | AC31: b | AD31: 休 | AE31: 休 | AF31: b | AG31: b | AH31: b | AI31: b | AJ31: b | AK31: 休 | AL31: 休 | AM31: b | AN31: b | AO31: b | AP31: b | AQ31: b | AR31: 休 | AS31: 休 | AT31: b | AU31: b | AV31: b | AW31: b | AX31: b | AY31: 休 | AZ31: 休 | BA31: b | BB31: b
B32: =B29+1 -> 5 | G32: 理学療法士 | M32: A | O32: 理学療法士 | V32: 日中の勤務時間数 | AA32: =IF(AA31="","",VLOOKUP(AA31,'【記載例】（ユニット型）シフト記号表'!$C$5:$W$46,21,FALSE)) -> 7 | AB32: =IF(AB31="","",VLOOKUP(AB31,'【記載例】（ユニット型）シフト記号表'!$C$5:$W$46,21,FALSE)) -> 7 | AC32: =IF(AC31="","",VLOOKUP(AC31,'【記載例】（ユニット型）シフト記号表'!$C$5:$W$46,21,FALSE)) -> 7 | AD32: =IF(AD31="","",VLOOKUP(AD31,'【記載例】（ユニット型）シフト記号表'!$C$5:$W$46,21,FALSE)) -> - | AE32: =IF(AE31="","",VLOOKUP(AE31,'【記載例】（ユニット型）シフト記号表'!$C$5:$W$46,21,FALSE)) -> - | AF32: =IF(AF31="","",VLOOKUP(AF31,'【記載例】（ユニット型）シフト記号表'!$C$5:$W$46,21,FALSE)) -> 7 | AG32: =IF(AG31="","",VLOOKUP(AG31,'【記載例】（ユニット型）シフト記号表'!$C$5:$W$46,21,FALSE)) -> 7 | AH32: =IF(AH31="","",VLOOKUP(AH31,'【記載例】（ユニット型）シフト記号表'!$C$5:$W$46,21,FALSE)) -> 7 | AI32: =IF(AI31="","",VLOOKUP(AI31,'【記載例】（ユニット型）シフト記号表'!$C$5:$W$46,21,FALSE)) -> 7 | AJ32: =IF(AJ31="","",VLOOKUP(AJ31,'【記載例】（ユニット型）シフト記号表'!$C$5:$W$46,21,FALSE)) -> 7 | AK32: =IF(AK31="","",VLOOKUP(AK31,'【記載例】（ユニット型）シフト記号表'!$C$5:$W$46,21,FALSE)) -> - | AL32: =IF(AL31="","",VLOOKUP(AL31,'【記載例】（ユニット型）シフト記号表'!$C$5:$W$46,21,FALSE)) -> - | AM32: =IF(AM31="","",VLOOKUP(AM31,'【記載例】（ユニット型）シフト記号表'!$C$5:$W$46,21,FALSE)) -> 7 | AN32: =IF(AN31="","",VLOOKUP(AN31,'【記載例】（ユニット型）シフト記号表'!$C$5:$W$46,21,FALSE)) -> 7 | AO32: =IF(AO31="","",VLOOKUP(AO31,'【記載例】（ユニット型）シフト記号表'!$C$5:$W$46,21,FALSE)) -> 7 | AP32: =IF(AP31="","",VLOOKUP(AP31,'【記載例】（ユニット型）シフト記号表'!$C$5:$W$46,21,FALSE)) -> 7 | AQ32: =IF(AQ31="","",VLOOKUP(AQ31,'【記載例】（ユニット型）シフト記号表'!$C$5:$W$46,21,FALSE)) -> 7 | AR32: =IF(AR31="","",VLOOKUP(AR31,'【記載例】（ユニット型）シフト記号表'!$C$5:$W$46,21,FALSE)) -> - | AS32: =IF(AS31="","",VLOOKUP(AS31,'【記載例】（ユニット型）シフト記号表'!$C$5:$W$46,21,FALSE)) -> - | AT32: =IF(AT31="","",VLOOKUP(AT31,'【記載例】（ユニット型）シフト記号表'!$C$5:$W$46,21,FALSE)) -> 7 | AU32: =IF(AU31="","",VLOOKUP(AU31,'【記載例】（ユニット型）シフト記号表'!$C$5:$W$46,21,FALSE)) -> 7 | AV32: =IF(AV31="","",VLOOKUP(AV31,'【記載例】（ユニット型）シフト記号表'!$C$5:$W$46,21,FALSE)) -> 7 | AW32: =IF(AW31="","",VLOOKUP(AW31,'【記載例】（ユニット型）シフト記号表'!$C$5:$W$46,21,FALSE)) -> 7 | AX32: =IF(AX31="","",VLOOKUP(AX31,'【記載例】（ユニット型）シフト記号表'!$C$5:$W$46,21,FALSE)) -> 7 | AY32: =IF(AY31="","",VLOOKUP(AY31,'【記載例】（ユニット型）シフト記号表'!$C$5:$W$46,21,FALSE)) -> - | AZ32: =IF(AZ31="","",VLOOKUP(AZ31,'【記載例】（ユニット型）シフト記号表'!$C$5:$W$46,21,FALSE)) -> - | BA32: =IF(BA31="","",VLOOKUP(BA31,'【記載例】（ユニット型）シフト記号表'!$C$5:$W$46,21,FALSE)) -> 7 | BB32: =IF(BB31="","",VLOOKUP(BB31,'【記載例】（ユニット型）シフト記号表'!$C$5:$W$46,21,FALSE)) -> 7 | BC32: =IF(BC31="","",VLOOKUP(BC31,'【記載例】（ユニット型）シフト記号表'!$C$5:$W$46,21,FALSE)) ->  | BD32: =IF(BD31="","",VLOOKUP(BD31,'【記載例】（ユニット型）シフト記号表'!$C$5:$W$46,21,FALSE)) ->  | BE32: =IF(BE31="","",VLOOKUP(BE31,'【記載例】（ユニット型）シフト記号表'!$C$5:$W$46,21,FALSE)) ->  | BF32: =IF($BI$3="計画",SUM(AA32:BB32),IF($BI$3="実績",SUM(AA32:BE32),"")) -> 140 | BH32: =IF($BI$3="計画",BF32/4,IF($BI$3="実績",(BF32/($BI$7/7)),"")) -> 35
I33: =G32 -> 理学療法士 | K33: =M32 -> A | V33: 夜勤時間帯の勤務時間数 | AA33: =IF(AA31="","",VLOOKUP(AA31,'【記載例】（ユニット型）シフト記号表'!$C$5:$Y$46,23,FALSE)) -> 1 | AB33: =IF(AB31="","",VLOOKUP(AB31,'【記載例】（ユニット型）シフト記号表'!$C$5:$Y$46,23,FALSE)) -> 1 | AC33: =IF(AC31="","",VLOOKUP(AC31,'【記載例】（ユニット型）シフト記号表'!$C$5:$Y$46,23,FALSE)) -> 1 | AD33: =IF(AD31="","",VLOOKUP(AD31,'【記載例】（ユニット型）シフト記号表'!$C$5:$Y$46,23,FALSE)) -> - | AE33: =IF(AE31="","",VLOOKUP(AE31,'【記載例】（ユニット型）シフト記号表'!$C$5:$Y$46,23,FALSE)) -> - | AF33: =IF(AF31="","",VLOOKUP(AF31,'【記載例】（ユニット型）シフト記号表'!$C$5:$Y$46,23,FALSE)) -> 1 | AG33: =IF(AG31="","",VLOOKUP(AG31,'【記載例】（ユニット型）シフト記号表'!$C$5:$Y$46,23,FALSE)) -> 1 | AH33: =IF(AH31="","",VLOOKUP(AH31,'【記載例】（ユニット型）シフト記号表'!$C$5:$Y$46,23,FALSE)) -> 1 | AI33: =IF(AI31="","",VLOOKUP(AI31,'【記載例】（ユニット型）シフト記号表'!$C$5:$Y$46,23,FALSE)) -> 1 | AJ33: =IF(AJ31="","",VLOOKUP(AJ31,'【記載例】（ユニット型）シフト記号表'!$C$5:$Y$46,23,FALSE)) -> 1 | AK33: =IF(AK31="","",VLOOKUP(AK31,'【記載例】（ユニット型）シフト記号表'!$C$5:$Y$46,23,FALSE)) -> - | AL33: =IF(AL31="","",VLOOKUP(AL31,'【記載例】（ユニット型）シフト記号表'!$C$5:$Y$46,23,FALSE)) -> - | AM33: =IF(AM31="","",VLOOKUP(AM31,'【記載例】（ユニット型）シフト記号表'!$C$5:$Y$46,23,FALSE)) -> 1 | AN33: =IF(AN31="","",VLOOKUP(AN31,'【記載例】（ユニット型）シフト記号表'!$C$5:$Y$46,23,FALSE)) -> 1 | AO33: =IF(AO31="","",VLOOKUP(AO31,'【記載例】（ユニット型）シフト記号表'!$C$5:$Y$46,23,FALSE)) -> 1 | AP33: =IF(AP31="","",VLOOKUP(AP31,'【記載例】（ユニット型）シフト記号表'!$C$5:$Y$46,23,FALSE)) -> 1 | AQ33: =IF(AQ31="","",VLOOKUP(AQ31,'【記載例】（ユニット型）シフト記号表'!$C$5:$Y$46,23,FALSE)) -> 1 | AR33: =IF(AR31="","",VLOOKUP(AR31,'【記載例】（ユニット型）シフト記号表'!$C$5:$Y$46,23,FALSE)) -> - | AS33: =IF(AS31="","",VLOOKUP(AS31,'【記載例】（ユニット型）シフト記号表'!$C$5:$Y$46,23,FALSE)) -> - | AT33: =IF(AT31="","",VLOOKUP(AT31,'【記載例】（ユニット型）シフト記号表'!$C$5:$Y$46,23,FALSE)) -> 1 | AU33: =IF(AU31="","",VLOOKUP(AU31,'【記載例】（ユニット型）シフト記号表'!$C$5:$Y$46,23,FALSE)) -> 1 | AV33: =IF(AV31="","",VLOOKUP(AV31,'【記載例】（ユニット型）シフト記号表'!$C$5:$Y$46,23,FALSE)) -> 1 | AW33: =IF(AW31="","",VLOOKUP(AW31,'【記載例】（ユニット型）シフト記号表'!$C$5:$Y$46,23,FALSE)) -> 1 | AX33: =IF(AX31="","",VLOOKUP(AX31,'【記載例】（ユニット型）シフト記号表'!$C$5:$Y$46,23,FALSE)) -> 1 | AY33: =IF(AY31="","",VLOOKUP(AY31,'【記載例】（ユニット型）シフト記号表'!$C$5:$Y$46,23,FALSE)) -> - | AZ33: =IF(AZ31="","",VLOOKUP(AZ31,'【記載例】（ユニット型）シフト記号表'!$C$5:$Y$46,23,FALSE)) -> - | BA33: =IF(BA31="","",VLOOKUP(BA31,'【記載例】（ユニット型）シフト記号表'!$C$5:$Y$46,23,FALSE)) -> 1 | BB33: =IF(BB31="","",VLOOKUP(BB31,'【記載例】（ユニット型）シフト記号表'!$C$5:$Y$46,23,FALSE)) -> 1 | BC33: =IF(BC31="","",VLOOKUP(BC31,'【記載例】（ユニット型）シフト記号表'!$C$5:$Y$46,23,FALSE)) ->  | BD33: =IF(BD31="","",VLOOKUP(BD31,'【記載例】（ユニット型）シフト記号表'!$C$5:$Y$46,23,FALSE)) ->  | BE33: =IF(BE31="","",VLOOKUP(BE31,'【記載例】（ユニット型）シフト記号表'!$C$5:$Y$46,23,FALSE)) ->  | BF33: =IF($BI$3="計画",SUM(AA33:BB33),IF($BI$3="実績",SUM(AA33:BE33),"")) -> 20 | BH33: =IF($BI$3="計画",BF33/4,IF($BI$3="実績",(BF33/($BI$7/7)),"")) -> 5
S34: ○○ C太 | V34: シフト記号 | AA34: b | AB34: b | AC34: b | AD34: 休 | AE34: 休 | AF34: b | AG34: b | AH34: b | AI34: b | AJ34: b | AK34: 休 | AL34: 休 | AM34: b | AN34: b | AO34: b | AP34: b | AQ34: b | AR34: 休 | AS34: 休 | AT34: b | AU34: b | AV34: b | AW34: b | AX34: b | AY34: 休 | AZ34: 休 | BA34: b | BB34: b
B35: =B32+1 -> 6 | G35: 介護支援専門員 | M35: A | O35: 介護支援専門員 | V35: 日中の勤務時間数 | AA35: =IF(AA34="","",VLOOKUP(AA34,'【記載例】（ユニット型）シフト記号表'!$C$5:$W$46,21,FALSE)) -> 7 | AB35: =IF(AB34="","",VLOOKUP(AB34,'【記載例】（ユニット型）シフト記号表'!$C$5:$W$46,21,FALSE)) -> 7 | AC35: =IF(AC34="","",VLOOKUP(AC34,'【記載例】（ユニット型）シフト記号表'!$C$5:$W$46,21,FALSE)) -> 7 | AD35: =IF(AD34="","",VLOOKUP(AD34,'【記載例】（ユニット型）シフト記号表'!$C$5:$W$46,21,FALSE)) -> - | AE35: =IF(AE34="","",VLOOKUP(AE34,'【記載例】（ユニット型）シフト記号表'!$C$5:$W$46,21,FALSE)) -> - | AF35: =IF(AF34="","",VLOOKUP(AF34,'【記載例】（ユニット型）シフト記号表'!$C$5:$W$46,21,FALSE)) -> 7 | AG35: =IF(AG34="","",VLOOKUP(AG34,'【記載例】（ユニット型）シフト記号表'!$C$5:$W$46,21,FALSE)) -> 7 | AH35: =IF(AH34="","",VLOOKUP(AH34,'【記載例】（ユニット型）シフト記号表'!$C$5:$W$46,21,FALSE)) -> 7 | AI35: =IF(AI34="","",VLOOKUP(AI34,'【記載例】（ユニット型）シフト記号表'!$C$5:$W$46,21,FALSE)) -> 7 | AJ35: =IF(AJ34="","",VLOOKUP(AJ34,'【記載例】（ユニット型）シフト記号表'!$C$5:$W$46,21,FALSE)) -> 7 | AK35: =IF(AK34="","",VLOOKUP(AK34,'【記載例】（ユニット型）シフト記号表'!$C$5:$W$46,21,FALSE)) -> - | AL35: =IF(AL34="","",VLOOKUP(AL34,'【記載例】（ユニット型）シフト記号表'!$C$5:$W$46,21,FALSE)) -> - | AM35: =IF(AM34="","",VLOOKUP(AM34,'【記載例】（ユニット型）シフト記号表'!$C$5:$W$46,21,FALSE)) -> 7 | AN35: =IF(AN34="","",VLOOKUP(AN34,'【記載例】（ユニット型）シフト記号表'!$C$5:$W$46,21,FALSE)) -> 7 | AO35: =IF(AO34="","",VLOOKUP(AO34,'【記載例】（ユニット型）シフト記号表'!$C$5:$W$46,21,FALSE)) -> 7 | AP35: =IF(AP34="","",VLOOKUP(AP34,'【記載例】（ユニット型）シフト記号表'!$C$5:$W$46,21,FALSE)) -> 7 | AQ35: =IF(AQ34="","",VLOOKUP(AQ34,'【記載例】（ユニット型）シフト記号表'!$C$5:$W$46,21,FALSE)) -> 7 | AR35: =IF(AR34="","",VLOOKUP(AR34,'【記載例】（ユニット型）シフト記号表'!$C$5:$W$46,21,FALSE)) -> - | AS35: =IF(AS34="","",VLOOKUP(AS34,'【記載例】（ユニット型）シフト記号表'!$C$5:$W$46,21,FALSE)) -> - | AT35: =IF(AT34="","",VLOOKUP(AT34,'【記載例】（ユニット型）シフト記号表'!$C$5:$W$46,21,FALSE)) -> 7 | AU35: =IF(AU34="","",VLOOKUP(AU34,'【記載例】（ユニット型）シフト記号表'!$C$5:$W$46,21,FALSE)) -> 7 | AV35: =IF(AV34="","",VLOOKUP(AV34,'【記載例】（ユニット型）シフト記号表'!$C$5:$W$46,21,FALSE)) -> 7 | AW35: =IF(AW34="","",VLOOKUP(AW34,'【記載例】（ユニット型）シフト記号表'!$C$5:$W$46,21,FALSE)) -> 7 | AX35: =IF(AX34="","",VLOOKUP(AX34,'【記載例】（ユニット型）シフト記号表'!$C$5:$W$46,21,FALSE)) -> 7 | AY35: =IF(AY34="","",VLOOKUP(AY34,'【記載例】（ユニット型）シフト記号表'!$C$5:$W$46,21,FALSE)) -> - | AZ35: =IF(AZ34="","",VLOOKUP(AZ34,'【記載例】（ユニット型）シフト記号表'!$C$5:$W$46,21,FALSE)) -> - | BA35: =IF(BA34="","",VLOOKUP(BA34,'【記載例】（ユニット型）シフト記号表'!$C$5:$W$46,21,FALSE)) -> 7 | BB35: =IF(BB34="","",VLOOKUP(BB34,'【記載例】（ユニット型）シフト記号表'!$C$5:$W$46,21,FALSE)) -> 7 | BC35: =IF(BC34="","",VLOOKUP(BC34,'【記載例】（ユニット型）シフト記号表'!$C$5:$W$46,21,FALSE)) ->  | BD35: =IF(BD34="","",VLOOKUP(BD34,'【記載例】（ユニット型）シフト記号表'!$C$5:$W$46,21,FALSE)) ->  | BE35: =IF(BE34="","",VLOOKUP(BE34,'【記載例】（ユニット型）シフト記号表'!$C$5:$W$46,21,FALSE)) ->  | BF35: =IF($BI$3="計画",SUM(AA35:BB35),IF($BI$3="実績",SUM(AA35:BE35),"")) -> 140 | BH35: =IF($BI$3="計画",BF35/4,IF($BI$3="実績",(BF35/($BI$7/7)),"")) -> 35
I36: =G35 -> 介護支援専門員 | K36: =M35 -> A | V36: 夜勤時間帯の勤務時間数 | AA36: =IF(AA34="","",VLOOKUP(AA34,'【記載例】（ユニット型）シフト記号表'!$C$5:$Y$46,23,FALSE)) -> 1 | AB36: =IF(AB34="","",VLOOKUP(AB34,'【記載例】（ユニット型）シフト記号表'!$C$5:$Y$46,23,FALSE)) -> 1 | AC36: =IF(AC34="","",VLOOKUP(AC34,'【記載例】（ユニット型）シフト記号表'!$C$5:$Y$46,23,FALSE)) -> 1 | AD36: =IF(AD34="","",VLOOKUP(AD34,'【記載例】（ユニット型）シフト記号表'!$C$5:$Y$46,23,FALSE)) -> - | AE36: =IF(AE34="","",VLOOKUP(AE34,'【記載例】（ユニット型）シフト記号表'!$C$5:$Y$46,23,FALSE)) -> - | AF36: =IF(AF34="","",VLOOKUP(AF34,'【記載例】（ユニット型）シフト記号表'!$C$5:$Y$46,23,FALSE)) -> 1 | AG36: =IF(AG34="","",VLOOKUP(AG34,'【記載例】（ユニット型）シフト記号表'!$C$5:$Y$46,23,FALSE)) -> 1 | AH36: =IF(AH34="","",VLOOKUP(AH34,'【記載例】（ユニット型）シフト記号表'!$C$5:$Y$46,23,FALSE)) -> 1 | AI36: =IF(AI34="","",VLOOKUP(AI34,'【記載例】（ユニット型）シフト記号表'!$C$5:$Y$46,23,FALSE)) -> 1 | AJ36: =IF(AJ34="","",VLOOKUP(AJ34,'【記載例】（ユニット型）シフト記号表'!$C$5:$Y$46,23,FALSE)) -> 1 | AK36: =IF(AK34="","",VLOOKUP(AK34,'【記載例】（ユニット型）シフト記号表'!$C$5:$Y$46,23,FALSE)) -> - | AL36: =IF(AL34="","",VLOOKUP(AL34,'【記載例】（ユニット型）シフト記号表'!$C$5:$Y$46,23,FALSE)) -> - | AM36: =IF(AM34="","",VLOOKUP(AM34,'【記載例】（ユニット型）シフト記号表'!$C$5:$Y$46,23,FALSE)) -> 1 | AN36: =IF(AN34="","",VLOOKUP(AN34,'【記載例】（ユニット型）シフト記号表'!$C$5:$Y$46,23,FALSE)) -> 1 | AO36: =IF(AO34="","",VLOOKUP(AO34,'【記載例】（ユニット型）シフト記号表'!$C$5:$Y$46,23,FALSE)) -> 1 | AP36: =IF(AP34="","",VLOOKUP(AP34,'【記載例】（ユニット型）シフト記号表'!$C$5:$Y$46,23,FALSE)) -> 1 | AQ36: =IF(AQ34="","",VLOOKUP(AQ34,'【記載例】（ユニット型）シフト記号表'!$C$5:$Y$46,23,FALSE)) -> 1 | AR36: =IF(AR34="","",VLOOKUP(AR34,'【記載例】（ユニット型）シフト記号表'!$C$5:$Y$46,23,FALSE)) -> - | AS36: =IF(AS34="","",VLOOKUP(AS34,'【記載例】（ユニット型）シフト記号表'!$C$5:$Y$46,23,FALSE)) -> - | AT36: =IF(AT34="","",VLOOKUP(AT34,'【記載例】（ユニット型）シフト記号表'!$C$5:$Y$46,23,FALSE)) -> 1 | AU36: =IF(AU34="","",VLOOKUP(AU34,'【記載例】（ユニット型）シフト記号表'!$C$5:$Y$46,23,FALSE)) -> 1 | AV36: =IF(AV34="","",VLOOKUP(AV34,'【記載例】（ユニット型）シフト記号表'!$C$5:$Y$46,23,FALSE)) -> 1 | AW36: =IF(AW34="","",VLOOKUP(AW34,'【記載例】（ユニット型）シフト記号表'!$C$5:$Y$46,23,FALSE)) -> 1 | AX36: =IF(AX34="","",VLOOKUP(AX34,'【記載例】（ユニット型）シフト記号表'!$C$5:$Y$46,23,FALSE)) -> 1 | AY36: =IF(AY34="","",VLOOKUP(AY34,'【記載例】（ユニット型）シフト記号表'!$C$5:$Y$46,23,FALSE)) -> - | AZ36: =IF(AZ34="","",VLOOKUP(AZ34,'【記載例】（ユニット型）シフト記号表'!$C$5:$Y$46,23,FALSE)) -> - | BA36: =IF(BA34="","",VLOOKUP(BA34,'【記載例】（ユニット型）シフト記号表'!$C$5:$Y$46,23,FALSE)) -> 1 | BB36: =IF(BB34="","",VLOOKUP(BB34,'【記載例】（ユニット型）シフト記号表'!$C$5:$Y$46,23,FALSE)) -> 1 | BC36: =IF(BC34="","",VLOOKUP(BC34,'【記載例】（ユニット型）シフト記号表'!$C$5:$Y$46,23,FALSE)) ->  | BD36: =IF(BD34="","",VLOOKUP(BD34,'【記載例】（ユニット型）シフト記号表'!$C$5:$Y$46,23,FALSE)) ->  | BE36: =IF(BE34="","",VLOOKUP(BE34,'【記載例】（ユニット型）シフト記号表'!$C$5:$Y$46,23,FALSE)) ->  | BF36: =IF($BI$3="計画",SUM(AA36:BB36),IF($BI$3="実績",SUM(AA36:BE36),"")) -> 20 | BH36: =IF($BI$3="計画",BF36/4,IF($BI$3="実績",(BF36/($BI$7/7)),"")) -> 5
S37: ○○ E夫 | V37: シフト記号 | AA37: 休 | AB37: 休 | AC37: b | AD37: b | AE37: b | AF37: b | AG37: b | AH37: 休 | AI37: 休 | AJ37: b | AK37: b | AL37: b | AM37: b | AN37: b | AO37: 休 | AP37: 休 | AQ37: b | AR37: b | AS37: b | AT37: b | AU37: b | AV37: 休 | AW37: 休 | AX37: b | AY37: b | AZ37: b | BA37: b | BB37: b
B38: =B35+1 -> 7 | G38: 看護職員 | M38: A | O38: 看護師 | V38: 日中の勤務時間数 | AA38: =IF(AA37="","",VLOOKUP(AA37,'【記載例】（ユニット型）シフト記号表'!$C$5:$W$46,21,FALSE)) -> - | AB38: =IF(AB37="","",VLOOKUP(AB37,'【記載例】（ユニット型）シフト記号表'!$C$5:$W$46,21,FALSE)) -> - | AC38: =IF(AC37="","",VLOOKUP(AC37,'【記載例】（ユニット型）シフト記号表'!$C$5:$W$46,21,FALSE)) -> 7 | AD38: =IF(AD37="","",VLOOKUP(AD37,'【記載例】（ユニット型）シフト記号表'!$C$5:$W$46,21,FALSE)) -> 7 | AE38: =IF(AE37="","",VLOOKUP(AE37,'【記載例】（ユニット型）シフト記号表'!$C$5:$W$46,21,FALSE)) -> 7 | AF38: =IF(AF37="","",VLOOKUP(AF37,'【記載例】（ユニット型）シフト記号表'!$C$5:$W$46,21,FALSE)) -> 7 | AG38: =IF(AG37="","",VLOOKUP(AG37,'【記載例】（ユニット型）シフト記号表'!$C$5:$W$46,21,FALSE)) -> 7 | AH38: =IF(AH37="","",VLOOKUP(AH37,'【記載例】（ユニット型）シフト記号表'!$C$5:$W$46,21,FALSE)) -> - | AI38: =IF(AI37="","",VLOOKUP(AI37,'【記載例】（ユニット型）シフト記号表'!$C$5:$W$46,21,FALSE)) -> - | AJ38: =IF(AJ37="","",VLOOKUP(AJ37,'【記載例】（ユニット型）シフト記号表'!$C$5:$W$46,21,FALSE)) -> 7 | AK38: =IF(AK37="","",VLOOKUP(AK37,'【記載例】（ユニット型）シフト記号表'!$C$5:$W$46,21,FALSE)) -> 7 | AL38: =IF(AL37="","",VLOOKUP(AL37,'【記載例】（ユニット型）シフト記号表'!$C$5:$W$46,21,FALSE)) -> 7 | AM38: =IF(AM37="","",VLOOKUP(AM37,'【記載例】（ユニット型）シフト記号表'!$C$5:$W$46,21,FALSE)) -> 7 | AN38: =IF(AN37="","",VLOOKUP(AN37,'【記載例】（ユニット型）シフト記号表'!$C$5:$W$46,21,FALSE)) -> 7 | AO38: =IF(AO37="","",VLOOKUP(AO37,'【記載例】（ユニット型）シフト記号表'!$C$5:$W$46,21,FALSE)) -> - | AP38: =IF(AP37="","",VLOOKUP(AP37,'【記載例】（ユニット型）シフト記号表'!$C$5:$W$46,21,FALSE)) -> - | AQ38: =IF(AQ37="","",VLOOKUP(AQ37,'【記載例】（ユニット型）シフト記号表'!$C$5:$W$46,21,FALSE)) -> 7 | AR38: =IF(AR37="","",VLOOKUP(AR37,'【記載例】（ユニット型）シフト記号表'!$C$5:$W$46,21,FALSE)) -> 7 | AS38: =IF(AS37="","",VLOOKUP(AS37,'【記載例】（ユニット型）シフト記号表'!$C$5:$W$46,21,FALSE)) -> 7 | AT38: =IF(AT37="","",VLOOKUP(AT37,'【記載例】（ユニット型）シフト記号表'!$C$5:$W$46,21,FALSE)) -> 7 | AU38: =IF(AU37="","",VLOOKUP(AU37,'【記載例】（ユニット型）シフト記号表'!$C$5:$W$46,21,FALSE)) -> 7 | AV38: =IF(AV37="","",VLOOKUP(AV37,'【記載例】（ユニット型）シフト記号表'!$C$5:$W$46,21,FALSE)) -> - | AW38: =IF(AW37="","",VLOOKUP(AW37,'【記載例】（ユニット型）シフト記号表'!$C$5:$W$46,21,FALSE)) -> - | AX38: =IF(AX37="","",VLOOKUP(AX37,'【記載例】（ユニット型）シフト記号表'!$C$5:$W$46,21,FALSE)) -> 7 | AY38: =IF(AY37="","",VLOOKUP(AY37,'【記載例】（ユニット型）シフト記号表'!$C$5:$W$46,21,FALSE)) -> 7 | AZ38: =IF(AZ37="","",VLOOKUP(AZ37,'【記載例】（ユニット型）シフト記号表'!$C$5:$W$46,21,FALSE)) -> 7 | BA38: =IF(BA37="","",VLOOKUP(BA37,'【記載例】（ユニット型）シフト記号表'!$C$5:$W$46,21,FALSE)) -> 7 | BB38: =IF(BB37="","",VLOOKUP(BB37,'【記載例】（ユニット型）シフト記号表'!$C$5:$W$46,21,FALSE)) -> 7 | BC38: =IF(BC37="","",VLOOKUP(BC37,'【記載例】（ユニット型）シフト記号表'!$C$5:$W$46,21,FALSE)) ->  | BD38: =IF(BD37="","",VLOOKUP(BD37,'【記載例】（ユニット型）シフト記号表'!$C$5:$W$46,21,FALSE)) ->  | BE38: =IF(BE37="","",VLOOKUP(BE37,'【記載例】（ユニット型）シフト記号表'!$C$5:$W$46,21,FALSE)) ->  | BF38: =IF($BI$3="計画",SUM(AA38:BB38),IF($BI$3="実績",SUM(AA38:BE38),"")) -> 140 | BH38: =IF($BI$3="計画",BF38/4,IF($BI$3="実績",(BF38/($BI$7/7)),"")) -> 35
I39: =G38 -> 看護職員 | K39: =M38 -> A | V39: 夜勤時間帯の勤務時間数 | AA39: =IF(AA37="","",VLOOKUP(AA37,'【記載例】（ユニット型）シフト記号表'!$C$5:$Y$46,23,FALSE)) -> - | AB39: =IF(AB37="","",VLOOKUP(AB37,'【記載例】（ユニット型）シフト記号表'!$C$5:$Y$46,23,FALSE)) -> - | AC39: =IF(AC37="","",VLOOKUP(AC37,'【記載例】（ユニット型）シフト記号表'!$C$5:$Y$46,23,FALSE)) -> 1 | AD39: =IF(AD37="","",VLOOKUP(AD37,'【記載例】（ユニット型）シフト記号表'!$C$5:$Y$46,23,FALSE)) -> 1 | AE39: =IF(AE37="","",VLOOKUP(AE37,'【記載例】（ユニット型）シフト記号表'!$C$5:$Y$46,23,FALSE)) -> 1 | AF39: =IF(AF37="","",VLOOKUP(AF37,'【記載例】（ユニット型）シフト記号表'!$C$5:$Y$46,23,FALSE)) -> 1 | AG39: =IF(AG37="","",VLOOKUP(AG37,'【記載例】（ユニット型）シフト記号表'!$C$5:$Y$46,23,FALSE)) -> 1 | AH39: =IF(AH37="","",VLOOKUP(AH37,'【記載例】（ユニット型）シフト記号表'!$C$5:$Y$46,23,FALSE)) -> - | AI39: =IF(AI37="","",VLOOKUP(AI37,'【記載例】（ユニット型）シフト記号表'!$C$5:$Y$46,23,FALSE)) -> - | AJ39: =IF(AJ37="","",VLOOKUP(AJ37,'【記載例】（ユニット型）シフト記号表'!$C$5:$Y$46,23,FALSE)) -> 1 | AK39: =IF(AK37="","",VLOOKUP(AK37,'【記載例】（ユニット型）シフト記号表'!$C$5:$Y$46,23,FALSE)) -> 1 | AL39: =IF(AL37="","",VLOOKUP(AL37,'【記載例】（ユニット型）シフト記号表'!$C$5:$Y$46,23,FALSE)) -> 1 | AM39: =IF(AM37="","",VLOOKUP(AM37,'【記載例】（ユニット型）シフト記号表'!$C$5:$Y$46,23,FALSE)) -> 1 | AN39: =IF(AN37="","",VLOOKUP(AN37,'【記載例】（ユニット型）シフト記号表'!$C$5:$Y$46,23,FALSE)) -> 1 | AO39: =IF(AO37="","",VLOOKUP(AO37,'【記載例】（ユニット型）シフト記号表'!$C$5:$Y$46,23,FALSE)) -> - | AP39: =IF(AP37="","",VLOOKUP(AP37,'【記載例】（ユニット型）シフト記号表'!$C$5:$Y$46,23,FALSE)) -> - | AQ39: =IF(AQ37="","",VLOOKUP(AQ37,'【記載例】（ユニット型）シフト記号表'!$C$5:$Y$46,23,FALSE)) -> 1 | AR39: =IF(AR37="","",VLOOKUP(AR37,'【記載例】（ユニット型）シフト記号表'!$C$5:$Y$46,23,FALSE)) -> 1 | AS39: =IF(AS37="","",VLOOKUP(AS37,'【記載例】（ユニット型）シフト記号表'!$C$5:$Y$46,23,FALSE)) -> 1 | AT39: =IF(AT37="","",VLOOKUP(AT37,'【記載例】（ユニット型）シフト記号表'!$C$5:$Y$46,23,FALSE)) -> 1 | AU39: =IF(AU37="","",VLOOKUP(AU37,'【記載例】（ユニット型）シフト記号表'!$C$5:$Y$46,23,FALSE)) -> 1 | AV39: =IF(AV37="","",VLOOKUP(AV37,'【記載例】（ユニット型）シフト記号表'!$C$5:$Y$46,23,FALSE)) -> - | AW39: =IF(AW37="","",VLOOKUP(AW37,'【記載例】（ユニット型）シフト記号表'!$C$5:$Y$46,23,FALSE)) -> - | AX39: =IF(AX37="","",VLOOKUP(AX37,'【記載例】（ユニット型）シフト記号表'!$C$5:$Y$46,23,FALSE)) -> 1 | AY39: =IF(AY37="","",VLOOKUP(AY37,'【記載例】（ユニット型）シフト記号表'!$C$5:$Y$46,23,FALSE)) -> 1 | AZ39: =IF(AZ37="","",VLOOKUP(AZ37,'【記載例】（ユニット型）シフト記号表'!$C$5:$Y$46,23,FALSE)) -> 1 | BA39: =IF(BA37="","",VLOOKUP(BA37,'【記載例】（ユニット型）シフト記号表'!$C$5:$Y$46,23,FALSE)) -> 1 | BB39: =IF(BB37="","",VLOOKUP(BB37,'【記載例】（ユニット型）シフト記号表'!$C$5:$Y$46,23,FALSE)) -> 1 | BC39: =IF(BC37="","",VLOOKUP(BC37,'【記載例】（ユニット型）シフト記号表'!$C$5:$Y$46,23,FALSE)) ->  | BD39: =IF(BD37="","",VLOOKUP(BD37,'【記載例】（ユニット型）シフト記号表'!$C$5:$Y$46,23,FALSE)) ->  | BE39: =IF(BE37="","",VLOOKUP(BE37,'【記載例】（ユニット型）シフト記号表'!$C$5:$Y$46,23,FALSE)) ->  | BF39: =IF($BI$3="計画",SUM(AA39:BB39),IF($BI$3="実績",SUM(AA39:BE39),"")) -> 20 | BH39: =IF($BI$3="計画",BF39/4,IF($BI$3="実績",(BF39/($BI$7/7)),"")) -> 5
S40: ○○ F子 | V40: シフト記号 | AA40: b | AB40: b | AC40: b | AD40: 休 | AE40: 休 | AF40: b | AG40: b | AH40: b | AI40: b | AJ40: b | AK40: 休 | AL40: 休 | AM40: b | AN40: b | AO40: b | AP40: b | AQ40: b | AR40: 休 | AS40: 休 | AT40: b | AU40: b | AV40: b | AW40: b | AX40: b | AY40: 休 | AZ40: 休 | BA40: b | BB40: b
B41: =B38+1 -> 8 | G41: 看護職員 | M41: A | O41: 看護師 | V41: 日中の勤務時間数 | AA41: =IF(AA40="","",VLOOKUP(AA40,'【記載例】（ユニット型）シフト記号表'!$C$5:$W$46,21,FALSE)) -> 7 | AB41: =IF(AB40="","",VLOOKUP(AB40,'【記載例】（ユニット型）シフト記号表'!$C$5:$W$46,21,FALSE)) -> 7 | AC41: =IF(AC40="","",VLOOKUP(AC40,'【記載例】（ユニット型）シフト記号表'!$C$5:$W$46,21,FALSE)) -> 7 | AD41: =IF(AD40="","",VLOOKUP(AD40,'【記載例】（ユニット型）シフト記号表'!$C$5:$W$46,21,FALSE)) -> - | AE41: =IF(AE40="","",VLOOKUP(AE40,'【記載例】（ユニット型）シフト記号表'!$C$5:$W$46,21,FALSE)) -> - | AF41: =IF(AF40="","",VLOOKUP(AF40,'【記載例】（ユニット型）シフト記号表'!$C$5:$W$46,21,FALSE)) -> 7 | AG41: =IF(AG40="","",VLOOKUP(AG40,'【記載例】（ユニット型）シフト記号表'!$C$5:$W$46,21,FALSE)) -> 7 | AH41: =IF(AH40="","",VLOOKUP(AH40,'【記載例】（ユニット型）シフト記号表'!$C$5:$W$46,21,FALSE)) -> 7 | AI41: =IF(AI40="","",VLOOKUP(AI40,'【記載例】（ユニット型）シフト記号表'!$C$5:$W$46,21,FALSE)) -> 7 | AJ41: =IF(AJ40="","",VLOOKUP(AJ40,'【記載例】（ユニット型）シフト記号表'!$C$5:$W$46,21,FALSE)) -> 7 | AK41: =IF(AK40="","",VLOOKUP(AK40,'【記載例】（ユニット型）シフト記号表'!$C$5:$W$46,21,FALSE)) -> - | AL41: =IF(AL40="","",VLOOKUP(AL40,'【記載例】（ユニット型）シフト記号表'!$C$5:$W$46,21,FALSE)) -> - | AM41: =IF(AM40="","",VLOOKUP(AM40,'【記載例】（ユニット型）シフト記号表'!$C$5:$W$46,21,FALSE)) -> 7 | AN41: =IF(AN40="","",VLOOKUP(AN40,'【記載例】（ユニット型）シフト記号表'!$C$5:$W$46,21,FALSE)) -> 7 | AO41: =IF(AO40="","",VLOOKUP(AO40,'【記載例】（ユニット型）シフト記号表'!$C$5:$W$46,21,FALSE)) -> 7 | AP41: =IF(AP40="","",VLOOKUP(AP40,'【記載例】（ユニット型）シフト記号表'!$C$5:$W$46,21,FALSE)) -> 7 | AQ41: =IF(AQ40="","",VLOOKUP(AQ40,'【記載例】（ユニット型）シフト記号表'!$C$5:$W$46,21,FALSE)) -> 7 | AR41: =IF(AR40="","",VLOOKUP(AR40,'【記載例】（ユニット型）シフト記号表'!$C$5:$W$46,21,FALSE)) -> - | AS41: =IF(AS40="","",VLOOKUP(AS40,'【記載例】（ユニット型）シフト記号表'!$C$5:$W$46,21,FALSE)) -> - | AT41: =IF(AT40="","",VLOOKUP(AT40,'【記載例】（ユニット型）シフト記号表'!$C$5:$W$46,21,FALSE)) -> 7 | AU41: =IF(AU40="","",VLOOKUP(AU40,'【記載例】（ユニット型）シフト記号表'!$C$5:$W$46,21,FALSE)) -> 7 | AV41: =IF(AV40="","",VLOOKUP(AV40,'【記載例】（ユニット型）シフト記号表'!$C$5:$W$46,21,FALSE)) -> 7 | AW41: =IF(AW40="","",VLOOKUP(AW40,'【記載例】（ユニット型）シフト記号表'!$C$5:$W$46,21,FALSE)) -> 7 | AX41: =IF(AX40="","",VLOOKUP(AX40,'【記載例】（ユニット型）シフト記号表'!$C$5:$W$46,21,FALSE)) -> 7 | AY41: =IF(AY40="","",VLOOKUP(AY40,'【記載例】（ユニット型）シフト記号表'!$C$5:$W$46,21,FALSE)) -> - | AZ41: =IF(AZ40="","",VLOOKUP(AZ40,'【記載例】（ユニット型）シフト記号表'!$C$5:$W$46,21,FALSE)) -> - | BA41: =IF(BA40="","",VLOOKUP(BA40,'【記載例】（ユニット型）シフト記号表'!$C$5:$W$46,21,FALSE)) -> 7 | BB41: =IF(BB40="","",VLOOKUP(BB40,'【記載例】（ユニット型）シフト記号表'!$C$5:$W$46,21,FALSE)) -> 7 | BC41: =IF(BC40="","",VLOOKUP(BC40,'【記載例】（ユニット型）シフト記号表'!$C$5:$W$46,21,FALSE)) ->  | BD41: =IF(BD40="","",VLOOKUP(BD40,'【記載例】（ユニット型）シフト記号表'!$C$5:$W$46,21,FALSE)) ->  | BE41: =IF(BE40="","",VLOOKUP(BE40,'【記載例】（ユニット型）シフト記号表'!$C$5:$W$46,21,FALSE)) ->  | BF41: =IF($BI$3="計画",SUM(AA41:BB41),IF($BI$3="実績",SUM(AA41:BE41),"")) -> 140 | BH41: =IF($BI$3="計画",BF41/4,IF($BI$3="実績",(BF41/($BI$7/7)),"")) -> 35
I42: =G41 -> 看護職員 | K42: =M41 -> A | V42: 夜勤時間帯の勤務時間数 | AA42: =IF(AA40="","",VLOOKUP(AA40,'【記載例】（ユニット型）シフト記号表'!$C$5:$Y$46,23,FALSE)) -> 1 | AB42: =IF(AB40="","",VLOOKUP(AB40,'【記載例】（ユニット型）シフト記号表'!$C$5:$Y$46,23,FALSE)) -> 1 | AC42: =IF(AC40="","",VLOOKUP(AC40,'【記載例】（ユニット型）シフト記号表'!$C$5:$Y$46,23,FALSE)) -> 1 | AD42: =IF(AD40="","",VLOOKUP(AD40,'【記載例】（ユニット型）シフト記号表'!$C$5:$Y$46,23,FALSE)) -> - | AE42: =IF(AE40="","",VLOOKUP(AE40,'【記載例】（ユニット型）シフト記号表'!$C$5:$Y$46,23,FALSE)) -> - | AF42: =IF(AF40="","",VLOOKUP(AF40,'【記載例】（ユニット型）シフト記号表'!$C$5:$Y$46,23,FALSE)) -> 1 | AG42: =IF(AG40="","",VLOOKUP(AG40,'【記載例】（ユニット型）シフト記号表'!$C$5:$Y$46,23,FALSE)) -> 1 | AH42: =IF(AH40="","",VLOOKUP(AH40,'【記載例】（ユニット型）シフト記号表'!$C$5:$Y$46,23,FALSE)) -> 1 | AI42: =IF(AI40="","",VLOOKUP(AI40,'【記載例】（ユニット型）シフト記号表'!$C$5:$Y$46,23,FALSE)) -> 1 | AJ42: =IF(AJ40="","",VLOOKUP(AJ40,'【記載例】（ユニット型）シフト記号表'!$C$5:$Y$46,23,FALSE)) -> 1 | AK42: =IF(AK40="","",VLOOKUP(AK40,'【記載例】（ユニット型）シフト記号表'!$C$5:$Y$46,23,FALSE)) -> - | AL42: =IF(AL40="","",VLOOKUP(AL40,'【記載例】（ユニット型）シフト記号表'!$C$5:$Y$46,23,FALSE)) -> - | AM42: =IF(AM40="","",VLOOKUP(AM40,'【記載例】（ユニット型）シフト記号表'!$C$5:$Y$46,23,FALSE)) -> 1 | AN42: =IF(AN40="","",VLOOKUP(AN40,'【記載例】（ユニット型）シフト記号表'!$C$5:$Y$46,23,FALSE)) -> 1 | AO42: =IF(AO40="","",VLOOKUP(AO40,'【記載例】（ユニット型）シフト記号表'!$C$5:$Y$46,23,FALSE)) -> 1 | AP42: =IF(AP40="","",VLOOKUP(AP40,'【記載例】（ユニット型）シフト記号表'!$C$5:$Y$46,23,FALSE)) -> 1 | AQ42: =IF(AQ40="","",VLOOKUP(AQ40,'【記載例】（ユニット型）シフト記号表'!$C$5:$Y$46,23,FALSE)) -> 1 | AR42: =IF(AR40="","",VLOOKUP(AR40,'【記載例】（ユニット型）シフト記号表'!$C$5:$Y$46,23,FALSE)) -> - | AS42: =IF(AS40="","",VLOOKUP(AS40,'【記載例】（ユニット型）シフト記号表'!$C$5:$Y$46,23,FALSE)) -> - | AT42: =IF(AT40="","",VLOOKUP(AT40,'【記載例】（ユニット型）シフト記号表'!$C$5:$Y$46,23,FALSE)) -> 1 | AU42: =IF(AU40="","",VLOOKUP(AU40,'【記載例】（ユニット型）シフト記号表'!$C$5:$Y$46,23,FALSE)) -> 1 | AV42: =IF(AV40="","",VLOOKUP(AV40,'【記載例】（ユニット型）シフト記号表'!$C$5:$Y$46,23,FALSE)) -> 1 | AW42: =IF(AW40="","",VLOOKUP(AW40,'【記載例】（ユニット型）シフト記号表'!$C$5:$Y$46,23,FALSE)) -> 1 | AX42: =IF(AX40="","",VLOOKUP(AX40,'【記載例】（ユニット型）シフト記号表'!$C$5:$Y$46,23,FALSE)) -> 1 | AY42: =IF(AY40="","",VLOOKUP(AY40,'【記載例】（ユニット型）シフト記号表'!$C$5:$Y$46,23,FALSE)) -> - | AZ42: =IF(AZ40="","",VLOOKUP(AZ40,'【記載例】（ユニット型）シフト記号表'!$C$5:$Y$46,23,FALSE)) -> - | BA42: =IF(BA40="","",VLOOKUP(BA40,'【記載例】（ユニット型）シフト記号表'!$C$5:$Y$46,23,FALSE)) -> 1 | BB42: =IF(BB40="","",VLOOKUP(BB40,'【記載例】（ユニット型）シフト記号表'!$C$5:$Y$46,23,FALSE)) -> 1 | BC42: =IF(BC40="","",VLOOKUP(BC40,'【記載例】（ユニット型）シフト記号表'!$C$5:$Y$46,23,FALSE)) ->  | BD42: =IF(BD40="","",VLOOKUP(BD40,'【記載例】（ユニット型）シフト記号表'!$C$5:$Y$46,23,FALSE)) ->  | BE42: =IF(BE40="","",VLOOKUP(BE40,'【記載例】（ユニット型）シフト記号表'!$C$5:$Y$46,23,FALSE)) ->  | BF42: =IF($BI$3="計画",SUM(AA42:BB42),IF($BI$3="実績",SUM(AA42:BE42),"")) -> 20 | BH42: =IF($BI$3="計画",BF42/4,IF($BI$3="実績",(BF42/($BI$7/7)),"")) -> 5
C43: ◎ | D43: ユニット１ | S43: ○○ G太 | V43: シフト記号 | AA43: o | AB43: 休 | AC43: a | AD43: a | AE43: 休 | AF43: d | AG43: 休 | AH43: 休 | AI43: o | AJ43: 休 | AK43: a | AL43: a | AM43: 休 | AN43: d | AO43: d | AP43: 休 | AQ43: o | AR43: 休 | AS43: a | AT43: a | AU43: 休 | AV43: d | AW43: 休 | AX43: 休 | AY43: o | AZ43: 休 | BA43: a | BB43: a
B44: =B41+1 -> 9 | G44: 看護職員 | M44: A | O44: 看護師 | V44: 日中の勤務時間数 | AA44: =IF(AA43="","",VLOOKUP(AA43,'【記載例】（ユニット型）シフト記号表'!$C$5:$W$46,21,FALSE)) -> 2 | AB44: =IF(AB43="","",VLOOKUP(AB43,'【記載例】（ユニット型）シフト記号表'!$C$5:$W$46,21,FALSE)) -> - | AC44: =IF(AC43="","",VLOOKUP(AC43,'【記載例】（ユニット型）シフト記号表'!$C$5:$W$46,21,FALSE)) -> 6 | AD44: =IF(AD43="","",VLOOKUP(AD43,'【記載例】（ユニット型）シフト記号表'!$C$5:$W$46,21,FALSE)) -> 6 | AE44: =IF(AE43="","",VLOOKUP(AE43,'【記載例】（ユニット型）シフト記号表'!$C$5:$W$46,21,FALSE)) -> - | AF44: =IF(AF43="","",VLOOKUP(AF43,'【記載例】（ユニット型）シフト記号表'!$C$5:$W$46,21,FALSE)) -> 5 | AG44: =IF(AG43="","",VLOOKUP(AG43,'【記載例】（ユニット型）シフト記号表'!$C$5:$W$46,21,FALSE)) -> - | AH44: =IF(AH43="","",VLOOKUP(AH43,'【記載例】（ユニット型）シフト記号表'!$C$5:$W$46,21,FALSE)) -> - | AI44: =IF(AI43="","",VLOOKUP(AI43,'【記載例】（ユニット型）シフト記号表'!$C$5:$W$46,21,FALSE)) -> 2 | AJ44: =IF(AJ43="","",VLOOKUP(AJ43,'【記載例】（ユニット型）シフト記号表'!$C$5:$W$46,21,FALSE)) -> - | AK44: =IF(AK43="","",VLOOKUP(AK43,'【記載例】（ユニット型）シフト記号表'!$C$5:$W$46,21,FALSE)) -> 6 | AL44: =IF(AL43="","",VLOOKUP(AL43,'【記載例】（ユニット型）シフト記号表'!$C$5:$W$46,21,FALSE)) -> 6 | AM44: =IF(AM43="","",VLOOKUP(AM43,'【記載例】（ユニット型）シフト記号表'!$C$5:$W$46,21,FALSE)) -> - | AN44: =IF(AN43="","",VLOOKUP(AN43,'【記載例】（ユニット型）シフト記号表'!$C$5:$W$46,21,FALSE)) -> 5 | AO44: =IF(AO43="","",VLOOKUP(AO43,'【記載例】（ユニット型）シフト記号表'!$C$5:$W$46,21,FALSE)) -> 5 | AP44: =IF(AP43="","",VLOOKUP(AP43,'【記載例】（ユニット型）シフト記号表'!$C$5:$W$46,21,FALSE)) -> - | AQ44: =IF(AQ43="","",VLOOKUP(AQ43,'【記載例】（ユニット型）シフト記号表'!$C$5:$W$46,21,FALSE)) -> 2 | AR44: =IF(AR43="","",VLOOKUP(AR43,'【記載例】（ユニット型）シフト記号表'!$C$5:$W$46,21,FALSE)) -> - | AS44: =IF(AS43="","",VLOOKUP(AS43,'【記載例】（ユニット型）シフト記号表'!$C$5:$W$46,21,FALSE)) -> 6 | AT44: =IF(AT43="","",VLOOKUP(AT43,'【記載例】（ユニット型）シフト記号表'!$C$5:$W$46,21,FALSE)) -> 6 | AU44: =IF(AU43="","",VLOOKUP(AU43,'【記載例】（ユニット型）シフト記号表'!$C$5:$W$46,21,FALSE)) -> - | AV44: =IF(AV43="","",VLOOKUP(AV43,'【記載例】（ユニット型）シフト記号表'!$C$5:$W$46,21,FALSE)) -> 5 | AW44: =IF(AW43="","",VLOOKUP(AW43,'【記載例】（ユニット型）シフト記号表'!$C$5:$W$46,21,FALSE)) -> - | AX44: =IF(AX43="","",VLOOKUP(AX43,'【記載例】（ユニット型）シフト記号表'!$C$5:$W$46,21,FALSE)) -> - | AY44: =IF(AY43="","",VLOOKUP(AY43,'【記載例】（ユニット型）シフト記号表'!$C$5:$W$46,21,FALSE)) -> 2 | AZ44: =IF(AZ43="","",VLOOKUP(AZ43,'【記載例】（ユニット型）シフト記号表'!$C$5:$W$46,21,FALSE)) -> - | BA44: =IF(BA43="","",VLOOKUP(BA43,'【記載例】（ユニット型）シフト記号表'!$C$5:$W$46,21,FALSE)) -> 6 | BB44: =IF(BB43="","",VLOOKUP(BB43,'【記載例】（ユニット型）シフト記号表'!$C$5:$W$46,21,FALSE)) -> 6 | BC44: =IF(BC43="","",VLOOKUP(BC43,'【記載例】（ユニット型）シフト記号表'!$C$5:$W$46,21,FALSE)) ->  | BD44: =IF(BD43="","",VLOOKUP(BD43,'【記載例】（ユニット型）シフト記号表'!$C$5:$W$46,21,FALSE)) ->  | BE44: =IF(BE43="","",VLOOKUP(BE43,'【記載例】（ユニット型）シフト記号表'!$C$5:$W$46,21,FALSE)) ->  | BF44: =IF($BI$3="計画",SUM(AA44:BB44),IF($BI$3="実績",SUM(AA44:BE44),"")) -> 76 | BH44: =IF($BI$3="計画",BF44/4,IF($BI$3="実績",(BF44/($BI$7/7)),"")) -> 19
I45: =G44 -> 看護職員 | K45: =M44 -> A | V45: 夜勤時間帯の勤務時間数 | AA45: =IF(AA43="","",VLOOKUP(AA43,'【記載例】（ユニット型）シフト記号表'!$C$5:$Y$46,23,FALSE)) -> 14 | AB45: =IF(AB43="","",VLOOKUP(AB43,'【記載例】（ユニット型）シフト記号表'!$C$5:$Y$46,23,FALSE)) -> - | AC45: =IF(AC43="","",VLOOKUP(AC43,'【記載例】（ユニット型）シフト記号表'!$C$5:$Y$46,23,FALSE)) -> 2 | AD45: =IF(AD43="","",VLOOKUP(AD43,'【記載例】（ユニット型）シフト記号表'!$C$5:$Y$46,23,FALSE)) -> 2 | AE45: =IF(AE43="","",VLOOKUP(AE43,'【記載例】（ユニット型）シフト記号表'!$C$5:$Y$46,23,FALSE)) -> - | AF45: =IF(AF43="","",VLOOKUP(AF43,'【記載例】（ユニット型）シフト記号表'!$C$5:$Y$46,23,FALSE)) -> 3 | AG45: =IF(AG43="","",VLOOKUP(AG43,'【記載例】（ユニット型）シフト記号表'!$C$5:$Y$46,23,FALSE)) -> - | AH45: =IF(AH43="","",VLOOKUP(AH43,'【記載例】（ユニット型）シフト記号表'!$C$5:$Y$46,23,FALSE)) -> - | AI45: =IF(AI43="","",VLOOKUP(AI43,'【記載例】（ユニット型）シフト記号表'!$C$5:$Y$46,23,FALSE)) -> 14 | AJ45: =IF(AJ43="","",VLOOKUP(AJ43,'【記載例】（ユニット型）シフト記号表'!$C$5:$Y$46,23,FALSE)) -> - | AK45: =IF(AK43="","",VLOOKUP(AK43,'【記載例】（ユニット型）シフト記号表'!$C$5:$Y$46,23,FALSE)) -> 2 | AL45: =IF(AL43="","",VLOOKUP(AL43,'【記載例】（ユニット型）シフト記号表'!$C$5:$Y$46,23,FALSE)) -> 2 | AM45: =IF(AM43="","",VLOOKUP(AM43,'【記載例】（ユニット型）シフト記号表'!$C$5:$Y$46,23,FALSE)) -> - | AN45: =IF(AN43="","",VLOOKUP(AN43,'【記載例】（ユニット型）シフト記号表'!$C$5:$Y$46,23,FALSE)) -> 3 | AO45: =IF(AO43="","",VLOOKUP(AO43,'【記載例】（ユニット型）シフト記号表'!$C$5:$Y$46,23,FALSE)) -> 3 | AP45: =IF(AP43="","",VLOOKUP(AP43,'【記載例】（ユニット型）シフト記号表'!$C$5:$Y$46,23,FALSE)) -> - | AQ45: =IF(AQ43="","",VLOOKUP(AQ43,'【記載例】（ユニット型）シフト記号表'!$C$5:$Y$46,23,FALSE)) -> 14 | AR45: =IF(AR43="","",VLOOKUP(AR43,'【記載例】（ユニット型）シフト記号表'!$C$5:$Y$46,23,FALSE)) -> - | AS45: =IF(AS43="","",VLOOKUP(AS43,'【記載例】（ユニット型）シフト記号表'!$C$5:$Y$46,23,FALSE)) -> 2 | AT45: =IF(AT43="","",VLOOKUP(AT43,'【記載例】（ユニット型）シフト記号表'!$C$5:$Y$46,23,FALSE)) -> 2 | AU45: =IF(AU43="","",VLOOKUP(AU43,'【記載例】（ユニット型）シフト記号表'!$C$5:$Y$46,23,FALSE)) -> - | AV45: =IF(AV43="","",VLOOKUP(AV43,'【記載例】（ユニット型）シフト記号表'!$C$5:$Y$46,23,FALSE)) -> 3 | AW45: =IF(AW43="","",VLOOKUP(AW43,'【記載例】（ユニット型）シフト記号表'!$C$5:$Y$46,23,FALSE)) -> - | AX45: =IF(AX43="","",VLOOKUP(AX43,'【記載例】（ユニット型）シフト記号表'!$C$5:$Y$46,23,FALSE)) -> - | AY45: =IF(AY43="","",VLOOKUP(AY43,'【記載例】（ユニット型）シフト記号表'!$C$5:$Y$46,23,FALSE)) -> 14 | AZ45: =IF(AZ43="","",VLOOKUP(AZ43,'【記載例】（ユニット型）シフト記号表'!$C$5:$Y$46,23,FALSE)) -> - | BA45: =IF(BA43="","",VLOOKUP(BA43,'【記載例】（ユニット型）シフト記号表'!$C$5:$Y$46,23,FALSE)) -> 2 | BB45: =IF(BB43="","",VLOOKUP(BB43,'【記載例】（ユニット型）シフト記号表'!$C$5:$Y$46,23,FALSE)) -> 2 | BC45: =IF(BC43="","",VLOOKUP(BC43,'【記載例】（ユニット型）シフト記号表'!$C$5:$Y$46,23,FALSE)) ->  | BD45: =IF(BD43="","",VLOOKUP(BD43,'【記載例】（ユニット型）シフト記号表'!$C$5:$Y$46,23,FALSE)) ->  | BE45: =IF(BE43="","",VLOOKUP(BE43,'【記載例】（ユニット型）シフト記号表'!$C$5:$Y$46,23,FALSE)) ->  | BF45: =IF($BI$3="計画",SUM(AA45:BB45),IF($BI$3="実績",SUM(AA45:BE45),"")) -> 84 | BH45: =IF($BI$3="計画",BF45/4,IF($BI$3="実績",(BF45/($BI$7/7)),"")) -> 21
D46: ユニット１ | S46: ○○ H美 | V46: シフト記号 | AA46: 休 | AB46: o | AC46: 休 | AD46: d | AE46: a | AF46: 休 | AG46: d | AH46: d | AI46: 休 | AJ46: o | AK46: 休 | AL46: d | AM46: a | AN46: 休 | AO46: d | AP46: a | AQ46: 休 | AR46: o | AS46: 休 | AT46: d | AU46: 休 | AV46: 休 | AW46: d | AX46: a | AY46: 休 | AZ46: o | BA46: 休 | BB46: d
B47: =B44+1 -> 10 | G47: 介護職員 | M47: A | O47: 介護福祉士 | V47: 日中の勤務時間数 | AA47: =IF(AA46="","",VLOOKUP(AA46,'【記載例】（ユニット型）シフト記号表'!$C$5:$W$46,21,FALSE)) -> - | AB47: =IF(AB46="","",VLOOKUP(AB46,'【記載例】（ユニット型）シフト記号表'!$C$5:$W$46,21,FALSE)) -> 2 | AC47: =IF(AC46="","",VLOOKUP(AC46,'【記載例】（ユニット型）シフト記号表'!$C$5:$W$46,21,FALSE)) -> - | AD47: =IF(AD46="","",VLOOKUP(AD46,'【記載例】（ユニット型）シフト記号表'!$C$5:$W$46,21,FALSE)) -> 5 | AE47: =IF(AE46="","",VLOOKUP(AE46,'【記載例】（ユニット型）シフト記号表'!$C$5:$W$46,21,FALSE)) -> 6 | AF47: =IF(AF46="","",VLOOKUP(AF46,'【記載例】（ユニット型）シフト記号表'!$C$5:$W$46,21,FALSE)) -> - | AG47: =IF(AG46="","",VLOOKUP(AG46,'【記載例】（ユニット型）シフト記号表'!$C$5:$W$46,21,FALSE)) -> 5 | AH47: =IF(AH46="","",VLOOKUP(AH46,'【記載例】（ユニット型）シフト記号表'!$C$5:$W$46,21,FALSE)) -> 5 | AI47: =IF(AI46="","",VLOOKUP(AI46,'【記載例】（ユニット型）シフト記号表'!$C$5:$W$46,21,FALSE)) -> - | AJ47: =IF(AJ46="","",VLOOKUP(AJ46,'【記載例】（ユニット型）シフト記号表'!$C$5:$W$46,21,FALSE)) -> 2 | AK47: =IF(AK46="","",VLOOKUP(AK46,'【記載例】（ユニット型）シフト記号表'!$C$5:$W$46,21,FALSE)) -> - | AL47: =IF(AL46="","",VLOOKUP(AL46,'【記載例】（ユニット型）シフト記号表'!$C$5:$W$46,21,FALSE)) -> 5 | AM47: =IF(AM46="","",VLOOKUP(AM46,'【記載例】（ユニット型）シフト記号表'!$C$5:$W$46,21,FALSE)) -> 6 | AN47: =IF(AN46="","",VLOOKUP(AN46,'【記載例】（ユニット型）シフト記号表'!$C$5:$W$46,21,FALSE)) -> - | AO47: =IF(AO46="","",VLOOKUP(AO46,'【記載例】（ユニット型）シフト記号表'!$C$5:$W$46,21,FALSE)) -> 5 | AP47: =IF(AP46="","",VLOOKUP(AP46,'【記載例】（ユニット型）シフト記号表'!$C$5:$W$46,21,FALSE)) -> 6 | AQ47: =IF(AQ46="","",VLOOKUP(AQ46,'【記載例】（ユニット型）シフト記号表'!$C$5:$W$46,21,FALSE)) -> - | AR47: =IF(AR46="","",VLOOKUP(AR46,'【記載例】（ユニット型）シフト記号表'!$C$5:$W$46,21,FALSE)) -> 2 | AS47: =IF(AS46="","",VLOOKUP(AS46,'【記載例】（ユニット型）シフト記号表'!$C$5:$W$46,21,FALSE)) -> - | AT47: =IF(AT46="","",VLOOKUP(AT46,'【記載例】（ユニット型）シフト記号表'!$C$5:$W$46,21,FALSE)) -> 5 | AU47: =IF(AU46="","",VLOOKUP(AU46,'【記載例】（ユニット型）シフト記号表'!$C$5:$W$46,21,FALSE)) -> - | AV47: =IF(AV46="","",VLOOKUP(AV46,'【記載例】（ユニット型）シフト記号表'!$C$5:$W$46,21,FALSE)) -> - | AW47: =IF(AW46="","",VLOOKUP(AW46,'【記載例】（ユニット型）シフト記号表'!$C$5:$W$46,21,FALSE)) -> 5 | AX47: =IF(AX46="","",VLOOKUP(AX46,'【記載例】（ユニット型）シフト記号表'!$C$5:$W$46,21,FALSE)) -> 6 | AY47: =IF(AY46="","",VLOOKUP(AY46,'【記載例】（ユニット型）シフト記号表'!$C$5:$W$46,21,FALSE)) -> - | AZ47: =IF(AZ46="","",VLOOKUP(AZ46,'【記載例】（ユニット型）シフト記号表'!$C$5:$W$46,21,FALSE)) -> 2 | BA47: =IF(BA46="","",VLOOKUP(BA46,'【記載例】（ユニット型）シフト記号表'!$C$5:$W$46,21,FALSE)) -> - | BB47: =IF(BB46="","",VLOOKUP(BB46,'【記載例】（ユニット型）シフト記号表'!$C$5:$W$46,21,FALSE)) -> 5 | BC47: =IF(BC46="","",VLOOKUP(BC46,'【記載例】（ユニット型）シフト記号表'!$C$5:$W$46,21,FALSE)) ->  | BD47: =IF(BD46="","",VLOOKUP(BD46,'【記載例】（ユニット型）シフト記号表'!$C$5:$W$46,21,FALSE)) ->  | BE47: =IF(BE46="","",VLOOKUP(BE46,'【記載例】（ユニット型）シフト記号表'!$C$5:$W$46,21,FALSE)) ->  | BF47: =IF($BI$3="計画",SUM(AA47:BB47),IF($BI$3="実績",SUM(AA47:BE47),"")) -> 72 | BH47: =IF($BI$3="計画",BF47/4,IF($BI$3="実績",(BF47/($BI$7/7)),"")) -> 18
I48: =G47 -> 介護職員 | K48: =M47 -> A | V48: 夜勤時間帯の勤務時間数 | AA48: =IF(AA46="","",VLOOKUP(AA46,'【記載例】（ユニット型）シフト記号表'!$C$5:$Y$46,23,FALSE)) -> - | AB48: =IF(AB46="","",VLOOKUP(AB46,'【記載例】（ユニット型）シフト記号表'!$C$5:$Y$46,23,FALSE)) -> 14 | AC48: =IF(AC46="","",VLOOKUP(AC46,'【記載例】（ユニット型）シフト記号表'!$C$5:$Y$46,23,FALSE)) -> - | AD48: =IF(AD46="","",VLOOKUP(AD46,'【記載例】（ユニット型）シフト記号表'!$C$5:$Y$46,23,FALSE)) -> 3 | AE48: =IF(AE46="","",VLOOKUP(AE46,'【記載例】（ユニット型）シフト記号表'!$C$5:$Y$46,23,FALSE)) -> 2 | AF48: =IF(AF46="","",VLOOKUP(AF46,'【記載例】（ユニット型）シフト記号表'!$C$5:$Y$46,23,FALSE)) -> - | AG48: =IF(AG46="","",VLOOKUP(AG46,'【記載例】（ユニット型）シフト記号表'!$C$5:$Y$46,23,FALSE)) -> 3 | AH48: =IF(AH46="","",VLOOKUP(AH46,'【記載例】（ユニット型）シフト記号表'!$C$5:$Y$46,23,FALSE)) -> 3 | AI48: =IF(AI46="","",VLOOKUP(AI46,'【記載例】（ユニット型）シフト記号表'!$C$5:$Y$46,23,FALSE)) -> - | AJ48: =IF(AJ46="","",VLOOKUP(AJ46,'【記載例】（ユニット型）シフト記号表'!$C$5:$Y$46,23,FALSE)) -> 14 | AK48: =IF(AK46="","",VLOOKUP(AK46,'【記載例】（ユニット型）シフト記号表'!$C$5:$Y$46,23,FALSE)) -> - | AL48: =IF(AL46="","",VLOOKUP(AL46,'【記載例】（ユニット型）シフト記号表'!$C$5:$Y$46,23,FALSE)) -> 3 | AM48: =IF(AM46="","",VLOOKUP(AM46,'【記載例】（ユニット型）シフト記号表'!$C$5:$Y$46,23,FALSE)) -> 2 | AN48: =IF(AN46="","",VLOOKUP(AN46,'【記載例】（ユニット型）シフト記号表'!$C$5:$Y$46,23,FALSE)) -> - | AO48: =IF(AO46="","",VLOOKUP(AO46,'【記載例】（ユニット型）シフト記号表'!$C$5:$Y$46,23,FALSE)) -> 3 | AP48: =IF(AP46="","",VLOOKUP(AP46,'【記載例】（ユニット型）シフト記号表'!$C$5:$Y$46,23,FALSE)) -> 2 | AQ48: =IF(AQ46="","",VLOOKUP(AQ46,'【記載例】（ユニット型）シフト記号表'!$C$5:$Y$46,23,FALSE)) -> - | AR48: =IF(AR46="","",VLOOKUP(AR46,'【記載例】（ユニット型）シフト記号表'!$C$5:$Y$46,23,FALSE)) -> 14 | AS48: =IF(AS46="","",VLOOKUP(AS46,'【記載例】（ユニット型）シフト記号表'!$C$5:$Y$46,23,FALSE)) -> - | AT48: =IF(AT46="","",VLOOKUP(AT46,'【記載例】（ユニット型）シフト記号表'!$C$5:$Y$46,23,FALSE)) -> 3 | AU48: =IF(AU46="","",VLOOKUP(AU46,'【記載例】（ユニット型）シフト記号表'!$C$5:$Y$46,23,FALSE)) -> - | AV48: =IF(AV46="","",VLOOKUP(AV46,'【記載例】（ユニット型）シフト記号表'!$C$5:$Y$46,23,FALSE)) -> - | AW48: =IF(AW46="","",VLOOKUP(AW46,'【記載例】（ユニット型）シフト記号表'!$C$5:$Y$46,23,FALSE)) -> 3 | AX48: =IF(AX46="","",VLOOKUP(AX46,'【記載例】（ユニット型）シフト記号表'!$C$5:$Y$46,23,FALSE)) -> 2 | AY48: =IF(AY46="","",VLOOKUP(AY46,'【記載例】（ユニット型）シフト記号表'!$C$5:$Y$46,23,FALSE)) -> - | AZ48: =IF(AZ46="","",VLOOKUP(AZ46,'【記載例】（ユニット型）シフト記号表'!$C$5:$Y$46,23,FALSE)) -> 14 | BA48: =IF(BA46="","",VLOOKUP(BA46,'【記載例】（ユニット型）シフト記号表'!$C$5:$Y$46,23,FALSE)) -> - | BB48: =IF(BB46="","",VLOOKUP(BB46,'【記載例】（ユニット型）シフト記号表'!$C$5:$Y$46,23,FALSE)) -> 3 | BC48: =IF(BC46="","",VLOOKUP(BC46,'【記載例】（ユニット型）シフト記号表'!$C$5:$Y$46,23,FALSE)) ->  | BD48: =IF(BD46="","",VLOOKUP(BD46,'【記載例】（ユニット型）シフト記号表'!$C$5:$Y$46,23,FALSE)) ->  | BE48: =IF(BE46="","",VLOOKUP(BE46,'【記載例】（ユニット型）シフト記号表'!$C$5:$Y$46,23,FALSE)) ->  | BF48: =IF($BI$3="計画",SUM(AA48:BB48),IF($BI$3="実績",SUM(AA48:BE48),"")) -> 88 | BH48: =IF($BI$3="計画",BF48/4,IF($BI$3="実績",(BF48/($BI$7/7)),"")) -> 22
D49: ユニット１ | S49: ○○ J太郎 | V49: シフト記号 | AA49: d | AB49: 休 | AC49: o | AD49: 休 | AE49: d | AF49: a | AG49: 休 | AH49: a | AI49: d | AJ49: 休 | AK49: o | AL49: 休 | AM49: d | AN49: 休 | AO49: a | AP49: d | AQ49: 休 | AR49: 休 | AS49: o | AT49: 休 | AU49: a | AV49: a | AW49: 休 | AX49: d | AY49: a | AZ49: 休 | BA49: o | BB49: 休
B50: =B47+1 -> 11 | G50: 介護職員 | M50: A | O50: ー | V50: 日中の勤務時間数 | AA50: =IF(AA49="","",VLOOKUP(AA49,'【記載例】（ユニット型）シフト記号表'!$C$5:$W$46,21,FALSE)) -> 5 | AB50: =IF(AB49="","",VLOOKUP(AB49,'【記載例】（ユニット型）シフト記号表'!$C$5:$W$46,21,FALSE)) -> - | AC50: =IF(AC49="","",VLOOKUP(AC49,'【記載例】（ユニット型）シフト記号表'!$C$5:$W$46,21,FALSE)) -> 2 | AD50: =IF(AD49="","",VLOOKUP(AD49,'【記載例】（ユニット型）シフト記号表'!$C$5:$W$46,21,FALSE)) -> - | AE50: =IF(AE49="","",VLOOKUP(AE49,'【記載例】（ユニット型）シフト記号表'!$C$5:$W$46,21,FALSE)) -> 5 | AF50: =IF(AF49="","",VLOOKUP(AF49,'【記載例】（ユニット型）シフト記号表'!$C$5:$W$46,21,FALSE)) -> 6 | AG50: =IF(AG49="","",VLOOKUP(AG49,'【記載例】（ユニット型）シフト記号表'!$C$5:$W$46,21,FALSE)) -> - | AH50: =IF(AH49="","",VLOOKUP(AH49,'【記載例】（ユニット型）シフト記号表'!$C$5:$W$46,21,FALSE)) -> 6 | AI50: =IF(AI49="","",VLOOKUP(AI49,'【記載例】（ユニット型）シフト記号表'!$C$5:$W$46,21,FALSE)) -> 5 | AJ50: =IF(AJ49="","",VLOOKUP(AJ49,'【記載例】（ユニット型）シフト記号表'!$C$5:$W$46,21,FALSE)) -> - | AK50: =IF(AK49="","",VLOOKUP(AK49,'【記載例】（ユニット型）シフト記号表'!$C$5:$W$46,21,FALSE)) -> 2 | AL50: =IF(AL49="","",VLOOKUP(AL49,'【記載例】（ユニット型）シフト記号表'!$C$5:$W$46,21,FALSE)) -> - | AM50: =IF(AM49="","",VLOOKUP(AM49,'【記載例】（ユニット型）シフト記号表'!$C$5:$W$46,21,FALSE)) -> 5 | AN50: =IF(AN49="","",VLOOKUP(AN49,'【記載例】（ユニット型）シフト記号表'!$C$5:$W$46,21,FALSE)) -> - | AO50: =IF(AO49="","",VLOOKUP(AO49,'【記載例】（ユニット型）シフト記号表'!$C$5:$W$46,21,FALSE)) -> 6 | AP50: =IF(AP49="","",VLOOKUP(AP49,'【記載例】（ユニット型）シフト記号表'!$C$5:$W$46,21,FALSE)) -> 5 | AQ50: =IF(AQ49="","",VLOOKUP(AQ49,'【記載例】（ユニット型）シフト記号表'!$C$5:$W$46,21,FALSE)) -> - | AR50: =IF(AR49="","",VLOOKUP(AR49,'【記載例】（ユニット型）シフト記号表'!$C$5:$W$46,21,FALSE)) -> - | AS50: =IF(AS49="","",VLOOKUP(AS49,'【記載例】（ユニット型）シフト記号表'!$C$5:$W$46,21,FALSE)) -> 2 | AT50: =IF(AT49="","",VLOOKUP(AT49,'【記載例】（ユニット型）シフト記号表'!$C$5:$W$46,21,FALSE)) -> - | AU50: =IF(AU49="","",VLOOKUP(AU49,'【記載例】（ユニット型）シフト記号表'!$C$5:$W$46,21,FALSE)) -> 6 | AV50: =IF(AV49="","",VLOOKUP(AV49,'【記載例】（ユニット型）シフト記号表'!$C$5:$W$46,21,FALSE)) -> 6 | AW50: =IF(AW49="","",VLOOKUP(AW49,'【記載例】（ユニット型）シフト記号表'!$C$5:$W$46,21,FALSE)) -> - | AX50: =IF(AX49="","",VLOOKUP(AX49,'【記載例】（ユニット型）シフト記号表'!$C$5:$W$46,21,FALSE)) -> 5 | AY50: =IF(AY49="","",VLOOKUP(AY49,'【記載例】（ユニット型）シフト記号表'!$C$5:$W$46,21,FALSE)) -> 6 | AZ50: =IF(AZ49="","",VLOOKUP(AZ49,'【記載例】（ユニット型）シフト記号表'!$C$5:$W$46,21,FALSE)) -> - | BA50: =IF(BA49="","",VLOOKUP(BA49,'【記載例】（ユニット型）シフト記号表'!$C$5:$W$46,21,FALSE)) -> 2 | BB50: =IF(BB49="","",VLOOKUP(BB49,'【記載例】（ユニット型）シフト記号表'!$C$5:$W$46,21,FALSE)) -> - | BC50: =IF(BC49="","",VLOOKUP(BC49,'【記載例】（ユニット型）シフト記号表'!$C$5:$W$46,21,FALSE)) ->  | BD50: =IF(BD49="","",VLOOKUP(BD49,'【記載例】（ユニット型）シフト記号表'!$C$5:$W$46,21,FALSE)) ->  | BE50: =IF(BE49="","",VLOOKUP(BE49,'【記載例】（ユニット型）シフト記号表'!$C$5:$W$46,21,FALSE)) ->  | BF50: =IF($BI$3="計画",SUM(AA50:BB50),IF($BI$3="実績",SUM(AA50:BE50),"")) -> 74 | BH50: =IF($BI$3="計画",BF50/4,IF($BI$3="実績",(BF50/($BI$7/7)),"")) -> 18.5
I51: =G50 -> 介護職員 | K51: =M50 -> A | V51: 夜勤時間帯の勤務時間数 | AA51: =IF(AA49="","",VLOOKUP(AA49,'【記載例】（ユニット型）シフト記号表'!$C$5:$Y$46,23,FALSE)) -> 3 | AB51: =IF(AB49="","",VLOOKUP(AB49,'【記載例】（ユニット型）シフト記号表'!$C$5:$Y$46,23,FALSE)) -> - | AC51: =IF(AC49="","",VLOOKUP(AC49,'【記載例】（ユニット型）シフト記号表'!$C$5:$Y$46,23,FALSE)) -> 14 | AD51: =IF(AD49="","",VLOOKUP(AD49,'【記載例】（ユニット型）シフト記号表'!$C$5:$Y$46,23,FALSE)) -> - | AE51: =IF(AE49="","",VLOOKUP(AE49,'【記載例】（ユニット型）シフト記号表'!$C$5:$Y$46,23,FALSE)) -> 3 | AF51: =IF(AF49="","",VLOOKUP(AF49,'【記載例】（ユニット型）シフト記号表'!$C$5:$Y$46,23,FALSE)) -> 2 | AG51: =IF(AG49="","",VLOOKUP(AG49,'【記載例】（ユニット型）シフト記号表'!$C$5:$Y$46,23,FALSE)) -> - | AH51: =IF(AH49="","",VLOOKUP(AH49,'【記載例】（ユニット型）シフト記号表'!$C$5:$Y$46,23,FALSE)) -> 2 | AI51: =IF(AI49="","",VLOOKUP(AI49,'【記載例】（ユニット型）シフト記号表'!$C$5:$Y$46,23,FALSE)) -> 3 | AJ51: =IF(AJ49="","",VLOOKUP(AJ49,'【記載例】（ユニット型）シフト記号表'!$C$5:$Y$46,23,FALSE)) -> - | AK51: =IF(AK49="","",VLOOKUP(AK49,'【記載例】（ユニット型）シフト記号表'!$C$5:$Y$46,23,FALSE)) -> 14 | AL51: =IF(AL49="","",VLOOKUP(AL49,'【記載例】（ユニット型）シフト記号表'!$C$5:$Y$46,23,FALSE)) -> - | AM51: =IF(AM49="","",VLOOKUP(AM49,'【記載例】（ユニット型）シフト記号表'!$C$5:$Y$46,23,FALSE)) -> 3 | AN51: =IF(AN49="","",VLOOKUP(AN49,'【記載例】（ユニット型）シフト記号表'!$C$5:$Y$46,23,FALSE)) -> - | AO51: =IF(AO49="","",VLOOKUP(AO49,'【記載例】（ユニット型）シフト記号表'!$C$5:$Y$46,23,FALSE)) -> 2 | AP51: =IF(AP49="","",VLOOKUP(AP49,'【記載例】（ユニット型）シフト記号表'!$C$5:$Y$46,23,FALSE)) -> 3 | AQ51: =IF(AQ49="","",VLOOKUP(AQ49,'【記載例】（ユニット型）シフト記号表'!$C$5:$Y$46,23,FALSE)) -> - | AR51: =IF(AR49="","",VLOOKUP(AR49,'【記載例】（ユニット型）シフト記号表'!$C$5:$Y$46,23,FALSE)) -> - | AS51: =IF(AS49="","",VLOOKUP(AS49,'【記載例】（ユニット型）シフト記号表'!$C$5:$Y$46,23,FALSE)) -> 14 | AT51: =IF(AT49="","",VLOOKUP(AT49,'【記載例】（ユニット型）シフト記号表'!$C$5:$Y$46,23,FALSE)) -> - | AU51: =IF(AU49="","",VLOOKUP(AU49,'【記載例】（ユニット型）シフト記号表'!$C$5:$Y$46,23,FALSE)) -> 2 | AV51: =IF(AV49="","",VLOOKUP(AV49,'【記載例】（ユニット型）シフト記号表'!$C$5:$Y$46,23,FALSE)) -> 2 | AW51: =IF(AW49="","",VLOOKUP(AW49,'【記載例】（ユニット型）シフト記号表'!$C$5:$Y$46,23,FALSE)) -> - | AX51: =IF(AX49="","",VLOOKUP(AX49,'【記載例】（ユニット型）シフト記号表'!$C$5:$Y$46,23,FALSE)) -> 3 | AY51: =IF(AY49="","",VLOOKUP(AY49,'【記載例】（ユニット型）シフト記号表'!$C$5:$Y$46,23,FALSE)) -> 2 | AZ51: =IF(AZ49="","",VLOOKUP(AZ49,'【記載例】（ユニット型）シフト記号表'!$C$5:$Y$46,23,FALSE)) -> - | BA51: =IF(BA49="","",VLOOKUP(BA49,'【記載例】（ユニット型）シフト記号表'!$C$5:$Y$46,23,FALSE)) -> 14 | BB51: =IF(BB49="","",VLOOKUP(BB49,'【記載例】（ユニット型）シフト記号表'!$C$5:$Y$46,23,FALSE)) -> - | BC51: =IF(BC49="","",VLOOKUP(BC49,'【記載例】（ユニット型）シフト記号表'!$C$5:$Y$46,23,FALSE)) ->  | BD51: =IF(BD49="","",VLOOKUP(BD49,'【記載例】（ユニット型）シフト記号表'!$C$5:$Y$46,23,FALSE)) ->  | BE51: =IF(BE49="","",VLOOKUP(BE49,'【記載例】（ユニット型）シフト記号表'!$C$5:$Y$46,23,FALSE)) ->  | BF51: =IF($BI$3="計画",SUM(AA51:BB51),IF($BI$3="実績",SUM(AA51:BE51),"")) -> 86 | BH51: =IF($BI$3="計画",BF51/4,IF($BI$3="実績",(BF51/($BI$7/7)),"")) -> 21.5
D52: ユニット１ | S52: ○○ K子 | V52: シフト記号 | AA52: a | AB52: d | AC52: 休 | AD52: o | AE52: 休 | AF52: 休 | AG52: a | AH52: d | AI52: d | AJ52: a | AK52: 休 | AL52: o | AM52: 休 | AN52: 休 | AO52: d | AP52: 休 | AQ52: d | AR52: d | AS52: 休 | AT52: o | AU52: 休 | AV52: d | AW52: a | AX52: 休 | AY52: d | AZ52: 休 | BA52: 休 | BB52: o
B53: =B50+1 -> 12 | G53: 介護職員 | M53: A | O53: ー | V53: 日中の勤務時間数 | AA53: =IF(AA52="","",VLOOKUP(AA52,'【記載例】（ユニット型）シフト記号表'!$C$5:$W$46,21,FALSE)) -> 6 | AB53: =IF(AB52="","",VLOOKUP(AB52,'【記載例】（ユニット型）シフト記号表'!$C$5:$W$46,21,FALSE)) -> 5 | AC53: =IF(AC52="","",VLOOKUP(AC52,'【記載例】（ユニット型）シフト記号表'!$C$5:$W$46,21,FALSE)) -> - | AD53: =IF(AD52="","",VLOOKUP(AD52,'【記載例】（ユニット型）シフト記号表'!$C$5:$W$46,21,FALSE)) -> 2 | AE53: =IF(AE52="","",VLOOKUP(AE52,'【記載例】（ユニット型）シフト記号表'!$C$5:$W$46,21,FALSE)) -> - | AF53: =IF(AF52="","",VLOOKUP(AF52,'【記載例】（ユニット型）シフト記号表'!$C$5:$W$46,21,FALSE)) -> - | AG53: =IF(AG52="","",VLOOKUP(AG52,'【記載例】（ユニット型）シフト記号表'!$C$5:$W$46,21,FALSE)) -> 6 | AH53: =IF(AH52="","",VLOOKUP(AH52,'【記載例】（ユニット型）シフト記号表'!$C$5:$W$46,21,FALSE)) -> 5 | AI53: =IF(AI52="","",VLOOKUP(AI52,'【記載例】（ユニット型）シフト記号表'!$C$5:$W$46,21,FALSE)) -> 5 | AJ53: =IF(AJ52="","",VLOOKUP(AJ52,'【記載例】（ユニット型）シフト記号表'!$C$5:$W$46,21,FALSE)) -> 6 | AK53: =IF(AK52="","",VLOOKUP(AK52,'【記載例】（ユニット型）シフト記号表'!$C$5:$W$46,21,FALSE)) -> - | AL53: =IF(AL52="","",VLOOKUP(AL52,'【記載例】（ユニット型）シフト記号表'!$C$5:$W$46,21,FALSE)) -> 2 | AM53: =IF(AM52="","",VLOOKUP(AM52,'【記載例】（ユニット型）シフト記号表'!$C$5:$W$46,21,FALSE)) -> - | AN53: =IF(AN52="","",VLOOKUP(AN52,'【記載例】（ユニット型）シフト記号表'!$C$5:$W$46,21,FALSE)) -> - | AO53: =IF(AO52="","",VLOOKUP(AO52,'【記載例】（ユニット型）シフト記号表'!$C$5:$W$46,21,FALSE)) -> 5 | AP53: =IF(AP52="","",VLOOKUP(AP52,'【記載例】（ユニット型）シフト記号表'!$C$5:$W$46,21,FALSE)) -> - | AQ53: =IF(AQ52="","",VLOOKUP(AQ52,'【記載例】（ユニット型）シフト記号表'!$C$5:$W$46,21,FALSE)) -> 5 | AR53: =IF(AR52="","",VLOOKUP(AR52,'【記載例】（ユニット型）シフト記号表'!$C$5:$W$46,21,FALSE)) -> 5 | AS53: =IF(AS52="","",VLOOKUP(AS52,'【記載例】（ユニット型）シフト記号表'!$C$5:$W$46,21,FALSE)) -> - | AT53: =IF(AT52="","",VLOOKUP(AT52,'【記載例】（ユニット型）シフト記号表'!$C$5:$W$46,21,FALSE)) -> 2 | AU53: =IF(AU52="","",VLOOKUP(AU52,'【記載例】（ユニット型）シフト記号表'!$C$5:$W$46,21,FALSE)) -> - | AV53: =IF(AV52="","",VLOOKUP(AV52,'【記載例】（ユニット型）シフト記号表'!$C$5:$W$46,21,FALSE)) -> 5 | AW53: =IF(AW52="","",VLOOKUP(AW52,'【記載例】（ユニット型）シフト記号表'!$C$5:$W$46,21,FALSE)) -> 6 | AX53: =IF(AX52="","",VLOOKUP(AX52,'【記載例】（ユニット型）シフト記号表'!$C$5:$W$46,21,FALSE)) -> - | AY53: =IF(AY52="","",VLOOKUP(AY52,'【記載例】（ユニット型）シフト記号表'!$C$5:$W$46,21,FALSE)) -> 5 | AZ53: =IF(AZ52="","",VLOOKUP(AZ52,'【記載例】（ユニット型）シフト記号表'!$C$5:$W$46,21,FALSE)) -> - | BA53: =IF(BA52="","",VLOOKUP(BA52,'【記載例】（ユニット型）シフト記号表'!$C$5:$W$46,21,FALSE)) -> - | BB53: =IF(BB52="","",VLOOKUP(BB52,'【記載例】（ユニット型）シフト記号表'!$C$5:$W$46,21,FALSE)) -> 2 | BC53: =IF(BC52="","",VLOOKUP(BC52,'【記載例】（ユニット型）シフト記号表'!$C$5:$W$46,21,FALSE)) ->  | BD53: =IF(BD52="","",VLOOKUP(BD52,'【記載例】（ユニット型）シフト記号表'!$C$5:$W$46,21,FALSE)) ->  | BE53: =IF(BE52="","",VLOOKUP(BE52,'【記載例】（ユニット型）シフト記号表'!$C$5:$W$46,21,FALSE)) ->  | BF53: =IF($BI$3="計画",SUM(AA53:BB53),IF($BI$3="実績",SUM(AA53:BE53),"")) -> 72 | BH53: =IF($BI$3="計画",BF53/4,IF($BI$3="実績",(BF53/($BI$7/7)),"")) -> 18
I54: =G53 -> 介護職員 | K54: =M53 -> A | V54: 夜勤時間帯の勤務時間数 | AA54: =IF(AA52="","",VLOOKUP(AA52,'【記載例】（ユニット型）シフト記号表'!$C$5:$Y$46,23,FALSE)) -> 2 | AB54: =IF(AB52="","",VLOOKUP(AB52,'【記載例】（ユニット型）シフト記号表'!$C$5:$Y$46,23,FALSE)) -> 3 | AC54: =IF(AC52="","",VLOOKUP(AC52,'【記載例】（ユニット型）シフト記号表'!$C$5:$Y$46,23,FALSE)) -> - | AD54: =IF(AD52="","",VLOOKUP(AD52,'【記載例】（ユニット型）シフト記号表'!$C$5:$Y$46,23,FALSE)) -> 14 | AE54: =IF(AE52="","",VLOOKUP(AE52,'【記載例】（ユニット型）シフト記号表'!$C$5:$Y$46,23,FALSE)) -> - | AF54: =IF(AF52="","",VLOOKUP(AF52,'【記載例】（ユニット型）シフト記号表'!$C$5:$Y$46,23,FALSE)) -> - | AG54: =IF(AG52="","",VLOOKUP(AG52,'【記載例】（ユニット型）シフト記号表'!$C$5:$Y$46,23,FALSE)) -> 2 | AH54: =IF(AH52="","",VLOOKUP(AH52,'【記載例】（ユニット型）シフト記号表'!$C$5:$Y$46,23,FALSE)) -> 3 | AI54: =IF(AI52="","",VLOOKUP(AI52,'【記載例】（ユニット型）シフト記号表'!$C$5:$Y$46,23,FALSE)) -> 3 | AJ54: =IF(AJ52="","",VLOOKUP(AJ52,'【記載例】（ユニット型）シフト記号表'!$C$5:$Y$46,23,FALSE)) -> 2 | AK54: =IF(AK52="","",VLOOKUP(AK52,'【記載例】（ユニット型）シフト記号表'!$C$5:$Y$46,23,FALSE)) -> - | AL54: =IF(AL52="","",VLOOKUP(AL52,'【記載例】（ユニット型）シフト記号表'!$C$5:$Y$46,23,FALSE)) -> 14 | AM54: =IF(AM52="","",VLOOKUP(AM52,'【記載例】（ユニット型）シフト記号表'!$C$5:$Y$46,23,FALSE)) -> - | AN54: =IF(AN52="","",VLOOKUP(AN52,'【記載例】（ユニット型）シフト記号表'!$C$5:$Y$46,23,FALSE)) -> - | AO54: =IF(AO52="","",VLOOKUP(AO52,'【記載例】（ユニット型）シフト記号表'!$C$5:$Y$46,23,FALSE)) -> 3 | AP54: =IF(AP52="","",VLOOKUP(AP52,'【記載例】（ユニット型）シフト記号表'!$C$5:$Y$46,23,FALSE)) -> - | AQ54: =IF(AQ52="","",VLOOKUP(AQ52,'【記載例】（ユニット型）シフト記号表'!$C$5:$Y$46,23,FALSE)) -> 3 | AR54: =IF(AR52="","",VLOOKUP(AR52,'【記載例】（ユニット型）シフト記号表'!$C$5:$Y$46,23,FALSE)) -> 3 | AS54: =IF(AS52="","",VLOOKUP(AS52,'【記載例】（ユニット型）シフト記号表'!$C$5:$Y$46,23,FALSE)) -> - | AT54: =IF(AT52="","",VLOOKUP(AT52,'【記載例】（ユニット型）シフト記号表'!$C$5:$Y$46,23,FALSE)) -> 14 | AU54: =IF(AU52="","",VLOOKUP(AU52,'【記載例】（ユニット型）シフト記号表'!$C$5:$Y$46,23,FALSE)) -> - | AV54: =IF(AV52="","",VLOOKUP(AV52,'【記載例】（ユニット型）シフト記号表'!$C$5:$Y$46,23,FALSE)) -> 3 | AW54: =IF(AW52="","",VLOOKUP(AW52,'【記載例】（ユニット型）シフト記号表'!$C$5:$Y$46,23,FALSE)) -> 2 | AX54: =IF(AX52="","",VLOOKUP(AX52,'【記載例】（ユニット型）シフト記号表'!$C$5:$Y$46,23,FALSE)) -> - | AY54: =IF(AY52="","",VLOOKUP(AY52,'【記載例】（ユニット型）シフト記号表'!$C$5:$Y$46,23,FALSE)) -> 3 | AZ54: =IF(AZ52="","",VLOOKUP(AZ52,'【記載例】（ユニット型）シフト記号表'!$C$5:$Y$46,23,FALSE)) -> - | BA54: =IF(BA52="","",VLOOKUP(BA52,'【記載例】（ユニット型）シフト記号表'!$C$5:$Y$46,23,FALSE)) -> - | BB54: =IF(BB52="","",VLOOKUP(BB52,'【記載例】（ユニット型）シフト記号表'!$C$5:$Y$46,23,FALSE)) -> 14 | BC54: =IF(BC52="","",VLOOKUP(BC52,'【記載例】（ユニット型）シフト記号表'!$C$5:$Y$46,23,FALSE)) ->  | BD54: =IF(BD52="","",VLOOKUP(BD52,'【記載例】（ユニット型）シフト記号表'!$C$5:$Y$46,23,FALSE)) ->  | BE54: =IF(BE52="","",VLOOKUP(BE52,'【記載例】（ユニット型）シフト記号表'!$C$5:$Y$46,23,FALSE)) ->  | BF54: =IF($BI$3="計画",SUM(AA54:BB54),IF($BI$3="実績",SUM(AA54:BE54),"")) -> 88 | BH54: =IF($BI$3="計画",BF54/4,IF($BI$3="実績",(BF54/($BI$7/7)),"")) -> 22
D55: ユニット１ | S55: ○○ L太 | V55: シフト記号 | AA55: 休 | AB55: a | AC55: d | AD55: 休 | AE55: d | AF55: d | AG55: 休 | AH55: 休 | AI55: a | AJ55: d | AK55: d | AL55: 休 | AM55: 休 | AN55: a | AO55: 休 | AP55: 休 | AQ55: a | AR55: a | AS55: d | AT55: 休 | AU55: d | AV55: 休 | AW55: d | AX55: d | AY55: 休 | AZ55: d | BA55: a | BB55: 休
B56: =B53+1 -> 13 | G56: 介護職員 | M56: C | O56: ー | V56: 日中の勤務時間数 | AA56: =IF(AA55="","",VLOOKUP(AA55,'【記載例】（ユニット型）シフト記号表'!$C$5:$W$46,21,FALSE)) -> - | AB56: =IF(AB55="","",VLOOKUP(AB55,'【記載例】（ユニット型）シフト記号表'!$C$5:$W$46,21,FALSE)) -> 6 | AC56: =IF(AC55="","",VLOOKUP(AC55,'【記載例】（ユニット型）シフト記号表'!$C$5:$W$46,21,FALSE)) -> 5 | AD56: =IF(AD55="","",VLOOKUP(AD55,'【記載例】（ユニット型）シフト記号表'!$C$5:$W$46,21,FALSE)) -> - | AE56: =IF(AE55="","",VLOOKUP(AE55,'【記載例】（ユニット型）シフト記号表'!$C$5:$W$46,21,FALSE)) -> 5 | AF56: =IF(AF55="","",VLOOKUP(AF55,'【記載例】（ユニット型）シフト記号表'!$C$5:$W$46,21,FALSE)) -> 5 | AG56: =IF(AG55="","",VLOOKUP(AG55,'【記載例】（ユニット型）シフト記号表'!$C$5:$W$46,21,FALSE)) -> - | AH56: =IF(AH55="","",VLOOKUP(AH55,'【記載例】（ユニット型）シフト記号表'!$C$5:$W$46,21,FALSE)) -> - | AI56: =IF(AI55="","",VLOOKUP(AI55,'【記載例】（ユニット型）シフト記号表'!$C$5:$W$46,21,FALSE)) -> 6 | AJ56: =IF(AJ55="","",VLOOKUP(AJ55,'【記載例】（ユニット型）シフト記号表'!$C$5:$W$46,21,FALSE)) -> 5 | AK56: =IF(AK55="","",VLOOKUP(AK55,'【記載例】（ユニット型）シフト記号表'!$C$5:$W$46,21,FALSE)) -> 5 | AL56: =IF(AL55="","",VLOOKUP(AL55,'【記載例】（ユニット型）シフト記号表'!$C$5:$W$46,21,FALSE)) -> - | AM56: =IF(AM55="","",VLOOKUP(AM55,'【記載例】（ユニット型）シフト記号表'!$C$5:$W$46,21,FALSE)) -> - | AN56: =IF(AN55="","",VLOOKUP(AN55,'【記載例】（ユニット型）シフト記号表'!$C$5:$W$46,21,FALSE)) -> 6 | AO56: =IF(AO55="","",VLOOKUP(AO55,'【記載例】（ユニット型）シフト記号表'!$C$5:$W$46,21,FALSE)) -> - | AP56: =IF(AP55="","",VLOOKUP(AP55,'【記載例】（ユニット型）シフト記号表'!$C$5:$W$46,21,FALSE)) -> - | AQ56: =IF(AQ55="","",VLOOKUP(AQ55,'【記載例】（ユニット型）シフト記号表'!$C$5:$W$46,21,FALSE)) -> 6 | AR56: =IF(AR55="","",VLOOKUP(AR55,'【記載例】（ユニット型）シフト記号表'!$C$5:$W$46,21,FALSE)) -> 6 | AS56: =IF(AS55="","",VLOOKUP(AS55,'【記載例】（ユニット型）シフト記号表'!$C$5:$W$46,21,FALSE)) -> 5 | AT56: =IF(AT55="","",VLOOKUP(AT55,'【記載例】（ユニット型）シフト記号表'!$C$5:$W$46,21,FALSE)) -> - | AU56: =IF(AU55="","",VLOOKUP(AU55,'【記載例】（ユニット型）シフト記号表'!$C$5:$W$46,21,FALSE)) -> 5 | AV56: =IF(AV55="","",VLOOKUP(AV55,'【記載例】（ユニット型）シフト記号表'!$C$5:$W$46,21,FALSE)) -> - | AW56: =IF(AW55="","",VLOOKUP(AW55,'【記載例】（ユニット型）シフト記号表'!$C$5:$W$46,21,FALSE)) -> 5 | AX56: =IF(AX55="","",VLOOKUP(AX55,'【記載例】（ユニット型）シフト記号表'!$C$5:$W$46,21,FALSE)) -> 5 | AY56: =IF(AY55="","",VLOOKUP(AY55,'【記載例】（ユニット型）シフト記号表'!$C$5:$W$46,21,FALSE)) -> - | AZ56: =IF(AZ55="","",VLOOKUP(AZ55,'【記載例】（ユニット型）シフト記号表'!$C$5:$W$46,21,FALSE)) -> 5 | BA56: =IF(BA55="","",VLOOKUP(BA55,'【記載例】（ユニット型）シフト記号表'!$C$5:$W$46,21,FALSE)) -> 6 | BB56: =IF(BB55="","",VLOOKUP(BB55,'【記載例】（ユニット型）シフト記号表'!$C$5:$W$46,21,FALSE)) -> - | BC56: =IF(BC55="","",VLOOKUP(BC55,'【記載例】（ユニット型）シフト記号表'!$C$5:$W$46,21,FALSE)) ->  | BD56: =IF(BD55="","",VLOOKUP(BD55,'【記載例】（ユニット型）シフト記号表'!$C$5:$W$46,21,FALSE)) ->  | BE56: =IF(BE55="","",VLOOKUP(BE55,'【記載例】（ユニット型）シフト記号表'!$C$5:$W$46,21,FALSE)) ->  | BF56: =IF($BI$3="計画",SUM(AA56:BB56),IF($BI$3="実績",SUM(AA56:BE56),"")) -> 86 | BH56: =IF($BI$3="計画",BF56/4,IF($BI$3="実績",(BF56/($BI$7/7)),"")) -> 21.5
I57: =G56 -> 介護職員 | K57: =M56 -> C | V57: 夜勤時間帯の勤務時間数 | AA57: =IF(AA55="","",VLOOKUP(AA55,'【記載例】（ユニット型）シフト記号表'!$C$5:$Y$46,23,FALSE)) -> - | AB57: =IF(AB55="","",VLOOKUP(AB55,'【記載例】（ユニット型）シフト記号表'!$C$5:$Y$46,23,FALSE)) -> 2 | AC57: =IF(AC55="","",VLOOKUP(AC55,'【記載例】（ユニット型）シフト記号表'!$C$5:$Y$46,23,FALSE)) -> 3 | AD57: =IF(AD55="","",VLOOKUP(AD55,'【記載例】（ユニット型）シフト記号表'!$C$5:$Y$46,23,FALSE)) -> - | AE57: =IF(AE55="","",VLOOKUP(AE55,'【記載例】（ユニット型）シフト記号表'!$C$5:$Y$46,23,FALSE)) -> 3 | AF57: =IF(AF55="","",VLOOKUP(AF55,'【記載例】（ユニット型）シフト記号表'!$C$5:$Y$46,23,FALSE)) -> 3 | AG57: =IF(AG55="","",VLOOKUP(AG55,'【記載例】（ユニット型）シフト記号表'!$C$5:$Y$46,23,FALSE)) -> - | AH57: =IF(AH55="","",VLOOKUP(AH55,'【記載例】（ユニット型）シフト記号表'!$C$5:$Y$46,23,FALSE)) -> - | AI57: =IF(AI55="","",VLOOKUP(AI55,'【記載例】（ユニット型）シフト記号表'!$C$5:$Y$46,23,FALSE)) -> 2 | AJ57: =IF(AJ55="","",VLOOKUP(AJ55,'【記載例】（ユニット型）シフト記号表'!$C$5:$Y$46,23,FALSE)) -> 3 | AK57: =IF(AK55="","",VLOOKUP(AK55,'【記載例】（ユニット型）シフト記号表'!$C$5:$Y$46,23,FALSE)) -> 3 | AL57: =IF(AL55="","",VLOOKUP(AL55,'【記載例】（ユニット型）シフト記号表'!$C$5:$Y$46,23,FALSE)) -> - | AM57: =IF(AM55="","",VLOOKUP(AM55,'【記載例】（ユニット型）シフト記号表'!$C$5:$Y$46,23,FALSE)) -> - | AN57: =IF(AN55="","",VLOOKUP(AN55,'【記載例】（ユニット型）シフト記号表'!$C$5:$Y$46,23,FALSE)) -> 2 | AO57: =IF(AO55="","",VLOOKUP(AO55,'【記載例】（ユニット型）シフト記号表'!$C$5:$Y$46,23,FALSE)) -> - | AP57: =IF(AP55="","",VLOOKUP(AP55,'【記載例】（ユニット型）シフト記号表'!$C$5:$Y$46,23,FALSE)) -> - | AQ57: =IF(AQ55="","",VLOOKUP(AQ55,'【記載例】（ユニット型）シフト記号表'!$C$5:$Y$46,23,FALSE)) -> 2 | AR57: =IF(AR55="","",VLOOKUP(AR55,'【記載例】（ユニット型）シフト記号表'!$C$5:$Y$46,23,FALSE)) -> 2 | AS57: =IF(AS55="","",VLOOKUP(AS55,'【記載例】（ユニット型）シフト記号表'!$C$5:$Y$46,23,FALSE)) -> 3 | AT57: =IF(AT55="","",VLOOKUP(AT55,'【記載例】（ユニット型）シフト記号表'!$C$5:$Y$46,23,FALSE)) -> - | AU57: =IF(AU55="","",VLOOKUP(AU55,'【記載例】（ユニット型）シフト記号表'!$C$5:$Y$46,23,FALSE)) -> 3 | AV57: =IF(AV55="","",VLOOKUP(AV55,'【記載例】（ユニット型）シフト記号表'!$C$5:$Y$46,23,FALSE)) -> - | AW57: =IF(AW55="","",VLOOKUP(AW55,'【記載例】（ユニット型）シフト記号表'!$C$5:$Y$46,23,FALSE)) -> 3 | AX57: =IF(AX55="","",VLOOKUP(AX55,'【記載例】（ユニット型）シフト記号表'!$C$5:$Y$46,23,FALSE)) -> 3 | AY57: =IF(AY55="","",VLOOKUP(AY55,'【記載例】（ユニット型）シフト記号表'!$C$5:$Y$46,23,FALSE)) -> - | AZ57: =IF(AZ55="","",VLOOKUP(AZ55,'【記載例】（ユニット型）シフト記号表'!$C$5:$Y$46,23,FALSE)) -> 3 | BA57: =IF(BA55="","",VLOOKUP(BA55,'【記載例】（ユニット型）シフト記号表'!$C$5:$Y$46,23,FALSE)) -> 2 | BB57: =IF(BB55="","",VLOOKUP(BB55,'【記載例】（ユニット型）シフト記号表'!$C$5:$Y$46,23,FALSE)) -> - | BC57: =IF(BC55="","",VLOOKUP(BC55,'【記載例】（ユニット型）シフト記号表'!$C$5:$Y$46,23,FALSE)) ->  | BD57: =IF(BD55="","",VLOOKUP(BD55,'【記載例】（ユニット型）シフト記号表'!$C$5:$Y$46,23,FALSE)) ->  | BE57: =IF(BE55="","",VLOOKUP(BE55,'【記載例】（ユニット型）シフト記号表'!$C$5:$Y$46,23,FALSE)) ->  | BF57: =IF($BI$3="計画",SUM(AA57:BB57),IF($BI$3="実績",SUM(AA57:BE57),"")) -> 42 | BH57: =IF($BI$3="計画",BF57/4,IF($BI$3="実績",(BF57/($BI$7/7)),"")) -> 10.5
C58: ○ | D58: ユニット２ | S58: ○○ M子 | V58: シフト記号 | AA58: d | AB58: d | AC58: 休 | AD58: 休 | AE58: o | AF58: 休 | AG58: a | AH58: a | AI58: 休 | AJ58: d | AK58: d | AL58: 休 | AM58: o | AN58: 休 | AO58: a | AP58: a | AQ58: 休 | AR58: d | AS58: 休 | AT58: 休 | AU58: o | AV58: 休 | AW58: a | AX58: a | AY58: 休 | AZ58: a | BA58: d | BB58: d
B59: =B56+1 -> 14 | G59: 看護職員 | M59: A | O59: 看護師 | V59: 日中の勤務時間数 | AA59: =IF(AA58="","",VLOOKUP(AA58,'【記載例】（ユニット型）シフト記号表'!$C$5:$W$46,21,FALSE)) -> 5 | AB59: =IF(AB58="","",VLOOKUP(AB58,'【記載例】（ユニット型）シフト記号表'!$C$5:$W$46,21,FALSE)) -> 5 | AC59: =IF(AC58="","",VLOOKUP(AC58,'【記載例】（ユニット型）シフト記号表'!$C$5:$W$46,21,FALSE)) -> - | AD59: =IF(AD58="","",VLOOKUP(AD58,'【記載例】（ユニット型）シフト記号表'!$C$5:$W$46,21,FALSE)) -> - | AE59: =IF(AE58="","",VLOOKUP(AE58,'【記載例】（ユニット型）シフト記号表'!$C$5:$W$46,21,FALSE)) -> 2 | AF59: =IF(AF58="","",VLOOKUP(AF58,'【記載例】（ユニット型）シフト記号表'!$C$5:$W$46,21,FALSE)) -> - | AG59: =IF(AG58="","",VLOOKUP(AG58,'【記載例】（ユニット型）シフト記号表'!$C$5:$W$46,21,FALSE)) -> 6 | AH59: =IF(AH58="","",VLOOKUP(AH58,'【記載例】（ユニット型）シフト記号表'!$C$5:$W$46,21,FALSE)) -> 6 | AI59: =IF(AI58="","",VLOOKUP(AI58,'【記載例】（ユニット型）シフト記号表'!$C$5:$W$46,21,FALSE)) -> - | AJ59: =IF(AJ58="","",VLOOKUP(AJ58,'【記載例】（ユニット型）シフト記号表'!$C$5:$W$46,21,FALSE)) -> 5 | AK59: =IF(AK58="","",VLOOKUP(AK58,'【記載例】（ユニット型）シフト記号表'!$C$5:$W$46,21,FALSE)) -> 5 | AL59: =IF(AL58="","",VLOOKUP(AL58,'【記載例】（ユニット型）シフト記号表'!$C$5:$W$46,21,FALSE)) -> - | AM59: =IF(AM58="","",VLOOKUP(AM58,'【記載例】（ユニット型）シフト記号表'!$C$5:$W$46,21,FALSE)) -> 2 | AN59: =IF(AN58="","",VLOOKUP(AN58,'【記載例】（ユニット型）シフト記号表'!$C$5:$W$46,21,FALSE)) -> - | AO59: =IF(AO58="","",VLOOKUP(AO58,'【記載例】（ユニット型）シフト記号表'!$C$5:$W$46,21,FALSE)) -> 6 | AP59: =IF(AP58="","",VLOOKUP(AP58,'【記載例】（ユニット型）シフト記号表'!$C$5:$W$46,21,FALSE)) -> 6 | AQ59: =IF(AQ58="","",VLOOKUP(AQ58,'【記載例】（ユニット型）シフト記号表'!$C$5:$W$46,21,FALSE)) -> - | AR59: =IF(AR58="","",VLOOKUP(AR58,'【記載例】（ユニット型）シフト記号表'!$C$5:$W$46,21,FALSE)) -> 5 | AS59: =IF(AS58="","",VLOOKUP(AS58,'【記載例】（ユニット型）シフト記号表'!$C$5:$W$46,21,FALSE)) -> - | AT59: =IF(AT58="","",VLOOKUP(AT58,'【記載例】（ユニット型）シフト記号表'!$C$5:$W$46,21,FALSE)) -> - | AU59: =IF(AU58="","",VLOOKUP(AU58,'【記載例】（ユニット型）シフト記号表'!$C$5:$W$46,21,FALSE)) -> 2 | AV59: =IF(AV58="","",VLOOKUP(AV58,'【記載例】（ユニット型）シフト記号表'!$C$5:$W$46,21,FALSE)) -> - | AW59: =IF(AW58="","",VLOOKUP(AW58,'【記載例】（ユニット型）シフト記号表'!$C$5:$W$46,21,FALSE)) -> 6 | AX59: =IF(AX58="","",VLOOKUP(AX58,'【記載例】（ユニット型）シフト記号表'!$C$5:$W$46,21,FALSE)) -> 6 | AY59: =IF(AY58="","",VLOOKUP(AY58,'【記載例】（ユニット型）シフト記号表'!$C$5:$W$46,21,FALSE)) -> - | AZ59: =IF(AZ58="","",VLOOKUP(AZ58,'【記載例】（ユニット型）シフト記号表'!$C$5:$W$46,21,FALSE)) -> 6 | BA59: =IF(BA58="","",VLOOKUP(BA58,'【記載例】（ユニット型）シフト記号表'!$C$5:$W$46,21,FALSE)) -> 5 | BB59: =IF(BB58="","",VLOOKUP(BB58,'【記載例】（ユニット型）シフト記号表'!$C$5:$W$46,21,FALSE)) -> 5 | BC59: =IF(BC58="","",VLOOKUP(BC58,'【記載例】（ユニット型）シフト記号表'!$C$5:$W$46,21,FALSE)) ->  | BD59: =IF(BD58="","",VLOOKUP(BD58,'【記載例】（ユニット型）シフト記号表'!$C$5:$W$46,21,FALSE)) ->  | BE59: =IF(BE58="","",VLOOKUP(BE58,'【記載例】（ユニット型）シフト記号表'!$C$5:$W$46,21,FALSE)) ->  | BF59: =IF($BI$3="計画",SUM(AA59:BB59),IF($BI$3="実績",SUM(AA59:BE59),"")) -> 83 | BH59: =IF($BI$3="計画",BF59/4,IF($BI$3="実績",(BF59/($BI$7/7)),"")) -> 20.75
I60: =G59 -> 看護職員 | K60: =M59 -> A | V60: 夜勤時間帯の勤務時間数 | AA60: =IF(AA58="","",VLOOKUP(AA58,'【記載例】（ユニット型）シフト記号表'!$C$5:$Y$46,23,FALSE)) -> 3 | AB60: =IF(AB58="","",VLOOKUP(AB58,'【記載例】（ユニット型）シフト記号表'!$C$5:$Y$46,23,FALSE)) -> 3 | AC60: =IF(AC58="","",VLOOKUP(AC58,'【記載例】（ユニット型）シフト記号表'!$C$5:$Y$46,23,FALSE)) -> - | AD60: =IF(AD58="","",VLOOKUP(AD58,'【記載例】（ユニット型）シフト記号表'!$C$5:$Y$46,23,FALSE)) -> - | AE60: =IF(AE58="","",VLOOKUP(AE58,'【記載例】（ユニット型）シフト記号表'!$C$5:$Y$46,23,FALSE)) -> 14 | AF60: =IF(AF58="","",VLOOKUP(AF58,'【記載例】（ユニット型）シフト記号表'!$C$5:$Y$46,23,FALSE)) -> - | AG60: =IF(AG58="","",VLOOKUP(AG58,'【記載例】（ユニット型）シフト記号表'!$C$5:$Y$46,23,FALSE)) -> 2 | AH60: =IF(AH58="","",VLOOKUP(AH58,'【記載例】（ユニット型）シフト記号表'!$C$5:$Y$46,23,FALSE)) -> 2 | AI60: =IF(AI58="","",VLOOKUP(AI58,'【記載例】（ユニット型）シフト記号表'!$C$5:$Y$46,23,FALSE)) -> - | AJ60: =IF(AJ58="","",VLOOKUP(AJ58,'【記載例】（ユニット型）シフト記号表'!$C$5:$Y$46,23,FALSE)) -> 3 | AK60: =IF(AK58="","",VLOOKUP(AK58,'【記載例】（ユニット型）シフト記号表'!$C$5:$Y$46,23,FALSE)) -> 3 | AL60: =IF(AL58="","",VLOOKUP(AL58,'【記載例】（ユニット型）シフト記号表'!$C$5:$Y$46,23,FALSE)) -> - | AM60: =IF(AM58="","",VLOOKUP(AM58,'【記載例】（ユニット型）シフト記号表'!$C$5:$Y$46,23,FALSE)) -> 14 | AN60: =IF(AN58="","",VLOOKUP(AN58,'【記載例】（ユニット型）シフト記号表'!$C$5:$Y$46,23,FALSE)) -> - | AO60: =IF(AO58="","",VLOOKUP(AO58,'【記載例】（ユニット型）シフト記号表'!$C$5:$Y$46,23,FALSE)) -> 2 | AP60: =IF(AP58="","",VLOOKUP(AP58,'【記載例】（ユニット型）シフト記号表'!$C$5:$Y$46,23,FALSE)) -> 2 | AQ60: =IF(AQ58="","",VLOOKUP(AQ58,'【記載例】（ユニット型）シフト記号表'!$C$5:$Y$46,23,FALSE)) -> - | AR60: =IF(AR58="","",VLOOKUP(AR58,'【記載例】（ユニット型）シフト記号表'!$C$5:$Y$46,23,FALSE)) -> 3 | AS60: =IF(AS58="","",VLOOKUP(AS58,'【記載例】（ユニット型）シフト記号表'!$C$5:$Y$46,23,FALSE)) -> - | AT60: =IF(AT58="","",VLOOKUP(AT58,'【記載例】（ユニット型）シフト記号表'!$C$5:$Y$46,23,FALSE)) -> - | AU60: =IF(AU58="","",VLOOKUP(AU58,'【記載例】（ユニット型）シフト記号表'!$C$5:$Y$46,23,FALSE)) -> 14 | AV60: =IF(AV58="","",VLOOKUP(AV58,'【記載例】（ユニット型）シフト記号表'!$C$5:$Y$46,23,FALSE)) -> - | AW60: =IF(AW58="","",VLOOKUP(AW58,'【記載例】（ユニット型）シフト記号表'!$C$5:$Y$46,23,FALSE)) -> 2 | AX60: =IF(AX58="","",VLOOKUP(AX58,'【記載例】（ユニット型）シフト記号表'!$C$5:$Y$46,23,FALSE)) -> 2 | AY60: =IF(AY58="","",VLOOKUP(AY58,'【記載例】（ユニット型）シフト記号表'!$C$5:$Y$46,23,FALSE)) -> - | AZ60: =IF(AZ58="","",VLOOKUP(AZ58,'【記載例】（ユニット型）シフト記号表'!$C$5:$Y$46,23,FALSE)) -> 2 | BA60: =IF(BA58="","",VLOOKUP(BA58,'【記載例】（ユニット型）シフト記号表'!$C$5:$Y$46,23,FALSE)) -> 3 | BB60: =IF(BB58="","",VLOOKUP(BB58,'【記載例】（ユニット型）シフト記号表'!$C$5:$Y$46,23,FALSE)) -> 3 | BC60: =IF(BC58="","",VLOOKUP(BC58,'【記載例】（ユニット型）シフト記号表'!$C$5:$Y$46,23,FALSE)) ->  | BD60: =IF(BD58="","",VLOOKUP(BD58,'【記載例】（ユニット型）シフト記号表'!$C$5:$Y$46,23,FALSE)) ->  | BE60: =IF(BE58="","",VLOOKUP(BE58,'【記載例】（ユニット型）シフト記号表'!$C$5:$Y$46,23,FALSE)) ->  | BF60: =IF($BI$3="計画",SUM(AA60:BB60),IF($BI$3="実績",SUM(AA60:BE60),"")) -> 77 | BH60: =IF($BI$3="計画",BF60/4,IF($BI$3="実績",(BF60/($BI$7/7)),"")) -> 19.25
D61: ユニット２ | S61: ○○ N男 | V61: シフト記号 | AA61: 休 | AB61: a | AC61: d | AD61: d | AE61: 休 | AF61: o | AG61: 休 | AH61: d | AI61: 休 | AJ61: d | AK61: d | AL61: 休 | AM61: 休 | AN61: o | AO61: 休 | AP61: d | AQ61: d | AR61: d | AS61: a | AT61: a | AU61: 休 | AV61: o | AW61: 休 | AX61: a | AY61: d | AZ61: 休 | BA61: 休 | BB61: a
B62: =B59+1 -> 15 | G62: 介護職員 | M62: A | O62: 介護福祉士 | V62: 日中の勤務時間数 | AA62: =IF(AA61="","",VLOOKUP(AA61,'【記載例】（ユニット型）シフト記号表'!$C$5:$W$46,21,FALSE)) -> - | AB62: =IF(AB61="","",VLOOKUP(AB61,'【記載例】（ユニット型）シフト記号表'!$C$5:$W$46,21,FALSE)) -> 6 | AC62: =IF(AC61="","",VLOOKUP(AC61,'【記載例】（ユニット型）シフト記号表'!$C$5:$W$46,21,FALSE)) -> 5 | AD62: =IF(AD61="","",VLOOKUP(AD61,'【記載例】（ユニット型）シフト記号表'!$C$5:$W$46,21,FALSE)) -> 5 | AE62: =IF(AE61="","",VLOOKUP(AE61,'【記載例】（ユニット型）シフト記号表'!$C$5:$W$46,21,FALSE)) -> - | AF62: =IF(AF61="","",VLOOKUP(AF61,'【記載例】（ユニット型）シフト記号表'!$C$5:$W$46,21,FALSE)) -> 2 | AG62: =IF(AG61="","",VLOOKUP(AG61,'【記載例】（ユニット型）シフト記号表'!$C$5:$W$46,21,FALSE)) -> - | AH62: =IF(AH61="","",VLOOKUP(AH61,'【記載例】（ユニット型）シフト記号表'!$C$5:$W$46,21,FALSE)) -> 5 | AI62: =IF(AI61="","",VLOOKUP(AI61,'【記載例】（ユニット型）シフト記号表'!$C$5:$W$46,21,FALSE)) -> - | AJ62: =IF(AJ61="","",VLOOKUP(AJ61,'【記載例】（ユニット型）シフト記号表'!$C$5:$W$46,21,FALSE)) -> 5 | AK62: =IF(AK61="","",VLOOKUP(AK61,'【記載例】（ユニット型）シフト記号表'!$C$5:$W$46,21,FALSE)) -> 5 | AL62: =IF(AL61="","",VLOOKUP(AL61,'【記載例】（ユニット型）シフト記号表'!$C$5:$W$46,21,FALSE)) -> - | AM62: =IF(AM61="","",VLOOKUP(AM61,'【記載例】（ユニット型）シフト記号表'!$C$5:$W$46,21,FALSE)) -> - | AN62: =IF(AN61="","",VLOOKUP(AN61,'【記載例】（ユニット型）シフト記号表'!$C$5:$W$46,21,FALSE)) -> 2 | AO62: =IF(AO61="","",VLOOKUP(AO61,'【記載例】（ユニット型）シフト記号表'!$C$5:$W$46,21,FALSE)) -> - | AP62: =IF(AP61="","",VLOOKUP(AP61,'【記載例】（ユニット型）シフト記号表'!$C$5:$W$46,21,FALSE)) -> 5 | AQ62: =IF(AQ61="","",VLOOKUP(AQ61,'【記載例】（ユニット型）シフト記号表'!$C$5:$W$46,21,FALSE)) -> 5 | AR62: =IF(AR61="","",VLOOKUP(AR61,'【記載例】（ユニット型）シフト記号表'!$C$5:$W$46,21,FALSE)) -> 5 | AS62: =IF(AS61="","",VLOOKUP(AS61,'【記載例】（ユニット型）シフト記号表'!$C$5:$W$46,21,FALSE)) -> 6 | AT62: =IF(AT61="","",VLOOKUP(AT61,'【記載例】（ユニット型）シフト記号表'!$C$5:$W$46,21,FALSE)) -> 6 | AU62: =IF(AU61="","",VLOOKUP(AU61,'【記載例】（ユニット型）シフト記号表'!$C$5:$W$46,21,FALSE)) -> - | AV62: =IF(AV61="","",VLOOKUP(AV61,'【記載例】（ユニット型）シフト記号表'!$C$5:$W$46,21,FALSE)) -> 2 | AW62: =IF(AW61="","",VLOOKUP(AW61,'【記載例】（ユニット型）シフト記号表'!$C$5:$W$46,21,FALSE)) -> - | AX62: =IF(AX61="","",VLOOKUP(AX61,'【記載例】（ユニット型）シフト記号表'!$C$5:$W$46,21,FALSE)) -> 6 | AY62: =IF(AY61="","",VLOOKUP(AY61,'【記載例】（ユニット型）シフト記号表'!$C$5:$W$46,21,FALSE)) -> 5 | AZ62: =IF(AZ61="","",VLOOKUP(AZ61,'【記載例】（ユニット型）シフト記号表'!$C$5:$W$46,21,FALSE)) -> - | BA62: =IF(BA61="","",VLOOKUP(BA61,'【記載例】（ユニット型）シフト記号表'!$C$5:$W$46,21,FALSE)) -> - | BB62: =IF(BB61="","",VLOOKUP(BB61,'【記載例】（ユニット型）シフト記号表'!$C$5:$W$46,21,FALSE)) -> 6 | BC62: =IF(BC61="","",VLOOKUP(BC61,'【記載例】（ユニット型）シフト記号表'!$C$5:$W$46,21,FALSE)) ->  | BD62: =IF(BD61="","",VLOOKUP(BD61,'【記載例】（ユニット型）シフト記号表'!$C$5:$W$46,21,FALSE)) ->  | BE62: =IF(BE61="","",VLOOKUP(BE61,'【記載例】（ユニット型）シフト記号表'!$C$5:$W$46,21,FALSE)) ->  | BF62: =IF($BI$3="計画",SUM(AA62:BB62),IF($BI$3="実績",SUM(AA62:BE62),"")) -> 81 | BH62: =IF($BI$3="計画",BF62/4,IF($BI$3="実績",(BF62/($BI$7/7)),"")) -> 20.25
I63: =G62 -> 介護職員 | K63: =M62 -> A | V63: 夜勤時間帯の勤務時間数 | AA63: =IF(AA61="","",VLOOKUP(AA61,'【記載例】（ユニット型）シフト記号表'!$C$5:$Y$46,23,FALSE)) -> - | AB63: =IF(AB61="","",VLOOKUP(AB61,'【記載例】（ユニット型）シフト記号表'!$C$5:$Y$46,23,FALSE)) -> 2 | AC63: =IF(AC61="","",VLOOKUP(AC61,'【記載例】（ユニット型）シフト記号表'!$C$5:$Y$46,23,FALSE)) -> 3 | AD63: =IF(AD61="","",VLOOKUP(AD61,'【記載例】（ユニット型）シフト記号表'!$C$5:$Y$46,23,FALSE)) -> 3 | AE63: =IF(AE61="","",VLOOKUP(AE61,'【記載例】（ユニット型）シフト記号表'!$C$5:$Y$46,23,FALSE)) -> - | AF63: =IF(AF61="","",VLOOKUP(AF61,'【記載例】（ユニット型）シフト記号表'!$C$5:$Y$46,23,FALSE)) -> 14 | AG63: =IF(AG61="","",VLOOKUP(AG61,'【記載例】（ユニット型）シフト記号表'!$C$5:$Y$46,23,FALSE)) -> - | AH63: =IF(AH61="","",VLOOKUP(AH61,'【記載例】（ユニット型）シフト記号表'!$C$5:$Y$46,23,FALSE)) -> 3 | AI63: =IF(AI61="","",VLOOKUP(AI61,'【記載例】（ユニット型）シフト記号表'!$C$5:$Y$46,23,FALSE)) -> - | AJ63: =IF(AJ61="","",VLOOKUP(AJ61,'【記載例】（ユニット型）シフト記号表'!$C$5:$Y$46,23,FALSE)) -> 3 | AK63: =IF(AK61="","",VLOOKUP(AK61,'【記載例】（ユニット型）シフト記号表'!$C$5:$Y$46,23,FALSE)) -> 3 | AL63: =IF(AL61="","",VLOOKUP(AL61,'【記載例】（ユニット型）シフト記号表'!$C$5:$Y$46,23,FALSE)) -> - | AM63: =IF(AM61="","",VLOOKUP(AM61,'【記載例】（ユニット型）シフト記号表'!$C$5:$Y$46,23,FALSE)) -> - | AN63: =IF(AN61="","",VLOOKUP(AN61,'【記載例】（ユニット型）シフト記号表'!$C$5:$Y$46,23,FALSE)) -> 14 | AO63: =IF(AO61="","",VLOOKUP(AO61,'【記載例】（ユニット型）シフト記号表'!$C$5:$Y$46,23,FALSE)) -> - | AP63: =IF(AP61="","",VLOOKUP(AP61,'【記載例】（ユニット型）シフト記号表'!$C$5:$Y$46,23,FALSE)) -> 3 | AQ63: =IF(AQ61="","",VLOOKUP(AQ61,'【記載例】（ユニット型）シフト記号表'!$C$5:$Y$46,23,FALSE)) -> 3 | AR63: =IF(AR61="","",VLOOKUP(AR61,'【記載例】（ユニット型）シフト記号表'!$C$5:$Y$46,23,FALSE)) -> 3 | AS63: =IF(AS61="","",VLOOKUP(AS61,'【記載例】（ユニット型）シフト記号表'!$C$5:$Y$46,23,FALSE)) -> 2 | AT63: =IF(AT61="","",VLOOKUP(AT61,'【記載例】（ユニット型）シフト記号表'!$C$5:$Y$46,23,FALSE)) -> 2 | AU63: =IF(AU61="","",VLOOKUP(AU61,'【記載例】（ユニット型）シフト記号表'!$C$5:$Y$46,23,FALSE)) -> - | AV63: =IF(AV61="","",VLOOKUP(AV61,'【記載例】（ユニット型）シフト記号表'!$C$5:$Y$46,23,FALSE)) -> 14 | AW63: =IF(AW61="","",VLOOKUP(AW61,'【記載例】（ユニット型）シフト記号表'!$C$5:$Y$46,23,FALSE)) -> - | AX63: =IF(AX61="","",VLOOKUP(AX61,'【記載例】（ユニット型）シフト記号表'!$C$5:$Y$46,23,FALSE)) -> 2 | AY63: =IF(AY61="","",VLOOKUP(AY61,'【記載例】（ユニット型）シフト記号表'!$C$5:$Y$46,23,FALSE)) -> 3 | AZ63: =IF(AZ61="","",VLOOKUP(AZ61,'【記載例】（ユニット型）シフト記号表'!$C$5:$Y$46,23,FALSE)) -> - | BA63: =IF(BA61="","",VLOOKUP(BA61,'【記載例】（ユニット型）シフト記号表'!$C$5:$Y$46,23,FALSE)) -> - | BB63: =IF(BB61="","",VLOOKUP(BB61,'【記載例】（ユニット型）シフト記号表'!$C$5:$Y$46,23,FALSE)) -> 2 | BC63: =IF(BC61="","",VLOOKUP(BC61,'【記載例】（ユニット型）シフト記号表'!$C$5:$Y$46,23,FALSE)) ->  | BD63: =IF(BD61="","",VLOOKUP(BD61,'【記載例】（ユニット型）シフト記号表'!$C$5:$Y$46,23,FALSE)) ->  | BE63: =IF(BE61="","",VLOOKUP(BE61,'【記載例】（ユニット型）シフト記号表'!$C$5:$Y$46,23,FALSE)) ->  | BF63: =IF($BI$3="計画",SUM(AA63:BB63),IF($BI$3="実績",SUM(AA63:BE63),"")) -> 79 | BH63: =IF($BI$3="計画",BF63/4,IF($BI$3="実績",(BF63/($BI$7/7)),"")) -> 19.75
D64: ユニット２ | S64: ○○ P子 | V64: シフト記号 | AA64: a | AB64: 休 | AC64: a | AD64: 休 | AE64: d | AF64: 休 | AG64: o | AH64: 休 | AI64: d | AJ64: d | AK64: a | AL64: a | AM64: 休 | AN64: d | AO64: o | AP64: 休 | AQ64: a | AR64: 休 | AS64: d | AT64: d | AU64: 休 | AV64: 休 | AW64: o | AX64: 休 | AY64: a | AZ64: d | BA64: d | BB64: 休
B65: =B62+1 -> 16 | G65: 介護職員 | M65: A | O65: ー | V65: 日中の勤務時間数 | AA65: =IF(AA64="","",VLOOKUP(AA64,'【記載例】（ユニット型）シフト記号表'!$C$5:$W$46,21,FALSE)) -> 6 | AB65: =IF(AB64="","",VLOOKUP(AB64,'【記載例】（ユニット型）シフト記号表'!$C$5:$W$46,21,FALSE)) -> - | AC65: =IF(AC64="","",VLOOKUP(AC64,'【記載例】（ユニット型）シフト記号表'!$C$5:$W$46,21,FALSE)) -> 6 | AD65: =IF(AD64="","",VLOOKUP(AD64,'【記載例】（ユニット型）シフト記号表'!$C$5:$W$46,21,FALSE)) -> - | AE65: =IF(AE64="","",VLOOKUP(AE64,'【記載例】（ユニット型）シフト記号表'!$C$5:$W$46,21,FALSE)) -> 5 | AF65: =IF(AF64="","",VLOOKUP(AF64,'【記載例】（ユニット型）シフト記号表'!$C$5:$W$46,21,FALSE)) -> - | AG65: =IF(AG64="","",VLOOKUP(AG64,'【記載例】（ユニット型）シフト記号表'!$C$5:$W$46,21,FALSE)) -> 2 | AH65: =IF(AH64="","",VLOOKUP(AH64,'【記載例】（ユニット型）シフト記号表'!$C$5:$W$46,21,FALSE)) -> - | AI65: =IF(AI64="","",VLOOKUP(AI64,'【記載例】（ユニット型）シフト記号表'!$C$5:$W$46,21,FALSE)) -> 5 | AJ65: =IF(AJ64="","",VLOOKUP(AJ64,'【記載例】（ユニット型）シフト記号表'!$C$5:$W$46,21,FALSE)) -> 5 | AK65: =IF(AK64="","",VLOOKUP(AK64,'【記載例】（ユニット型）シフト記号表'!$C$5:$W$46,21,FALSE)) -> 6 | AL65: =IF(AL64="","",VLOOKUP(AL64,'【記載例】（ユニット型）シフト記号表'!$C$5:$W$46,21,FALSE)) -> 6 | AM65: =IF(AM64="","",VLOOKUP(AM64,'【記載例】（ユニット型）シフト記号表'!$C$5:$W$46,21,FALSE)) -> - | AN65: =IF(AN64="","",VLOOKUP(AN64,'【記載例】（ユニット型）シフト記号表'!$C$5:$W$46,21,FALSE)) -> 5 | AO65: =IF(AO64="","",VLOOKUP(AO64,'【記載例】（ユニット型）シフト記号表'!$C$5:$W$46,21,FALSE)) -> 2 | AP65: =IF(AP64="","",VLOOKUP(AP64,'【記載例】（ユニット型）シフト記号表'!$C$5:$W$46,21,FALSE)) -> - | AQ65: =IF(AQ64="","",VLOOKUP(AQ64,'【記載例】（ユニット型）シフト記号表'!$C$5:$W$46,21,FALSE)) -> 6 | AR65: =IF(AR64="","",VLOOKUP(AR64,'【記載例】（ユニット型）シフト記号表'!$C$5:$W$46,21,FALSE)) -> - | AS65: =IF(AS64="","",VLOOKUP(AS64,'【記載例】（ユニット型）シフト記号表'!$C$5:$W$46,21,FALSE)) -> 5 | AT65: =IF(AT64="","",VLOOKUP(AT64,'【記載例】（ユニット型）シフト記号表'!$C$5:$W$46,21,FALSE)) -> 5 | AU65: =IF(AU64="","",VLOOKUP(AU64,'【記載例】（ユニット型）シフト記号表'!$C$5:$W$46,21,FALSE)) -> - | AV65: =IF(AV64="","",VLOOKUP(AV64,'【記載例】（ユニット型）シフト記号表'!$C$5:$W$46,21,FALSE)) -> - | AW65: =IF(AW64="","",VLOOKUP(AW64,'【記載例】（ユニット型）シフト記号表'!$C$5:$W$46,21,FALSE)) -> 2 | AX65: =IF(AX64="","",VLOOKUP(AX64,'【記載例】（ユニット型）シフト記号表'!$C$5:$W$46,21,FALSE)) -> - | AY65: =IF(AY64="","",VLOOKUP(AY64,'【記載例】（ユニット型）シフト記号表'!$C$5:$W$46,21,FALSE)) -> 6 | AZ65: =IF(AZ64="","",VLOOKUP(AZ64,'【記載例】（ユニット型）シフト記号表'!$C$5:$W$46,21,FALSE)) -> 5 | BA65: =IF(BA64="","",VLOOKUP(BA64,'【記載例】（ユニット型）シフト記号表'!$C$5:$W$46,21,FALSE)) -> 5 | BB65: =IF(BB64="","",VLOOKUP(BB64,'【記載例】（ユニット型）シフト記号表'!$C$5:$W$46,21,FALSE)) -> - | BC65: =IF(BC64="","",VLOOKUP(BC64,'【記載例】（ユニット型）シフト記号表'!$C$5:$W$46,21,FALSE)) ->  | BD65: =IF(BD64="","",VLOOKUP(BD64,'【記載例】（ユニット型）シフト記号表'!$C$5:$W$46,21,FALSE)) ->  | BE65: =IF(BE64="","",VLOOKUP(BE64,'【記載例】（ユニット型）シフト記号表'!$C$5:$W$46,21,FALSE)) ->  | BF65: =IF($BI$3="計画",SUM(AA65:BB65),IF($BI$3="実績",SUM(AA65:BE65),"")) -> 82 | BH65: =IF($BI$3="計画",BF65/4,IF($BI$3="実績",(BF65/($BI$7/7)),"")) -> 20.5
I66: =G65 -> 介護職員 | K66: =M65 -> A | V66: 夜勤時間帯の勤務時間数 | AA66: =IF(AA64="","",VLOOKUP(AA64,'【記載例】（ユニット型）シフト記号表'!$C$5:$Y$46,23,FALSE)) -> 2 | AB66: =IF(AB64="","",VLOOKUP(AB64,'【記載例】（ユニット型）シフト記号表'!$C$5:$Y$46,23,FALSE)) -> - | AC66: =IF(AC64="","",VLOOKUP(AC64,'【記載例】（ユニット型）シフト記号表'!$C$5:$Y$46,23,FALSE)) -> 2 | AD66: =IF(AD64="","",VLOOKUP(AD64,'【記載例】（ユニット型）シフト記号表'!$C$5:$Y$46,23,FALSE)) -> - | AE66: =IF(AE64="","",VLOOKUP(AE64,'【記載例】（ユニット型）シフト記号表'!$C$5:$Y$46,23,FALSE)) -> 3 | AF66: =IF(AF64="","",VLOOKUP(AF64,'【記載例】（ユニット型）シフト記号表'!$C$5:$Y$46,23,FALSE)) -> - | AG66: =IF(AG64="","",VLOOKUP(AG64,'【記載例】（ユニット型）シフト記号表'!$C$5:$Y$46,23,FALSE)) -> 14 | AH66: =IF(AH64="","",VLOOKUP(AH64,'【記載例】（ユニット型）シフト記号表'!$C$5:$Y$46,23,FALSE)) -> - | AI66: =IF(AI64="","",VLOOKUP(AI64,'【記載例】（ユニット型）シフト記号表'!$C$5:$Y$46,23,FALSE)) -> 3 | AJ66: =IF(AJ64="","",VLOOKUP(AJ64,'【記載例】（ユニット型）シフト記号表'!$C$5:$Y$46,23,FALSE)) -> 3 | AK66: =IF(AK64="","",VLOOKUP(AK64,'【記載例】（ユニット型）シフト記号表'!$C$5:$Y$46,23,FALSE)) -> 2 | AL66: =IF(AL64="","",VLOOKUP(AL64,'【記載例】（ユニット型）シフト記号表'!$C$5:$Y$46,23,FALSE)) -> 2 | AM66: =IF(AM64="","",VLOOKUP(AM64,'【記載例】（ユニット型）シフト記号表'!$C$5:$Y$46,23,FALSE)) -> - | AN66: =IF(AN64="","",VLOOKUP(AN64,'【記載例】（ユニット型）シフト記号表'!$C$5:$Y$46,23,FALSE)) -> 3 | AO66: =IF(AO64="","",VLOOKUP(AO64,'【記載例】（ユニット型）シフト記号表'!$C$5:$Y$46,23,FALSE)) -> 14 | AP66: =IF(AP64="","",VLOOKUP(AP64,'【記載例】（ユニット型）シフト記号表'!$C$5:$Y$46,23,FALSE)) -> - | AQ66: =IF(AQ64="","",VLOOKUP(AQ64,'【記載例】（ユニット型）シフト記号表'!$C$5:$Y$46,23,FALSE)) -> 2 | AR66: =IF(AR64="","",VLOOKUP(AR64,'【記載例】（ユニット型）シフト記号表'!$C$5:$Y$46,23,FALSE)) -> - | AS66: =IF(AS64="","",VLOOKUP(AS64,'【記載例】（ユニット型）シフト記号表'!$C$5:$Y$46,23,FALSE)) -> 3 | AT66: =IF(AT64="","",VLOOKUP(AT64,'【記載例】（ユニット型）シフト記号表'!$C$5:$Y$46,23,FALSE)) -> 3 | AU66: =IF(AU64="","",VLOOKUP(AU64,'【記載例】（ユニット型）シフト記号表'!$C$5:$Y$46,23,FALSE)) -> - | AV66: =IF(AV64="","",VLOOKUP(AV64,'【記載例】（ユニット型）シフト記号表'!$C$5:$Y$46,23,FALSE)) -> - | AW66: =IF(AW64="","",VLOOKUP(AW64,'【記載例】（ユニット型）シフト記号表'!$C$5:$Y$46,23,FALSE)) -> 14 | AX66: =IF(AX64="","",VLOOKUP(AX64,'【記載例】（ユニット型）シフト記号表'!$C$5:$Y$46,23,FALSE)) -> - | AY66: =IF(AY64="","",VLOOKUP(AY64,'【記載例】（ユニット型）シフト記号表'!$C$5:$Y$46,23,FALSE)) -> 2 | AZ66: =IF(AZ64="","",VLOOKUP(AZ64,'【記載例】（ユニット型）シフト記号表'!$C$5:$Y$46,23,FALSE)) -> 3 | BA66: =IF(BA64="","",VLOOKUP(BA64,'【記載例】（ユニット型）シフト記号表'!$C$5:$Y$46,23,FALSE)) -> 3 | BB66: =IF(BB64="","",VLOOKUP(BB64,'【記載例】（ユニット型）シフト記号表'!$C$5:$Y$46,23,FALSE)) -> - | BC66: =IF(BC64="","",VLOOKUP(BC64,'【記載例】（ユニット型）シフト記号表'!$C$5:$Y$46,23,FALSE)) ->  | BD66: =IF(BD64="","",VLOOKUP(BD64,'【記載例】（ユニット型）シフト記号表'!$C$5:$Y$46,23,FALSE)) ->  | BE66: =IF(BE64="","",VLOOKUP(BE64,'【記載例】（ユニット型）シフト記号表'!$C$5:$Y$46,23,FALSE)) ->  | BF66: =IF($BI$3="計画",SUM(AA66:BB66),IF($BI$3="実績",SUM(AA66:BE66),"")) -> 78 | BH66: =IF($BI$3="計画",BF66/4,IF($BI$3="実績",(BF66/($BI$7/7)),"")) -> 19.5
D67: ユニット２ | S67: ○○ R次郎 | V67: シフト記号 | AA67: 休 | AB67: d | AC67: d | AD67: a | AE67: a | AF67: a | AG67: 休 | AH67: o | AI67: 休 | AJ67: a | AK67: 休 | AL67: d | AM67: d | AN67: 休 | AO67: 休 | AP67: o | AQ67: 休 | AR67: a | AS67: 休 | AT67: d | AU67: d | AV67: d | AW67: 休 | AX67: o | AY67: 休 | AZ67: a | BA67: 休 | BB67: d
B68: =B65+1 -> 17 | G68: 介護職員 | M68: A | O68: ー | V68: 日中の勤務時間数 | AA68: =IF(AA67="","",VLOOKUP(AA67,'【記載例】（ユニット型）シフト記号表'!$C$5:$W$46,21,FALSE)) -> - | AB68: =IF(AB67="","",VLOOKUP(AB67,'【記載例】（ユニット型）シフト記号表'!$C$5:$W$46,21,FALSE)) -> 5 | AC68: =IF(AC67="","",VLOOKUP(AC67,'【記載例】（ユニット型）シフト記号表'!$C$5:$W$46,21,FALSE)) -> 5 | AD68: =IF(AD67="","",VLOOKUP(AD67,'【記載例】（ユニット型）シフト記号表'!$C$5:$W$46,21,FALSE)) -> 6 | AE68: =IF(AE67="","",VLOOKUP(AE67,'【記載例】（ユニット型）シフト記号表'!$C$5:$W$46,21,FALSE)) -> 6 | AF68: =IF(AF67="","",VLOOKUP(AF67,'【記載例】（ユニット型）シフト記号表'!$C$5:$W$46,21,FALSE)) -> 6 | AG68: =IF(AG67="","",VLOOKUP(AG67,'【記載例】（ユニット型）シフト記号表'!$C$5:$W$46,21,FALSE)) -> - | AH68: =IF(AH67="","",VLOOKUP(AH67,'【記載例】（ユニット型）シフト記号表'!$C$5:$W$46,21,FALSE)) -> 2 | AI68: =IF(AI67="","",VLOOKUP(AI67,'【記載例】（ユニット型）シフト記号表'!$C$5:$W$46,21,FALSE)) -> - | AJ68: =IF(AJ67="","",VLOOKUP(AJ67,'【記載例】（ユニット型）シフト記号表'!$C$5:$W$46,21,FALSE)) -> 6 | AK68: =IF(AK67="","",VLOOKUP(AK67,'【記載例】（ユニット型）シフト記号表'!$C$5:$W$46,21,FALSE)) -> - | AL68: =IF(AL67="","",VLOOKUP(AL67,'【記載例】（ユニット型）シフト記号表'!$C$5:$W$46,21,FALSE)) -> 5 | AM68: =IF(AM67="","",VLOOKUP(AM67,'【記載例】（ユニット型）シフト記号表'!$C$5:$W$46,21,FALSE)) -> 5 | AN68: =IF(AN67="","",VLOOKUP(AN67,'【記載例】（ユニット型）シフト記号表'!$C$5:$W$46,21,FALSE)) -> - | AO68: =IF(AO67="","",VLOOKUP(AO67,'【記載例】（ユニット型）シフト記号表'!$C$5:$W$46,21,FALSE)) -> - | AP68: =IF(AP67="","",VLOOKUP(AP67,'【記載例】（ユニット型）シフト記号表'!$C$5:$W$46,21,FALSE)) -> 2 | AQ68: =IF(AQ67="","",VLOOKUP(AQ67,'【記載例】（ユニット型）シフト記号表'!$C$5:$W$46,21,FALSE)) -> - | AR68: =IF(AR67="","",VLOOKUP(AR67,'【記載例】（ユニット型）シフト記号表'!$C$5:$W$46,21,FALSE)) -> 6 | AS68: =IF(AS67="","",VLOOKUP(AS67,'【記載例】（ユニット型）シフト記号表'!$C$5:$W$46,21,FALSE)) -> - | AT68: =IF(AT67="","",VLOOKUP(AT67,'【記載例】（ユニット型）シフト記号表'!$C$5:$W$46,21,FALSE)) -> 5 | AU68: =IF(AU67="","",VLOOKUP(AU67,'【記載例】（ユニット型）シフト記号表'!$C$5:$W$46,21,FALSE)) -> 5 | AV68: =IF(AV67="","",VLOOKUP(AV67,'【記載例】（ユニット型）シフト記号表'!$C$5:$W$46,21,FALSE)) -> 5 | AW68: =IF(AW67="","",VLOOKUP(AW67,'【記載例】（ユニット型）シフト記号表'!$C$5:$W$46,21,FALSE)) -> - | AX68: =IF(AX67="","",VLOOKUP(AX67,'【記載例】（ユニット型）シフト記号表'!$C$5:$W$46,21,FALSE)) -> 2 | AY68: =IF(AY67="","",VLOOKUP(AY67,'【記載例】（ユニット型）シフト記号表'!$C$5:$W$46,21,FALSE)) -> - | AZ68: =IF(AZ67="","",VLOOKUP(AZ67,'【記載例】（ユニット型）シフト記号表'!$C$5:$W$46,21,FALSE)) -> 6 | BA68: =IF(BA67="","",VLOOKUP(BA67,'【記載例】（ユニット型）シフト記号表'!$C$5:$W$46,21,FALSE)) -> - | BB68: =IF(BB67="","",VLOOKUP(BB67,'【記載例】（ユニット型）シフト記号表'!$C$5:$W$46,21,FALSE)) -> 5 | BC68: =IF(BC67="","",VLOOKUP(BC67,'【記載例】（ユニット型）シフト記号表'!$C$5:$W$46,21,FALSE)) ->  | BD68: =IF(BD67="","",VLOOKUP(BD67,'【記載例】（ユニット型）シフト記号表'!$C$5:$W$46,21,FALSE)) ->  | BE68: =IF(BE67="","",VLOOKUP(BE67,'【記載例】（ユニット型）シフト記号表'!$C$5:$W$46,21,FALSE)) ->  | BF68: =IF($BI$3="計画",SUM(AA68:BB68),IF($BI$3="実績",SUM(AA68:BE68),"")) -> 82 | BH68: =IF($BI$3="計画",BF68/4,IF($BI$3="実績",(BF68/($BI$7/7)),"")) -> 20.5
I69: =G68 -> 介護職員 | K69: =M68 -> A | V69: 夜勤時間帯の勤務時間数 | AA69: =IF(AA67="","",VLOOKUP(AA67,'【記載例】（ユニット型）シフト記号表'!$C$5:$Y$46,23,FALSE)) -> - | AB69: =IF(AB67="","",VLOOKUP(AB67,'【記載例】（ユニット型）シフト記号表'!$C$5:$Y$46,23,FALSE)) -> 3 | AC69: =IF(AC67="","",VLOOKUP(AC67,'【記載例】（ユニット型）シフト記号表'!$C$5:$Y$46,23,FALSE)) -> 3 | AD69: =IF(AD67="","",VLOOKUP(AD67,'【記載例】（ユニット型）シフト記号表'!$C$5:$Y$46,23,FALSE)) -> 2 | AE69: =IF(AE67="","",VLOOKUP(AE67,'【記載例】（ユニット型）シフト記号表'!$C$5:$Y$46,23,FALSE)) -> 2 | AF69: =IF(AF67="","",VLOOKUP(AF67,'【記載例】（ユニット型）シフト記号表'!$C$5:$Y$46,23,FALSE)) -> 2 | AG69: =IF(AG67="","",VLOOKUP(AG67,'【記載例】（ユニット型）シフト記号表'!$C$5:$Y$46,23,FALSE)) -> - | AH69: =IF(AH67="","",VLOOKUP(AH67,'【記載例】（ユニット型）シフト記号表'!$C$5:$Y$46,23,FALSE)) -> 14 | AI69: =IF(AI67="","",VLOOKUP(AI67,'【記載例】（ユニット型）シフト記号表'!$C$5:$Y$46,23,FALSE)) -> - | AJ69: =IF(AJ67="","",VLOOKUP(AJ67,'【記載例】（ユニット型）シフト記号表'!$C$5:$Y$46,23,FALSE)) -> 2 | AK69: =IF(AK67="","",VLOOKUP(AK67,'【記載例】（ユニット型）シフト記号表'!$C$5:$Y$46,23,FALSE)) -> - | AL69: =IF(AL67="","",VLOOKUP(AL67,'【記載例】（ユニット型）シフト記号表'!$C$5:$Y$46,23,FALSE)) -> 3 | AM69: =IF(AM67="","",VLOOKUP(AM67,'【記載例】（ユニット型）シフト記号表'!$C$5:$Y$46,23,FALSE)) -> 3 | AN69: =IF(AN67="","",VLOOKUP(AN67,'【記載例】（ユニット型）シフト記号表'!$C$5:$Y$46,23,FALSE)) -> - | AO69: =IF(AO67="","",VLOOKUP(AO67,'【記載例】（ユニット型）シフト記号表'!$C$5:$Y$46,23,FALSE)) -> - | AP69: =IF(AP67="","",VLOOKUP(AP67,'【記載例】（ユニット型）シフト記号表'!$C$5:$Y$46,23,FALSE)) -> 14 | AQ69: =IF(AQ67="","",VLOOKUP(AQ67,'【記載例】（ユニット型）シフト記号表'!$C$5:$Y$46,23,FALSE)) -> - | AR69: =IF(AR67="","",VLOOKUP(AR67,'【記載例】（ユニット型）シフト記号表'!$C$5:$Y$46,23,FALSE)) -> 2 | AS69: =IF(AS67="","",VLOOKUP(AS67,'【記載例】（ユニット型）シフト記号表'!$C$5:$Y$46,23,FALSE)) -> - | AT69: =IF(AT67="","",VLOOKUP(AT67,'【記載例】（ユニット型）シフト記号表'!$C$5:$Y$46,23,FALSE)) -> 3 | AU69: =IF(AU67="","",VLOOKUP(AU67,'【記載例】（ユニット型）シフト記号表'!$C$5:$Y$46,23,FALSE)) -> 3 | AV69: =IF(AV67="","",VLOOKUP(AV67,'【記載例】（ユニット型）シフト記号表'!$C$5:$Y$46,23,FALSE)) -> 3 | AW69: =IF(AW67="","",VLOOKUP(AW67,'【記載例】（ユニット型）シフト記号表'!$C$5:$Y$46,23,FALSE)) -> - | AX69: =IF(AX67="","",VLOOKUP(AX67,'【記載例】（ユニット型）シフト記号表'!$C$5:$Y$46,23,FALSE)) -> 14 | AY69: =IF(AY67="","",VLOOKUP(AY67,'【記載例】（ユニット型）シフト記号表'!$C$5:$Y$46,23,FALSE)) -> - | AZ69: =IF(AZ67="","",VLOOKUP(AZ67,'【記載例】（ユニット型）シフト記号表'!$C$5:$Y$46,23,FALSE)) -> 2 | BA69: =IF(BA67="","",VLOOKUP(BA67,'【記載例】（ユニット型）シフト記号表'!$C$5:$Y$46,23,FALSE)) -> - | BB69: =IF(BB67="","",VLOOKUP(BB67,'【記載例】（ユニット型）シフト記号表'!$C$5:$Y$46,23,FALSE)) -> 3 | BC69: =IF(BC67="","",VLOOKUP(BC67,'【記載例】（ユニット型）シフト記号表'!$C$5:$Y$46,23,FALSE)) ->  | BD69: =IF(BD67="","",VLOOKUP(BD67,'【記載例】（ユニット型）シフト記号表'!$C$5:$Y$46,23,FALSE)) ->  | BE69: =IF(BE67="","",VLOOKUP(BE67,'【記載例】（ユニット型）シフト記号表'!$C$5:$Y$46,23,FALSE)) ->  | BF69: =IF($BI$3="計画",SUM(AA69:BB69),IF($BI$3="実績",SUM(AA69:BE69),"")) -> 78 | BH69: =IF($BI$3="計画",BF69/4,IF($BI$3="実績",(BF69/($BI$7/7)),"")) -> 19.5
D70: ユニット２ | S70: ○○ S子 | V70: シフト記号 | AA70: d | AB70: 休 | AC70: 休 | AD70: d | AE70: 休 | AF70: d | AG70: d | AH70: 休 | AI70: d | AJ70: 休 | AK70: 休 | AL70: d | AM70: a | AN70: a | AO70: d | AP70: 休 | AQ70: d | AR70: 休 | AS70: d | AT70: 休 | AU70: a | AV70: a | AW70: d | AX70: 休 | AY70: d | AZ70: 休 | BA70: a | BB70: 休
B71: =B68+1 -> 18 | G71: 介護職員 | M71: C | O71: ー | V71: 日中の勤務時間数 | AA71: =IF(AA70="","",VLOOKUP(AA70,'【記載例】（ユニット型）シフト記号表'!$C$5:$W$46,21,FALSE)) -> 5 | AB71: =IF(AB70="","",VLOOKUP(AB70,'【記載例】（ユニット型）シフト記号表'!$C$5:$W$46,21,FALSE)) -> - | AC71: =IF(AC70="","",VLOOKUP(AC70,'【記載例】（ユニット型）シフト記号表'!$C$5:$W$46,21,FALSE)) -> - | AD71: =IF(AD70="","",VLOOKUP(AD70,'【記載例】（ユニット型）シフト記号表'!$C$5:$W$46,21,FALSE)) -> 5 | AE71: =IF(AE70="","",VLOOKUP(AE70,'【記載例】（ユニット型）シフト記号表'!$C$5:$W$46,21,FALSE)) -> - | AF71: =IF(AF70="","",VLOOKUP(AF70,'【記載例】（ユニット型）シフト記号表'!$C$5:$W$46,21,FALSE)) -> 5 | AG71: =IF(AG70="","",VLOOKUP(AG70,'【記載例】（ユニット型）シフト記号表'!$C$5:$W$46,21,FALSE)) -> 5 | AH71: =IF(AH70="","",VLOOKUP(AH70,'【記載例】（ユニット型）シフト記号表'!$C$5:$W$46,21,FALSE)) -> - | AI71: =IF(AI70="","",VLOOKUP(AI70,'【記載例】（ユニット型）シフト記号表'!$C$5:$W$46,21,FALSE)) -> 5 | AJ71: =IF(AJ70="","",VLOOKUP(AJ70,'【記載例】（ユニット型）シフト記号表'!$C$5:$W$46,21,FALSE)) -> - | AK71: =IF(AK70="","",VLOOKUP(AK70,'【記載例】（ユニット型）シフト記号表'!$C$5:$W$46,21,FALSE)) -> - | AL71: =IF(AL70="","",VLOOKUP(AL70,'【記載例】（ユニット型）シフト記号表'!$C$5:$W$46,21,FALSE)) -> 5 | AM71: =IF(AM70="","",VLOOKUP(AM70,'【記載例】（ユニット型）シフト記号表'!$C$5:$W$46,21,FALSE)) -> 6 | AN71: =IF(AN70="","",VLOOKUP(AN70,'【記載例】（ユニット型）シフト記号表'!$C$5:$W$46,21,FALSE)) -> 6 | AO71: =IF(AO70="","",VLOOKUP(AO70,'【記載例】（ユニット型）シフト記号表'!$C$5:$W$46,21,FALSE)) -> 5 | AP71: =IF(AP70="","",VLOOKUP(AP70,'【記載例】（ユニット型）シフト記号表'!$C$5:$W$46,21,FALSE)) -> - | AQ71: =IF(AQ70="","",VLOOKUP(AQ70,'【記載例】（ユニット型）シフト記号表'!$C$5:$W$46,21,FALSE)) -> 5 | AR71: =IF(AR70="","",VLOOKUP(AR70,'【記載例】（ユニット型）シフト記号表'!$C$5:$W$46,21,FALSE)) -> - | AS71: =IF(AS70="","",VLOOKUP(AS70,'【記載例】（ユニット型）シフト記号表'!$C$5:$W$46,21,FALSE)) -> 5 | AT71: =IF(AT70="","",VLOOKUP(AT70,'【記載例】（ユニット型）シフト記号表'!$C$5:$W$46,21,FALSE)) -> - | AU71: =IF(AU70="","",VLOOKUP(AU70,'【記載例】（ユニット型）シフト記号表'!$C$5:$W$46,21,FALSE)) -> 6 | AV71: =IF(AV70="","",VLOOKUP(AV70,'【記載例】（ユニット型）シフト記号表'!$C$5:$W$46,21,FALSE)) -> 6 | AW71: =IF(AW70="","",VLOOKUP(AW70,'【記載例】（ユニット型）シフト記号表'!$C$5:$W$46,21,FALSE)) -> 5 | AX71: =IF(AX70="","",VLOOKUP(AX70,'【記載例】（ユニット型）シフト記号表'!$C$5:$W$46,21,FALSE)) -> - | AY71: =IF(AY70="","",VLOOKUP(AY70,'【記載例】（ユニット型）シフト記号表'!$C$5:$W$46,21,FALSE)) -> 5 | AZ71: =IF(AZ70="","",VLOOKUP(AZ70,'【記載例】（ユニット型）シフト記号表'!$C$5:$W$46,21,FALSE)) -> - | BA71: =IF(BA70="","",VLOOKUP(BA70,'【記載例】（ユニット型）シフト記号表'!$C$5:$W$46,21,FALSE)) -> 6 | BB71: =IF(BB70="","",VLOOKUP(BB70,'【記載例】（ユニット型）シフト記号表'!$C$5:$W$46,21,FALSE)) -> - | BC71: =IF(BC70="","",VLOOKUP(BC70,'【記載例】（ユニット型）シフト記号表'!$C$5:$W$46,21,FALSE)) ->  | BD71: =IF(BD70="","",VLOOKUP(BD70,'【記載例】（ユニット型）シフト記号表'!$C$5:$W$46,21,FALSE)) ->  | BE71: =IF(BE70="","",VLOOKUP(BE70,'【記載例】（ユニット型）シフト記号表'!$C$5:$W$46,21,FALSE)) ->  | BF71: =IF($BI$3="計画",SUM(AA71:BB71),IF($BI$3="実績",SUM(AA71:BE71),"")) -> 85 | BH71: =IF($BI$3="計画",BF71/4,IF($BI$3="実績",(BF71/($BI$7/7)),"")) -> 21.25
I72: =G71 -> 介護職員 | K72: =M71 -> C | V72: 夜勤時間帯の勤務時間数 | AA72: =IF(AA70="","",VLOOKUP(AA70,'【記載例】（ユニット型）シフト記号表'!$C$5:$Y$46,23,FALSE)) -> 3 | AB72: =IF(AB70="","",VLOOKUP(AB70,'【記載例】（ユニット型）シフト記号表'!$C$5:$Y$46,23,FALSE)) -> - | AC72: =IF(AC70="","",VLOOKUP(AC70,'【記載例】（ユニット型）シフト記号表'!$C$5:$Y$46,23,FALSE)) -> - | AD72: =IF(AD70="","",VLOOKUP(AD70,'【記載例】（ユニット型）シフト記号表'!$C$5:$Y$46,23,FALSE)) -> 3 | AE72: =IF(AE70="","",VLOOKUP(AE70,'【記載例】（ユニット型）シフト記号表'!$C$5:$Y$46,23,FALSE)) -> - | AF72: =IF(AF70="","",VLOOKUP(AF70,'【記載例】（ユニット型）シフト記号表'!$C$5:$Y$46,23,FALSE)) -> 3 | AG72: =IF(AG70="","",VLOOKUP(AG70,'【記載例】（ユニット型）シフト記号表'!$C$5:$Y$46,23,FALSE)) -> 3 | AH72: =IF(AH70="","",VLOOKUP(AH70,'【記載例】（ユニット型）シフト記号表'!$C$5:$Y$46,23,FALSE)) -> - | AI72: =IF(AI70="","",VLOOKUP(AI70,'【記載例】（ユニット型）シフト記号表'!$C$5:$Y$46,23,FALSE)) -> 3 | AJ72: =IF(AJ70="","",VLOOKUP(AJ70,'【記載例】（ユニット型）シフト記号表'!$C$5:$Y$46,23,FALSE)) -> - | AK72: =IF(AK70="","",VLOOKUP(AK70,'【記載例】（ユニット型）シフト記号表'!$C$5:$Y$46,23,FALSE)) -> - | AL72: =IF(AL70="","",VLOOKUP(AL70,'【記載例】（ユニット型）シフト記号表'!$C$5:$Y$46,23,FALSE)) -> 3 | AM72: =IF(AM70="","",VLOOKUP(AM70,'【記載例】（ユニット型）シフト記号表'!$C$5:$Y$46,23,FALSE)) -> 2 | AN72: =IF(AN70="","",VLOOKUP(AN70,'【記載例】（ユニット型）シフト記号表'!$C$5:$Y$46,23,FALSE)) -> 2 | AO72: =IF(AO70="","",VLOOKUP(AO70,'【記載例】（ユニット型）シフト記号表'!$C$5:$Y$46,23,FALSE)) -> 3 | AP72: =IF(AP70="","",VLOOKUP(AP70,'【記載例】（ユニット型）シフト記号表'!$C$5:$Y$46,23,FALSE)) -> - | AQ72: =IF(AQ70="","",VLOOKUP(AQ70,'【記載例】（ユニット型）シフト記号表'!$C$5:$Y$46,23,FALSE)) -> 3 | AR72: =IF(AR70="","",VLOOKUP(AR70,'【記載例】（ユニット型）シフト記号表'!$C$5:$Y$46,23,FALSE)) -> - | AS72: =IF(AS70="","",VLOOKUP(AS70,'【記載例】（ユニット型）シフト記号表'!$C$5:$Y$46,23,FALSE)) -> 3 | AT72: =IF(AT70="","",VLOOKUP(AT70,'【記載例】（ユニット型）シフト記号表'!$C$5:$Y$46,23,FALSE)) -> - | AU72: =IF(AU70="","",VLOOKUP(AU70,'【記載例】（ユニット型）シフト記号表'!$C$5:$Y$46,23,FALSE)) -> 2 | AV72: =IF(AV70="","",VLOOKUP(AV70,'【記載例】（ユニット型）シフト記号表'!$C$5:$Y$46,23,FALSE)) -> 2 | AW72: =IF(AW70="","",VLOOKUP(AW70,'【記載例】（ユニット型）シフト記号表'!$C$5:$Y$46,23,FALSE)) -> 3 | AX72: =IF(AX70="","",VLOOKUP(AX70,'【記載例】（ユニット型）シフト記号表'!$C$5:$Y$46,23,FALSE)) -> - | AY72: =IF(AY70="","",VLOOKUP(AY70,'【記載例】（ユニット型）シフト記号表'!$C$5:$Y$46,23,FALSE)) -> 3 | AZ72: =IF(AZ70="","",VLOOKUP(AZ70,'【記載例】（ユニット型）シフト記号表'!$C$5:$Y$46,23,FALSE)) -> - | BA72: =IF(BA70="","",VLOOKUP(BA70,'【記載例】（ユニット型）シフト記号表'!$C$5:$Y$46,23,FALSE)) -> 2 | BB72: =IF(BB70="","",VLOOKUP(BB70,'【記載例】（ユニット型）シフト記号表'!$C$5:$Y$46,23,FALSE)) -> - | BC72: =IF(BC70="","",VLOOKUP(BC70,'【記載例】（ユニット型）シフト記号表'!$C$5:$Y$46,23,FALSE)) ->  | BD72: =IF(BD70="","",VLOOKUP(BD70,'【記載例】（ユニット型）シフト記号表'!$C$5:$Y$46,23,FALSE)) ->  | BE72: =IF(BE70="","",VLOOKUP(BE70,'【記載例】（ユニット型）シフト記号表'!$C$5:$Y$46,23,FALSE)) ->  | BF72: =IF($BI$3="計画",SUM(AA72:BB72),IF($BI$3="実績",SUM(AA72:BE72),"")) -> 43 | BH72: =IF($BI$3="計画",BF72/4,IF($BI$3="実績",(BF72/($BI$7/7)),"")) -> 10.75
C73: ◎ | D73: ユニット３ | S73: ○○ T太 | V73: シフト記号 | AA73: o | AB73: 休 | AC73: a | AD73: a | AE73: 休 | AF73: d | AG73: 休 | AH73: 休 | AI73: o | AJ73: 休 | AK73: a | AL73: a | AM73: 休 | AN73: d | AO73: d | AP73: 休 | AQ73: o | AR73: 休 | AS73: a | AT73: a | AU73: 休 | AV73: d | AW73: 休 | AX73: 休 | AY73: o | AZ73: 休 | BA73: a | BB73: a
B74: =B71+1 -> 19 | G74: 看護職員 | M74: A | O74: 看護師 | V74: 日中の勤務時間数 | AA74: =IF(AA73="","",VLOOKUP(AA73,'【記載例】（ユニット型）シフト記号表'!$C$5:$W$46,21,FALSE)) -> 2 | AB74: =IF(AB73="","",VLOOKUP(AB73,'【記載例】（ユニット型）シフト記号表'!$C$5:$W$46,21,FALSE)) -> - | AC74: =IF(AC73="","",VLOOKUP(AC73,'【記載例】（ユニット型）シフト記号表'!$C$5:$W$46,21,FALSE)) -> 6 | AD74: =IF(AD73="","",VLOOKUP(AD73,'【記載例】（ユニット型）シフト記号表'!$C$5:$W$46,21,FALSE)) -> 6 | AE74: =IF(AE73="","",VLOOKUP(AE73,'【記載例】（ユニット型）シフト記号表'!$C$5:$W$46,21,FALSE)) -> - | AF74: =IF(AF73="","",VLOOKUP(AF73,'【記載例】（ユニット型）シフト記号表'!$C$5:$W$46,21,FALSE)) -> 5 | AG74: =IF(AG73="","",VLOOKUP(AG73,'【記載例】（ユニット型）シフト記号表'!$C$5:$W$46,21,FALSE)) -> - | AH74: =IF(AH73="","",VLOOKUP(AH73,'【記載例】（ユニット型）シフト記号表'!$C$5:$W$46,21,FALSE)) -> - | AI74: =IF(AI73="","",VLOOKUP(AI73,'【記載例】（ユニット型）シフト記号表'!$C$5:$W$46,21,FALSE)) -> 2 | AJ74: =IF(AJ73="","",VLOOKUP(AJ73,'【記載例】（ユニット型）シフト記号表'!$C$5:$W$46,21,FALSE)) -> - | AK74: =IF(AK73="","",VLOOKUP(AK73,'【記載例】（ユニット型）シフト記号表'!$C$5:$W$46,21,FALSE)) -> 6 | AL74: =IF(AL73="","",VLOOKUP(AL73,'【記載例】（ユニット型）シフト記号表'!$C$5:$W$46,21,FALSE)) -> 6 | AM74: =IF(AM73="","",VLOOKUP(AM73,'【記載例】（ユニット型）シフト記号表'!$C$5:$W$46,21,FALSE)) -> - | AN74: =IF(AN73="","",VLOOKUP(AN73,'【記載例】（ユニット型）シフト記号表'!$C$5:$W$46,21,FALSE)) -> 5 | AO74: =IF(AO73="","",VLOOKUP(AO73,'【記載例】（ユニット型）シフト記号表'!$C$5:$W$46,21,FALSE)) -> 5 | AP74: =IF(AP73="","",VLOOKUP(AP73,'【記載例】（ユニット型）シフト記号表'!$C$5:$W$46,21,FALSE)) -> - | AQ74: =IF(AQ73="","",VLOOKUP(AQ73,'【記載例】（ユニット型）シフト記号表'!$C$5:$W$46,21,FALSE)) -> 2 | AR74: =IF(AR73="","",VLOOKUP(AR73,'【記載例】（ユニット型）シフト記号表'!$C$5:$W$46,21,FALSE)) -> - | AS74: =IF(AS73="","",VLOOKUP(AS73,'【記載例】（ユニット型）シフト記号表'!$C$5:$W$46,21,FALSE)) -> 6 | AT74: =IF(AT73="","",VLOOKUP(AT73,'【記載例】（ユニット型）シフト記号表'!$C$5:$W$46,21,FALSE)) -> 6 | AU74: =IF(AU73="","",VLOOKUP(AU73,'【記載例】（ユニット型）シフト記号表'!$C$5:$W$46,21,FALSE)) -> - | AV74: =IF(AV73="","",VLOOKUP(AV73,'【記載例】（ユニット型）シフト記号表'!$C$5:$W$46,21,FALSE)) -> 5 | AW74: =IF(AW73="","",VLOOKUP(AW73,'【記載例】（ユニット型）シフト記号表'!$C$5:$W$46,21,FALSE)) -> - | AX74: =IF(AX73="","",VLOOKUP(AX73,'【記載例】（ユニット型）シフト記号表'!$C$5:$W$46,21,FALSE)) -> - | AY74: =IF(AY73="","",VLOOKUP(AY73,'【記載例】（ユニット型）シフト記号表'!$C$5:$W$46,21,FALSE)) -> 2 | AZ74: =IF(AZ73="","",VLOOKUP(AZ73,'【記載例】（ユニット型）シフト記号表'!$C$5:$W$46,21,FALSE)) -> - | BA74: =IF(BA73="","",VLOOKUP(BA73,'【記載例】（ユニット型）シフト記号表'!$C$5:$W$46,21,FALSE)) -> 6 | BB74: =IF(BB73="","",VLOOKUP(BB73,'【記載例】（ユニット型）シフト記号表'!$C$5:$W$46,21,FALSE)) -> 6 | BC74: =IF(BC73="","",VLOOKUP(BC73,'【記載例】（ユニット型）シフト記号表'!$C$5:$W$46,21,FALSE)) ->  | BD74: =IF(BD73="","",VLOOKUP(BD73,'【記載例】（ユニット型）シフト記号表'!$C$5:$W$46,21,FALSE)) ->  | BE74: =IF(BE73="","",VLOOKUP(BE73,'【記載例】（ユニット型）シフト記号表'!$C$5:$W$46,21,FALSE)) ->  | BF74: =IF($BI$3="計画",SUM(AA74:BB74),IF($BI$3="実績",SUM(AA74:BE74),"")) -> 76 | BH74: =IF($BI$3="計画",BF74/4,IF($BI$3="実績",(BF74/($BI$7/7)),"")) -> 19
I75: =G74 -> 看護職員 | K75: =M74 -> A | V75: 夜勤時間帯の勤務時間数 | AA75: =IF(AA73="","",VLOOKUP(AA73,'【記載例】（ユニット型）シフト記号表'!$C$5:$Y$46,23,FALSE)) -> 14 | AB75: =IF(AB73="","",VLOOKUP(AB73,'【記載例】（ユニット型）シフト記号表'!$C$5:$Y$46,23,FALSE)) -> - | AC75: =IF(AC73="","",VLOOKUP(AC73,'【記載例】（ユニット型）シフト記号表'!$C$5:$Y$46,23,FALSE)) -> 2 | AD75: =IF(AD73="","",VLOOKUP(AD73,'【記載例】（ユニット型）シフト記号表'!$C$5:$Y$46,23,FALSE)) -> 2 | AE75: =IF(AE73="","",VLOOKUP(AE73,'【記載例】（ユニット型）シフト記号表'!$C$5:$Y$46,23,FALSE)) -> - | AF75: =IF(AF73="","",VLOOKUP(AF73,'【記載例】（ユニット型）シフト記号表'!$C$5:$Y$46,23,FALSE)) -> 3 | AG75: =IF(AG73="","",VLOOKUP(AG73,'【記載例】（ユニット型）シフト記号表'!$C$5:$Y$46,23,FALSE)) -> - | AH75: =IF(AH73="","",VLOOKUP(AH73,'【記載例】（ユニット型）シフト記号表'!$C$5:$Y$46,23,FALSE)) -> - | AI75: =IF(AI73="","",VLOOKUP(AI73,'【記載例】（ユニット型）シフト記号表'!$C$5:$Y$46,23,FALSE)) -> 14 | AJ75: =IF(AJ73="","",VLOOKUP(AJ73,'【記載例】（ユニット型）シフト記号表'!$C$5:$Y$46,23,FALSE)) -> - | AK75: =IF(AK73="","",VLOOKUP(AK73,'【記載例】（ユニット型）シフト記号表'!$C$5:$Y$46,23,FALSE)) -> 2 | AL75: =IF(AL73="","",VLOOKUP(AL73,'【記載例】（ユニット型）シフト記号表'!$C$5:$Y$46,23,FALSE)) -> 2 | AM75: =IF(AM73="","",VLOOKUP(AM73,'【記載例】（ユニット型）シフト記号表'!$C$5:$Y$46,23,FALSE)) -> - | AN75: =IF(AN73="","",VLOOKUP(AN73,'【記載例】（ユニット型）シフト記号表'!$C$5:$Y$46,23,FALSE)) -> 3 | AO75: =IF(AO73="","",VLOOKUP(AO73,'【記載例】（ユニット型）シフト記号表'!$C$5:$Y$46,23,FALSE)) -> 3 | AP75: =IF(AP73="","",VLOOKUP(AP73,'【記載例】（ユニット型）シフト記号表'!$C$5:$Y$46,23,FALSE)) -> - | AQ75: =IF(AQ73="","",VLOOKUP(AQ73,'【記載例】（ユニット型）シフト記号表'!$C$5:$Y$46,23,FALSE)) -> 14 | AR75: =IF(AR73="","",VLOOKUP(AR73,'【記載例】（ユニット型）シフト記号表'!$C$5:$Y$46,23,FALSE)) -> - | AS75: =IF(AS73="","",VLOOKUP(AS73,'【記載例】（ユニット型）シフト記号表'!$C$5:$Y$46,23,FALSE)) -> 2 | AT75: =IF(AT73="","",VLOOKUP(AT73,'【記載例】（ユニット型）シフト記号表'!$C$5:$Y$46,23,FALSE)) -> 2 | AU75: =IF(AU73="","",VLOOKUP(AU73,'【記載例】（ユニット型）シフト記号表'!$C$5:$Y$46,23,FALSE)) -> - | AV75: =IF(AV73="","",VLOOKUP(AV73,'【記載例】（ユニット型）シフト記号表'!$C$5:$Y$46,23,FALSE)) -> 3 | AW75: =IF(AW73="","",VLOOKUP(AW73,'【記載例】（ユニット型）シフト記号表'!$C$5:$Y$46,23,FALSE)) -> - | AX75: =IF(AX73="","",VLOOKUP(AX73,'【記載例】（ユニット型）シフト記号表'!$C$5:$Y$46,23,FALSE)) -> - | AY75: =IF(AY73="","",VLOOKUP(AY73,'【記載例】（ユニット型）シフト記号表'!$C$5:$Y$46,23,FALSE)) -> 14 | AZ75: =IF(AZ73="","",VLOOKUP(AZ73,'【記載例】（ユニット型）シフト記号表'!$C$5:$Y$46,23,FALSE)) -> - | BA75: =IF(BA73="","",VLOOKUP(BA73,'【記載例】（ユニット型）シフト記号表'!$C$5:$Y$46,23,FALSE)) -> 2 | BB75: =IF(BB73="","",VLOOKUP(BB73,'【記載例】（ユニット型）シフト記号表'!$C$5:$Y$46,23,FALSE)) -> 2 | BC75: =IF(BC73="","",VLOOKUP(BC73,'【記載例】（ユニット型）シフト記号表'!$C$5:$Y$46,23,FALSE)) ->  | BD75: =IF(BD73="","",VLOOKUP(BD73,'【記載例】（ユニット型）シフト記号表'!$C$5:$Y$46,23,FALSE)) ->  | BE75: =IF(BE73="","",VLOOKUP(BE73,'【記載例】（ユニット型）シフト記号表'!$C$5:$Y$46,23,FALSE)) ->  | BF75: =IF($BI$3="計画",SUM(AA75:BB75),IF($BI$3="実績",SUM(AA75:BE75),"")) -> 84 | BH75: =IF($BI$3="計画",BF75/4,IF($BI$3="実績",(BF75/($BI$7/7)),"")) -> 21
D76: ユニット３ | S76: ○○ U子 | V76: シフト記号 | AA76: 休 | AB76: o | AC76: 休 | AD76: d | AE76: a | AF76: 休 | AG76: d | AH76: d | AI76: 休 | AJ76: o | AK76: 休 | AL76: d | AM76: a | AN76: 休 | AO76: d | AP76: a | AQ76: 休 | AR76: o | AS76: 休 | AT76: d | AU76: 休 | AV76: 休 | AW76: d | AX76: a | AY76: 休 | AZ76: o | BA76: 休 | BB76: d
B77: =B74+1 -> 20 | G77: 介護職員 | M77: A | O77: 介護福祉士 | V77: 日中の勤務時間数 | AA77: =IF(AA76="","",VLOOKUP(AA76,'【記載例】（ユニット型）シフト記号表'!$C$5:$W$46,21,FALSE)) -> - | AB77: =IF(AB76="","",VLOOKUP(AB76,'【記載例】（ユニット型）シフト記号表'!$C$5:$W$46,21,FALSE)) -> 2 | AC77: =IF(AC76="","",VLOOKUP(AC76,'【記載例】（ユニット型）シフト記号表'!$C$5:$W$46,21,FALSE)) -> - | AD77: =IF(AD76="","",VLOOKUP(AD76,'【記載例】（ユニット型）シフト記号表'!$C$5:$W$46,21,FALSE)) -> 5 | AE77: =IF(AE76="","",VLOOKUP(AE76,'【記載例】（ユニット型）シフト記号表'!$C$5:$W$46,21,FALSE)) -> 6 | AF77: =IF(AF76="","",VLOOKUP(AF76,'【記載例】（ユニット型）シフト記号表'!$C$5:$W$46,21,FALSE)) -> - | AG77: =IF(AG76="","",VLOOKUP(AG76,'【記載例】（ユニット型）シフト記号表'!$C$5:$W$46,21,FALSE)) -> 5 | AH77: =IF(AH76="","",VLOOKUP(AH76,'【記載例】（ユニット型）シフト記号表'!$C$5:$W$46,21,FALSE)) -> 5 | AI77: =IF(AI76="","",VLOOKUP(AI76,'【記載例】（ユニット型）シフト記号表'!$C$5:$W$46,21,FALSE)) -> - | AJ77: =IF(AJ76="","",VLOOKUP(AJ76,'【記載例】（ユニット型）シフト記号表'!$C$5:$W$46,21,FALSE)) -> 2 | AK77: =IF(AK76="","",VLOOKUP(AK76,'【記載例】（ユニット型）シフト記号表'!$C$5:$W$46,21,FALSE)) -> - | AL77: =IF(AL76="","",VLOOKUP(AL76,'【記載例】（ユニット型）シフト記号表'!$C$5:$W$46,21,FALSE)) -> 5 | AM77: =IF(AM76="","",VLOOKUP(AM76,'【記載例】（ユニット型）シフト記号表'!$C$5:$W$46,21,FALSE)) -> 6 | AN77: =IF(AN76="","",VLOOKUP(AN76,'【記載例】（ユニット型）シフト記号表'!$C$5:$W$46,21,FALSE)) -> - | AO77: =IF(AO76="","",VLOOKUP(AO76,'【記載例】（ユニット型）シフト記号表'!$C$5:$W$46,21,FALSE)) -> 5 | AP77: =IF(AP76="","",VLOOKUP(AP76,'【記載例】（ユニット型）シフト記号表'!$C$5:$W$46,21,FALSE)) -> 6 | AQ77: =IF(AQ76="","",VLOOKUP(AQ76,'【記載例】（ユニット型）シフト記号表'!$C$5:$W$46,21,FALSE)) -> - | AR77: =IF(AR76="","",VLOOKUP(AR76,'【記載例】（ユニット型）シフト記号表'!$C$5:$W$46,21,FALSE)) -> 2 | AS77: =IF(AS76="","",VLOOKUP(AS76,'【記載例】（ユニット型）シフト記号表'!$C$5:$W$46,21,FALSE)) -> - | AT77: =IF(AT76="","",VLOOKUP(AT76,'【記載例】（ユニット型）シフト記号表'!$C$5:$W$46,21,FALSE)) -> 5 | AU77: =IF(AU76="","",VLOOKUP(AU76,'【記載例】（ユニット型）シフト記号表'!$C$5:$W$46,21,FALSE)) -> - | AV77: =IF(AV76="","",VLOOKUP(AV76,'【記載例】（ユニット型）シフト記号表'!$C$5:$W$46,21,FALSE)) -> - | AW77: =IF(AW76="","",VLOOKUP(AW76,'【記載例】（ユニット型）シフト記号表'!$C$5:$W$46,21,FALSE)) -> 5 | AX77: =IF(AX76="","",VLOOKUP(AX76,'【記載例】（ユニット型）シフト記号表'!$C$5:$W$46,21,FALSE)) -> 6 | AY77: =IF(AY76="","",VLOOKUP(AY76,'【記載例】（ユニット型）シフト記号表'!$C$5:$W$46,21,FALSE)) -> - | AZ77: =IF(AZ76="","",VLOOKUP(AZ76,'【記載例】（ユニット型）シフト記号表'!$C$5:$W$46,21,FALSE)) -> 2 | BA77: =IF(BA76="","",VLOOKUP(BA76,'【記載例】（ユニット型）シフト記号表'!$C$5:$W$46,21,FALSE)) -> - | BB77: =IF(BB76="","",VLOOKUP(BB76,'【記載例】（ユニット型）シフト記号表'!$C$5:$W$46,21,FALSE)) -> 5 | BC77: =IF(BC76="","",VLOOKUP(BC76,'【記載例】（ユニット型）シフト記号表'!$C$5:$W$46,21,FALSE)) ->  | BD77: =IF(BD76="","",VLOOKUP(BD76,'【記載例】（ユニット型）シフト記号表'!$C$5:$W$46,21,FALSE)) ->  | BE77: =IF(BE76="","",VLOOKUP(BE76,'【記載例】（ユニット型）シフト記号表'!$C$5:$W$46,21,FALSE)) ->  | BF77: =IF($BI$3="計画",SUM(AA77:BB77),IF($BI$3="実績",SUM(AA77:BE77),"")) -> 72 | BH77: =IF($BI$3="計画",BF77/4,IF($BI$3="実績",(BF77/($BI$7/7)),"")) -> 18
I78: =G77 -> 介護職員 | K78: =M77 -> A | V78: 夜勤時間帯の勤務時間数 | AA78: =IF(AA76="","",VLOOKUP(AA76,'【記載例】（ユニット型）シフト記号表'!$C$5:$Y$46,23,FALSE)) -> - | AB78: =IF(AB76="","",VLOOKUP(AB76,'【記載例】（ユニット型）シフト記号表'!$C$5:$Y$46,23,FALSE)) -> 14 | AC78: =IF(AC76="","",VLOOKUP(AC76,'【記載例】（ユニット型）シフト記号表'!$C$5:$Y$46,23,FALSE)) -> - | AD78: =IF(AD76="","",VLOOKUP(AD76,'【記載例】（ユニット型）シフト記号表'!$C$5:$Y$46,23,FALSE)) -> 3 | AE78: =IF(AE76="","",VLOOKUP(AE76,'【記載例】（ユニット型）シフト記号表'!$C$5:$Y$46,23,FALSE)) -> 2 | AF78: =IF(AF76="","",VLOOKUP(AF76,'【記載例】（ユニット型）シフト記号表'!$C$5:$Y$46,23,FALSE)) -> - | AG78: =IF(AG76="","",VLOOKUP(AG76,'【記載例】（ユニット型）シフト記号表'!$C$5:$Y$46,23,FALSE)) -> 3 | AH78: =IF(AH76="","",VLOOKUP(AH76,'【記載例】（ユニット型）シフト記号表'!$C$5:$Y$46,23,FALSE)) -> 3 | AI78: =IF(AI76="","",VLOOKUP(AI76,'【記載例】（ユニット型）シフト記号表'!$C$5:$Y$46,23,FALSE)) -> - | AJ78: =IF(AJ76="","",VLOOKUP(AJ76,'【記載例】（ユニット型）シフト記号表'!$C$5:$Y$46,23,FALSE)) -> 14 | AK78: =IF(AK76="","",VLOOKUP(AK76,'【記載例】（ユニット型）シフト記号表'!$C$5:$Y$46,23,FALSE)) -> - | AL78: =IF(AL76="","",VLOOKUP(AL76,'【記載例】（ユニット型）シフト記号表'!$C$5:$Y$46,23,FALSE)) -> 3 | AM78: =IF(AM76="","",VLOOKUP(AM76,'【記載例】（ユニット型）シフト記号表'!$C$5:$Y$46,23,FALSE)) -> 2 | AN78: =IF(AN76="","",VLOOKUP(AN76,'【記載例】（ユニット型）シフト記号表'!$C$5:$Y$46,23,FALSE)) -> - | AO78: =IF(AO76="","",VLOOKUP(AO76,'【記載例】（ユニット型）シフト記号表'!$C$5:$Y$46,23,FALSE)) -> 3 | AP78: =IF(AP76="","",VLOOKUP(AP76,'【記載例】（ユニット型）シフト記号表'!$C$5:$Y$46,23,FALSE)) -> 2 | AQ78: =IF(AQ76="","",VLOOKUP(AQ76,'【記載例】（ユニット型）シフト記号表'!$C$5:$Y$46,23,FALSE)) -> - | AR78: =IF(AR76="","",VLOOKUP(AR76,'【記載例】（ユニット型）シフト記号表'!$C$5:$Y$46,23,FALSE)) -> 14 | AS78: =IF(AS76="","",VLOOKUP(AS76,'【記載例】（ユニット型）シフト記号表'!$C$5:$Y$46,23,FALSE)) -> - | AT78: =IF(AT76="","",VLOOKUP(AT76,'【記載例】（ユニット型）シフト記号表'!$C$5:$Y$46,23,FALSE)) -> 3 | AU78: =IF(AU76="","",VLOOKUP(AU76,'【記載例】（ユニット型）シフト記号表'!$C$5:$Y$46,23,FALSE)) -> - | AV78: =IF(AV76="","",VLOOKUP(AV76,'【記載例】（ユニット型）シフト記号表'!$C$5:$Y$46,23,FALSE)) -> - | AW78: =IF(AW76="","",VLOOKUP(AW76,'【記載例】（ユニット型）シフト記号表'!$C$5:$Y$46,23,FALSE)) -> 3 | AX78: =IF(AX76="","",VLOOKUP(AX76,'【記載例】（ユニット型）シフト記号表'!$C$5:$Y$46,23,FALSE)) -> 2 | AY78: =IF(AY76="","",VLOOKUP(AY76,'【記載例】（ユニット型）シフト記号表'!$C$5:$Y$46,23,FALSE)) -> - | AZ78: =IF(AZ76="","",VLOOKUP(AZ76,'【記載例】（ユニット型）シフト記号表'!$C$5:$Y$46,23,FALSE)) -> 14 | BA78: =IF(BA76="","",VLOOKUP(BA76,'【記載例】（ユニット型）シフト記号表'!$C$5:$Y$46,23,FALSE)) -> - | BB78: =IF(BB76="","",VLOOKUP(BB76,'【記載例】（ユニット型）シフト記号表'!$C$5:$Y$46,23,FALSE)) -> 3 | BC78: =IF(BC76="","",VLOOKUP(BC76,'【記載例】（ユニット型）シフト記号表'!$C$5:$Y$46,23,FALSE)) ->  | BD78: =IF(BD76="","",VLOOKUP(BD76,'【記載例】（ユニット型）シフト記号表'!$C$5:$Y$46,23,FALSE)) ->  | BE78: =IF(BE76="","",VLOOKUP(BE76,'【記載例】（ユニット型）シフト記号表'!$C$5:$Y$46,23,FALSE)) ->  | BF78: =IF($BI$3="計画",SUM(AA78:BB78),IF($BI$3="実績",SUM(AA78:BE78),"")) -> 88 | BH78: =IF($BI$3="計画",BF78/4,IF($BI$3="実績",(BF78/($BI$7/7)),"")) -> 22
D79: ユニット３ | S79: ○○ V男 | V79: シフト記号 | AA79: d | AB79: 休 | AC79: o | AD79: 休 | AE79: d | AF79: a | AG79: 休 | AH79: a | AI79: d | AJ79: 休 | AK79: o | AL79: 休 | AM79: d | AN79: 休 | AO79: a | AP79: d | AQ79: 休 | AR79: 休 | AS79: o | AT79: 休 | AU79: a | AV79: a | AW79: 休 | AX79: d | AY79: a | AZ79: 休 | BA79: o | BB79: 休
B80: =B77+1 -> 21 | G80: 介護職員 | M80: A | O80: ー | V80: 日中の勤務時間数 | AA80: =IF(AA79="","",VLOOKUP(AA79,'【記載例】（ユニット型）シフト記号表'!$C$5:$W$46,21,FALSE)) -> 5 | AB80: =IF(AB79="","",VLOOKUP(AB79,'【記載例】（ユニット型）シフト記号表'!$C$5:$W$46,21,FALSE)) -> - | AC80: =IF(AC79="","",VLOOKUP(AC79,'【記載例】（ユニット型）シフト記号表'!$C$5:$W$46,21,FALSE)) -> 2 | AD80: =IF(AD79="","",VLOOKUP(AD79,'【記載例】（ユニット型）シフト記号表'!$C$5:$W$46,21,FALSE)) -> - | AE80: =IF(AE79="","",VLOOKUP(AE79,'【記載例】（ユニット型）シフト記号表'!$C$5:$W$46,21,FALSE)) -> 5 | AF80: =IF(AF79="","",VLOOKUP(AF79,'【記載例】（ユニット型）シフト記号表'!$C$5:$W$46,21,FALSE)) -> 6 | AG80: =IF(AG79="","",VLOOKUP(AG79,'【記載例】（ユニット型）シフト記号表'!$C$5:$W$46,21,FALSE)) -> - | AH80: =IF(AH79="","",VLOOKUP(AH79,'【記載例】（ユニット型）シフト記号表'!$C$5:$W$46,21,FALSE)) -> 6 | AI80: =IF(AI79="","",VLOOKUP(AI79,'【記載例】（ユニット型）シフト記号表'!$C$5:$W$46,21,FALSE)) -> 5 | AJ80: =IF(AJ79="","",VLOOKUP(AJ79,'【記載例】（ユニット型）シフト記号表'!$C$5:$W$46,21,FALSE)) -> - | AK80: =IF(AK79="","",VLOOKUP(AK79,'【記載例】（ユニット型）シフト記号表'!$C$5:$W$46,21,FALSE)) -> 2 | AL80: =IF(AL79="","",VLOOKUP(AL79,'【記載例】（ユニット型）シフト記号表'!$C$5:$W$46,21,FALSE)) -> - | AM80: =IF(AM79="","",VLOOKUP(AM79,'【記載例】（ユニット型）シフト記号表'!$C$5:$W$46,21,FALSE)) -> 5 | AN80: =IF(AN79="","",VLOOKUP(AN79,'【記載例】（ユニット型）シフト記号表'!$C$5:$W$46,21,FALSE)) -> - | AO80: =IF(AO79="","",VLOOKUP(AO79,'【記載例】（ユニット型）シフト記号表'!$C$5:$W$46,21,FALSE)) -> 6 | AP80: =IF(AP79="","",VLOOKUP(AP79,'【記載例】（ユニット型）シフト記号表'!$C$5:$W$46,21,FALSE)) -> 5 | AQ80: =IF(AQ79="","",VLOOKUP(AQ79,'【記載例】（ユニット型）シフト記号表'!$C$5:$W$46,21,FALSE)) -> - | AR80: =IF(AR79="","",VLOOKUP(AR79,'【記載例】（ユニット型）シフト記号表'!$C$5:$W$46,21,FALSE)) -> - | AS80: =IF(AS79="","",VLOOKUP(AS79,'【記載例】（ユニット型）シフト記号表'!$C$5:$W$46,21,FALSE)) -> 2 | AT80: =IF(AT79="","",VLOOKUP(AT79,'【記載例】（ユニット型）シフト記号表'!$C$5:$W$46,21,FALSE)) -> - | AU80: =IF(AU79="","",VLOOKUP(AU79,'【記載例】（ユニット型）シフト記号表'!$C$5:$W$46,21,FALSE)) -> 6 | AV80: =IF(AV79="","",VLOOKUP(AV79,'【記載例】（ユニット型）シフト記号表'!$C$5:$W$46,21,FALSE)) -> 6 | AW80: =IF(AW79="","",VLOOKUP(AW79,'【記載例】（ユニット型）シフト記号表'!$C$5:$W$46,21,FALSE)) -> - | AX80: =IF(AX79="","",VLOOKUP(AX79,'【記載例】（ユニット型）シフト記号表'!$C$5:$W$46,21,FALSE)) -> 5 | AY80: =IF(AY79="","",VLOOKUP(AY79,'【記載例】（ユニット型）シフト記号表'!$C$5:$W$46,21,FALSE)) -> 6 | AZ80: =IF(AZ79="","",VLOOKUP(AZ79,'【記載例】（ユニット型）シフト記号表'!$C$5:$W$46,21,FALSE)) -> - | BA80: =IF(BA79="","",VLOOKUP(BA79,'【記載例】（ユニット型）シフト記号表'!$C$5:$W$46,21,FALSE)) -> 2 | BB80: =IF(BB79="","",VLOOKUP(BB79,'【記載例】（ユニット型）シフト記号表'!$C$5:$W$46,21,FALSE)) -> - | BC80: =IF(BC79="","",VLOOKUP(BC79,'【記載例】（ユニット型）シフト記号表'!$C$5:$W$46,21,FALSE)) ->  | BD80: =IF(BD79="","",VLOOKUP(BD79,'【記載例】（ユニット型）シフト記号表'!$C$5:$W$46,21,FALSE)) ->  | BE80: =IF(BE79="","",VLOOKUP(BE79,'【記載例】（ユニット型）シフト記号表'!$C$5:$W$46,21,FALSE)) ->  | BF80: =IF($BI$3="計画",SUM(AA80:BB80),IF($BI$3="実績",SUM(AA80:BE80),"")) -> 74 | BH80: =IF($BI$3="計画",BF80/4,IF($BI$3="実績",(BF80/($BI$7/7)),"")) -> 18.5
I81: =G80 -> 介護職員 | K81: =M80 -> A | V81: 夜勤時間帯の勤務時間数 | AA81: =IF(AA79="","",VLOOKUP(AA79,'【記載例】（ユニット型）シフト記号表'!$C$5:$Y$46,23,FALSE)) -> 3 | AB81: =IF(AB79="","",VLOOKUP(AB79,'【記載例】（ユニット型）シフト記号表'!$C$5:$Y$46,23,FALSE)) -> - | AC81: =IF(AC79="","",VLOOKUP(AC79,'【記載例】（ユニット型）シフト記号表'!$C$5:$Y$46,23,FALSE)) -> 14 | AD81: =IF(AD79="","",VLOOKUP(AD79,'【記載例】（ユニット型）シフト記号表'!$C$5:$Y$46,23,FALSE)) -> - | AE81: =IF(AE79="","",VLOOKUP(AE79,'【記載例】（ユニット型）シフト記号表'!$C$5:$Y$46,23,FALSE)) -> 3 | AF81: =IF(AF79="","",VLOOKUP(AF79,'【記載例】（ユニット型）シフト記号表'!$C$5:$Y$46,23,FALSE)) -> 2 | AG81: =IF(AG79="","",VLOOKUP(AG79,'【記載例】（ユニット型）シフト記号表'!$C$5:$Y$46,23,FALSE)) -> - | AH81: =IF(AH79="","",VLOOKUP(AH79,'【記載例】（ユニット型）シフト記号表'!$C$5:$Y$46,23,FALSE)) -> 2 | AI81: =IF(AI79="","",VLOOKUP(AI79,'【記載例】（ユニット型）シフト記号表'!$C$5:$Y$46,23,FALSE)) -> 3 | AJ81: =IF(AJ79="","",VLOOKUP(AJ79,'【記載例】（ユニット型）シフト記号表'!$C$5:$Y$46,23,FALSE)) -> - | AK81: =IF(AK79="","",VLOOKUP(AK79,'【記載例】（ユニット型）シフト記号表'!$C$5:$Y$46,23,FALSE)) -> 14 | AL81: =IF(AL79="","",VLOOKUP(AL79,'【記載例】（ユニット型）シフト記号表'!$C$5:$Y$46,23,FALSE)) -> - | AM81: =IF(AM79="","",VLOOKUP(AM79,'【記載例】（ユニット型）シフト記号表'!$C$5:$Y$46,23,FALSE)) -> 3 | AN81: =IF(AN79="","",VLOOKUP(AN79,'【記載例】（ユニット型）シフト記号表'!$C$5:$Y$46,23,FALSE)) -> - | AO81: =IF(AO79="","",VLOOKUP(AO79,'【記載例】（ユニット型）シフト記号表'!$C$5:$Y$46,23,FALSE)) -> 2 | AP81: =IF(AP79="","",VLOOKUP(AP79,'【記載例】（ユニット型）シフト記号表'!$C$5:$Y$46,23,FALSE)) -> 3 | AQ81: =IF(AQ79="","",VLOOKUP(AQ79,'【記載例】（ユニット型）シフト記号表'!$C$5:$Y$46,23,FALSE)) -> - | AR81: =IF(AR79="","",VLOOKUP(AR79,'【記載例】（ユニット型）シフト記号表'!$C$5:$Y$46,23,FALSE)) -> - | AS81: =IF(AS79="","",VLOOKUP(AS79,'【記載例】（ユニット型）シフト記号表'!$C$5:$Y$46,23,FALSE)) -> 14 | AT81: =IF(AT79="","",VLOOKUP(AT79,'【記載例】（ユニット型）シフト記号表'!$C$5:$Y$46,23,FALSE)) -> - | AU81: =IF(AU79="","",VLOOKUP(AU79,'【記載例】（ユニット型）シフト記号表'!$C$5:$Y$46,23,FALSE)) -> 2 | AV81: =IF(AV79="","",VLOOKUP(AV79,'【記載例】（ユニット型）シフト記号表'!$C$5:$Y$46,23,FALSE)) -> 2 | AW81: =IF(AW79="","",VLOOKUP(AW79,'【記載例】（ユニット型）シフト記号表'!$C$5:$Y$46,23,FALSE)) -> - | AX81: =IF(AX79="","",VLOOKUP(AX79,'【記載例】（ユニット型）シフト記号表'!$C$5:$Y$46,23,FALSE)) -> 3 | AY81: =IF(AY79="","",VLOOKUP(AY79,'【記載例】（ユニット型）シフト記号表'!$C$5:$Y$46,23,FALSE)) -> 2 | AZ81: =IF(AZ79="","",VLOOKUP(AZ79,'【記載例】（ユニット型）シフト記号表'!$C$5:$Y$46,23,FALSE)) -> - | BA81: =IF(BA79="","",VLOOKUP(BA79,'【記載例】（ユニット型）シフト記号表'!$C$5:$Y$46,23,FALSE)) -> 14 | BB81: =IF(BB79="","",VLOOKUP(BB79,'【記載例】（ユニット型）シフト記号表'!$C$5:$Y$46,23,FALSE)) -> - | BC81: =IF(BC79="","",VLOOKUP(BC79,'【記載例】（ユニット型）シフト記号表'!$C$5:$Y$46,23,FALSE)) ->  | BD81: =IF(BD79="","",VLOOKUP(BD79,'【記載例】（ユニット型）シフト記号表'!$C$5:$Y$46,23,FALSE)) ->  | BE81: =IF(BE79="","",VLOOKUP(BE79,'【記載例】（ユニット型）シフト記号表'!$C$5:$Y$46,23,FALSE)) ->  | BF81: =IF($BI$3="計画",SUM(AA81:BB81),IF($BI$3="実績",SUM(AA81:BE81),"")) -> 86 | BH81: =IF($BI$3="計画",BF81/4,IF($BI$3="実績",(BF81/($BI$7/7)),"")) -> 21.5
D82: ユニット３ | S82: ○○ W子 | V82: シフト記号 | AA82: a | AB82: d | AC82: 休 | AD82: o | AE82: 休 | AF82: 休 | AG82: a | AH82: d | AI82: d | AJ82: a | AK82: 休 | AL82: o | AM82: 休 | AN82: 休 | AO82: d | AP82: 休 | AQ82: d | AR82: d | AS82: 休 | AT82: o | AU82: 休 | AV82: d | AW82: a | AX82: 休 | AY82: d | AZ82: 休 | BA82: 休 | BB82: o
B83: =B80+1 -> 22 | G83: 介護職員 | M83: A | O83: ー | V83: 日中の勤務時間数 | AA83: =IF(AA82="","",VLOOKUP(AA82,'【記載例】（ユニット型）シフト記号表'!$C$5:$W$46,21,FALSE)) -> 6 | AB83: =IF(AB82="","",VLOOKUP(AB82,'【記載例】（ユニット型）シフト記号表'!$C$5:$W$46,21,FALSE)) -> 5 | AC83: =IF(AC82="","",VLOOKUP(AC82,'【記載例】（ユニット型）シフト記号表'!$C$5:$W$46,21,FALSE)) -> - | AD83: =IF(AD82="","",VLOOKUP(AD82,'【記載例】（ユニット型）シフト記号表'!$C$5:$W$46,21,FALSE)) -> 2 | AE83: =IF(AE82="","",VLOOKUP(AE82,'【記載例】（ユニット型）シフト記号表'!$C$5:$W$46,21,FALSE)) -> - | AF83: =IF(AF82="","",VLOOKUP(AF82,'【記載例】（ユニット型）シフト記号表'!$C$5:$W$46,21,FALSE)) -> - | AG83: =IF(AG82="","",VLOOKUP(AG82,'【記載例】（ユニット型）シフト記号表'!$C$5:$W$46,21,FALSE)) -> 6 | AH83: =IF(AH82="","",VLOOKUP(AH82,'【記載例】（ユニット型）シフト記号表'!$C$5:$W$46,21,FALSE)) -> 5 | AI83: =IF(AI82="","",VLOOKUP(AI82,'【記載例】（ユニット型）シフト記号表'!$C$5:$W$46,21,FALSE)) -> 5 | AJ83: =IF(AJ82="","",VLOOKUP(AJ82,'【記載例】（ユニット型）シフト記号表'!$C$5:$W$46,21,FALSE)) -> 6 | AK83: =IF(AK82="","",VLOOKUP(AK82,'【記載例】（ユニット型）シフト記号表'!$C$5:$W$46,21,FALSE)) -> - | AL83: =IF(AL82="","",VLOOKUP(AL82,'【記載例】（ユニット型）シフト記号表'!$C$5:$W$46,21,FALSE)) -> 2 | AM83: =IF(AM82="","",VLOOKUP(AM82,'【記載例】（ユニット型）シフト記号表'!$C$5:$W$46,21,FALSE)) -> - | AN83: =IF(AN82="","",VLOOKUP(AN82,'【記載例】（ユニット型）シフト記号表'!$C$5:$W$46,21,FALSE)) -> - | AO83: =IF(AO82="","",VLOOKUP(AO82,'【記載例】（ユニット型）シフト記号表'!$C$5:$W$46,21,FALSE)) -> 5 | AP83: =IF(AP82="","",VLOOKUP(AP82,'【記載例】（ユニット型）シフト記号表'!$C$5:$W$46,21,FALSE)) -> - | AQ83: =IF(AQ82="","",VLOOKUP(AQ82,'【記載例】（ユニット型）シフト記号表'!$C$5:$W$46,21,FALSE)) -> 5 | AR83: =IF(AR82="","",VLOOKUP(AR82,'【記載例】（ユニット型）シフト記号表'!$C$5:$W$46,21,FALSE)) -> 5 | AS83: =IF(AS82="","",VLOOKUP(AS82,'【記載例】（ユニット型）シフト記号表'!$C$5:$W$46,21,FALSE)) -> - | AT83: =IF(AT82="","",VLOOKUP(AT82,'【記載例】（ユニット型）シフト記号表'!$C$5:$W$46,21,FALSE)) -> 2 | AU83: =IF(AU82="","",VLOOKUP(AU82,'【記載例】（ユニット型）シフト記号表'!$C$5:$W$46,21,FALSE)) -> - | AV83: =IF(AV82="","",VLOOKUP(AV82,'【記載例】（ユニット型）シフト記号表'!$C$5:$W$46,21,FALSE)) -> 5 | AW83: =IF(AW82="","",VLOOKUP(AW82,'【記載例】（ユニット型）シフト記号表'!$C$5:$W$46,21,FALSE)) -> 6 | AX83: =IF(AX82="","",VLOOKUP(AX82,'【記載例】（ユニット型）シフト記号表'!$C$5:$W$46,21,FALSE)) -> - | AY83: =IF(AY82="","",VLOOKUP(AY82,'【記載例】（ユニット型）シフト記号表'!$C$5:$W$46,21,FALSE)) -> 5 | AZ83: =IF(AZ82="","",VLOOKUP(AZ82,'【記載例】（ユニット型）シフト記号表'!$C$5:$W$46,21,FALSE)) -> - | BA83: =IF(BA82="","",VLOOKUP(BA82,'【記載例】（ユニット型）シフト記号表'!$C$5:$W$46,21,FALSE)) -> - | BB83: =IF(BB82="","",VLOOKUP(BB82,'【記載例】（ユニット型）シフト記号表'!$C$5:$W$46,21,FALSE)) -> 2 | BC83: =IF(BC82="","",VLOOKUP(BC82,'【記載例】（ユニット型）シフト記号表'!$C$5:$W$46,21,FALSE)) ->  | BD83: =IF(BD82="","",VLOOKUP(BD82,'【記載例】（ユニット型）シフト記号表'!$C$5:$W$46,21,FALSE)) ->  | BE83: =IF(BE82="","",VLOOKUP(BE82,'【記載例】（ユニット型）シフト記号表'!$C$5:$W$46,21,FALSE)) ->  | BF83: =IF($BI$3="計画",SUM(AA83:BB83),IF($BI$3="実績",SUM(AA83:BE83),"")) -> 72 | BH83: =IF($BI$3="計画",BF83/4,IF($BI$3="実績",(BF83/($BI$7/7)),"")) -> 18
I84: =G83 -> 介護職員 | K84: =M83 -> A | V84: 夜勤時間帯の勤務時間数 | AA84: =IF(AA82="","",VLOOKUP(AA82,'【記載例】（ユニット型）シフト記号表'!$C$5:$Y$46,23,FALSE)) -> 2 | AB84: =IF(AB82="","",VLOOKUP(AB82,'【記載例】（ユニット型）シフト記号表'!$C$5:$Y$46,23,FALSE)) -> 3 | AC84: =IF(AC82="","",VLOOKUP(AC82,'【記載例】（ユニット型）シフト記号表'!$C$5:$Y$46,23,FALSE)) -> - | AD84: =IF(AD82="","",VLOOKUP(AD82,'【記載例】（ユニット型）シフト記号表'!$C$5:$Y$46,23,FALSE)) -> 14 | AE84: =IF(AE82="","",VLOOKUP(AE82,'【記載例】（ユニット型）シフト記号表'!$C$5:$Y$46,23,FALSE)) -> - | AF84: =IF(AF82="","",VLOOKUP(AF82,'【記載例】（ユニット型）シフト記号表'!$C$5:$Y$46,23,FALSE)) -> - | AG84: =IF(AG82="","",VLOOKUP(AG82,'【記載例】（ユニット型）シフト記号表'!$C$5:$Y$46,23,FALSE)) -> 2 | AH84: =IF(AH82="","",VLOOKUP(AH82,'【記載例】（ユニット型）シフト記号表'!$C$5:$Y$46,23,FALSE)) -> 3 | AI84: =IF(AI82="","",VLOOKUP(AI82,'【記載例】（ユニット型）シフト記号表'!$C$5:$Y$46,23,FALSE)) -> 3 | AJ84: =IF(AJ82="","",VLOOKUP(AJ82,'【記載例】（ユニット型）シフト記号表'!$C$5:$Y$46,23,FALSE)) -> 2 | AK84: =IF(AK82="","",VLOOKUP(AK82,'【記載例】（ユニット型）シフト記号表'!$C$5:$Y$46,23,FALSE)) -> - | AL84: =IF(AL82="","",VLOOKUP(AL82,'【記載例】（ユニット型）シフト記号表'!$C$5:$Y$46,23,FALSE)) -> 14 | AM84: =IF(AM82="","",VLOOKUP(AM82,'【記載例】（ユニット型）シフト記号表'!$C$5:$Y$46,23,FALSE)) -> - | AN84: =IF(AN82="","",VLOOKUP(AN82,'【記載例】（ユニット型）シフト記号表'!$C$5:$Y$46,23,FALSE)) -> - | AO84: =IF(AO82="","",VLOOKUP(AO82,'【記載例】（ユニット型）シフト記号表'!$C$5:$Y$46,23,FALSE)) -> 3 | AP84: =IF(AP82="","",VLOOKUP(AP82,'【記載例】（ユニット型）シフト記号表'!$C$5:$Y$46,23,FALSE)) -> - | AQ84: =IF(AQ82="","",VLOOKUP(AQ82,'【記載例】（ユニット型）シフト記号表'!$C$5:$Y$46,23,FALSE)) -> 3 | AR84: =IF(AR82="","",VLOOKUP(AR82,'【記載例】（ユニット型）シフト記号表'!$C$5:$Y$46,23,FALSE)) -> 3 | AS84: =IF(AS82="","",VLOOKUP(AS82,'【記載例】（ユニット型）シフト記号表'!$C$5:$Y$46,23,FALSE)) -> - | AT84: =IF(AT82="","",VLOOKUP(AT82,'【記載例】（ユニット型）シフト記号表'!$C$5:$Y$46,23,FALSE)) -> 14 | AU84: =IF(AU82="","",VLOOKUP(AU82,'【記載例】（ユニット型）シフト記号表'!$C$5:$Y$46,23,FALSE)) -> - | AV84: =IF(AV82="","",VLOOKUP(AV82,'【記載例】（ユニット型）シフト記号表'!$C$5:$Y$46,23,FALSE)) -> 3 | AW84: =IF(AW82="","",VLOOKUP(AW82,'【記載例】（ユニット型）シフト記号表'!$C$5:$Y$46,23,FALSE)) -> 2 | AX84: =IF(AX82="","",VLOOKUP(AX82,'【記載例】（ユニット型）シフト記号表'!$C$5:$Y$46,23,FALSE)) -> - | AY84: =IF(AY82="","",VLOOKUP(AY82,'【記載例】（ユニット型）シフト記号表'!$C$5:$Y$46,23,FALSE)) -> 3 | AZ84: =IF(AZ82="","",VLOOKUP(AZ82,'【記載例】（ユニット型）シフト記号表'!$C$5:$Y$46,23,FALSE)) -> - | BA84: =IF(BA82="","",VLOOKUP(BA82,'【記載例】（ユニット型）シフト記号表'!$C$5:$Y$46,23,FALSE)) -> - | BB84: =IF(BB82="","",VLOOKUP(BB82,'【記載例】（ユニット型）シフト記号表'!$C$5:$Y$46,23,FALSE)) -> 14 | BC84: =IF(BC82="","",VLOOKUP(BC82,'【記載例】（ユニット型）シフト記号表'!$C$5:$Y$46,23,FALSE)) ->  | BD84: =IF(BD82="","",VLOOKUP(BD82,'【記載例】（ユニット型）シフト記号表'!$C$5:$Y$46,23,FALSE)) ->  | BE84: =IF(BE82="","",VLOOKUP(BE82,'【記載例】（ユニット型）シフト記号表'!$C$5:$Y$46,23,FALSE)) ->  | BF84: =IF($BI$3="計画",SUM(AA84:BB84),IF($BI$3="実績",SUM(AA84:BE84),"")) -> 88 | BH84: =IF($BI$3="計画",BF84/4,IF($BI$3="実績",(BF84/($BI$7/7)),"")) -> 22
D85: ユニット３ | S85: ○○ X太郎 | V85: シフト記号 | AA85: 休 | AB85: a | AC85: d | AD85: 休 | AE85: d | AF85: d | AG85: 休 | AH85: 休 | AI85: a | AJ85: d | AK85: d | AL85: 休 | AM85: 休 | AN85: a | AO85: 休 | AP85: 休 | AQ85: a | AR85: a | AS85: d | AT85: 休 | AU85: d | AV85: 休 | AW85: d | AX85: d | AY85: 休 | AZ85: d | BA85: a | BB85: 休
B86: =B83+1 -> 23 | G86: 介護職員 | M86: C | O86: ー | V86: 日中の勤務時間数 | AA86: =IF(AA85="","",VLOOKUP(AA85,'【記載例】（ユニット型）シフト記号表'!$C$5:$W$46,21,FALSE)) -> - | AB86: =IF(AB85="","",VLOOKUP(AB85,'【記載例】（ユニット型）シフト記号表'!$C$5:$W$46,21,FALSE)) -> 6 | AC86: =IF(AC85="","",VLOOKUP(AC85,'【記載例】（ユニット型）シフト記号表'!$C$5:$W$46,21,FALSE)) -> 5 | AD86: =IF(AD85="","",VLOOKUP(AD85,'【記載例】（ユニット型）シフト記号表'!$C$5:$W$46,21,FALSE)) -> - | AE86: =IF(AE85="","",VLOOKUP(AE85,'【記載例】（ユニット型）シフト記号表'!$C$5:$W$46,21,FALSE)) -> 5 | AF86: =IF(AF85="","",VLOOKUP(AF85,'【記載例】（ユニット型）シフト記号表'!$C$5:$W$46,21,FALSE)) -> 5 | AG86: =IF(AG85="","",VLOOKUP(AG85,'【記載例】（ユニット型）シフト記号表'!$C$5:$W$46,21,FALSE)) -> - | AH86: =IF(AH85="","",VLOOKUP(AH85,'【記載例】（ユニット型）シフト記号表'!$C$5:$W$46,21,FALSE)) -> - | AI86: =IF(AI85="","",VLOOKUP(AI85,'【記載例】（ユニット型）シフト記号表'!$C$5:$W$46,21,FALSE)) -> 6 | AJ86: =IF(AJ85="","",VLOOKUP(AJ85,'【記載例】（ユニット型）シフト記号表'!$C$5:$W$46,21,FALSE)) -> 5 | AK86: =IF(AK85="","",VLOOKUP(AK85,'【記載例】（ユニット型）シフト記号表'!$C$5:$W$46,21,FALSE)) -> 5 | AL86: =IF(AL85="","",VLOOKUP(AL85,'【記載例】（ユニット型）シフト記号表'!$C$5:$W$46,21,FALSE)) -> - | AM86: =IF(AM85="","",VLOOKUP(AM85,'【記載例】（ユニット型）シフト記号表'!$C$5:$W$46,21,FALSE)) -> - | AN86: =IF(AN85="","",VLOOKUP(AN85,'【記載例】（ユニット型）シフト記号表'!$C$5:$W$46,21,FALSE)) -> 6 | AO86: =IF(AO85="","",VLOOKUP(AO85,'【記載例】（ユニット型）シフト記号表'!$C$5:$W$46,21,FALSE)) -> - | AP86: =IF(AP85="","",VLOOKUP(AP85,'【記載例】（ユニット型）シフト記号表'!$C$5:$W$46,21,FALSE)) -> - | AQ86: =IF(AQ85="","",VLOOKUP(AQ85,'【記載例】（ユニット型）シフト記号表'!$C$5:$W$46,21,FALSE)) -> 6 | AR86: =IF(AR85="","",VLOOKUP(AR85,'【記載例】（ユニット型）シフト記号表'!$C$5:$W$46,21,FALSE)) -> 6 | AS86: =IF(AS85="","",VLOOKUP(AS85,'【記載例】（ユニット型）シフト記号表'!$C$5:$W$46,21,FALSE)) -> 5 | AT86: =IF(AT85="","",VLOOKUP(AT85,'【記載例】（ユニット型）シフト記号表'!$C$5:$W$46,21,FALSE)) -> - | AU86: =IF(AU85="","",VLOOKUP(AU85,'【記載例】（ユニット型）シフト記号表'!$C$5:$W$46,21,FALSE)) -> 5 | AV86: =IF(AV85="","",VLOOKUP(AV85,'【記載例】（ユニット型）シフト記号表'!$C$5:$W$46,21,FALSE)) -> - | AW86: =IF(AW85="","",VLOOKUP(AW85,'【記載例】（ユニット型）シフト記号表'!$C$5:$W$46,21,FALSE)) -> 5 | AX86: =IF(AX85="","",VLOOKUP(AX85,'【記載例】（ユニット型）シフト記号表'!$C$5:$W$46,21,FALSE)) -> 5 | AY86: =IF(AY85="","",VLOOKUP(AY85,'【記載例】（ユニット型）シフト記号表'!$C$5:$W$46,21,FALSE)) -> - | AZ86: =IF(AZ85="","",VLOOKUP(AZ85,'【記載例】（ユニット型）シフト記号表'!$C$5:$W$46,21,FALSE)) -> 5 | BA86: =IF(BA85="","",VLOOKUP(BA85,'【記載例】（ユニット型）シフト記号表'!$C$5:$W$46,21,FALSE)) -> 6 | BB86: =IF(BB85="","",VLOOKUP(BB85,'【記載例】（ユニット型）シフト記号表'!$C$5:$W$46,21,FALSE)) -> - | BC86: =IF(BC85="","",VLOOKUP(BC85,'【記載例】（ユニット型）シフト記号表'!$C$5:$W$46,21,FALSE)) ->  | BD86: =IF(BD85="","",VLOOKUP(BD85,'【記載例】（ユニット型）シフト記号表'!$C$5:$W$46,21,FALSE)) ->  | BE86: =IF(BE85="","",VLOOKUP(BE85,'【記載例】（ユニット型）シフト記号表'!$C$5:$W$46,21,FALSE)) ->  | BF86: =IF($BI$3="計画",SUM(AA86:BB86),IF($BI$3="実績",SUM(AA86:BE86),"")) -> 86 | BH86: =IF($BI$3="計画",BF86/4,IF($BI$3="実績",(BF86/($BI$7/7)),"")) -> 21.5
I87: =G86 -> 介護職員 | K87: =M86 -> C | V87: 夜勤時間帯の勤務時間数 | AA87: =IF(AA85="","",VLOOKUP(AA85,'【記載例】（ユニット型）シフト記号表'!$C$5:$Y$46,23,FALSE)) -> - | AB87: =IF(AB85="","",VLOOKUP(AB85,'【記載例】（ユニット型）シフト記号表'!$C$5:$Y$46,23,FALSE)) -> 2 | AC87: =IF(AC85="","",VLOOKUP(AC85,'【記載例】（ユニット型）シフト記号表'!$C$5:$Y$46,23,FALSE)) -> 3 | AD87: =IF(AD85="","",VLOOKUP(AD85,'【記載例】（ユニット型）シフト記号表'!$C$5:$Y$46,23,FALSE)) -> - | AE87: =IF(AE85="","",VLOOKUP(AE85,'【記載例】（ユニット型）シフト記号表'!$C$5:$Y$46,23,FALSE)) -> 3 | AF87: =IF(AF85="","",VLOOKUP(AF85,'【記載例】（ユニット型）シフト記号表'!$C$5:$Y$46,23,FALSE)) -> 3 | AG87: =IF(AG85="","",VLOOKUP(AG85,'【記載例】（ユニット型）シフト記号表'!$C$5:$Y$46,23,FALSE)) -> - | AH87: =IF(AH85="","",VLOOKUP(AH85,'【記載例】（ユニット型）シフト記号表'!$C$5:$Y$46,23,FALSE)) -> - | AI87: =IF(AI85="","",VLOOKUP(AI85,'【記載例】（ユニット型）シフト記号表'!$C$5:$Y$46,23,FALSE)) -> 2 | AJ87: =IF(AJ85="","",VLOOKUP(AJ85,'【記載例】（ユニット型）シフト記号表'!$C$5:$Y$46,23,FALSE)) -> 3 | AK87: =IF(AK85="","",VLOOKUP(AK85,'【記載例】（ユニット型）シフト記号表'!$C$5:$Y$46,23,FALSE)) -> 3 | AL87: =IF(AL85="","",VLOOKUP(AL85,'【記載例】（ユニット型）シフト記号表'!$C$5:$Y$46,23,FALSE)) -> - | AM87: =IF(AM85="","",VLOOKUP(AM85,'【記載例】（ユニット型）シフト記号表'!$C$5:$Y$46,23,FALSE)) -> - | AN87: =IF(AN85="","",VLOOKUP(AN85,'【記載例】（ユニット型）シフト記号表'!$C$5:$Y$46,23,FALSE)) -> 2 | AO87: =IF(AO85="","",VLOOKUP(AO85,'【記載例】（ユニット型）シフト記号表'!$C$5:$Y$46,23,FALSE)) -> - | AP87: =IF(AP85="","",VLOOKUP(AP85,'【記載例】（ユニット型）シフト記号表'!$C$5:$Y$46,23,FALSE)) -> - | AQ87: =IF(AQ85="","",VLOOKUP(AQ85,'【記載例】（ユニット型）シフト記号表'!$C$5:$Y$46,23,FALSE)) -> 2 | AR87: =IF(AR85="","",VLOOKUP(AR85,'【記載例】（ユニット型）シフト記号表'!$C$5:$Y$46,23,FALSE)) -> 2 | AS87: =IF(AS85="","",VLOOKUP(AS85,'【記載例】（ユニット型）シフト記号表'!$C$5:$Y$46,23,FALSE)) -> 3 | AT87: =IF(AT85="","",VLOOKUP(AT85,'【記載例】（ユニット型）シフト記号表'!$C$5:$Y$46,23,FALSE)) -> - | AU87: =IF(AU85="","",VLOOKUP(AU85,'【記載例】（ユニット型）シフト記号表'!$C$5:$Y$46,23,FALSE)) -> 3 | AV87: =IF(AV85="","",VLOOKUP(AV85,'【記載例】（ユニット型）シフト記号表'!$C$5:$Y$46,23,FALSE)) -> - | AW87: =IF(AW85="","",VLOOKUP(AW85,'【記載例】（ユニット型）シフト記号表'!$C$5:$Y$46,23,FALSE)) -> 3 | AX87: =IF(AX85="","",VLOOKUP(AX85,'【記載例】（ユニット型）シフト記号表'!$C$5:$Y$46,23,FALSE)) -> 3 | AY87: =IF(AY85="","",VLOOKUP(AY85,'【記載例】（ユニット型）シフト記号表'!$C$5:$Y$46,23,FALSE)) -> - | AZ87: =IF(AZ85="","",VLOOKUP(AZ85,'【記載例】（ユニット型）シフト記号表'!$C$5:$Y$46,23,FALSE)) -> 3 | BA87: =IF(BA85="","",VLOOKUP(BA85,'【記載例】（ユニット型）シフト記号表'!$C$5:$Y$46,23,FALSE)) -> 2 | BB87: =IF(BB85="","",VLOOKUP(BB85,'【記載例】（ユニット型）シフト記号表'!$C$5:$Y$46,23,FALSE)) -> - | BC87: =IF(BC85="","",VLOOKUP(BC85,'【記載例】（ユニット型）シフト記号表'!$C$5:$Y$46,23,FALSE)) ->  | BD87: =IF(BD85="","",VLOOKUP(BD85,'【記載例】（ユニット型）シフト記号表'!$C$5:$Y$46,23,FALSE)) ->  | BE87: =IF(BE85="","",VLOOKUP(BE85,'【記載例】（ユニット型）シフト記号表'!$C$5:$Y$46,23,FALSE)) ->  | BF87: =IF($BI$3="計画",SUM(AA87:BB87),IF($BI$3="実績",SUM(AA87:BE87),"")) -> 42 | BH87: =IF($BI$3="計画",BF87/4,IF($BI$3="実績",(BF87/($BI$7/7)),"")) -> 10.5
C88: ○ | D88: ユニット４ | S88: ○○ Y子 | V88: シフト記号 | AA88: d | AB88: d | AC88: 休 | AD88: 休 | AE88: o | AF88: 休 | AG88: a | AH88: a | AI88: 休 | AJ88: d | AK88: d | AL88: 休 | AM88: o | AN88: 休 | AO88: a | AP88: a | AQ88: 休 | AR88: d | AS88: 休 | AT88: 休 | AU88: o | AV88: 休 | AW88: a | AX88: a | AY88: 休 | AZ88: a | BA88: d | BB88: d
B89: =B86+1 -> 24 | G89: 看護職員 | M89: A | O89: 看護師 | V89: 日中の勤務時間数 | AA89: =IF(AA88="","",VLOOKUP(AA88,'【記載例】（ユニット型）シフト記号表'!$C$5:$W$46,21,FALSE)) -> 5 | AB89: =IF(AB88="","",VLOOKUP(AB88,'【記載例】（ユニット型）シフト記号表'!$C$5:$W$46,21,FALSE)) -> 5 | AC89: =IF(AC88="","",VLOOKUP(AC88,'【記載例】（ユニット型）シフト記号表'!$C$5:$W$46,21,FALSE)) -> - | AD89: =IF(AD88="","",VLOOKUP(AD88,'【記載例】（ユニット型）シフト記号表'!$C$5:$W$46,21,FALSE)) -> - | AE89: =IF(AE88="","",VLOOKUP(AE88,'【記載例】（ユニット型）シフト記号表'!$C$5:$W$46,21,FALSE)) -> 2 | AF89: =IF(AF88="","",VLOOKUP(AF88,'【記載例】（ユニット型）シフト記号表'!$C$5:$W$46,21,FALSE)) -> - | AG89: =IF(AG88="","",VLOOKUP(AG88,'【記載例】（ユニット型）シフト記号表'!$C$5:$W$46,21,FALSE)) -> 6 | AH89: =IF(AH88="","",VLOOKUP(AH88,'【記載例】（ユニット型）シフト記号表'!$C$5:$W$46,21,FALSE)) -> 6 | AI89: =IF(AI88="","",VLOOKUP(AI88,'【記載例】（ユニット型）シフト記号表'!$C$5:$W$46,21,FALSE)) -> - | AJ89: =IF(AJ88="","",VLOOKUP(AJ88,'【記載例】（ユニット型）シフト記号表'!$C$5:$W$46,21,FALSE)) -> 5 | AK89: =IF(AK88="","",VLOOKUP(AK88,'【記載例】（ユニット型）シフト記号表'!$C$5:$W$46,21,FALSE)) -> 5 | AL89: =IF(AL88="","",VLOOKUP(AL88,'【記載例】（ユニット型）シフト記号表'!$C$5:$W$46,21,FALSE)) -> - | AM89: =IF(AM88="","",VLOOKUP(AM88,'【記載例】（ユニット型）シフト記号表'!$C$5:$W$46,21,FALSE)) -> 2 | AN89: =IF(AN88="","",VLOOKUP(AN88,'【記載例】（ユニット型）シフト記号表'!$C$5:$W$46,21,FALSE)) -> - | AO89: =IF(AO88="","",VLOOKUP(AO88,'【記載例】（ユニット型）シフト記号表'!$C$5:$W$46,21,FALSE)) -> 6 | AP89: =IF(AP88="","",VLOOKUP(AP88,'【記載例】（ユニット型）シフト記号表'!$C$5:$W$46,21,FALSE)) -> 6 | AQ89: =IF(AQ88="","",VLOOKUP(AQ88,'【記載例】（ユニット型）シフト記号表'!$C$5:$W$46,21,FALSE)) -> - | AR89: =IF(AR88="","",VLOOKUP(AR88,'【記載例】（ユニット型）シフト記号表'!$C$5:$W$46,21,FALSE)) -> 5 | AS89: =IF(AS88="","",VLOOKUP(AS88,'【記載例】（ユニット型）シフト記号表'!$C$5:$W$46,21,FALSE)) -> - | AT89: =IF(AT88="","",VLOOKUP(AT88,'【記載例】（ユニット型）シフト記号表'!$C$5:$W$46,21,FALSE)) -> - | AU89: =IF(AU88="","",VLOOKUP(AU88,'【記載例】（ユニット型）シフト記号表'!$C$5:$W$46,21,FALSE)) -> 2 | AV89: =IF(AV88="","",VLOOKUP(AV88,'【記載例】（ユニット型）シフト記号表'!$C$5:$W$46,21,FALSE)) -> - | AW89: =IF(AW88="","",VLOOKUP(AW88,'【記載例】（ユニット型）シフト記号表'!$C$5:$W$46,21,FALSE)) -> 6 | AX89: =IF(AX88="","",VLOOKUP(AX88,'【記載例】（ユニット型）シフト記号表'!$C$5:$W$46,21,FALSE)) -> 6 | AY89: =IF(AY88="","",VLOOKUP(AY88,'【記載例】（ユニット型）シフト記号表'!$C$5:$W$46,21,FALSE)) -> - | AZ89: =IF(AZ88="","",VLOOKUP(AZ88,'【記載例】（ユニット型）シフト記号表'!$C$5:$W$46,21,FALSE)) -> 6 | BA89: =IF(BA88="","",VLOOKUP(BA88,'【記載例】（ユニット型）シフト記号表'!$C$5:$W$46,21,FALSE)) -> 5 | BB89: =IF(BB88="","",VLOOKUP(BB88,'【記載例】（ユニット型）シフト記号表'!$C$5:$W$46,21,FALSE)) -> 5 | BC89: =IF(BC88="","",VLOOKUP(BC88,'【記載例】（ユニット型）シフト記号表'!$C$5:$W$46,21,FALSE)) ->  | BD89: =IF(BD88="","",VLOOKUP(BD88,'【記載例】（ユニット型）シフト記号表'!$C$5:$W$46,21,FALSE)) ->  | BE89: =IF(BE88="","",VLOOKUP(BE88,'【記載例】（ユニット型）シフト記号表'!$C$5:$W$46,21,FALSE)) ->  | BF89: =IF($BI$3="計画",SUM(AA89:BB89),IF($BI$3="実績",SUM(AA89:BE89),"")) -> 83 | BH89: =IF($BI$3="計画",BF89/4,IF($BI$3="実績",(BF89/($BI$7/7)),"")) -> 20.75
I90: =G89 -> 看護職員 | K90: =M89 -> A | V90: 夜勤時間帯の勤務時間数 | AA90: =IF(AA88="","",VLOOKUP(AA88,'【記載例】（ユニット型）シフト記号表'!$C$5:$Y$46,23,FALSE)) -> 3 | AB90: =IF(AB88="","",VLOOKUP(AB88,'【記載例】（ユニット型）シフト記号表'!$C$5:$Y$46,23,FALSE)) -> 3 | AC90: =IF(AC88="","",VLOOKUP(AC88,'【記載例】（ユニット型）シフト記号表'!$C$5:$Y$46,23,FALSE)) -> - | AD90: =IF(AD88="","",VLOOKUP(AD88,'【記載例】（ユニット型）シフト記号表'!$C$5:$Y$46,23,FALSE)) -> - | AE90: =IF(AE88="","",VLOOKUP(AE88,'【記載例】（ユニット型）シフト記号表'!$C$5:$Y$46,23,FALSE)) -> 14 | AF90: =IF(AF88="","",VLOOKUP(AF88,'【記載例】（ユニット型）シフト記号表'!$C$5:$Y$46,23,FALSE)) -> - | AG90: =IF(AG88="","",VLOOKUP(AG88,'【記載例】（ユニット型）シフト記号表'!$C$5:$Y$46,23,FALSE)) -> 2 | AH90: =IF(AH88="","",VLOOKUP(AH88,'【記載例】（ユニット型）シフト記号表'!$C$5:$Y$46,23,FALSE)) -> 2 | AI90: =IF(AI88="","",VLOOKUP(AI88,'【記載例】（ユニット型）シフト記号表'!$C$5:$Y$46,23,FALSE)) -> - | AJ90: =IF(AJ88="","",VLOOKUP(AJ88,'【記載例】（ユニット型）シフト記号表'!$C$5:$Y$46,23,FALSE)) -> 3 | AK90: =IF(AK88="","",VLOOKUP(AK88,'【記載例】（ユニット型）シフト記号表'!$C$5:$Y$46,23,FALSE)) -> 3 | AL90: =IF(AL88="","",VLOOKUP(AL88,'【記載例】（ユニット型）シフト記号表'!$C$5:$Y$46,23,FALSE)) -> - | AM90: =IF(AM88="","",VLOOKUP(AM88,'【記載例】（ユニット型）シフト記号表'!$C$5:$Y$46,23,FALSE)) -> 14 | AN90: =IF(AN88="","",VLOOKUP(AN88,'【記載例】（ユニット型）シフト記号表'!$C$5:$Y$46,23,FALSE)) -> - | AO90: =IF(AO88="","",VLOOKUP(AO88,'【記載例】（ユニット型）シフト記号表'!$C$5:$Y$46,23,FALSE)) -> 2 | AP90: =IF(AP88="","",VLOOKUP(AP88,'【記載例】（ユニット型）シフト記号表'!$C$5:$Y$46,23,FALSE)) -> 2 | AQ90: =IF(AQ88="","",VLOOKUP(AQ88,'【記載例】（ユニット型）シフト記号表'!$C$5:$Y$46,23,FALSE)) -> - | AR90: =IF(AR88="","",VLOOKUP(AR88,'【記載例】（ユニット型）シフト記号表'!$C$5:$Y$46,23,FALSE)) -> 3 | AS90: =IF(AS88="","",VLOOKUP(AS88,'【記載例】（ユニット型）シフト記号表'!$C$5:$Y$46,23,FALSE)) -> - | AT90: =IF(AT88="","",VLOOKUP(AT88,'【記載例】（ユニット型）シフト記号表'!$C$5:$Y$46,23,FALSE)) -> - | AU90: =IF(AU88="","",VLOOKUP(AU88,'【記載例】（ユニット型）シフト記号表'!$C$5:$Y$46,23,FALSE)) -> 14 | AV90: =IF(AV88="","",VLOOKUP(AV88,'【記載例】（ユニット型）シフト記号表'!$C$5:$Y$46,23,FALSE)) -> - | AW90: =IF(AW88="","",VLOOKUP(AW88,'【記載例】（ユニット型）シフト記号表'!$C$5:$Y$46,23,FALSE)) -> 2 | AX90: =IF(AX88="","",VLOOKUP(AX88,'【記載例】（ユニット型）シフト記号表'!$C$5:$Y$46,23,FALSE)) -> 2 | AY90: =IF(AY88="","",VLOOKUP(AY88,'【記載例】（ユニット型）シフト記号表'!$C$5:$Y$46,23,FALSE)) -> - | AZ90: =IF(AZ88="","",VLOOKUP(AZ88,'【記載例】（ユニット型）シフト記号表'!$C$5:$Y$46,23,FALSE)) -> 2 | BA90: =IF(BA88="","",VLOOKUP(BA88,'【記載例】（ユニット型）シフト記号表'!$C$5:$Y$46,23,FALSE)) -> 3 | BB90: =IF(BB88="","",VLOOKUP(BB88,'【記載例】（ユニット型）シフト記号表'!$C$5:$Y$46,23,FALSE)) -> 3 | BC90: =IF(BC88="","",VLOOKUP(BC88,'【記載例】（ユニット型）シフト記号表'!$C$5:$Y$46,23,FALSE)) ->  | BD90: =IF(BD88="","",VLOOKUP(BD88,'【記載例】（ユニット型）シフト記号表'!$C$5:$Y$46,23,FALSE)) ->  | BE90: =IF(BE88="","",VLOOKUP(BE88,'【記載例】（ユニット型）シフト記号表'!$C$5:$Y$46,23,FALSE)) ->  | BF90: =IF($BI$3="計画",SUM(AA90:BB90),IF($BI$3="実績",SUM(AA90:BE90),"")) -> 77 | BH90: =IF($BI$3="計画",BF90/4,IF($BI$3="実績",(BF90/($BI$7/7)),"")) -> 19.25
D91: ユニット４ | S91: ○○ Z男 | V91: シフト記号 | AA91: 休 | AB91: a | AC91: d | AD91: d | AE91: 休 | AF91: o | AG91: 休 | AH91: d | AI91: 休 | AJ91: d | AK91: d | AL91: 休 | AM91: 休 | AN91: o | AO91: 休 | AP91: d | AQ91: d | AR91: d | AS91: a | AT91: a | AU91: 休 | AV91: o | AW91: 休 | AX91: a | AY91: d | AZ91: 休 | BA91: 休 | BB91: a
B92: =B89+1 -> 25 | G92: 介護職員 | M92: A | O92: 介護福祉士 | V92: 日中の勤務時間数 | AA92: =IF(AA91="","",VLOOKUP(AA91,'【記載例】（ユニット型）シフト記号表'!$C$5:$W$46,21,FALSE)) -> - | AB92: =IF(AB91="","",VLOOKUP(AB91,'【記載例】（ユニット型）シフト記号表'!$C$5:$W$46,21,FALSE)) -> 6 | AC92: =IF(AC91="","",VLOOKUP(AC91,'【記載例】（ユニット型）シフト記号表'!$C$5:$W$46,21,FALSE)) -> 5 | AD92: =IF(AD91="","",VLOOKUP(AD91,'【記載例】（ユニット型）シフト記号表'!$C$5:$W$46,21,FALSE)) -> 5 | AE92: =IF(AE91="","",VLOOKUP(AE91,'【記載例】（ユニット型）シフト記号表'!$C$5:$W$46,21,FALSE)) -> - | AF92: =IF(AF91="","",VLOOKUP(AF91,'【記載例】（ユニット型）シフト記号表'!$C$5:$W$46,21,FALSE)) -> 2 | AG92: =IF(AG91="","",VLOOKUP(AG91,'【記載例】（ユニット型）シフト記号表'!$C$5:$W$46,21,FALSE)) -> - | AH92: =IF(AH91="","",VLOOKUP(AH91,'【記載例】（ユニット型）シフト記号表'!$C$5:$W$46,21,FALSE)) -> 5 | AI92: =IF(AI91="","",VLOOKUP(AI91,'【記載例】（ユニット型）シフト記号表'!$C$5:$W$46,21,FALSE)) -> - | AJ92: =IF(AJ91="","",VLOOKUP(AJ91,'【記載例】（ユニット型）シフト記号表'!$C$5:$W$46,21,FALSE)) -> 5 | AK92: =IF(AK91="","",VLOOKUP(AK91,'【記載例】（ユニット型）シフト記号表'!$C$5:$W$46,21,FALSE)) -> 5 | AL92: =IF(AL91="","",VLOOKUP(AL91,'【記載例】（ユニット型）シフト記号表'!$C$5:$W$46,21,FALSE)) -> - | AM92: =IF(AM91="","",VLOOKUP(AM91,'【記載例】（ユニット型）シフト記号表'!$C$5:$W$46,21,FALSE)) -> - | AN92: =IF(AN91="","",VLOOKUP(AN91,'【記載例】（ユニット型）シフト記号表'!$C$5:$W$46,21,FALSE)) -> 2 | AO92: =IF(AO91="","",VLOOKUP(AO91,'【記載例】（ユニット型）シフト記号表'!$C$5:$W$46,21,FALSE)) -> - | AP92: =IF(AP91="","",VLOOKUP(AP91,'【記載例】（ユニット型）シフト記号表'!$C$5:$W$46,21,FALSE)) -> 5 | AQ92: =IF(AQ91="","",VLOOKUP(AQ91,'【記載例】（ユニット型）シフト記号表'!$C$5:$W$46,21,FALSE)) -> 5 | AR92: =IF(AR91="","",VLOOKUP(AR91,'【記載例】（ユニット型）シフト記号表'!$C$5:$W$46,21,FALSE)) -> 5 | AS92: =IF(AS91="","",VLOOKUP(AS91,'【記載例】（ユニット型）シフト記号表'!$C$5:$W$46,21,FALSE)) -> 6 | AT92: =IF(AT91="","",VLOOKUP(AT91,'【記載例】（ユニット型）シフト記号表'!$C$5:$W$46,21,FALSE)) -> 6 | AU92: =IF(AU91="","",VLOOKUP(AU91,'【記載例】（ユニット型）シフト記号表'!$C$5:$W$46,21,FALSE)) -> - | AV92: =IF(AV91="","",VLOOKUP(AV91,'【記載例】（ユニット型）シフト記号表'!$C$5:$W$46,21,FALSE)) -> 2 | AW92: =IF(AW91="","",VLOOKUP(AW91,'【記載例】（ユニット型）シフト記号表'!$C$5:$W$46,21,FALSE)) -> - | AX92: =IF(AX91="","",VLOOKUP(AX91,'【記載例】（ユニット型）シフト記号表'!$C$5:$W$46,21,FALSE)) -> 6 | AY92: =IF(AY91="","",VLOOKUP(AY91,'【記載例】（ユニット型）シフト記号表'!$C$5:$W$46,21,FALSE)) -> 5 | AZ92: =IF(AZ91="","",VLOOKUP(AZ91,'【記載例】（ユニット型）シフト記号表'!$C$5:$W$46,21,FALSE)) -> - | BA92: =IF(BA91="","",VLOOKUP(BA91,'【記載例】（ユニット型）シフト記号表'!$C$5:$W$46,21,FALSE)) -> - | BB92: =IF(BB91="","",VLOOKUP(BB91,'【記載例】（ユニット型）シフト記号表'!$C$5:$W$46,21,FALSE)) -> 6 | BC92: =IF(BC91="","",VLOOKUP(BC91,'【記載例】（ユニット型）シフト記号表'!$C$5:$W$46,21,FALSE)) ->  | BD92: =IF(BD91="","",VLOOKUP(BD91,'【記載例】（ユニット型）シフト記号表'!$C$5:$W$46,21,FALSE)) ->  | BE92: =IF(BE91="","",VLOOKUP(BE91,'【記載例】（ユニット型）シフト記号表'!$C$5:$W$46,21,FALSE)) ->  | BF92: =IF($BI$3="計画",SUM(AA92:BB92),IF($BI$3="実績",SUM(AA92:BE92),"")) -> 81 | BH92: =IF($BI$3="計画",BF92/4,IF($BI$3="実績",(BF92/($BI$7/7)),"")) -> 20.25
I93: =G92 -> 介護職員 | K93: =M92 -> A | V93: 夜勤時間帯の勤務時間数 | AA93: =IF(AA91="","",VLOOKUP(AA91,'【記載例】（ユニット型）シフト記号表'!$C$5:$Y$46,23,FALSE)) -> - | AB93: =IF(AB91="","",VLOOKUP(AB91,'【記載例】（ユニット型）シフト記号表'!$C$5:$Y$46,23,FALSE)) -> 2 | AC93: =IF(AC91="","",VLOOKUP(AC91,'【記載例】（ユニット型）シフト記号表'!$C$5:$Y$46,23,FALSE)) -> 3 | AD93: =IF(AD91="","",VLOOKUP(AD91,'【記載例】（ユニット型）シフト記号表'!$C$5:$Y$46,23,FALSE)) -> 3 | AE93: =IF(AE91="","",VLOOKUP(AE91,'【記載例】（ユニット型）シフト記号表'!$C$5:$Y$46,23,FALSE)) -> - | AF93: =IF(AF91="","",VLOOKUP(AF91,'【記載例】（ユニット型）シフト記号表'!$C$5:$Y$46,23,FALSE)) -> 14 | AG93: =IF(AG91="","",VLOOKUP(AG91,'【記載例】（ユニット型）シフト記号表'!$C$5:$Y$46,23,FALSE)) -> - | AH93: =IF(AH91="","",VLOOKUP(AH91,'【記載例】（ユニット型）シフト記号表'!$C$5:$Y$46,23,FALSE)) -> 3 | AI93: =IF(AI91="","",VLOOKUP(AI91,'【記載例】（ユニット型）シフト記号表'!$C$5:$Y$46,23,FALSE)) -> - | AJ93: =IF(AJ91="","",VLOOKUP(AJ91,'【記載例】（ユニット型）シフト記号表'!$C$5:$Y$46,23,FALSE)) -> 3 | AK93: =IF(AK91="","",VLOOKUP(AK91,'【記載例】（ユニット型）シフト記号表'!$C$5:$Y$46,23,FALSE)) -> 3 | AL93: =IF(AL91="","",VLOOKUP(AL91,'【記載例】（ユニット型）シフト記号表'!$C$5:$Y$46,23,FALSE)) -> - | AM93: =IF(AM91="","",VLOOKUP(AM91,'【記載例】（ユニット型）シフト記号表'!$C$5:$Y$46,23,FALSE)) -> - | AN93: =IF(AN91="","",VLOOKUP(AN91,'【記載例】（ユニット型）シフト記号表'!$C$5:$Y$46,23,FALSE)) -> 14 | AO93: =IF(AO91="","",VLOOKUP(AO91,'【記載例】（ユニット型）シフト記号表'!$C$5:$Y$46,23,FALSE)) -> - | AP93: =IF(AP91="","",VLOOKUP(AP91,'【記載例】（ユニット型）シフト記号表'!$C$5:$Y$46,23,FALSE)) -> 3 | AQ93: =IF(AQ91="","",VLOOKUP(AQ91,'【記載例】（ユニット型）シフト記号表'!$C$5:$Y$46,23,FALSE)) -> 3 | AR93: =IF(AR91="","",VLOOKUP(AR91,'【記載例】（ユニット型）シフト記号表'!$C$5:$Y$46,23,FALSE)) -> 3 | AS93: =IF(AS91="","",VLOOKUP(AS91,'【記載例】（ユニット型）シフト記号表'!$C$5:$Y$46,23,FALSE)) -> 2 | AT93: =IF(AT91="","",VLOOKUP(AT91,'【記載例】（ユニット型）シフト記号表'!$C$5:$Y$46,23,FALSE)) -> 2 | AU93: =IF(AU91="","",VLOOKUP(AU91,'【記載例】（ユニット型）シフト記号表'!$C$5:$Y$46,23,FALSE)) -> - | AV93: =IF(AV91="","",VLOOKUP(AV91,'【記載例】（ユニット型）シフト記号表'!$C$5:$Y$46,23,FALSE)) -> 14 | AW93: =IF(AW91="","",VLOOKUP(AW91,'【記載例】（ユニット型）シフト記号表'!$C$5:$Y$46,23,FALSE)) -> - | AX93: =IF(AX91="","",VLOOKUP(AX91,'【記載例】（ユニット型）シフト記号表'!$C$5:$Y$46,23,FALSE)) -> 2 | AY93: =IF(AY91="","",VLOOKUP(AY91,'【記載例】（ユニット型）シフト記号表'!$C$5:$Y$46,23,FALSE)) -> 3 | AZ93: =IF(AZ91="","",VLOOKUP(AZ91,'【記載例】（ユニット型）シフト記号表'!$C$5:$Y$46,23,FALSE)) -> - | BA93: =IF(BA91="","",VLOOKUP(BA91,'【記載例】（ユニット型）シフト記号表'!$C$5:$Y$46,23,FALSE)) -> - | BB93: =IF(BB91="","",VLOOKUP(BB91,'【記載例】（ユニット型）シフト記号表'!$C$5:$Y$46,23,FALSE)) -> 2 | BC93: =IF(BC91="","",VLOOKUP(BC91,'【記載例】（ユニット型）シフト記号表'!$C$5:$Y$46,23,FALSE)) ->  | BD93: =IF(BD91="","",VLOOKUP(BD91,'【記載例】（ユニット型）シフト記号表'!$C$5:$Y$46,23,FALSE)) ->  | BE93: =IF(BE91="","",VLOOKUP(BE91,'【記載例】（ユニット型）シフト記号表'!$C$5:$Y$46,23,FALSE)) ->  | BF93: =IF($BI$3="計画",SUM(AA93:BB93),IF($BI$3="実績",SUM(AA93:BE93),"")) -> 79 | BH93: =IF($BI$3="計画",BF93/4,IF($BI$3="実績",(BF93/($BI$7/7)),"")) -> 19.75
D94: ユニット４ | S94: ○○ AA三郎 | V94: シフト記号 | AA94: a | AB94: 休 | AC94: a | AD94: 休 | AE94: d | AF94: 休 | AG94: o | AH94: 休 | AI94: d | AJ94: d | AK94: a | AL94: a | AM94: 休 | AN94: d | AO94: o | AP94: 休 | AQ94: a | AR94: 休 | AS94: d | AT94: d | AU94: 休 | AV94: 休 | AW94: o | AX94: 休 | AY94: a | AZ94: d | BA94: d | BB94: 休
B95: =B92+1 -> 26 | G95: 介護職員 | M95: A | O95: ー | V95: 日中の勤務時間数 | AA95: =IF(AA94="","",VLOOKUP(AA94,'【記載例】（ユニット型）シフト記号表'!$C$5:$W$46,21,FALSE)) -> 6 | AB95: =IF(AB94="","",VLOOKUP(AB94,'【記載例】（ユニット型）シフト記号表'!$C$5:$W$46,21,FALSE)) -> - | AC95: =IF(AC94="","",VLOOKUP(AC94,'【記載例】（ユニット型）シフト記号表'!$C$5:$W$46,21,FALSE)) -> 6 | AD95: =IF(AD94="","",VLOOKUP(AD94,'【記載例】（ユニット型）シフト記号表'!$C$5:$W$46,21,FALSE)) -> - | AE95: =IF(AE94="","",VLOOKUP(AE94,'【記載例】（ユニット型）シフト記号表'!$C$5:$W$46,21,FALSE)) -> 5 | AF95: =IF(AF94="","",VLOOKUP(AF94,'【記載例】（ユニット型）シフト記号表'!$C$5:$W$46,21,FALSE)) -> - | AG95: =IF(AG94="","",VLOOKUP(AG94,'【記載例】（ユニット型）シフト記号表'!$C$5:$W$46,21,FALSE)) -> 2 | AH95: =IF(AH94="","",VLOOKUP(AH94,'【記載例】（ユニット型）シフト記号表'!$C$5:$W$46,21,FALSE)) -> - | AI95: =IF(AI94="","",VLOOKUP(AI94,'【記載例】（ユニット型）シフト記号表'!$C$5:$W$46,21,FALSE)) -> 5 | AJ95: =IF(AJ94="","",VLOOKUP(AJ94,'【記載例】（ユニット型）シフト記号表'!$C$5:$W$46,21,FALSE)) -> 5 | AK95: =IF(AK94="","",VLOOKUP(AK94,'【記載例】（ユニット型）シフト記号表'!$C$5:$W$46,21,FALSE)) -> 6 | AL95: =IF(AL94="","",VLOOKUP(AL94,'【記載例】（ユニット型）シフト記号表'!$C$5:$W$46,21,FALSE)) -> 6 | AM95: =IF(AM94="","",VLOOKUP(AM94,'【記載例】（ユニット型）シフト記号表'!$C$5:$W$46,21,FALSE)) -> - | AN95: =IF(AN94="","",VLOOKUP(AN94,'【記載例】（ユニット型）シフト記号表'!$C$5:$W$46,21,FALSE)) -> 5 | AO95: =IF(AO94="","",VLOOKUP(AO94,'【記載例】（ユニット型）シフト記号表'!$C$5:$W$46,21,FALSE)) -> 2 | AP95: =IF(AP94="","",VLOOKUP(AP94,'【記載例】（ユニット型）シフト記号表'!$C$5:$W$46,21,FALSE)) -> - | AQ95: =IF(AQ94="","",VLOOKUP(AQ94,'【記載例】（ユニット型）シフト記号表'!$C$5:$W$46,21,FALSE)) -> 6 | AR95: =IF(AR94="","",VLOOKUP(AR94,'【記載例】（ユニット型）シフト記号表'!$C$5:$W$46,21,FALSE)) -> - | AS95: =IF(AS94="","",VLOOKUP(AS94,'【記載例】（ユニット型）シフト記号表'!$C$5:$W$46,21,FALSE)) -> 5 | AT95: =IF(AT94="","",VLOOKUP(AT94,'【記載例】（ユニット型）シフト記号表'!$C$5:$W$46,21,FALSE)) -> 5 | AU95: =IF(AU94="","",VLOOKUP(AU94,'【記載例】（ユニット型）シフト記号表'!$C$5:$W$46,21,FALSE)) -> - | AV95: =IF(AV94="","",VLOOKUP(AV94,'【記載例】（ユニット型）シフト記号表'!$C$5:$W$46,21,FALSE)) -> - | AW95: =IF(AW94="","",VLOOKUP(AW94,'【記載例】（ユニット型）シフト記号表'!$C$5:$W$46,21,FALSE)) -> 2 | AX95: =IF(AX94="","",VLOOKUP(AX94,'【記載例】（ユニット型）シフト記号表'!$C$5:$W$46,21,FALSE)) -> - | AY95: =IF(AY94="","",VLOOKUP(AY94,'【記載例】（ユニット型）シフト記号表'!$C$5:$W$46,21,FALSE)) -> 6 | AZ95: =IF(AZ94="","",VLOOKUP(AZ94,'【記載例】（ユニット型）シフト記号表'!$C$5:$W$46,21,FALSE)) -> 5 | BA95: =IF(BA94="","",VLOOKUP(BA94,'【記載例】（ユニット型）シフト記号表'!$C$5:$W$46,21,FALSE)) -> 5 | BB95: =IF(BB94="","",VLOOKUP(BB94,'【記載例】（ユニット型）シフト記号表'!$C$5:$W$46,21,FALSE)) -> - | BC95: =IF(BC94="","",VLOOKUP(BC94,'【記載例】（ユニット型）シフト記号表'!$C$5:$W$46,21,FALSE)) ->  | BD95: =IF(BD94="","",VLOOKUP(BD94,'【記載例】（ユニット型）シフト記号表'!$C$5:$W$46,21,FALSE)) ->  | BE95: =IF(BE94="","",VLOOKUP(BE94,'【記載例】（ユニット型）シフト記号表'!$C$5:$W$46,21,FALSE)) ->  | BF95: =IF($BI$3="計画",SUM(AA95:BB95),IF($BI$3="実績",SUM(AA95:BE95),"")) -> 82 | BH95: =IF($BI$3="計画",BF95/4,IF($BI$3="実績",(BF95/($BI$7/7)),"")) -> 20.5
I96: =G95 -> 介護職員 | K96: =M95 -> A | V96: 夜勤時間帯の勤務時間数 | AA96: =IF(AA94="","",VLOOKUP(AA94,'【記載例】（ユニット型）シフト記号表'!$C$5:$Y$46,23,FALSE)) -> 2 | AB96: =IF(AB94="","",VLOOKUP(AB94,'【記載例】（ユニット型）シフト記号表'!$C$5:$Y$46,23,FALSE)) -> - | AC96: =IF(AC94="","",VLOOKUP(AC94,'【記載例】（ユニット型）シフト記号表'!$C$5:$Y$46,23,FALSE)) -> 2 | AD96: =IF(AD94="","",VLOOKUP(AD94,'【記載例】（ユニット型）シフト記号表'!$C$5:$Y$46,23,FALSE)) -> - | AE96: =IF(AE94="","",VLOOKUP(AE94,'【記載例】（ユニット型）シフト記号表'!$C$5:$Y$46,23,FALSE)) -> 3 | AF96: =IF(AF94="","",VLOOKUP(AF94,'【記載例】（ユニット型）シフト記号表'!$C$5:$Y$46,23,FALSE)) -> - | AG96: =IF(AG94="","",VLOOKUP(AG94,'【記載例】（ユニット型）シフト記号表'!$C$5:$Y$46,23,FALSE)) -> 14 | AH96: =IF(AH94="","",VLOOKUP(AH94,'【記載例】（ユニット型）シフト記号表'!$C$5:$Y$46,23,FALSE)) -> - | AI96: =IF(AI94="","",VLOOKUP(AI94,'【記載例】（ユニット型）シフト記号表'!$C$5:$Y$46,23,FALSE)) -> 3 | AJ96: =IF(AJ94="","",VLOOKUP(AJ94,'【記載例】（ユニット型）シフト記号表'!$C$5:$Y$46,23,FALSE)) -> 3 | AK96: =IF(AK94="","",VLOOKUP(AK94,'【記載例】（ユニット型）シフト記号表'!$C$5:$Y$46,23,FALSE)) -> 2 | AL96: =IF(AL94="","",VLOOKUP(AL94,'【記載例】（ユニット型）シフト記号表'!$C$5:$Y$46,23,FALSE)) -> 2 | AM96: =IF(AM94="","",VLOOKUP(AM94,'【記載例】（ユニット型）シフト記号表'!$C$5:$Y$46,23,FALSE)) -> - | AN96: =IF(AN94="","",VLOOKUP(AN94,'【記載例】（ユニット型）シフト記号表'!$C$5:$Y$46,23,FALSE)) -> 3 | AO96: =IF(AO94="","",VLOOKUP(AO94,'【記載例】（ユニット型）シフト記号表'!$C$5:$Y$46,23,FALSE)) -> 14 | AP96: =IF(AP94="","",VLOOKUP(AP94,'【記載例】（ユニット型）シフト記号表'!$C$5:$Y$46,23,FALSE)) -> - | AQ96: =IF(AQ94="","",VLOOKUP(AQ94,'【記載例】（ユニット型）シフト記号表'!$C$5:$Y$46,23,FALSE)) -> 2 | AR96: =IF(AR94="","",VLOOKUP(AR94,'【記載例】（ユニット型）シフト記号表'!$C$5:$Y$46,23,FALSE)) -> - | AS96: =IF(AS94="","",VLOOKUP(AS94,'【記載例】（ユニット型）シフト記号表'!$C$5:$Y$46,23,FALSE)) -> 3 | AT96: =IF(AT94="","",VLOOKUP(AT94,'【記載例】（ユニット型）シフト記号表'!$C$5:$Y$46,23,FALSE)) -> 3 | AU96: =IF(AU94="","",VLOOKUP(AU94,'【記載例】（ユニット型）シフト記号表'!$C$5:$Y$46,23,FALSE)) -> - | AV96: =IF(AV94="","",VLOOKUP(AV94,'【記載例】（ユニット型）シフト記号表'!$C$5:$Y$46,23,FALSE)) -> - | AW96: =IF(AW94="","",VLOOKUP(AW94,'【記載例】（ユニット型）シフト記号表'!$C$5:$Y$46,23,FALSE)) -> 14 | AX96: =IF(AX94="","",VLOOKUP(AX94,'【記載例】（ユニット型）シフト記号表'!$C$5:$Y$46,23,FALSE)) -> - | AY96: =IF(AY94="","",VLOOKUP(AY94,'【記載例】（ユニット型）シフト記号表'!$C$5:$Y$46,23,FALSE)) -> 2 | AZ96: =IF(AZ94="","",VLOOKUP(AZ94,'【記載例】（ユニット型）シフト記号表'!$C$5:$Y$46,23,FALSE)) -> 3 | BA96: =IF(BA94="","",VLOOKUP(BA94,'【記載例】（ユニット型）シフト記号表'!$C$5:$Y$46,23,FALSE)) -> 3 | BB96: =IF(BB94="","",VLOOKUP(BB94,'【記載例】（ユニット型）シフト記号表'!$C$5:$Y$46,23,FALSE)) -> - | BC96: =IF(BC94="","",VLOOKUP(BC94,'【記載例】（ユニット型）シフト記号表'!$C$5:$Y$46,23,FALSE)) ->  | BD96: =IF(BD94="","",VLOOKUP(BD94,'【記載例】（ユニット型）シフト記号表'!$C$5:$Y$46,23,FALSE)) ->  | BE96: =IF(BE94="","",VLOOKUP(BE94,'【記載例】（ユニット型）シフト記号表'!$C$5:$Y$46,23,FALSE)) ->  | BF96: =IF($BI$3="計画",SUM(AA96:BB96),IF($BI$3="実績",SUM(AA96:BE96),"")) -> 78 | BH96: =IF($BI$3="計画",BF96/4,IF($BI$3="実績",(BF96/($BI$7/7)),"")) -> 19.5
D97: ユニット４ | S97: ○○ BB子 | V97: シフト記号 | AA97: 休 | AB97: d | AC97: d | AD97: a | AE97: a | AF97: a | AG97: 休 | AH97: o | AI97: 休 | AJ97: a | AK97: 休 | AL97: d | AM97: d | AN97: 休 | AO97: 休 | AP97: o | AQ97: 休 | AR97: a | AS97: 休 | AT97: d | AU97: d | AV97: d | AW97: 休 | AX97: o | AY97: 休 | AZ97: a | BA97: 休 | BB97: d
B98: =B95+1 -> 27 | G98: 介護職員 | M98: A | O98: ー | V98: 日中の勤務時間数 | AA98: =IF(AA97="","",VLOOKUP(AA97,'【記載例】（ユニット型）シフト記号表'!$C$5:$W$46,21,FALSE)) -> - | AB98: =IF(AB97="","",VLOOKUP(AB97,'【記載例】（ユニット型）シフト記号表'!$C$5:$W$46,21,FALSE)) -> 5 | AC98: =IF(AC97="","",VLOOKUP(AC97,'【記載例】（ユニット型）シフト記号表'!$C$5:$W$46,21,FALSE)) -> 5 | AD98: =IF(AD97="","",VLOOKUP(AD97,'【記載例】（ユニット型）シフト記号表'!$C$5:$W$46,21,FALSE)) -> 6 | AE98: =IF(AE97="","",VLOOKUP(AE97,'【記載例】（ユニット型）シフト記号表'!$C$5:$W$46,21,FALSE)) -> 6 | AF98: =IF(AF97="","",VLOOKUP(AF97,'【記載例】（ユニット型）シフト記号表'!$C$5:$W$46,21,FALSE)) -> 6 | AG98: =IF(AG97="","",VLOOKUP(AG97,'【記載例】（ユニット型）シフト記号表'!$C$5:$W$46,21,FALSE)) -> - | AH98: =IF(AH97="","",VLOOKUP(AH97,'【記載例】（ユニット型）シフト記号表'!$C$5:$W$46,21,FALSE)) -> 2 | AI98: =IF(AI97="","",VLOOKUP(AI97,'【記載例】（ユニット型）シフト記号表'!$C$5:$W$46,21,FALSE)) -> - | AJ98: =IF(AJ97="","",VLOOKUP(AJ97,'【記載例】（ユニット型）シフト記号表'!$C$5:$W$46,21,FALSE)) -> 6 | AK98: =IF(AK97="","",VLOOKUP(AK97,'【記載例】（ユニット型）シフト記号表'!$C$5:$W$46,21,FALSE)) -> - | AL98: =IF(AL97="","",VLOOKUP(AL97,'【記載例】（ユニット型）シフト記号表'!$C$5:$W$46,21,FALSE)) -> 5 | AM98: =IF(AM97="","",VLOOKUP(AM97,'【記載例】（ユニット型）シフト記号表'!$C$5:$W$46,21,FALSE)) -> 5 | AN98: =IF(AN97="","",VLOOKUP(AN97,'【記載例】（ユニット型）シフト記号表'!$C$5:$W$46,21,FALSE)) -> - | AO98: =IF(AO97="","",VLOOKUP(AO97,'【記載例】（ユニット型）シフト記号表'!$C$5:$W$46,21,FALSE)) -> - | AP98: =IF(AP97="","",VLOOKUP(AP97,'【記載例】（ユニット型）シフト記号表'!$C$5:$W$46,21,FALSE)) -> 2 | AQ98: =IF(AQ97="","",VLOOKUP(AQ97,'【記載例】（ユニット型）シフト記号表'!$C$5:$W$46,21,FALSE)) -> - | AR98: =IF(AR97="","",VLOOKUP(AR97,'【記載例】（ユニット型）シフト記号表'!$C$5:$W$46,21,FALSE)) -> 6 | AS98: =IF(AS97="","",VLOOKUP(AS97,'【記載例】（ユニット型）シフト記号表'!$C$5:$W$46,21,FALSE)) -> - | AT98: =IF(AT97="","",VLOOKUP(AT97,'【記載例】（ユニット型）シフト記号表'!$C$5:$W$46,21,FALSE)) -> 5 | AU98: =IF(AU97="","",VLOOKUP(AU97,'【記載例】（ユニット型）シフト記号表'!$C$5:$W$46,21,FALSE)) -> 5 | AV98: =IF(AV97="","",VLOOKUP(AV97,'【記載例】（ユニット型）シフト記号表'!$C$5:$W$46,21,FALSE)) -> 5 | AW98: =IF(AW97="","",VLOOKUP(AW97,'【記載例】（ユニット型）シフト記号表'!$C$5:$W$46,21,FALSE)) -> - | AX98: =IF(AX97="","",VLOOKUP(AX97,'【記載例】（ユニット型）シフト記号表'!$C$5:$W$46,21,FALSE)) -> 2 | AY98: =IF(AY97="","",VLOOKUP(AY97,'【記載例】（ユニット型）シフト記号表'!$C$5:$W$46,21,FALSE)) -> - | AZ98: =IF(AZ97="","",VLOOKUP(AZ97,'【記載例】（ユニット型）シフト記号表'!$C$5:$W$46,21,FALSE)) -> 6 | BA98: =IF(BA97="","",VLOOKUP(BA97,'【記載例】（ユニット型）シフト記号表'!$C$5:$W$46,21,FALSE)) -> - | BB98: =IF(BB97="","",VLOOKUP(BB97,'【記載例】（ユニット型）シフト記号表'!$C$5:$W$46,21,FALSE)) -> 5 | BC98: =IF(BC97="","",VLOOKUP(BC97,'【記載例】（ユニット型）シフト記号表'!$C$5:$W$46,21,FALSE)) ->  | BD98: =IF(BD97="","",VLOOKUP(BD97,'【記載例】（ユニット型）シフト記号表'!$C$5:$W$46,21,FALSE)) ->  | BE98: =IF(BE97="","",VLOOKUP(BE97,'【記載例】（ユニット型）シフト記号表'!$C$5:$W$46,21,FALSE)) ->  | BF98: =IF($BI$3="計画",SUM(AA98:BB98),IF($BI$3="実績",SUM(AA98:BE98),"")) -> 82 | BH98: =IF($BI$3="計画",BF98/4,IF($BI$3="実績",(BF98/($BI$7/7)),"")) -> 20.5
I99: =G98 -> 介護職員 | K99: =M98 -> A | V99: 夜勤時間帯の勤務時間数 | AA99: =IF(AA97="","",VLOOKUP(AA97,'【記載例】（ユニット型）シフト記号表'!$C$5:$Y$46,23,FALSE)) -> - | AB99: =IF(AB97="","",VLOOKUP(AB97,'【記載例】（ユニット型）シフト記号表'!$C$5:$Y$46,23,FALSE)) -> 3 | AC99: =IF(AC97="","",VLOOKUP(AC97,'【記載例】（ユニット型）シフト記号表'!$C$5:$Y$46,23,FALSE)) -> 3 | AD99: =IF(AD97="","",VLOOKUP(AD97,'【記載例】（ユニット型）シフト記号表'!$C$5:$Y$46,23,FALSE)) -> 2 | AE99: =IF(AE97="","",VLOOKUP(AE97,'【記載例】（ユニット型）シフト記号表'!$C$5:$Y$46,23,FALSE)) -> 2 | AF99: =IF(AF97="","",VLOOKUP(AF97,'【記載例】（ユニット型）シフト記号表'!$C$5:$Y$46,23,FALSE)) -> 2 | AG99: =IF(AG97="","",VLOOKUP(AG97,'【記載例】（ユニット型）シフト記号表'!$C$5:$Y$46,23,FALSE)) -> - | AH99: =IF(AH97="","",VLOOKUP(AH97,'【記載例】（ユニット型）シフト記号表'!$C$5:$Y$46,23,FALSE)) -> 14 | AI99: =IF(AI97="","",VLOOKUP(AI97,'【記載例】（ユニット型）シフト記号表'!$C$5:$Y$46,23,FALSE)) -> - | AJ99: =IF(AJ97="","",VLOOKUP(AJ97,'【記載例】（ユニット型）シフト記号表'!$C$5:$Y$46,23,FALSE)) -> 2 | AK99: =IF(AK97="","",VLOOKUP(AK97,'【記載例】（ユニット型）シフト記号表'!$C$5:$Y$46,23,FALSE)) -> - | AL99: =IF(AL97="","",VLOOKUP(AL97,'【記載例】（ユニット型）シフト記号表'!$C$5:$Y$46,23,FALSE)) -> 3 | AM99: =IF(AM97="","",VLOOKUP(AM97,'【記載例】（ユニット型）シフト記号表'!$C$5:$Y$46,23,FALSE)) -> 3 | AN99: =IF(AN97="","",VLOOKUP(AN97,'【記載例】（ユニット型）シフト記号表'!$C$5:$Y$46,23,FALSE)) -> - | AO99: =IF(AO97="","",VLOOKUP(AO97,'【記載例】（ユニット型）シフト記号表'!$C$5:$Y$46,23,FALSE)) -> - | AP99: =IF(AP97="","",VLOOKUP(AP97,'【記載例】（ユニット型）シフト記号表'!$C$5:$Y$46,23,FALSE)) -> 14 | AQ99: =IF(AQ97="","",VLOOKUP(AQ97,'【記載例】（ユニット型）シフト記号表'!$C$5:$Y$46,23,FALSE)) -> - | AR99: =IF(AR97="","",VLOOKUP(AR97,'【記載例】（ユニット型）シフト記号表'!$C$5:$Y$46,23,FALSE)) -> 2 | AS99: =IF(AS97="","",VLOOKUP(AS97,'【記載例】（ユニット型）シフト記号表'!$C$5:$Y$46,23,FALSE)) -> - | AT99: =IF(AT97="","",VLOOKUP(AT97,'【記載例】（ユニット型）シフト記号表'!$C$5:$Y$46,23,FALSE)) -> 3 | AU99: =IF(AU97="","",VLOOKUP(AU97,'【記載例】（ユニット型）シフト記号表'!$C$5:$Y$46,23,FALSE)) -> 3 | AV99: =IF(AV97="","",VLOOKUP(AV97,'【記載例】（ユニット型）シフト記号表'!$C$5:$Y$46,23,FALSE)) -> 3 | AW99: =IF(AW97="","",VLOOKUP(AW97,'【記載例】（ユニット型）シフト記号表'!$C$5:$Y$46,23,FALSE)) -> - | AX99: =IF(AX97="","",VLOOKUP(AX97,'【記載例】（ユニット型）シフト記号表'!$C$5:$Y$46,23,FALSE)) -> 14 | AY99: =IF(AY97="","",VLOOKUP(AY97,'【記載例】（ユニット型）シフト記号表'!$C$5:$Y$46,23,FALSE)) -> - | AZ99: =IF(AZ97="","",VLOOKUP(AZ97,'【記載例】（ユニット型）シフト記号表'!$C$5:$Y$46,23,FALSE)) -> 2 | BA99: =IF(BA97="","",VLOOKUP(BA97,'【記載例】（ユニット型）シフト記号表'!$C$5:$Y$46,23,FALSE)) -> - | BB99: =IF(BB97="","",VLOOKUP(BB97,'【記載例】（ユニット型）シフト記号表'!$C$5:$Y$46,23,FALSE)) -> 3 | BC99: =IF(BC97="","",VLOOKUP(BC97,'【記載例】（ユニット型）シフト記号表'!$C$5:$Y$46,23,FALSE)) ->  | BD99: =IF(BD97="","",VLOOKUP(BD97,'【記載例】（ユニット型）シフト記号表'!$C$5:$Y$46,23,FALSE)) ->  | BE99: =IF(BE97="","",VLOOKUP(BE97,'【記載例】（ユニット型）シフト記号表'!$C$5:$Y$46,23,FALSE)) ->  | BF99: =IF($BI$3="計画",SUM(AA99:BB99),IF($BI$3="実績",SUM(AA99:BE99),"")) -> 78 | BH99: =IF($BI$3="計画",BF99/4,IF($BI$3="実績",(BF99/($BI$7/7)),"")) -> 19.5
D100: ユニット４ | S100: ○○ CC次郎 | V100: シフト記号 | AA100: d | AB100: 休 | AC100: 休 | AD100: d | AE100: 休 | AF100: d | AG100: d | AH100: 休 | AI100: d | AJ100: 休 | AK100: 休 | AL100: d | AM100: a | AN100: a | AO100: d | AP100: 休 | AQ100: d | AR100: 休 | AS100: d | AT100: 休 | AU100: a | AV100: a | AW100: d | AX100: 休 | AY100: d | AZ100: 休 | BA100: a | BB100: 休
B101: =B98+1 -> 28 | G101: 介護職員 | M101: C | O101: ー | V101: 日中の勤務時間数 | AA101: =IF(AA100="","",VLOOKUP(AA100,'【記載例】（ユニット型）シフト記号表'!$C$5:$W$46,21,FALSE)) -> 5 | AB101: =IF(AB100="","",VLOOKUP(AB100,'【記載例】（ユニット型）シフト記号表'!$C$5:$W$46,21,FALSE)) -> - | AC101: =IF(AC100="","",VLOOKUP(AC100,'【記載例】（ユニット型）シフト記号表'!$C$5:$W$46,21,FALSE)) -> - | AD101: =IF(AD100="","",VLOOKUP(AD100,'【記載例】（ユニット型）シフト記号表'!$C$5:$W$46,21,FALSE)) -> 5 | AE101: =IF(AE100="","",VLOOKUP(AE100,'【記載例】（ユニット型）シフト記号表'!$C$5:$W$46,21,FALSE)) -> - | AF101: =IF(AF100="","",VLOOKUP(AF100,'【記載例】（ユニット型）シフト記号表'!$C$5:$W$46,21,FALSE)) -> 5 | AG101: =IF(AG100="","",VLOOKUP(AG100,'【記載例】（ユニット型）シフト記号表'!$C$5:$W$46,21,FALSE)) -> 5 | AH101: =IF(AH100="","",VLOOKUP(AH100,'【記載例】（ユニット型）シフト記号表'!$C$5:$W$46,21,FALSE)) -> - | AI101: =IF(AI100="","",VLOOKUP(AI100,'【記載例】（ユニット型）シフト記号表'!$C$5:$W$46,21,FALSE)) -> 5 | AJ101: =IF(AJ100="","",VLOOKUP(AJ100,'【記載例】（ユニット型）シフト記号表'!$C$5:$W$46,21,FALSE)) -> - | AK101: =IF(AK100="","",VLOOKUP(AK100,'【記載例】（ユニット型）シフト記号表'!$C$5:$W$46,21,FALSE)) -> - | AL101: =IF(AL100="","",VLOOKUP(AL100,'【記載例】（ユニット型）シフト記号表'!$C$5:$W$46,21,FALSE)) -> 5 | AM101: =IF(AM100="","",VLOOKUP(AM100,'【記載例】（ユニット型）シフト記号表'!$C$5:$W$46,21,FALSE)) -> 6 | AN101: =IF(AN100="","",VLOOKUP(AN100,'【記載例】（ユニット型）シフト記号表'!$C$5:$W$46,21,FALSE)) -> 6 | AO101: =IF(AO100="","",VLOOKUP(AO100,'【記載例】（ユニット型）シフト記号表'!$C$5:$W$46,21,FALSE)) -> 5 | AP101: =IF(AP100="","",VLOOKUP(AP100,'【記載例】（ユニット型）シフト記号表'!$C$5:$W$46,21,FALSE)) -> - | AQ101: =IF(AQ100="","",VLOOKUP(AQ100,'【記載例】（ユニット型）シフト記号表'!$C$5:$W$46,21,FALSE)) -> 5 | AR101: =IF(AR100="","",VLOOKUP(AR100,'【記載例】（ユニット型）シフト記号表'!$C$5:$W$46,21,FALSE)) -> - | AS101: =IF(AS100="","",VLOOKUP(AS100,'【記載例】（ユニット型）シフト記号表'!$C$5:$W$46,21,FALSE)) -> 5 | AT101: =IF(AT100="","",VLOOKUP(AT100,'【記載例】（ユニット型）シフト記号表'!$C$5:$W$46,21,FALSE)) -> - | AU101: =IF(AU100="","",VLOOKUP(AU100,'【記載例】（ユニット型）シフト記号表'!$C$5:$W$46,21,FALSE)) -> 6 | AV101: =IF(AV100="","",VLOOKUP(AV100,'【記載例】（ユニット型）シフト記号表'!$C$5:$W$46,21,FALSE)) -> 6 | AW101: =IF(AW100="","",VLOOKUP(AW100,'【記載例】（ユニット型）シフト記号表'!$C$5:$W$46,21,FALSE)) -> 5 | AX101: =IF(AX100="","",VLOOKUP(AX100,'【記載例】（ユニット型）シフト記号表'!$C$5:$W$46,21,FALSE)) -> - | AY101: =IF(AY100="","",VLOOKUP(AY100,'【記載例】（ユニット型）シフト記号表'!$C$5:$W$46,21,FALSE)) -> 5 | AZ101: =IF(AZ100="","",VLOOKUP(AZ100,'【記載例】（ユニット型）シフト記号表'!$C$5:$W$46,21,FALSE)) -> - | BA101: =IF(BA100="","",VLOOKUP(BA100,'【記載例】（ユニット型）シフト記号表'!$C$5:$W$46,21,FALSE)) -> 6 | BB101: =IF(BB100="","",VLOOKUP(BB100,'【記載例】（ユニット型）シフト記号表'!$C$5:$W$46,21,FALSE)) -> - | BC101: =IF(BC100="","",VLOOKUP(BC100,'【記載例】（ユニット型）シフト記号表'!$C$5:$W$46,21,FALSE)) ->  | BD101: =IF(BD100="","",VLOOKUP(BD100,'【記載例】（ユニット型）シフト記号表'!$C$5:$W$46,21,FALSE)) ->  | BE101: =IF(BE100="","",VLOOKUP(BE100,'【記載例】（ユニット型）シフト記号表'!$C$5:$W$46,21,FALSE)) ->  | BF101: =IF($BI$3="計画",SUM(AA101:BB101),IF($BI$3="実績",SUM(AA101:BE101),"")) -> 85 | BH101: =IF($BI$3="計画",BF101/4,IF($BI$3="実績",(BF101/($BI$7/7)),"")) -> 21.25
I102: =G101 -> 介護職員 | K102: =M101 -> C | V102: 夜勤時間帯の勤務時間数 | AA102: =IF(AA100="","",VLOOKUP(AA100,'【記載例】（ユニット型）シフト記号表'!$C$5:$Y$46,23,FALSE)) -> 3 | AB102: =IF(AB100="","",VLOOKUP(AB100,'【記載例】（ユニット型）シフト記号表'!$C$5:$Y$46,23,FALSE)) -> - | AC102: =IF(AC100="","",VLOOKUP(AC100,'【記載例】（ユニット型）シフト記号表'!$C$5:$Y$46,23,FALSE)) -> - | AD102: =IF(AD100="","",VLOOKUP(AD100,'【記載例】（ユニット型）シフト記号表'!$C$5:$Y$46,23,FALSE)) -> 3 | AE102: =IF(AE100="","",VLOOKUP(AE100,'【記載例】（ユニット型）シフト記号表'!$C$5:$Y$46,23,FALSE)) -> - | AF102: =IF(AF100="","",VLOOKUP(AF100,'【記載例】（ユニット型）シフト記号表'!$C$5:$Y$46,23,FALSE)) -> 3 | AG102: =IF(AG100="","",VLOOKUP(AG100,'【記載例】（ユニット型）シフト記号表'!$C$5:$Y$46,23,FALSE)) -> 3 | AH102: =IF(AH100="","",VLOOKUP(AH100,'【記載例】（ユニット型）シフト記号表'!$C$5:$Y$46,23,FALSE)) -> - | AI102: =IF(AI100="","",VLOOKUP(AI100,'【記載例】（ユニット型）シフト記号表'!$C$5:$Y$46,23,FALSE)) -> 3 | AJ102: =IF(AJ100="","",VLOOKUP(AJ100,'【記載例】（ユニット型）シフト記号表'!$C$5:$Y$46,23,FALSE)) -> - | AK102: =IF(AK100="","",VLOOKUP(AK100,'【記載例】（ユニット型）シフト記号表'!$C$5:$Y$46,23,FALSE)) -> - | AL102: =IF(AL100="","",VLOOKUP(AL100,'【記載例】（ユニット型）シフト記号表'!$C$5:$Y$46,23,FALSE)) -> 3 | AM102: =IF(AM100="","",VLOOKUP(AM100,'【記載例】（ユニット型）シフト記号表'!$C$5:$Y$46,23,FALSE)) -> 2 | AN102: =IF(AN100="","",VLOOKUP(AN100,'【記載例】（ユニット型）シフト記号表'!$C$5:$Y$46,23,FALSE)) -> 2 | AO102: =IF(AO100="","",VLOOKUP(AO100,'【記載例】（ユニット型）シフト記号表'!$C$5:$Y$46,23,FALSE)) -> 3 | AP102: =IF(AP100="","",VLOOKUP(AP100,'【記載例】（ユニット型）シフト記号表'!$C$5:$Y$46,23,FALSE)) -> - | AQ102: =IF(AQ100="","",VLOOKUP(AQ100,'【記載例】（ユニット型）シフト記号表'!$C$5:$Y$46,23,FALSE)) -> 3 | AR102: =IF(AR100="","",VLOOKUP(AR100,'【記載例】（ユニット型）シフト記号表'!$C$5:$Y$46,23,FALSE)) -> - | AS102: =IF(AS100="","",VLOOKUP(AS100,'【記載例】（ユニット型）シフト記号表'!$C$5:$Y$46,23,FALSE)) -> 3 | AT102: =IF(AT100="","",VLOOKUP(AT100,'【記載例】（ユニット型）シフト記号表'!$C$5:$Y$46,23,FALSE)) -> - | AU102: =IF(AU100="","",VLOOKUP(AU100,'【記載例】（ユニット型）シフト記号表'!$C$5:$Y$46,23,FALSE)) -> 2 | AV102: =IF(AV100="","",VLOOKUP(AV100,'【記載例】（ユニット型）シフト記号表'!$C$5:$Y$46,23,FALSE)) -> 2 | AW102: =IF(AW100="","",VLOOKUP(AW100,'【記載例】（ユニット型）シフト記号表'!$C$5:$Y$46,23,FALSE)) -> 3 | AX102: =IF(AX100="","",VLOOKUP(AX100,'【記載例】（ユニット型）シフト記号表'!$C$5:$Y$46,23,FALSE)) -> - | AY102: =IF(AY100="","",VLOOKUP(AY100,'【記載例】（ユニット型）シフト記号表'!$C$5:$Y$46,23,FALSE)) -> 3 | AZ102: =IF(AZ100="","",VLOOKUP(AZ100,'【記載例】（ユニット型）シフト記号表'!$C$5:$Y$46,23,FALSE)) -> - | BA102: =IF(BA100="","",VLOOKUP(BA100,'【記載例】（ユニット型）シフト記号表'!$C$5:$Y$46,23,FALSE)) -> 2 | BB102: =IF(BB100="","",VLOOKUP(BB100,'【記載例】（ユニット型）シフト記号表'!$C$5:$Y$46,23,FALSE)) -> - | BC102: =IF(BC100="","",VLOOKUP(BC100,'【記載例】（ユニット型）シフト記号表'!$C$5:$Y$46,23,FALSE)) ->  | BD102: =IF(BD100="","",VLOOKUP(BD100,'【記載例】（ユニット型）シフト記号表'!$C$5:$Y$46,23,FALSE)) ->  | BE102: =IF(BE100="","",VLOOKUP(BE100,'【記載例】（ユニット型）シフト記号表'!$C$5:$Y$46,23,FALSE)) ->  | BF102: =IF($BI$3="計画",SUM(AA102:BB102),IF($BI$3="実績",SUM(AA102:BE102),"")) -> 43 | BH102: =IF($BI$3="計画",BF102/4,IF($BI$3="実績",(BF102/($BI$7/7)),"")) -> 10.75
V103: シフト記号
B104: =B101+1 -> 29 | V104: 日中の勤務時間数 | AA104: =IF(AA103="","",VLOOKUP(AA103,'【記載例】（ユニット型）シフト記号表'!$C$5:$W$46,21,FALSE)) ->  | AB104: =IF(AB103="","",VLOOKUP(AB103,'【記載例】（ユニット型）シフト記号表'!$C$5:$W$46,21,FALSE)) ->  | AC104: =IF(AC103="","",VLOOKUP(AC103,'【記載例】（ユニット型）シフト記号表'!$C$5:$W$46,21,FALSE)) ->  | AD104: =IF(AD103="","",VLOOKUP(AD103,'【記載例】（ユニット型）シフト記号表'!$C$5:$W$46,21,FALSE)) ->  | AE104: =IF(AE103="","",VLOOKUP(AE103,'【記載例】（ユニット型）シフト記号表'!$C$5:$W$46,21,FALSE)) ->  | AF104: =IF(AF103="","",VLOOKUP(AF103,'【記載例】（ユニット型）シフト記号表'!$C$5:$W$46,21,FALSE)) ->  | AG104: =IF(AG103="","",VLOOKUP(AG103,'【記載例】（ユニット型）シフト記号表'!$C$5:$W$46,21,FALSE)) ->  | AH104: =IF(AH103="","",VLOOKUP(AH103,'【記載例】（ユニット型）シフト記号表'!$C$5:$W$46,21,FALSE)) ->  | AI104: =IF(AI103="","",VLOOKUP(AI103,'【記載例】（ユニット型）シフト記号表'!$C$5:$W$46,21,FALSE)) ->  | AJ104: =IF(AJ103="","",VLOOKUP(AJ103,'【記載例】（ユニット型）シフト記号表'!$C$5:$W$46,21,FALSE)) ->  | AK104: =IF(AK103="","",VLOOKUP(AK103,'【記載例】（ユニット型）シフト記号表'!$C$5:$W$46,21,FALSE)) ->  | AL104: =IF(AL103="","",VLOOKUP(AL103,'【記載例】（ユニット型）シフト記号表'!$C$5:$W$46,21,FALSE)) ->  | AM104: =IF(AM103="","",VLOOKUP(AM103,'【記載例】（ユニット型）シフト記号表'!$C$5:$W$46,21,FALSE)) ->  | AN104: =IF(AN103="","",VLOOKUP(AN103,'【記載例】（ユニット型）シフト記号表'!$C$5:$W$46,21,FALSE)) ->  | AO104: =IF(AO103="","",VLOOKUP(AO103,'【記載例】（ユニット型）シフト記号表'!$C$5:$W$46,21,FALSE)) ->  | AP104: =IF(AP103="","",VLOOKUP(AP103,'【記載例】（ユニット型）シフト記号表'!$C$5:$W$46,21,FALSE)) ->  | AQ104: =IF(AQ103="","",VLOOKUP(AQ103,'【記載例】（ユニット型）シフト記号表'!$C$5:$W$46,21,FALSE)) ->  | AR104: =IF(AR103="","",VLOOKUP(AR103,'【記載例】（ユニット型）シフト記号表'!$C$5:$W$46,21,FALSE)) ->  | AS104: =IF(AS103="","",VLOOKUP(AS103,'【記載例】（ユニット型）シフト記号表'!$C$5:$W$46,21,FALSE)) ->  | AT104: =IF(AT103="","",VLOOKUP(AT103,'【記載例】（ユニット型）シフト記号表'!$C$5:$W$46,21,FALSE)) ->  | AU104: =IF(AU103="","",VLOOKUP(AU103,'【記載例】（ユニット型）シフト記号表'!$C$5:$W$46,21,FALSE)) ->  | AV104: =IF(AV103="","",VLOOKUP(AV103,'【記載例】（ユニット型）シフト記号表'!$C$5:$W$46,21,FALSE)) ->  | AW104: =IF(AW103="","",VLOOKUP(AW103,'【記載例】（ユニット型）シフト記号表'!$C$5:$W$46,21,FALSE)) ->  | AX104: =IF(AX103="","",VLOOKUP(AX103,'【記載例】（ユニット型）シフト記号表'!$C$5:$W$46,21,FALSE)) ->  | AY104: =IF(AY103="","",VLOOKUP(AY103,'【記載例】（ユニット型）シフト記号表'!$C$5:$W$46,21,FALSE)) ->  | AZ104: =IF(AZ103="","",VLOOKUP(AZ103,'【記載例】（ユニット型）シフト記号表'!$C$5:$W$46,21,FALSE)) ->  | BA104: =IF(BA103="","",VLOOKUP(BA103,'【記載例】（ユニット型）シフト記号表'!$C$5:$W$46,21,FALSE)) ->  | BB104: =IF(BB103="","",VLOOKUP(BB103,'【記載例】（ユニット型）シフト記号表'!$C$5:$W$46,21,FALSE)) ->  | BC104: =IF(BC103="","",VLOOKUP(BC103,'【記載例】（ユニット型）シフト記号表'!$C$5:$W$46,21,FALSE)) ->  | BD104: =IF(BD103="","",VLOOKUP(BD103,'【記載例】（ユニット型）シフト記号表'!$C$5:$W$46,21,FALSE)) ->  | BE104: =IF(BE103="","",VLOOKUP(BE103,'【記載例】（ユニット型）シフト記号表'!$C$5:$W$46,21,FALSE)) ->  | BF104: =IF($BI$3="計画",SUM(AA104:BB104),IF($BI$3="実績",SUM(AA104:BE104),"")) -> 0 | BH104: =IF($BI$3="計画",BF104/4,IF($BI$3="実績",(BF104/($BI$7/7)),"")) -> 0
I105: =G104 -> 0 | K105: =M104 -> 0 | V105: 夜勤時間帯の勤務時間数 | AA105: =IF(AA103="","",VLOOKUP(AA103,'【記載例】（ユニット型）シフト記号表'!$C$5:$Y$46,23,FALSE)) ->  | AB105: =IF(AB103="","",VLOOKUP(AB103,'【記載例】（ユニット型）シフト記号表'!$C$5:$Y$46,23,FALSE)) ->  | AC105: =IF(AC103="","",VLOOKUP(AC103,'【記載例】（ユニット型）シフト記号表'!$C$5:$Y$46,23,FALSE)) ->  | AD105: =IF(AD103="","",VLOOKUP(AD103,'【記載例】（ユニット型）シフト記号表'!$C$5:$Y$46,23,FALSE)) ->  | AE105: =IF(AE103="","",VLOOKUP(AE103,'【記載例】（ユニット型）シフト記号表'!$C$5:$Y$46,23,FALSE)) ->  | AF105: =IF(AF103="","",VLOOKUP(AF103,'【記載例】（ユニット型）シフト記号表'!$C$5:$Y$46,23,FALSE)) ->  | AG105: =IF(AG103="","",VLOOKUP(AG103,'【記載例】（ユニット型）シフト記号表'!$C$5:$Y$46,23,FALSE)) ->  | AH105: =IF(AH103="","",VLOOKUP(AH103,'【記載例】（ユニット型）シフト記号表'!$C$5:$Y$46,23,FALSE)) ->  | AI105: =IF(AI103="","",VLOOKUP(AI103,'【記載例】（ユニット型）シフト記号表'!$C$5:$Y$46,23,FALSE)) ->  | AJ105: =IF(AJ103="","",VLOOKUP(AJ103,'【記載例】（ユニット型）シフト記号表'!$C$5:$Y$46,23,FALSE)) ->  | AK105: =IF(AK103="","",VLOOKUP(AK103,'【記載例】（ユニット型）シフト記号表'!$C$5:$Y$46,23,FALSE)) ->  | AL105: =IF(AL103="","",VLOOKUP(AL103,'【記載例】（ユニット型）シフト記号表'!$C$5:$Y$46,23,FALSE)) ->  | AM105: =IF(AM103="","",VLOOKUP(AM103,'【記載例】（ユニット型）シフト記号表'!$C$5:$Y$46,23,FALSE)) ->  | AN105: =IF(AN103="","",VLOOKUP(AN103,'【記載例】（ユニット型）シフト記号表'!$C$5:$Y$46,23,FALSE)) ->  | AO105: =IF(AO103="","",VLOOKUP(AO103,'【記載例】（ユニット型）シフト記号表'!$C$5:$Y$46,23,FALSE)) ->  | AP105: =IF(AP103="","",VLOOKUP(AP103,'【記載例】（ユニット型）シフト記号表'!$C$5:$Y$46,23,FALSE)) ->  | AQ105: =IF(AQ103="","",VLOOKUP(AQ103,'【記載例】（ユニット型）シフト記号表'!$C$5:$Y$46,23,FALSE)) ->  | AR105: =IF(AR103="","",VLOOKUP(AR103,'【記載例】（ユニット型）シフト記号表'!$C$5:$Y$46,23,FALSE)) ->  | AS105: =IF(AS103="","",VLOOKUP(AS103,'【記載例】（ユニット型）シフト記号表'!$C$5:$Y$46,23,FALSE)) ->  | AT105: =IF(AT103="","",VLOOKUP(AT103,'【記載例】（ユニット型）シフト記号表'!$C$5:$Y$46,23,FALSE)) ->  | AU105: =IF(AU103="","",VLOOKUP(AU103,'【記載例】（ユニット型）シフト記号表'!$C$5:$Y$46,23,FALSE)) ->  | AV105: =IF(AV103="","",VLOOKUP(AV103,'【記載例】（ユニット型）シフト記号表'!$C$5:$Y$46,23,FALSE)) ->  | AW105: =IF(AW103="","",VLOOKUP(AW103,'【記載例】（ユニット型）シフト記号表'!$C$5:$Y$46,23,FALSE)) ->  | AX105: =IF(AX103="","",VLOOKUP(AX103,'【記載例】（ユニット型）シフト記号表'!$C$5:$Y$46,23,FALSE)) ->  | AY105: =IF(AY103="","",VLOOKUP(AY103,'【記載例】（ユニット型）シフト記号表'!$C$5:$Y$46,23,FALSE)) ->  | AZ105: =IF(AZ103="","",VLOOKUP(AZ103,'【記載例】（ユニット型）シフト記号表'!$C$5:$Y$46,23,FALSE)) ->  | BA105: =IF(BA103="","",VLOOKUP(BA103,'【記載例】（ユニット型）シフト記号表'!$C$5:$Y$46,23,FALSE)) ->  | BB105: =IF(BB103="","",VLOOKUP(BB103,'【記載例】（ユニット型）シフト記号表'!$C$5:$Y$46,23,FALSE)) ->  | BC105: =IF(BC103="","",VLOOKUP(BC103,'【記載例】（ユニット型）シフト記号表'!$C$5:$Y$46,23,FALSE)) ->  | BD105: =IF(BD103="","",VLOOKUP(BD103,'【記載例】（ユニット型）シフト記号表'!$C$5:$Y$46,23,FALSE)) ->  | BE105: =IF(BE103="","",VLOOKUP(BE103,'【記載例】（ユニット型）シフト記号表'!$C$5:$Y$46,23,FALSE)) ->  | BF105: =IF($BI$3="計画",SUM(AA105:BB105),IF($BI$3="実績",SUM(AA105:BE105),"")) -> 0 | BH105: =IF($BI$3="計画",BF105/4,IF($BI$3="実績",(BF105/($BI$7/7)),"")) -> 0
V106: シフト記号
B107: =B104+1 -> 30 | V107: 日中の勤務時間数 | AA107: =IF(AA106="","",VLOOKUP(AA106,'【記載例】（ユニット型）シフト記号表'!$C$5:$W$46,21,FALSE)) ->  | AB107: =IF(AB106="","",VLOOKUP(AB106,'【記載例】（ユニット型）シフト記号表'!$C$5:$W$46,21,FALSE)) ->  | AC107: =IF(AC106="","",VLOOKUP(AC106,'【記載例】（ユニット型）シフト記号表'!$C$5:$W$46,21,FALSE)) ->  | AD107: =IF(AD106="","",VLOOKUP(AD106,'【記載例】（ユニット型）シフト記号表'!$C$5:$W$46,21,FALSE)) ->  | AE107: =IF(AE106="","",VLOOKUP(AE106,'【記載例】（ユニット型）シフト記号表'!$C$5:$W$46,21,FALSE)) ->  | AF107: =IF(AF106="","",VLOOKUP(AF106,'【記載例】（ユニット型）シフト記号表'!$C$5:$W$46,21,FALSE)) ->  | AG107: =IF(AG106="","",VLOOKUP(AG106,'【記載例】（ユニット型）シフト記号表'!$C$5:$W$46,21,FALSE)) ->  | AH107: =IF(AH106="","",VLOOKUP(AH106,'【記載例】（ユニット型）シフト記号表'!$C$5:$W$46,21,FALSE)) ->  | AI107: =IF(AI106="","",VLOOKUP(AI106,'【記載例】（ユニット型）シフト記号表'!$C$5:$W$46,21,FALSE)) ->  | AJ107: =IF(AJ106="","",VLOOKUP(AJ106,'【記載例】（ユニット型）シフト記号表'!$C$5:$W$46,21,FALSE)) ->  | AK107: =IF(AK106="","",VLOOKUP(AK106,'【記載例】（ユニット型）シフト記号表'!$C$5:$W$46,21,FALSE)) ->  | AL107: =IF(AL106="","",VLOOKUP(AL106,'【記載例】（ユニット型）シフト記号表'!$C$5:$W$46,21,FALSE)) ->  | AM107: =IF(AM106="","",VLOOKUP(AM106,'【記載例】（ユニット型）シフト記号表'!$C$5:$W$46,21,FALSE)) ->  | AN107: =IF(AN106="","",VLOOKUP(AN106,'【記載例】（ユニット型）シフト記号表'!$C$5:$W$46,21,FALSE)) ->  | AO107: =IF(AO106="","",VLOOKUP(AO106,'【記載例】（ユニット型）シフト記号表'!$C$5:$W$46,21,FALSE)) ->  | AP107: =IF(AP106="","",VLOOKUP(AP106,'【記載例】（ユニット型）シフト記号表'!$C$5:$W$46,21,FALSE)) ->  | AQ107: =IF(AQ106="","",VLOOKUP(AQ106,'【記載例】（ユニット型）シフト記号表'!$C$5:$W$46,21,FALSE)) ->  | AR107: =IF(AR106="","",VLOOKUP(AR106,'【記載例】（ユニット型）シフト記号表'!$C$5:$W$46,21,FALSE)) ->  | AS107: =IF(AS106="","",VLOOKUP(AS106,'【記載例】（ユニット型）シフト記号表'!$C$5:$W$46,21,FALSE)) ->  | AT107: =IF(AT106="","",VLOOKUP(AT106,'【記載例】（ユニット型）シフト記号表'!$C$5:$W$46,21,FALSE)) ->  | AU107: =IF(AU106="","",VLOOKUP(AU106,'【記載例】（ユニット型）シフト記号表'!$C$5:$W$46,21,FALSE)) ->  | AV107: =IF(AV106="","",VLOOKUP(AV106,'【記載例】（ユニット型）シフト記号表'!$C$5:$W$46,21,FALSE)) ->  | AW107: =IF(AW106="","",VLOOKUP(AW106,'【記載例】（ユニット型）シフト記号表'!$C$5:$W$46,21,FALSE)) ->  | AX107: =IF(AX106="","",VLOOKUP(AX106,'【記載例】（ユニット型）シフト記号表'!$C$5:$W$46,21,FALSE)) ->  | AY107: =IF(AY106="","",VLOOKUP(AY106,'【記載例】（ユニット型）シフト記号表'!$C$5:$W$46,21,FALSE)) ->  | AZ107: =IF(AZ106="","",VLOOKUP(AZ106,'【記載例】（ユニット型）シフト記号表'!$C$5:$W$46,21,FALSE)) ->  | BA107: =IF(BA106="","",VLOOKUP(BA106,'【記載例】（ユニット型）シフト記号表'!$C$5:$W$46,21,FALSE)) ->  | BB107: =IF(BB106="","",VLOOKUP(BB106,'【記載例】（ユニット型）シフト記号表'!$C$5:$W$46,21,FALSE)) ->  | BC107: =IF(BC106="","",VLOOKUP(BC106,'【記載例】（ユニット型）シフト記号表'!$C$5:$W$46,21,FALSE)) ->  | BD107: =IF(BD106="","",VLOOKUP(BD106,'【記載例】（ユニット型）シフト記号表'!$C$5:$W$46,21,FALSE)) ->  | BE107: =IF(BE106="","",VLOOKUP(BE106,'【記載例】（ユニット型）シフト記号表'!$C$5:$W$46,21,FALSE)) ->  | BF107: =IF($BI$3="計画",SUM(AA107:BB107),IF($BI$3="実績",SUM(AA107:BE107),"")) -> 0 | BH107: =IF($BI$3="計画",BF107/4,IF($BI$3="実績",(BF107/($BI$7/7)),"")) -> 0
I108: =G107 -> 0 | K108: =M107 -> 0 | V108: 夜勤時間帯の勤務時間数 | AA108: =IF(AA106="","",VLOOKUP(AA106,'【記載例】（ユニット型）シフト記号表'!$C$5:$Y$46,23,FALSE)) ->  | AB108: =IF(AB106="","",VLOOKUP(AB106,'【記載例】（ユニット型）シフト記号表'!$C$5:$Y$46,23,FALSE)) ->  | AC108: =IF(AC106="","",VLOOKUP(AC106,'【記載例】（ユニット型）シフト記号表'!$C$5:$Y$46,23,FALSE)) ->  | AD108: =IF(AD106="","",VLOOKUP(AD106,'【記載例】（ユニット型）シフト記号表'!$C$5:$Y$46,23,FALSE)) ->  | AE108: =IF(AE106="","",VLOOKUP(AE106,'【記載例】（ユニット型）シフト記号表'!$C$5:$Y$46,23,FALSE)) ->  | AF108: =IF(AF106="","",VLOOKUP(AF106,'【記載例】（ユニット型）シフト記号表'!$C$5:$Y$46,23,FALSE)) ->  | AG108: =IF(AG106="","",VLOOKUP(AG106,'【記載例】（ユニット型）シフト記号表'!$C$5:$Y$46,23,FALSE)) ->  | AH108: =IF(AH106="","",VLOOKUP(AH106,'【記載例】（ユニット型）シフト記号表'!$C$5:$Y$46,23,FALSE)) ->  | AI108: =IF(AI106="","",VLOOKUP(AI106,'【記載例】（ユニット型）シフト記号表'!$C$5:$Y$46,23,FALSE)) ->  | AJ108: =IF(AJ106="","",VLOOKUP(AJ106,'【記載例】（ユニット型）シフト記号表'!$C$5:$Y$46,23,FALSE)) ->  | AK108: =IF(AK106="","",VLOOKUP(AK106,'【記載例】（ユニット型）シフト記号表'!$C$5:$Y$46,23,FALSE)) ->  | AL108: =IF(AL106="","",VLOOKUP(AL106,'【記載例】（ユニット型）シフト記号表'!$C$5:$Y$46,23,FALSE)) ->  | AM108: =IF(AM106="","",VLOOKUP(AM106,'【記載例】（ユニット型）シフト記号表'!$C$5:$Y$46,23,FALSE)) ->  | AN108: =IF(AN106="","",VLOOKUP(AN106,'【記載例】（ユニット型）シフト記号表'!$C$5:$Y$46,23,FALSE)) ->  | AO108: =IF(AO106="","",VLOOKUP(AO106,'【記載例】（ユニット型）シフト記号表'!$C$5:$Y$46,23,FALSE)) ->  | AP108: =IF(AP106="","",VLOOKUP(AP106,'【記載例】（ユニット型）シフト記号表'!$C$5:$Y$46,23,FALSE)) ->  | AQ108: =IF(AQ106="","",VLOOKUP(AQ106,'【記載例】（ユニット型）シフト記号表'!$C$5:$Y$46,23,FALSE)) ->  | AR108: =IF(AR106="","",VLOOKUP(AR106,'【記載例】（ユニット型）シフト記号表'!$C$5:$Y$46,23,FALSE)) ->  | AS108: =IF(AS106="","",VLOOKUP(AS106,'【記載例】（ユニット型）シフト記号表'!$C$5:$Y$46,23,FALSE)) ->  | AT108: =IF(AT106="","",VLOOKUP(AT106,'【記載例】（ユニット型）シフト記号表'!$C$5:$Y$46,23,FALSE)) ->  | AU108: =IF(AU106="","",VLOOKUP(AU106,'【記載例】（ユニット型）シフト記号表'!$C$5:$Y$46,23,FALSE)) ->  | AV108: =IF(AV106="","",VLOOKUP(AV106,'【記載例】（ユニット型）シフト記号表'!$C$5:$Y$46,23,FALSE)) ->  | AW108: =IF(AW106="","",VLOOKUP(AW106,'【記載例】（ユニット型）シフト記号表'!$C$5:$Y$46,23,FALSE)) ->  | AX108: =IF(AX106="","",VLOOKUP(AX106,'【記載例】（ユニット型）シフト記号表'!$C$5:$Y$46,23,FALSE)) ->  | AY108: =IF(AY106="","",VLOOKUP(AY106,'【記載例】（ユニット型）シフト記号表'!$C$5:$Y$46,23,FALSE)) ->  | AZ108: =IF(AZ106="","",VLOOKUP(AZ106,'【記載例】（ユニット型）シフト記号表'!$C$5:$Y$46,23,FALSE)) ->  | BA108: =IF(BA106="","",VLOOKUP(BA106,'【記載例】（ユニット型）シフト記号表'!$C$5:$Y$46,23,FALSE)) ->  | BB108: =IF(BB106="","",VLOOKUP(BB106,'【記載例】（ユニット型）シフト記号表'!$C$5:$Y$46,23,FALSE)) ->  | BC108: =IF(BC106="","",VLOOKUP(BC106,'【記載例】（ユニット型）シフト記号表'!$C$5:$Y$46,23,FALSE)) ->  | BD108: =IF(BD106="","",VLOOKUP(BD106,'【記載例】（ユニット型）シフト記号表'!$C$5:$Y$46,23,FALSE)) ->  | BE108: =IF(BE106="","",VLOOKUP(BE106,'【記載例】（ユニット型）シフト記号表'!$C$5:$Y$46,23,FALSE)) ->  | BF108: =IF($BI$3="計画",SUM(AA108:BB108),IF($BI$3="実績",SUM(AA108:BE108),"")) -> 0 | BH108: =IF($BI$3="計画",BF108/4,IF($BI$3="実績",(BF108/($BI$7/7)),"")) -> 0
V109: シフト記号
B110: =B107+1 -> 31 | V110: 日中の勤務時間数 | AA110: =IF(AA109="","",VLOOKUP(AA109,'【記載例】（ユニット型）シフト記号表'!$C$5:$W$46,21,FALSE)) ->  | AB110: =IF(AB109="","",VLOOKUP(AB109,'【記載例】（ユニット型）シフト記号表'!$C$5:$W$46,21,FALSE)) ->  | AC110: =IF(AC109="","",VLOOKUP(AC109,'【記載例】（ユニット型）シフト記号表'!$C$5:$W$46,21,FALSE)) ->  | AD110: =IF(AD109="","",VLOOKUP(AD109,'【記載例】（ユニット型）シフト記号表'!$C$5:$W$46,21,FALSE)) ->  | AE110: =IF(AE109="","",VLOOKUP(AE109,'【記載例】（ユニット型）シフト記号表'!$C$5:$W$46,21,FALSE)) ->  | AF110: =IF(AF109="","",VLOOKUP(AF109,'【記載例】（ユニット型）シフト記号表'!$C$5:$W$46,21,FALSE)) ->  | AG110: =IF(AG109="","",VLOOKUP(AG109,'【記載例】（ユニット型）シフト記号表'!$C$5:$W$46,21,FALSE)) ->  | AH110: =IF(AH109="","",VLOOKUP(AH109,'【記載例】（ユニット型）シフト記号表'!$C$5:$W$46,21,FALSE)) ->  | AI110: =IF(AI109="","",VLOOKUP(AI109,'【記載例】（ユニット型）シフト記号表'!$C$5:$W$46,21,FALSE)) ->  | AJ110: =IF(AJ109="","",VLOOKUP(AJ109,'【記載例】（ユニット型）シフト記号表'!$C$5:$W$46,21,FALSE)) ->  | AK110: =IF(AK109="","",VLOOKUP(AK109,'【記載例】（ユニット型）シフト記号表'!$C$5:$W$46,21,FALSE)) ->  | AL110: =IF(AL109="","",VLOOKUP(AL109,'【記載例】（ユニット型）シフト記号表'!$C$5:$W$46,21,FALSE)) ->  | AM110: =IF(AM109="","",VLOOKUP(AM109,'【記載例】（ユニット型）シフト記号表'!$C$5:$W$46,21,FALSE)) ->  | AN110: =IF(AN109="","",VLOOKUP(AN109,'【記載例】（ユニット型）シフト記号表'!$C$5:$W$46,21,FALSE)) ->  | AO110: =IF(AO109="","",VLOOKUP(AO109,'【記載例】（ユニット型）シフト記号表'!$C$5:$W$46,21,FALSE)) ->  | AP110: =IF(AP109="","",VLOOKUP(AP109,'【記載例】（ユニット型）シフト記号表'!$C$5:$W$46,21,FALSE)) ->  | AQ110: =IF(AQ109="","",VLOOKUP(AQ109,'【記載例】（ユニット型）シフト記号表'!$C$5:$W$46,21,FALSE)) ->  | AR110: =IF(AR109="","",VLOOKUP(AR109,'【記載例】（ユニット型）シフト記号表'!$C$5:$W$46,21,FALSE)) ->  | AS110: =IF(AS109="","",VLOOKUP(AS109,'【記載例】（ユニット型）シフト記号表'!$C$5:$W$46,21,FALSE)) ->  | AT110: =IF(AT109="","",VLOOKUP(AT109,'【記載例】（ユニット型）シフト記号表'!$C$5:$W$46,21,FALSE)) ->  | AU110: =IF(AU109="","",VLOOKUP(AU109,'【記載例】（ユニット型）シフト記号表'!$C$5:$W$46,21,FALSE)) ->  | AV110: =IF(AV109="","",VLOOKUP(AV109,'【記載例】（ユニット型）シフト記号表'!$C$5:$W$46,21,FALSE)) ->  | AW110: =IF(AW109="","",VLOOKUP(AW109,'【記載例】（ユニット型）シフト記号表'!$C$5:$W$46,21,FALSE)) ->  | AX110: =IF(AX109="","",VLOOKUP(AX109,'【記載例】（ユニット型）シフト記号表'!$C$5:$W$46,21,FALSE)) ->  | AY110: =IF(AY109="","",VLOOKUP(AY109,'【記載例】（ユニット型）シフト記号表'!$C$5:$W$46,21,FALSE)) ->  | AZ110: =IF(AZ109="","",VLOOKUP(AZ109,'【記載例】（ユニット型）シフト記号表'!$C$5:$W$46,21,FALSE)) ->  | BA110: =IF(BA109="","",VLOOKUP(BA109,'【記載例】（ユニット型）シフト記号表'!$C$5:$W$46,21,FALSE)) ->  | BB110: =IF(BB109="","",VLOOKUP(BB109,'【記載例】（ユニット型）シフト記号表'!$C$5:$W$46,21,FALSE)) ->  | BC110: =IF(BC109="","",VLOOKUP(BC109,'【記載例】（ユニット型）シフト記号表'!$C$5:$W$46,21,FALSE)) ->  | BD110: =IF(BD109="","",VLOOKUP(BD109,'【記載例】（ユニット型）シフト記号表'!$C$5:$W$46,21,FALSE)) ->  | BE110: =IF(BE109="","",VLOOKUP(BE109,'【記載例】（ユニット型）シフト記号表'!$C$5:$W$46,21,FALSE)) ->  | BF110: =IF($BI$3="計画",SUM(AA110:BB110),IF($BI$3="実績",SUM(AA110:BE110),"")) -> 0 | BH110: =IF($BI$3="計画",BF110/4,IF($BI$3="実績",(BF110/($BI$7/7)),"")) -> 0
I111: =G110 -> 0 | K111: =M110 -> 0 | V111: 夜勤時間帯の勤務時間数 | AA111: =IF(AA109="","",VLOOKUP(AA109,'【記載例】（ユニット型）シフト記号表'!$C$5:$Y$46,23,FALSE)) ->  | AB111: =IF(AB109="","",VLOOKUP(AB109,'【記載例】（ユニット型）シフト記号表'!$C$5:$Y$46,23,FALSE)) ->  | AC111: =IF(AC109="","",VLOOKUP(AC109,'【記載例】（ユニット型）シフト記号表'!$C$5:$Y$46,23,FALSE)) ->  | AD111: =IF(AD109="","",VLOOKUP(AD109,'【記載例】（ユニット型）シフト記号表'!$C$5:$Y$46,23,FALSE)) ->  | AE111: =IF(AE109="","",VLOOKUP(AE109,'【記載例】（ユニット型）シフト記号表'!$C$5:$Y$46,23,FALSE)) ->  | AF111: =IF(AF109="","",VLOOKUP(AF109,'【記載例】（ユニット型）シフト記号表'!$C$5:$Y$46,23,FALSE)) ->  | AG111: =IF(AG109="","",VLOOKUP(AG109,'【記載例】（ユニット型）シフト記号表'!$C$5:$Y$46,23,FALSE)) ->  | AH111: =IF(AH109="","",VLOOKUP(AH109,'【記載例】（ユニット型）シフト記号表'!$C$5:$Y$46,23,FALSE)) ->  | AI111: =IF(AI109="","",VLOOKUP(AI109,'【記載例】（ユニット型）シフト記号表'!$C$5:$Y$46,23,FALSE)) ->  | AJ111: =IF(AJ109="","",VLOOKUP(AJ109,'【記載例】（ユニット型）シフト記号表'!$C$5:$Y$46,23,FALSE)) ->  | AK111: =IF(AK109="","",VLOOKUP(AK109,'【記載例】（ユニット型）シフト記号表'!$C$5:$Y$46,23,FALSE)) ->  | AL111: =IF(AL109="","",VLOOKUP(AL109,'【記載例】（ユニット型）シフト記号表'!$C$5:$Y$46,23,FALSE)) ->  | AM111: =IF(AM109="","",VLOOKUP(AM109,'【記載例】（ユニット型）シフト記号表'!$C$5:$Y$46,23,FALSE)) ->  | AN111: =IF(AN109="","",VLOOKUP(AN109,'【記載例】（ユニット型）シフト記号表'!$C$5:$Y$46,23,FALSE)) ->  | AO111: =IF(AO109="","",VLOOKUP(AO109,'【記載例】（ユニット型）シフト記号表'!$C$5:$Y$46,23,FALSE)) ->  | AP111: =IF(AP109="","",VLOOKUP(AP109,'【記載例】（ユニット型）シフト記号表'!$C$5:$Y$46,23,FALSE)) ->  | AQ111: =IF(AQ109="","",VLOOKUP(AQ109,'【記載例】（ユニット型）シフト記号表'!$C$5:$Y$46,23,FALSE)) ->  | AR111: =IF(AR109="","",VLOOKUP(AR109,'【記載例】（ユニット型）シフト記号表'!$C$5:$Y$46,23,FALSE)) ->  | AS111: =IF(AS109="","",VLOOKUP(AS109,'【記載例】（ユニット型）シフト記号表'!$C$5:$Y$46,23,FALSE)) ->  | AT111: =IF(AT109="","",VLOOKUP(AT109,'【記載例】（ユニット型）シフト記号表'!$C$5:$Y$46,23,FALSE)) ->  | AU111: =IF(AU109="","",VLOOKUP(AU109,'【記載例】（ユニット型）シフト記号表'!$C$5:$Y$46,23,FALSE)) ->  | AV111: =IF(AV109="","",VLOOKUP(AV109,'【記載例】（ユニット型）シフト記号表'!$C$5:$Y$46,23,FALSE)) ->  | AW111: =IF(AW109="","",VLOOKUP(AW109,'【記載例】（ユニット型）シフト記号表'!$C$5:$Y$46,23,FALSE)) ->  | AX111: =IF(AX109="","",VLOOKUP(AX109,'【記載例】（ユニット型）シフト記号表'!$C$5:$Y$46,23,FALSE)) ->  | AY111: =IF(AY109="","",VLOOKUP(AY109,'【記載例】（ユニット型）シフト記号表'!$C$5:$Y$46,23,FALSE)) ->  | AZ111: =IF(AZ109="","",VLOOKUP(AZ109,'【記載例】（ユニット型）シフト記号表'!$C$5:$Y$46,23,FALSE)) ->  | BA111: =IF(BA109="","",VLOOKUP(BA109,'【記載例】（ユニット型）シフト記号表'!$C$5:$Y$46,23,FALSE)) ->  | BB111: =IF(BB109="","",VLOOKUP(BB109,'【記載例】（ユニット型）シフト記号表'!$C$5:$Y$46,23,FALSE)) ->  | BC111: =IF(BC109="","",VLOOKUP(BC109,'【記載例】（ユニット型）シフト記号表'!$C$5:$Y$46,23,FALSE)) ->  | BD111: =IF(BD109="","",VLOOKUP(BD109,'【記載例】（ユニット型）シフト記号表'!$C$5:$Y$46,23,FALSE)) ->  | BE111: =IF(BE109="","",VLOOKUP(BE109,'【記載例】（ユニット型）シフト記号表'!$C$5:$Y$46,23,FALSE)) ->  | BF111: =IF($BI$3="計画",SUM(AA111:BB111),IF($BI$3="実績",SUM(AA111:BE111),"")) -> 0 | BH111: =IF($BI$3="計画",BF111/4,IF($BI$3="実績",(BF111/($BI$7/7)),"")) -> 0
V112: シフト記号
B113: =B110+1 -> 32 | V113: 日中の勤務時間数 | AA113: =IF(AA112="","",VLOOKUP(AA112,'【記載例】（ユニット型）シフト記号表'!$C$5:$W$46,21,FALSE)) ->  | AB113: =IF(AB112="","",VLOOKUP(AB112,'【記載例】（ユニット型）シフト記号表'!$C$5:$W$46,21,FALSE)) ->  | AC113: =IF(AC112="","",VLOOKUP(AC112,'【記載例】（ユニット型）シフト記号表'!$C$5:$W$46,21,FALSE)) ->  | AD113: =IF(AD112="","",VLOOKUP(AD112,'【記載例】（ユニット型）シフト記号表'!$C$5:$W$46,21,FALSE)) ->  | AE113: =IF(AE112="","",VLOOKUP(AE112,'【記載例】（ユニット型）シフト記号表'!$C$5:$W$46,21,FALSE)) ->  | AF113: =IF(AF112="","",VLOOKUP(AF112,'【記載例】（ユニット型）シフト記号表'!$C$5:$W$46,21,FALSE)) ->  | AG113: =IF(AG112="","",VLOOKUP(AG112,'【記載例】（ユニット型）シフト記号表'!$C$5:$W$46,21,FALSE)) ->  | AH113: =IF(AH112="","",VLOOKUP(AH112,'【記載例】（ユニット型）シフト記号表'!$C$5:$W$46,21,FALSE)) ->  | AI113: =IF(AI112="","",VLOOKUP(AI112,'【記載例】（ユニット型）シフト記号表'!$C$5:$W$46,21,FALSE)) ->  | AJ113: =IF(AJ112="","",VLOOKUP(AJ112,'【記載例】（ユニット型）シフト記号表'!$C$5:$W$46,21,FALSE)) ->  | AK113: =IF(AK112="","",VLOOKUP(AK112,'【記載例】（ユニット型）シフト記号表'!$C$5:$W$46,21,FALSE)) ->  | AL113: =IF(AL112="","",VLOOKUP(AL112,'【記載例】（ユニット型）シフト記号表'!$C$5:$W$46,21,FALSE)) ->  | AM113: =IF(AM112="","",VLOOKUP(AM112,'【記載例】（ユニット型）シフト記号表'!$C$5:$W$46,21,FALSE)) ->  | AN113: =IF(AN112="","",VLOOKUP(AN112,'【記載例】（ユニット型）シフト記号表'!$C$5:$W$46,21,FALSE)) ->  | AO113: =IF(AO112="","",VLOOKUP(AO112,'【記載例】（ユニット型）シフト記号表'!$C$5:$W$46,21,FALSE)) ->  | AP113: =IF(AP112="","",VLOOKUP(AP112,'【記載例】（ユニット型）シフト記号表'!$C$5:$W$46,21,FALSE)) ->  | AQ113: =IF(AQ112="","",VLOOKUP(AQ112,'【記載例】（ユニット型）シフト記号表'!$C$5:$W$46,21,FALSE)) ->  | AR113: =IF(AR112="","",VLOOKUP(AR112,'【記載例】（ユニット型）シフト記号表'!$C$5:$W$46,21,FALSE)) ->  | AS113: =IF(AS112="","",VLOOKUP(AS112,'【記載例】（ユニット型）シフト記号表'!$C$5:$W$46,21,FALSE)) ->  | AT113: =IF(AT112="","",VLOOKUP(AT112,'【記載例】（ユニット型）シフト記号表'!$C$5:$W$46,21,FALSE)) ->  | AU113: =IF(AU112="","",VLOOKUP(AU112,'【記載例】（ユニット型）シフト記号表'!$C$5:$W$46,21,FALSE)) ->  | AV113: =IF(AV112="","",VLOOKUP(AV112,'【記載例】（ユニット型）シフト記号表'!$C$5:$W$46,21,FALSE)) ->  | AW113: =IF(AW112="","",VLOOKUP(AW112,'【記載例】（ユニット型）シフト記号表'!$C$5:$W$46,21,FALSE)) ->  | AX113: =IF(AX112="","",VLOOKUP(AX112,'【記載例】（ユニット型）シフト記号表'!$C$5:$W$46,21,FALSE)) ->  | AY113: =IF(AY112="","",VLOOKUP(AY112,'【記載例】（ユニット型）シフト記号表'!$C$5:$W$46,21,FALSE)) ->  | AZ113: =IF(AZ112="","",VLOOKUP(AZ112,'【記載例】（ユニット型）シフト記号表'!$C$5:$W$46,21,FALSE)) ->  | BA113: =IF(BA112="","",VLOOKUP(BA112,'【記載例】（ユニット型）シフト記号表'!$C$5:$W$46,21,FALSE)) ->  | BB113: =IF(BB112="","",VLOOKUP(BB112,'【記載例】（ユニット型）シフト記号表'!$C$5:$W$46,21,FALSE)) ->  | BC113: =IF(BC112="","",VLOOKUP(BC112,'【記載例】（ユニット型）シフト記号表'!$C$5:$W$46,21,FALSE)) ->  | BD113: =IF(BD112="","",VLOOKUP(BD112,'【記載例】（ユニット型）シフト記号表'!$C$5:$W$46,21,FALSE)) ->  | BE113: =IF(BE112="","",VLOOKUP(BE112,'【記載例】（ユニット型）シフト記号表'!$C$5:$W$46,21,FALSE)) ->  | BF113: =IF($BI$3="計画",SUM(AA113:BB113),IF($BI$3="実績",SUM(AA113:BE113),"")) -> 0 | BH113: =IF($BI$3="計画",BF113/4,IF($BI$3="実績",(BF113/($BI$7/7)),"")) -> 0
I114: =G113 -> 0 | K114: =M113 -> 0 | V114: 夜勤時間帯の勤務時間数 | AA114: =IF(AA112="","",VLOOKUP(AA112,'【記載例】（ユニット型）シフト記号表'!$C$5:$Y$46,23,FALSE)) ->  | AB114: =IF(AB112="","",VLOOKUP(AB112,'【記載例】（ユニット型）シフト記号表'!$C$5:$Y$46,23,FALSE)) ->  | AC114: =IF(AC112="","",VLOOKUP(AC112,'【記載例】（ユニット型）シフト記号表'!$C$5:$Y$46,23,FALSE)) ->  | AD114: =IF(AD112="","",VLOOKUP(AD112,'【記載例】（ユニット型）シフト記号表'!$C$5:$Y$46,23,FALSE)) ->  | AE114: =IF(AE112="","",VLOOKUP(AE112,'【記載例】（ユニット型）シフト記号表'!$C$5:$Y$46,23,FALSE)) ->  | AF114: =IF(AF112="","",VLOOKUP(AF112,'【記載例】（ユニット型）シフト記号表'!$C$5:$Y$46,23,FALSE)) ->  | AG114: =IF(AG112="","",VLOOKUP(AG112,'【記載例】（ユニット型）シフト記号表'!$C$5:$Y$46,23,FALSE)) ->  | AH114: =IF(AH112="","",VLOOKUP(AH112,'【記載例】（ユニット型）シフト記号表'!$C$5:$Y$46,23,FALSE)) ->  | AI114: =IF(AI112="","",VLOOKUP(AI112,'【記載例】（ユニット型）シフト記号表'!$C$5:$Y$46,23,FALSE)) ->  | AJ114: =IF(AJ112="","",VLOOKUP(AJ112,'【記載例】（ユニット型）シフト記号表'!$C$5:$Y$46,23,FALSE)) ->  | AK114: =IF(AK112="","",VLOOKUP(AK112,'【記載例】（ユニット型）シフト記号表'!$C$5:$Y$46,23,FALSE)) ->  | AL114: =IF(AL112="","",VLOOKUP(AL112,'【記載例】（ユニット型）シフト記号表'!$C$5:$Y$46,23,FALSE)) ->  | AM114: =IF(AM112="","",VLOOKUP(AM112,'【記載例】（ユニット型）シフト記号表'!$C$5:$Y$46,23,FALSE)) ->  | AN114: =IF(AN112="","",VLOOKUP(AN112,'【記載例】（ユニット型）シフト記号表'!$C$5:$Y$46,23,FALSE)) ->  | AO114: =IF(AO112="","",VLOOKUP(AO112,'【記載例】（ユニット型）シフト記号表'!$C$5:$Y$46,23,FALSE)) ->  | AP114: =IF(AP112="","",VLOOKUP(AP112,'【記載例】（ユニット型）シフト記号表'!$C$5:$Y$46,23,FALSE)) ->  | AQ114: =IF(AQ112="","",VLOOKUP(AQ112,'【記載例】（ユニット型）シフト記号表'!$C$5:$Y$46,23,FALSE)) ->  | AR114: =IF(AR112="","",VLOOKUP(AR112,'【記載例】（ユニット型）シフト記号表'!$C$5:$Y$46,23,FALSE)) ->  | AS114: =IF(AS112="","",VLOOKUP(AS112,'【記載例】（ユニット型）シフト記号表'!$C$5:$Y$46,23,FALSE)) ->  | AT114: =IF(AT112="","",VLOOKUP(AT112,'【記載例】（ユニット型）シフト記号表'!$C$5:$Y$46,23,FALSE)) ->  | AU114: =IF(AU112="","",VLOOKUP(AU112,'【記載例】（ユニット型）シフト記号表'!$C$5:$Y$46,23,FALSE)) ->  | AV114: =IF(AV112="","",VLOOKUP(AV112,'【記載例】（ユニット型）シフト記号表'!$C$5:$Y$46,23,FALSE)) ->  | AW114: =IF(AW112="","",VLOOKUP(AW112,'【記載例】（ユニット型）シフト記号表'!$C$5:$Y$46,23,FALSE)) ->  | AX114: =IF(AX112="","",VLOOKUP(AX112,'【記載例】（ユニット型）シフト記号表'!$C$5:$Y$46,23,FALSE)) ->  | AY114: =IF(AY112="","",VLOOKUP(AY112,'【記載例】（ユニット型）シフト記号表'!$C$5:$Y$46,23,FALSE)) ->  | AZ114: =IF(AZ112="","",VLOOKUP(AZ112,'【記載例】（ユニット型）シフト記号表'!$C$5:$Y$46,23,FALSE)) ->  | BA114: =IF(BA112="","",VLOOKUP(BA112,'【記載例】（ユニット型）シフト記号表'!$C$5:$Y$46,23,FALSE)) ->  | BB114: =IF(BB112="","",VLOOKUP(BB112,'【記載例】（ユニット型）シフト記号表'!$C$5:$Y$46,23,FALSE)) ->  | BC114: =IF(BC112="","",VLOOKUP(BC112,'【記載例】（ユニット型）シフト記号表'!$C$5:$Y$46,23,FALSE)) ->  | BD114: =IF(BD112="","",VLOOKUP(BD112,'【記載例】（ユニット型）シフト記号表'!$C$5:$Y$46,23,FALSE)) ->  | BE114: =IF(BE112="","",VLOOKUP(BE112,'【記載例】（ユニット型）シフト記号表'!$C$5:$Y$46,23,FALSE)) ->  | BF114: =IF($BI$3="計画",SUM(AA114:BB114),IF($BI$3="実績",SUM(AA114:BE114),"")) -> 0 | BH114: =IF($BI$3="計画",BF114/4,IF($BI$3="実績",(BF114/($BI$7/7)),"")) -> 0
V115: シフト記号
B116: =B113+1 -> 33 | V116: 日中の勤務時間数 | AA116: =IF(AA115="","",VLOOKUP(AA115,'【記載例】（ユニット型）シフト記号表'!$C$5:$W$46,21,FALSE)) ->  | AB116: =IF(AB115="","",VLOOKUP(AB115,'【記載例】（ユニット型）シフト記号表'!$C$5:$W$46,21,FALSE)) ->  | AC116: =IF(AC115="","",VLOOKUP(AC115,'【記載例】（ユニット型）シフト記号表'!$C$5:$W$46,21,FALSE)) ->  | AD116: =IF(AD115="","",VLOOKUP(AD115,'【記載例】（ユニット型）シフト記号表'!$C$5:$W$46,21,FALSE)) ->  | AE116: =IF(AE115="","",VLOOKUP(AE115,'【記載例】（ユニット型）シフト記号表'!$C$5:$W$46,21,FALSE)) ->  | AF116: =IF(AF115="","",VLOOKUP(AF115,'【記載例】（ユニット型）シフト記号表'!$C$5:$W$46,21,FALSE)) ->  | AG116: =IF(AG115="","",VLOOKUP(AG115,'【記載例】（ユニット型）シフト記号表'!$C$5:$W$46,21,FALSE)) ->  | AH116: =IF(AH115="","",VLOOKUP(AH115,'【記載例】（ユニット型）シフト記号表'!$C$5:$W$46,21,FALSE)) ->  | AI116: =IF(AI115="","",VLOOKUP(AI115,'【記載例】（ユニット型）シフト記号表'!$C$5:$W$46,21,FALSE)) ->  | AJ116: =IF(AJ115="","",VLOOKUP(AJ115,'【記載例】（ユニット型）シフト記号表'!$C$5:$W$46,21,FALSE)) ->  | AK116: =IF(AK115="","",VLOOKUP(AK115,'【記載例】（ユニット型）シフト記号表'!$C$5:$W$46,21,FALSE)) ->  | AL116: =IF(AL115="","",VLOOKUP(AL115,'【記載例】（ユニット型）シフト記号表'!$C$5:$W$46,21,FALSE)) ->  | AM116: =IF(AM115="","",VLOOKUP(AM115,'【記載例】（ユニット型）シフト記号表'!$C$5:$W$46,21,FALSE)) ->  | AN116: =IF(AN115="","",VLOOKUP(AN115,'【記載例】（ユニット型）シフト記号表'!$C$5:$W$46,21,FALSE)) ->  | AO116: =IF(AO115="","",VLOOKUP(AO115,'【記載例】（ユニット型）シフト記号表'!$C$5:$W$46,21,FALSE)) ->  | AP116: =IF(AP115="","",VLOOKUP(AP115,'【記載例】（ユニット型）シフト記号表'!$C$5:$W$46,21,FALSE)) ->  | AQ116: =IF(AQ115="","",VLOOKUP(AQ115,'【記載例】（ユニット型）シフト記号表'!$C$5:$W$46,21,FALSE)) ->  | AR116: =IF(AR115="","",VLOOKUP(AR115,'【記載例】（ユニット型）シフト記号表'!$C$5:$W$46,21,FALSE)) ->  | AS116: =IF(AS115="","",VLOOKUP(AS115,'【記載例】（ユニット型）シフト記号表'!$C$5:$W$46,21,FALSE)) ->  | AT116: =IF(AT115="","",VLOOKUP(AT115,'【記載例】（ユニット型）シフト記号表'!$C$5:$W$46,21,FALSE)) ->  | AU116: =IF(AU115="","",VLOOKUP(AU115,'【記載例】（ユニット型）シフト記号表'!$C$5:$W$46,21,FALSE)) ->  | AV116: =IF(AV115="","",VLOOKUP(AV115,'【記載例】（ユニット型）シフト記号表'!$C$5:$W$46,21,FALSE)) ->  | AW116: =IF(AW115="","",VLOOKUP(AW115,'【記載例】（ユニット型）シフト記号表'!$C$5:$W$46,21,FALSE)) ->  | AX116: =IF(AX115="","",VLOOKUP(AX115,'【記載例】（ユニット型）シフト記号表'!$C$5:$W$46,21,FALSE)) ->  | AY116: =IF(AY115="","",VLOOKUP(AY115,'【記載例】（ユニット型）シフト記号表'!$C$5:$W$46,21,FALSE)) ->  | AZ116: =IF(AZ115="","",VLOOKUP(AZ115,'【記載例】（ユニット型）シフト記号表'!$C$5:$W$46,21,FALSE)) ->  | BA116: =IF(BA115="","",VLOOKUP(BA115,'【記載例】（ユニット型）シフト記号表'!$C$5:$W$46,21,FALSE)) ->  | BB116: =IF(BB115="","",VLOOKUP(BB115,'【記載例】（ユニット型）シフト記号表'!$C$5:$W$46,21,FALSE)) ->  | BC116: =IF(BC115="","",VLOOKUP(BC115,'【記載例】（ユニット型）シフト記号表'!$C$5:$W$46,21,FALSE)) ->  | BD116: =IF(BD115="","",VLOOKUP(BD115,'【記載例】（ユニット型）シフト記号表'!$C$5:$W$46,21,FALSE)) ->  | BE116: =IF(BE115="","",VLOOKUP(BE115,'【記載例】（ユニット型）シフト記号表'!$C$5:$W$46,21,FALSE)) ->  | BF116: =IF($BI$3="計画",SUM(AA116:BB116),IF($BI$3="実績",SUM(AA116:BE116),"")) -> 0 | BH116: =IF($BI$3="計画",BF116/4,IF($BI$3="実績",(BF116/($BI$7/7)),"")) -> 0
I117: =G116 -> 0 | K117: =M116 -> 0 | V117: 夜勤時間帯の勤務時間数 | AA117: =IF(AA115="","",VLOOKUP(AA115,'【記載例】（ユニット型）シフト記号表'!$C$5:$Y$46,23,FALSE)) ->  | AB117: =IF(AB115="","",VLOOKUP(AB115,'【記載例】（ユニット型）シフト記号表'!$C$5:$Y$46,23,FALSE)) ->  | AC117: =IF(AC115="","",VLOOKUP(AC115,'【記載例】（ユニット型）シフト記号表'!$C$5:$Y$46,23,FALSE)) ->  | AD117: =IF(AD115="","",VLOOKUP(AD115,'【記載例】（ユニット型）シフト記号表'!$C$5:$Y$46,23,FALSE)) ->  | AE117: =IF(AE115="","",VLOOKUP(AE115,'【記載例】（ユニット型）シフト記号表'!$C$5:$Y$46,23,FALSE)) ->  | AF117: =IF(AF115="","",VLOOKUP(AF115,'【記載例】（ユニット型）シフト記号表'!$C$5:$Y$46,23,FALSE)) ->  | AG117: =IF(AG115="","",VLOOKUP(AG115,'【記載例】（ユニット型）シフト記号表'!$C$5:$Y$46,23,FALSE)) ->  | AH117: =IF(AH115="","",VLOOKUP(AH115,'【記載例】（ユニット型）シフト記号表'!$C$5:$Y$46,23,FALSE)) ->  | AI117: =IF(AI115="","",VLOOKUP(AI115,'【記載例】（ユニット型）シフト記号表'!$C$5:$Y$46,23,FALSE)) ->  | AJ117: =IF(AJ115="","",VLOOKUP(AJ115,'【記載例】（ユニット型）シフト記号表'!$C$5:$Y$46,23,FALSE)) ->  | AK117: =IF(AK115="","",VLOOKUP(AK115,'【記載例】（ユニット型）シフト記号表'!$C$5:$Y$46,23,FALSE)) ->  | AL117: =IF(AL115="","",VLOOKUP(AL115,'【記載例】（ユニット型）シフト記号表'!$C$5:$Y$46,23,FALSE)) ->  | AM117: =IF(AM115="","",VLOOKUP(AM115,'【記載例】（ユニット型）シフト記号表'!$C$5:$Y$46,23,FALSE)) ->  | AN117: =IF(AN115="","",VLOOKUP(AN115,'【記載例】（ユニット型）シフト記号表'!$C$5:$Y$46,23,FALSE)) ->  | AO117: =IF(AO115="","",VLOOKUP(AO115,'【記載例】（ユニット型）シフト記号表'!$C$5:$Y$46,23,FALSE)) ->  | AP117: =IF(AP115="","",VLOOKUP(AP115,'【記載例】（ユニット型）シフト記号表'!$C$5:$Y$46,23,FALSE)) ->  | AQ117: =IF(AQ115="","",VLOOKUP(AQ115,'【記載例】（ユニット型）シフト記号表'!$C$5:$Y$46,23,FALSE)) ->  | AR117: =IF(AR115="","",VLOOKUP(AR115,'【記載例】（ユニット型）シフト記号表'!$C$5:$Y$46,23,FALSE)) ->  | AS117: =IF(AS115="","",VLOOKUP(AS115,'【記載例】（ユニット型）シフト記号表'!$C$5:$Y$46,23,FALSE)) ->  | AT117: =IF(AT115="","",VLOOKUP(AT115,'【記載例】（ユニット型）シフト記号表'!$C$5:$Y$46,23,FALSE)) ->  | AU117: =IF(AU115="","",VLOOKUP(AU115,'【記載例】（ユニット型）シフト記号表'!$C$5:$Y$46,23,FALSE)) ->  | AV117: =IF(AV115="","",VLOOKUP(AV115,'【記載例】（ユニット型）シフト記号表'!$C$5:$Y$46,23,FALSE)) ->  | AW117: =IF(AW115="","",VLOOKUP(AW115,'【記載例】（ユニット型）シフト記号表'!$C$5:$Y$46,23,FALSE)) ->  | AX117: =IF(AX115="","",VLOOKUP(AX115,'【記載例】（ユニット型）シフト記号表'!$C$5:$Y$46,23,FALSE)) ->  | AY117: =IF(AY115="","",VLOOKUP(AY115,'【記載例】（ユニット型）シフト記号表'!$C$5:$Y$46,23,FALSE)) ->  | AZ117: =IF(AZ115="","",VLOOKUP(AZ115,'【記載例】（ユニット型）シフト記号表'!$C$5:$Y$46,23,FALSE)) ->  | BA117: =IF(BA115="","",VLOOKUP(BA115,'【記載例】（ユニット型）シフト記号表'!$C$5:$Y$46,23,FALSE)) ->  | BB117: =IF(BB115="","",VLOOKUP(BB115,'【記載例】（ユニット型）シフト記号表'!$C$5:$Y$46,23,FALSE)) ->  | BC117: =IF(BC115="","",VLOOKUP(BC115,'【記載例】（ユニット型）シフト記号表'!$C$5:$Y$46,23,FALSE)) ->  | BD117: =IF(BD115="","",VLOOKUP(BD115,'【記載例】（ユニット型）シフト記号表'!$C$5:$Y$46,23,FALSE)) ->  | BE117: =IF(BE115="","",VLOOKUP(BE115,'【記載例】（ユニット型）シフト記号表'!$C$5:$Y$46,23,FALSE)) ->  | BF117: =IF($BI$3="計画",SUM(AA117:BB117),IF($BI$3="実績",SUM(AA117:BE117),"")) -> 0 | BH117: =IF($BI$3="計画",BF117/4,IF($BI$3="実績",(BF117/($BI$7/7)),"")) -> 0
V118: シフト記号
B119: =B116+1 -> 34 | V119: 日中の勤務時間数 | AA119: =IF(AA118="","",VLOOKUP(AA118,'【記載例】（ユニット型）シフト記号表'!$C$5:$W$46,21,FALSE)) ->  | AB119: =IF(AB118="","",VLOOKUP(AB118,'【記載例】（ユニット型）シフト記号表'!$C$5:$W$46,21,FALSE)) ->  | AC119: =IF(AC118="","",VLOOKUP(AC118,'【記載例】（ユニット型）シフト記号表'!$C$5:$W$46,21,FALSE)) ->  | AD119: =IF(AD118="","",VLOOKUP(AD118,'【記載例】（ユニット型）シフト記号表'!$C$5:$W$46,21,FALSE)) ->  | AE119: =IF(AE118="","",VLOOKUP(AE118,'【記載例】（ユニット型）シフト記号表'!$C$5:$W$46,21,FALSE)) ->  | AF119: =IF(AF118="","",VLOOKUP(AF118,'【記載例】（ユニット型）シフト記号表'!$C$5:$W$46,21,FALSE)) ->  | AG119: =IF(AG118="","",VLOOKUP(AG118,'【記載例】（ユニット型）シフト記号表'!$C$5:$W$46,21,FALSE)) ->  | AH119: =IF(AH118="","",VLOOKUP(AH118,'【記載例】（ユニット型）シフト記号表'!$C$5:$W$46,21,FALSE)) ->  | AI119: =IF(AI118="","",VLOOKUP(AI118,'【記載例】（ユニット型）シフト記号表'!$C$5:$W$46,21,FALSE)) ->  | AJ119: =IF(AJ118="","",VLOOKUP(AJ118,'【記載例】（ユニット型）シフト記号表'!$C$5:$W$46,21,FALSE)) ->  | AK119: =IF(AK118="","",VLOOKUP(AK118,'【記載例】（ユニット型）シフト記号表'!$C$5:$W$46,21,FALSE)) ->  | AL119: =IF(AL118="","",VLOOKUP(AL118,'【記載例】（ユニット型）シフト記号表'!$C$5:$W$46,21,FALSE)) ->  | AM119: =IF(AM118="","",VLOOKUP(AM118,'【記載例】（ユニット型）シフト記号表'!$C$5:$W$46,21,FALSE)) ->  | AN119: =IF(AN118="","",VLOOKUP(AN118,'【記載例】（ユニット型）シフト記号表'!$C$5:$W$46,21,FALSE)) ->  | AO119: =IF(AO118="","",VLOOKUP(AO118,'【記載例】（ユニット型）シフト記号表'!$C$5:$W$46,21,FALSE)) ->  | AP119: =IF(AP118="","",VLOOKUP(AP118,'【記載例】（ユニット型）シフト記号表'!$C$5:$W$46,21,FALSE)) ->  | AQ119: =IF(AQ118="","",VLOOKUP(AQ118,'【記載例】（ユニット型）シフト記号表'!$C$5:$W$46,21,FALSE)) ->  | AR119: =IF(AR118="","",VLOOKUP(AR118,'【記載例】（ユニット型）シフト記号表'!$C$5:$W$46,21,FALSE)) ->  | AS119: =IF(AS118="","",VLOOKUP(AS118,'【記載例】（ユニット型）シフト記号表'!$C$5:$W$46,21,FALSE)) ->  | AT119: =IF(AT118="","",VLOOKUP(AT118,'【記載例】（ユニット型）シフト記号表'!$C$5:$W$46,21,FALSE)) ->  | AU119: =IF(AU118="","",VLOOKUP(AU118,'【記載例】（ユニット型）シフト記号表'!$C$5:$W$46,21,FALSE)) ->  | AV119: =IF(AV118="","",VLOOKUP(AV118,'【記載例】（ユニット型）シフト記号表'!$C$5:$W$46,21,FALSE)) ->  | AW119: =IF(AW118="","",VLOOKUP(AW118,'【記載例】（ユニット型）シフト記号表'!$C$5:$W$46,21,FALSE)) ->  | AX119: =IF(AX118="","",VLOOKUP(AX118,'【記載例】（ユニット型）シフト記号表'!$C$5:$W$46,21,FALSE)) ->  | AY119: =IF(AY118="","",VLOOKUP(AY118,'【記載例】（ユニット型）シフト記号表'!$C$5:$W$46,21,FALSE)) ->  | AZ119: =IF(AZ118="","",VLOOKUP(AZ118,'【記載例】（ユニット型）シフト記号表'!$C$5:$W$46,21,FALSE)) ->  | BA119: =IF(BA118="","",VLOOKUP(BA118,'【記載例】（ユニット型）シフト記号表'!$C$5:$W$46,21,FALSE)) ->  | BB119: =IF(BB118="","",VLOOKUP(BB118,'【記載例】（ユニット型）シフト記号表'!$C$5:$W$46,21,FALSE)) ->  | BC119: =IF(BC118="","",VLOOKUP(BC118,'【記載例】（ユニット型）シフト記号表'!$C$5:$W$46,21,FALSE)) ->  | BD119: =IF(BD118="","",VLOOKUP(BD118,'【記載例】（ユニット型）シフト記号表'!$C$5:$W$46,21,FALSE)) ->  | BE119: =IF(BE118="","",VLOOKUP(BE118,'【記載例】（ユニット型）シフト記号表'!$C$5:$W$46,21,FALSE)) ->  | BF119: =IF($BI$3="計画",SUM(AA119:BB119),IF($BI$3="実績",SUM(AA119:BE119),"")) -> 0 | BH119: =IF($BI$3="計画",BF119/4,IF($BI$3="実績",(BF119/($BI$7/7)),"")) -> 0
I120: =G119 -> 0 | K120: =M119 -> 0 | V120: 夜勤時間帯の勤務時間数 | AA120: =IF(AA118="","",VLOOKUP(AA118,'【記載例】（ユニット型）シフト記号表'!$C$5:$Y$46,23,FALSE)) ->  | AB120: =IF(AB118="","",VLOOKUP(AB118,'【記載例】（ユニット型）シフト記号表'!$C$5:$Y$46,23,FALSE)) ->  | AC120: =IF(AC118="","",VLOOKUP(AC118,'【記載例】（ユニット型）シフト記号表'!$C$5:$Y$46,23,FALSE)) ->  | AD120: =IF(AD118="","",VLOOKUP(AD118,'【記載例】（ユニット型）シフト記号表'!$C$5:$Y$46,23,FALSE)) ->  | AE120: =IF(AE118="","",VLOOKUP(AE118,'【記載例】（ユニット型）シフト記号表'!$C$5:$Y$46,23,FALSE)) ->  | AF120: =IF(AF118="","",VLOOKUP(AF118,'【記載例】（ユニット型）シフト記号表'!$C$5:$Y$46,23,FALSE)) ->  | AG120: =IF(AG118="","",VLOOKUP(AG118,'【記載例】（ユニット型）シフト記号表'!$C$5:$Y$46,23,FALSE)) ->  | AH120: =IF(AH118="","",VLOOKUP(AH118,'【記載例】（ユニット型）シフト記号表'!$C$5:$Y$46,23,FALSE)) ->  | AI120: =IF(AI118="","",VLOOKUP(AI118,'【記載例】（ユニット型）シフト記号表'!$C$5:$Y$46,23,FALSE)) ->  | AJ120: =IF(AJ118="","",VLOOKUP(AJ118,'【記載例】（ユニット型）シフト記号表'!$C$5:$Y$46,23,FALSE)) ->  | AK120: =IF(AK118="","",VLOOKUP(AK118,'【記載例】（ユニット型）シフト記号表'!$C$5:$Y$46,23,FALSE)) ->  | AL120: =IF(AL118="","",VLOOKUP(AL118,'【記載例】（ユニット型）シフト記号表'!$C$5:$Y$46,23,FALSE)) ->  | AM120: =IF(AM118="","",VLOOKUP(AM118,'【記載例】（ユニット型）シフト記号表'!$C$5:$Y$46,23,FALSE)) ->  | AN120: =IF(AN118="","",VLOOKUP(AN118,'【記載例】（ユニット型）シフト記号表'!$C$5:$Y$46,23,FALSE)) ->  | AO120: =IF(AO118="","",VLOOKUP(AO118,'【記載例】（ユニット型）シフト記号表'!$C$5:$Y$46,23,FALSE)) ->  | AP120: =IF(AP118="","",VLOOKUP(AP118,'【記載例】（ユニット型）シフト記号表'!$C$5:$Y$46,23,FALSE)) ->  | AQ120: =IF(AQ118="","",VLOOKUP(AQ118,'【記載例】（ユニット型）シフト記号表'!$C$5:$Y$46,23,FALSE)) ->  | AR120: =IF(AR118="","",VLOOKUP(AR118,'【記載例】（ユニット型）シフト記号表'!$C$5:$Y$46,23,FALSE)) ->  | AS120: =IF(AS118="","",VLOOKUP(AS118,'【記載例】（ユニット型）シフト記号表'!$C$5:$Y$46,23,FALSE)) ->  | AT120: =IF(AT118="","",VLOOKUP(AT118,'【記載例】（ユニット型）シフト記号表'!$C$5:$Y$46,23,FALSE)) ->  | AU120: =IF(AU118="","",VLOOKUP(AU118,'【記載例】（ユニット型）シフト記号表'!$C$5:$Y$46,23,FALSE)) ->  | AV120: =IF(AV118="","",VLOOKUP(AV118,'【記載例】（ユニット型）シフト記号表'!$C$5:$Y$46,23,FALSE)) ->  | AW120: =IF(AW118="","",VLOOKUP(AW118,'【記載例】（ユニット型）シフト記号表'!$C$5:$Y$46,23,FALSE)) ->  | AX120: =IF(AX118="","",VLOOKUP(AX118,'【記載例】（ユニット型）シフト記号表'!$C$5:$Y$46,23,FALSE)) ->  | AY120: =IF(AY118="","",VLOOKUP(AY118,'【記載例】（ユニット型）シフト記号表'!$C$5:$Y$46,23,FALSE)) ->  | AZ120: =IF(AZ118="","",VLOOKUP(AZ118,'【記載例】（ユニット型）シフト記号表'!$C$5:$Y$46,23,FALSE)) ->  | BA120: =IF(BA118="","",VLOOKUP(BA118,'【記載例】（ユニット型）シフト記号表'!$C$5:$Y$46,23,FALSE)) ->  | BB120: =IF(BB118="","",VLOOKUP(BB118,'【記載例】（ユニット型）シフト記号表'!$C$5:$Y$46,23,FALSE)) ->  | BC120: =IF(BC118="","",VLOOKUP(BC118,'【記載例】（ユニット型）シフト記号表'!$C$5:$Y$46,23,FALSE)) ->  | BD120: =IF(BD118="","",VLOOKUP(BD118,'【記載例】（ユニット型）シフト記号表'!$C$5:$Y$46,23,FALSE)) ->  | BE120: =IF(BE118="","",VLOOKUP(BE118,'【記載例】（ユニット型）シフト記号表'!$C$5:$Y$46,23,FALSE)) ->  | BF120: =IF($BI$3="計画",SUM(AA120:BB120),IF($BI$3="実績",SUM(AA120:BE120),"")) -> 0 | BH120: =IF($BI$3="計画",BF120/4,IF($BI$3="実績",(BF120/($BI$7/7)),"")) -> 0
V121: シフト記号
B122: =B119+1 -> 35 | V122: 日中の勤務時間数 | AA122: =IF(AA121="","",VLOOKUP(AA121,'【記載例】（ユニット型）シフト記号表'!$C$5:$W$46,21,FALSE)) ->  | AB122: =IF(AB121="","",VLOOKUP(AB121,'【記載例】（ユニット型）シフト記号表'!$C$5:$W$46,21,FALSE)) ->  | AC122: =IF(AC121="","",VLOOKUP(AC121,'【記載例】（ユニット型）シフト記号表'!$C$5:$W$46,21,FALSE)) ->  | AD122: =IF(AD121="","",VLOOKUP(AD121,'【記載例】（ユニット型）シフト記号表'!$C$5:$W$46,21,FALSE)) ->  | AE122: =IF(AE121="","",VLOOKUP(AE121,'【記載例】（ユニット型）シフト記号表'!$C$5:$W$46,21,FALSE)) ->  | AF122: =IF(AF121="","",VLOOKUP(AF121,'【記載例】（ユニット型）シフト記号表'!$C$5:$W$46,21,FALSE)) ->  | AG122: =IF(AG121="","",VLOOKUP(AG121,'【記載例】（ユニット型）シフト記号表'!$C$5:$W$46,21,FALSE)) ->  | AH122: =IF(AH121="","",VLOOKUP(AH121,'【記載例】（ユニット型）シフト記号表'!$C$5:$W$46,21,FALSE)) ->  | AI122: =IF(AI121="","",VLOOKUP(AI121,'【記載例】（ユニット型）シフト記号表'!$C$5:$W$46,21,FALSE)) ->  | AJ122: =IF(AJ121="","",VLOOKUP(AJ121,'【記載例】（ユニット型）シフト記号表'!$C$5:$W$46,21,FALSE)) ->  | AK122: =IF(AK121="","",VLOOKUP(AK121,'【記載例】（ユニット型）シフト記号表'!$C$5:$W$46,21,FALSE)) ->  | AL122: =IF(AL121="","",VLOOKUP(AL121,'【記載例】（ユニット型）シフト記号表'!$C$5:$W$46,21,FALSE)) ->  | AM122: =IF(AM121="","",VLOOKUP(AM121,'【記載例】（ユニット型）シフト記号表'!$C$5:$W$46,21,FALSE)) ->  | AN122: =IF(AN121="","",VLOOKUP(AN121,'【記載例】（ユニット型）シフト記号表'!$C$5:$W$46,21,FALSE)) ->  | AO122: =IF(AO121="","",VLOOKUP(AO121,'【記載例】（ユニット型）シフト記号表'!$C$5:$W$46,21,FALSE)) ->  | AP122: =IF(AP121="","",VLOOKUP(AP121,'【記載例】（ユニット型）シフト記号表'!$C$5:$W$46,21,FALSE)) ->  | AQ122: =IF(AQ121="","",VLOOKUP(AQ121,'【記載例】（ユニット型）シフト記号表'!$C$5:$W$46,21,FALSE)) ->  | AR122: =IF(AR121="","",VLOOKUP(AR121,'【記載例】（ユニット型）シフト記号表'!$C$5:$W$46,21,FALSE)) ->  | AS122: =IF(AS121="","",VLOOKUP(AS121,'【記載例】（ユニット型）シフト記号表'!$C$5:$W$46,21,FALSE)) ->  | AT122: =IF(AT121="","",VLOOKUP(AT121,'【記載例】（ユニット型）シフト記号表'!$C$5:$W$46,21,FALSE)) ->  | AU122: =IF(AU121="","",VLOOKUP(AU121,'【記載例】（ユニット型）シフト記号表'!$C$5:$W$46,21,FALSE)) ->  | AV122: =IF(AV121="","",VLOOKUP(AV121,'【記載例】（ユニット型）シフト記号表'!$C$5:$W$46,21,FALSE)) ->  | AW122: =IF(AW121="","",VLOOKUP(AW121,'【記載例】（ユニット型）シフト記号表'!$C$5:$W$46,21,FALSE)) ->  | AX122: =IF(AX121="","",VLOOKUP(AX121,'【記載例】（ユニット型）シフト記号表'!$C$5:$W$46,21,FALSE)) ->  | AY122: =IF(AY121="","",VLOOKUP(AY121,'【記載例】（ユニット型）シフト記号表'!$C$5:$W$46,21,FALSE)) ->  | AZ122: =IF(AZ121="","",VLOOKUP(AZ121,'【記載例】（ユニット型）シフト記号表'!$C$5:$W$46,21,FALSE)) ->  | BA122: =IF(BA121="","",VLOOKUP(BA121,'【記載例】（ユニット型）シフト記号表'!$C$5:$W$46,21,FALSE)) ->  | BB122: =IF(BB121="","",VLOOKUP(BB121,'【記載例】（ユニット型）シフト記号表'!$C$5:$W$46,21,FALSE)) ->  | BC122: =IF(BC121="","",VLOOKUP(BC121,'【記載例】（ユニット型）シフト記号表'!$C$5:$W$46,21,FALSE)) ->  | BD122: =IF(BD121="","",VLOOKUP(BD121,'【記載例】（ユニット型）シフト記号表'!$C$5:$W$46,21,FALSE)) ->  | BE122: =IF(BE121="","",VLOOKUP(BE121,'【記載例】（ユニット型）シフト記号表'!$C$5:$W$46,21,FALSE)) ->  | BF122: =IF($BI$3="計画",SUM(AA122:BB122),IF($BI$3="実績",SUM(AA122:BE122),"")) -> 0 | BH122: =IF($BI$3="計画",BF122/4,IF($BI$3="実績",(BF122/($BI$7/7)),"")) -> 0
I123: =G122 -> 0 | K123: =M122 -> 0 | V123: 夜勤時間帯の勤務時間数 | AA123: =IF(AA121="","",VLOOKUP(AA121,'【記載例】（ユニット型）シフト記号表'!$C$5:$Y$46,23,FALSE)) ->  | AB123: =IF(AB121="","",VLOOKUP(AB121,'【記載例】（ユニット型）シフト記号表'!$C$5:$Y$46,23,FALSE)) ->  | AC123: =IF(AC121="","",VLOOKUP(AC121,'【記載例】（ユニット型）シフト記号表'!$C$5:$Y$46,23,FALSE)) ->  | AD123: =IF(AD121="","",VLOOKUP(AD121,'【記載例】（ユニット型）シフト記号表'!$C$5:$Y$46,23,FALSE)) ->  | AE123: =IF(AE121="","",VLOOKUP(AE121,'【記載例】（ユニット型）シフト記号表'!$C$5:$Y$46,23,FALSE)) ->  | AF123: =IF(AF121="","",VLOOKUP(AF121,'【記載例】（ユニット型）シフト記号表'!$C$5:$Y$46,23,FALSE)) ->  | AG123: =IF(AG121="","",VLOOKUP(AG121,'【記載例】（ユニット型）シフト記号表'!$C$5:$Y$46,23,FALSE)) ->  | AH123: =IF(AH121="","",VLOOKUP(AH121,'【記載例】（ユニット型）シフト記号表'!$C$5:$Y$46,23,FALSE)) ->  | AI123: =IF(AI121="","",VLOOKUP(AI121,'【記載例】（ユニット型）シフト記号表'!$C$5:$Y$46,23,FALSE)) ->  | AJ123: =IF(AJ121="","",VLOOKUP(AJ121,'【記載例】（ユニット型）シフト記号表'!$C$5:$Y$46,23,FALSE)) ->  | AK123: =IF(AK121="","",VLOOKUP(AK121,'【記載例】（ユニット型）シフト記号表'!$C$5:$Y$46,23,FALSE)) ->  | AL123: =IF(AL121="","",VLOOKUP(AL121,'【記載例】（ユニット型）シフト記号表'!$C$5:$Y$46,23,FALSE)) ->  | AM123: =IF(AM121="","",VLOOKUP(AM121,'【記載例】（ユニット型）シフト記号表'!$C$5:$Y$46,23,FALSE)) ->  | AN123: =IF(AN121="","",VLOOKUP(AN121,'【記載例】（ユニット型）シフト記号表'!$C$5:$Y$46,23,FALSE)) ->  | AO123: =IF(AO121="","",VLOOKUP(AO121,'【記載例】（ユニット型）シフト記号表'!$C$5:$Y$46,23,FALSE)) ->  | AP123: =IF(AP121="","",VLOOKUP(AP121,'【記載例】（ユニット型）シフト記号表'!$C$5:$Y$46,23,FALSE)) ->  | AQ123: =IF(AQ121="","",VLOOKUP(AQ121,'【記載例】（ユニット型）シフト記号表'!$C$5:$Y$46,23,FALSE)) ->  | AR123: =IF(AR121="","",VLOOKUP(AR121,'【記載例】（ユニット型）シフト記号表'!$C$5:$Y$46,23,FALSE)) ->  | AS123: =IF(AS121="","",VLOOKUP(AS121,'【記載例】（ユニット型）シフト記号表'!$C$5:$Y$46,23,FALSE)) ->  | AT123: =IF(AT121="","",VLOOKUP(AT121,'【記載例】（ユニット型）シフト記号表'!$C$5:$Y$46,23,FALSE)) ->  | AU123: =IF(AU121="","",VLOOKUP(AU121,'【記載例】（ユニット型）シフト記号表'!$C$5:$Y$46,23,FALSE)) ->  | AV123: =IF(AV121="","",VLOOKUP(AV121,'【記載例】（ユニット型）シフト記号表'!$C$5:$Y$46,23,FALSE)) ->  | AW123: =IF(AW121="","",VLOOKUP(AW121,'【記載例】（ユニット型）シフト記号表'!$C$5:$Y$46,23,FALSE)) ->  | AX123: =IF(AX121="","",VLOOKUP(AX121,'【記載例】（ユニット型）シフト記号表'!$C$5:$Y$46,23,FALSE)) ->  | AY123: =IF(AY121="","",VLOOKUP(AY121,'【記載例】（ユニット型）シフト記号表'!$C$5:$Y$46,23,FALSE)) ->  | AZ123: =IF(AZ121="","",VLOOKUP(AZ121,'【記載例】（ユニット型）シフト記号表'!$C$5:$Y$46,23,FALSE)) ->  | BA123: =IF(BA121="","",VLOOKUP(BA121,'【記載例】（ユニット型）シフト記号表'!$C$5:$Y$46,23,FALSE)) ->  | BB123: =IF(BB121="","",VLOOKUP(BB121,'【記載例】（ユニット型）シフト記号表'!$C$5:$Y$46,23,FALSE)) ->  | BC123: =IF(BC121="","",VLOOKUP(BC121,'【記載例】（ユニット型）シフト記号表'!$C$5:$Y$46,23,FALSE)) ->  | BD123: =IF(BD121="","",VLOOKUP(BD121,'【記載例】（ユニット型）シフト記号表'!$C$5:$Y$46,23,FALSE)) ->  | BE123: =IF(BE121="","",VLOOKUP(BE121,'【記載例】（ユニット型）シフト記号表'!$C$5:$Y$46,23,FALSE)) ->  | BF123: =IF($BI$3="計画",SUM(AA123:BB123),IF($BI$3="実績",SUM(AA123:BE123),"")) -> 0 | BH123: =IF($BI$3="計画",BF123/4,IF($BI$3="実績",(BF123/($BI$7/7)),"")) -> 0
V124: シフト記号
B125: =B122+1 -> 36 | V125: 日中の勤務時間数 | AA125: =IF(AA124="","",VLOOKUP(AA124,'【記載例】（ユニット型）シフト記号表'!$C$5:$W$46,21,FALSE)) ->  | AB125: =IF(AB124="","",VLOOKUP(AB124,'【記載例】（ユニット型）シフト記号表'!$C$5:$W$46,21,FALSE)) ->  | AC125: =IF(AC124="","",VLOOKUP(AC124,'【記載例】（ユニット型）シフト記号表'!$C$5:$W$46,21,FALSE)) ->  | AD125: =IF(AD124="","",VLOOKUP(AD124,'【記載例】（ユニット型）シフト記号表'!$C$5:$W$46,21,FALSE)) ->  | AE125: =IF(AE124="","",VLOOKUP(AE124,'【記載例】（ユニット型）シフト記号表'!$C$5:$W$46,21,FALSE)) ->  | AF125: =IF(AF124="","",VLOOKUP(AF124,'【記載例】（ユニット型）シフト記号表'!$C$5:$W$46,21,FALSE)) ->  | AG125: =IF(AG124="","",VLOOKUP(AG124,'【記載例】（ユニット型）シフト記号表'!$C$5:$W$46,21,FALSE)) ->  | AH125: =IF(AH124="","",VLOOKUP(AH124,'【記載例】（ユニット型）シフト記号表'!$C$5:$W$46,21,FALSE)) ->  | AI125: =IF(AI124="","",VLOOKUP(AI124,'【記載例】（ユニット型）シフト記号表'!$C$5:$W$46,21,FALSE)) ->  | AJ125: =IF(AJ124="","",VLOOKUP(AJ124,'【記載例】（ユニット型）シフト記号表'!$C$5:$W$46,21,FALSE)) ->  | AK125: =IF(AK124="","",VLOOKUP(AK124,'【記載例】（ユニット型）シフト記号表'!$C$5:$W$46,21,FALSE)) ->  | AL125: =IF(AL124="","",VLOOKUP(AL124,'【記載例】（ユニット型）シフト記号表'!$C$5:$W$46,21,FALSE)) ->  | AM125: =IF(AM124="","",VLOOKUP(AM124,'【記載例】（ユニット型）シフト記号表'!$C$5:$W$46,21,FALSE)) ->  | AN125: =IF(AN124="","",VLOOKUP(AN124,'【記載例】（ユニット型）シフト記号表'!$C$5:$W$46,21,FALSE)) ->  | AO125: =IF(AO124="","",VLOOKUP(AO124,'【記載例】（ユニット型）シフト記号表'!$C$5:$W$46,21,FALSE)) ->  | AP125: =IF(AP124="","",VLOOKUP(AP124,'【記載例】（ユニット型）シフト記号表'!$C$5:$W$46,21,FALSE)) ->  | AQ125: =IF(AQ124="","",VLOOKUP(AQ124,'【記載例】（ユニット型）シフト記号表'!$C$5:$W$46,21,FALSE)) ->  | AR125: =IF(AR124="","",VLOOKUP(AR124,'【記載例】（ユニット型）シフト記号表'!$C$5:$W$46,21,FALSE)) ->  | AS125: =IF(AS124="","",VLOOKUP(AS124,'【記載例】（ユニット型）シフト記号表'!$C$5:$W$46,21,FALSE)) ->  | AT125: =IF(AT124="","",VLOOKUP(AT124,'【記載例】（ユニット型）シフト記号表'!$C$5:$W$46,21,FALSE)) ->  | AU125: =IF(AU124="","",VLOOKUP(AU124,'【記載例】（ユニット型）シフト記号表'!$C$5:$W$46,21,FALSE)) ->  | AV125: =IF(AV124="","",VLOOKUP(AV124,'【記載例】（ユニット型）シフト記号表'!$C$5:$W$46,21,FALSE)) ->  | AW125: =IF(AW124="","",VLOOKUP(AW124,'【記載例】（ユニット型）シフト記号表'!$C$5:$W$46,21,FALSE)) ->  | AX125: =IF(AX124="","",VLOOKUP(AX124,'【記載例】（ユニット型）シフト記号表'!$C$5:$W$46,21,FALSE)) ->  | AY125: =IF(AY124="","",VLOOKUP(AY124,'【記載例】（ユニット型）シフト記号表'!$C$5:$W$46,21,FALSE)) ->  | AZ125: =IF(AZ124="","",VLOOKUP(AZ124,'【記載例】（ユニット型）シフト記号表'!$C$5:$W$46,21,FALSE)) ->  | BA125: =IF(BA124="","",VLOOKUP(BA124,'【記載例】（ユニット型）シフト記号表'!$C$5:$W$46,21,FALSE)) ->  | BB125: =IF(BB124="","",VLOOKUP(BB124,'【記載例】（ユニット型）シフト記号表'!$C$5:$W$46,21,FALSE)) ->  | BC125: =IF(BC124="","",VLOOKUP(BC124,'【記載例】（ユニット型）シフト記号表'!$C$5:$W$46,21,FALSE)) ->  | BD125: =IF(BD124="","",VLOOKUP(BD124,'【記載例】（ユニット型）シフト記号表'!$C$5:$W$46,21,FALSE)) ->  | BE125: =IF(BE124="","",VLOOKUP(BE124,'【記載例】（ユニット型）シフト記号表'!$C$5:$W$46,21,FALSE)) ->  | BF125: =IF($BI$3="計画",SUM(AA125:BB125),IF($BI$3="実績",SUM(AA125:BE125),"")) -> 0 | BH125: =IF($BI$3="計画",BF125/4,IF($BI$3="実績",(BF125/($BI$7/7)),"")) -> 0
I126: =G125 -> 0 | K126: =M125 -> 0 | V126: 夜勤時間帯の勤務時間数 | AA126: =IF(AA124="","",VLOOKUP(AA124,'【記載例】（ユニット型）シフト記号表'!$C$5:$Y$46,23,FALSE)) ->  | AB126: =IF(AB124="","",VLOOKUP(AB124,'【記載例】（ユニット型）シフト記号表'!$C$5:$Y$46,23,FALSE)) ->  | AC126: =IF(AC124="","",VLOOKUP(AC124,'【記載例】（ユニット型）シフト記号表'!$C$5:$Y$46,23,FALSE)) ->  | AD126: =IF(AD124="","",VLOOKUP(AD124,'【記載例】（ユニット型）シフト記号表'!$C$5:$Y$46,23,FALSE)) ->  | AE126: =IF(AE124="","",VLOOKUP(AE124,'【記載例】（ユニット型）シフト記号表'!$C$5:$Y$46,23,FALSE)) ->  | AF126: =IF(AF124="","",VLOOKUP(AF124,'【記載例】（ユニット型）シフト記号表'!$C$5:$Y$46,23,FALSE)) ->  | AG126: =IF(AG124="","",VLOOKUP(AG124,'【記載例】（ユニット型）シフト記号表'!$C$5:$Y$46,23,FALSE)) ->  | AH126: =IF(AH124="","",VLOOKUP(AH124,'【記載例】（ユニット型）シフト記号表'!$C$5:$Y$46,23,FALSE)) ->  | AI126: =IF(AI124="","",VLOOKUP(AI124,'【記載例】（ユニット型）シフト記号表'!$C$5:$Y$46,23,FALSE)) ->  | AJ126: =IF(AJ124="","",VLOOKUP(AJ124,'【記載例】（ユニット型）シフト記号表'!$C$5:$Y$46,23,FALSE)) ->  | AK126: =IF(AK124="","",VLOOKUP(AK124,'【記載例】（ユニット型）シフト記号表'!$C$5:$Y$46,23,FALSE)) ->  | AL126: =IF(AL124="","",VLOOKUP(AL124,'【記載例】（ユニット型）シフト記号表'!$C$5:$Y$46,23,FALSE)) ->  | AM126: =IF(AM124="","",VLOOKUP(AM124,'【記載例】（ユニット型）シフト記号表'!$C$5:$Y$46,23,FALSE)) ->  | AN126: =IF(AN124="","",VLOOKUP(AN124,'【記載例】（ユニット型）シフト記号表'!$C$5:$Y$46,23,FALSE)) ->  | AO126: =IF(AO124="","",VLOOKUP(AO124,'【記載例】（ユニット型）シフト記号表'!$C$5:$Y$46,23,FALSE)) ->  | AP126: =IF(AP124="","",VLOOKUP(AP124,'【記載例】（ユニット型）シフト記号表'!$C$5:$Y$46,23,FALSE)) ->  | AQ126: =IF(AQ124="","",VLOOKUP(AQ124,'【記載例】（ユニット型）シフト記号表'!$C$5:$Y$46,23,FALSE)) ->  | AR126: =IF(AR124="","",VLOOKUP(AR124,'【記載例】（ユニット型）シフト記号表'!$C$5:$Y$46,23,FALSE)) ->  | AS126: =IF(AS124="","",VLOOKUP(AS124,'【記載例】（ユニット型）シフト記号表'!$C$5:$Y$46,23,FALSE)) ->  | AT126: =IF(AT124="","",VLOOKUP(AT124,'【記載例】（ユニット型）シフト記号表'!$C$5:$Y$46,23,FALSE)) ->  | AU126: =IF(AU124="","",VLOOKUP(AU124,'【記載例】（ユニット型）シフト記号表'!$C$5:$Y$46,23,FALSE)) ->  | AV126: =IF(AV124="","",VLOOKUP(AV124,'【記載例】（ユニット型）シフト記号表'!$C$5:$Y$46,23,FALSE)) ->  | AW126: =IF(AW124="","",VLOOKUP(AW124,'【記載例】（ユニット型）シフト記号表'!$C$5:$Y$46,23,FALSE)) ->  | AX126: =IF(AX124="","",VLOOKUP(AX124,'【記載例】（ユニット型）シフト記号表'!$C$5:$Y$46,23,FALSE)) ->  | AY126: =IF(AY124="","",VLOOKUP(AY124,'【記載例】（ユニット型）シフト記号表'!$C$5:$Y$46,23,FALSE)) ->  | AZ126: =IF(AZ124="","",VLOOKUP(AZ124,'【記載例】（ユニット型）シフト記号表'!$C$5:$Y$46,23,FALSE)) ->  | BA126: =IF(BA124="","",VLOOKUP(BA124,'【記載例】（ユニット型）シフト記号表'!$C$5:$Y$46,23,FALSE)) ->  | BB126: =IF(BB124="","",VLOOKUP(BB124,'【記載例】（ユニット型）シフト記号表'!$C$5:$Y$46,23,FALSE)) ->  | BC126: =IF(BC124="","",VLOOKUP(BC124,'【記載例】（ユニット型）シフト記号表'!$C$5:$Y$46,23,FALSE)) ->  | BD126: =IF(BD124="","",VLOOKUP(BD124,'【記載例】（ユニット型）シフト記号表'!$C$5:$Y$46,23,FALSE)) ->  | BE126: =IF(BE124="","",VLOOKUP(BE124,'【記載例】（ユニット型）シフト記号表'!$C$5:$Y$46,23,FALSE)) ->  | BF126: =IF($BI$3="計画",SUM(AA126:BB126),IF($BI$3="実績",SUM(AA126:BE126),"")) -> 0 | BH126: =IF($BI$3="計画",BF126/4,IF($BI$3="実績",(BF126/($BI$7/7)),"")) -> 0
N128: (18)人員基準の確認（看護職員・介護職員）
O129: ①看護職員 | AE129: ②介護職員 | AU129: ③看護職員と介護職員の合計
O130: 勤務形態 | Q130: 勤務時間数合計 | V130: 常勤換算の対象時間数 | AA130: 常勤換算方法対象外の | AE130: 勤務形態 | AG130: 勤務時間数合計 | AL130: 常勤換算の対象時間数 | AQ130: 常勤換算方法対象外の
Q131: 当月合計 | S131: 週平均 | V131: 当月合計 | X131: 週平均 | AA131: 常勤の従業者の人数 | AG131: 当月合計 | AI131: 週平均 | AL131: 当月合計 | AN131: 週平均 | AQ131: 常勤の従業者の人数 | AU131: 看護職員 | AZ131: 介護職員 | BE131: 合計
O132: A | Q132: =SUMIFS($BF$19:$BG$126,$G$19:$H$126,"看護職員",$M$19:$N$126,"A")+SUMIFS($BF$19:$BG$126,$I$19:$J$126,"看護職員",$K$19:$L$126,"A") -> 960 | S132: =SUMIFS($BH$19:$BI$126,$G$19:$H$126,"看護職員",$M$19:$N$126,"A")+SUMIFS($BH$19:$BI$126,$I$19:$J$126,"看護職員",$K$19:$L$126,"A") -> 240 | V132: 0 | X132: 0 | AA132: 6 | AE132: A | AG132: =SUMIFS($BF$19:$BG$126,$G$19:$H$126,"介護職員",$M$19:$N$126,"A")+SUMIFS($BF$19:$BG$126,$I$19:$J$126,"介護職員",$K$19:$L$126,"A") -> 1920 | AI132: =SUMIFS($BH$19:$BI$126,$G$19:$H$126,"介護職員",$M$19:$N$126,"A")+SUMIFS($BH$19:$BI$126,$I$19:$J$126,"介護職員",$K$19:$L$126,"A") -> 480 | AL132: 0 | AN132: 0 | AQ132: 12 | AU132: =Y146 -> 6 | AY132: ＋ | AZ132: =AO146 -> 15.2 | BD132: ＝ | BE132: =ROUNDDOWN(AU132+AZ132,1) -> 21.2
O133: B | Q133: =SUMIFS($BF$19:$BG$126,$G$19:$H$126,"看護職員",$M$19:$N$126,"B")+SUMIFS($BF$19:$BG$126,$I$19:$J$126,"看護職員",$K$19:$L$126,"B") -> 0 | S133: =SUMIFS($BH$19:$BI$126,$G$19:$H$126,"看護職員",$M$19:$N$126,"B")+SUMIFS($BH$19:$BI$126,$I$19:$J$126,"看護職員",$K$19:$L$126,"B") -> 0 | V133: 0 | X133: 0 | AA133: 0 | AE133: B | AG133: =SUMIFS($BF$19:$BG$126,$G$19:$H$126,"介護職員",$M$19:$N$126,"B")+SUMIFS($BF$19:$BG$126,$I$19:$J$126,"介護職員",$K$19:$L$126,"B") -> 0 | AI133: =SUMIFS($BH$19:$BI$126,$G$19:$H$126,"介護職員",$M$19:$N$126,"B")+SUMIFS($BH$19:$BI$126,$I$19:$J$126,"介護職員",$K$19:$L$126,"B") -> 0 | AL133: 0 | AN133: 0 | AQ133: 0
O134: C | Q134: =SUMIFS($BF$19:$BG$126,$G$19:$H$126,"看護職員",$M$19:$N$126,"C")+SUMIFS($BF$19:$BG$126,$I$19:$J$126,"看護職員",$K$19:$L$126,"C") -> 0 | S134: =SUMIFS($BH$19:$BI$126,$G$19:$H$126,"看護職員",$M$19:$N$126,"C")+SUMIFS($BH$19:$BI$126,$I$19:$J$126,"看護職員",$K$19:$L$126,"C") -> 0 | V134: 0 | X134: 0 | AA134: - | AE134: C | AG134: =SUMIFS($BF$19:$BG$126,$G$19:$H$126,"介護職員",$M$19:$N$126,"C")+SUMIFS($BF$19:$BG$126,$I$19:$J$126,"介護職員",$K$19:$L$126,"C") -> 512 | AI134: =SUMIFS($BH$19:$BI$126,$G$19:$H$126,"介護職員",$M$19:$N$126,"C")+SUMIFS($BH$19:$BI$126,$I$19:$J$126,"介護職員",$K$19:$L$126,"C") -> 128 | AL134: 512 | AN134: 128 | AQ134: -
O135: D | Q135: =SUMIFS($BF$19:$BG$126,$G$19:$H$126,"看護職員",$M$19:$N$126,"D")+SUMIFS($BF$19:$BG$126,$I$19:$J$126,"看護職員",$K$19:$L$126,"D") -> 0 | S135: =SUMIFS($BH$19:$BI$126,$G$19:$H$126,"看護職員",$M$19:$N$126,"D")+SUMIFS($BH$19:$BI$126,$I$19:$J$126,"看護職員",$K$19:$L$126,"D") -> 0 | V135: 0 | X135: 0 | AA135: - | AE135: D | AG135: =SUMIFS($BF$19:$BG$126,$G$19:$H$126,"介護職員",$M$19:$N$126,"D")+SUMIFS($BF$19:$BG$126,$I$19:$J$126,"介護職員",$K$19:$L$126,"D") -> 0 | AI135: =SUMIFS($BH$19:$BI$126,$G$19:$H$126,"介護職員",$M$19:$N$126,"D")+SUMIFS($BH$19:$BI$126,$I$19:$J$126,"介護職員",$K$19:$L$126,"D") -> 0 | AL135: 0 | AN135: 0 | AQ135: - | AU135: （勤務形態の記号）
O136: 合計 | Q136: =SUM(Q132:R135) -> 960 | S136: =SUM(S132:T135) -> 240 | V136: =SUM(V132:W135) -> 0 | X136: =SUM(X132:Y135) -> 0 | AA136: =SUM(AA132:AB133) -> 6 | AE136: 合計 | AG136: =SUM(AG132:AH135) -> 2432 | AI136: =SUM(AI132:AJ135) -> 608 | AL136: =SUM(AL132:AM135) -> 512 | AN136: =SUM(AN132:AO135) -> 128 | AQ136: =SUM(AQ132:AR133) -> 12 | AU136: 記号 | AW136: 区分
AU137: A | AW137: 常勤で専従
O138: ■ 常勤換算方法による人数 | AE138: ■ 常勤換算方法による人数 | AU138: B | AW138: 常勤で兼務
O139: 常勤換算の | T139: 常勤の従業者が | AE139: 常勤換算の | AJ139: 常勤の従業者が | AU139: C | AW139: 非常勤で専従
O140: =IF($BI$3="計画","対象時間数（週平均）","対象時間数（当月合計）") -> 対象時間数（週平均） | T140: =IF($BI$3="計画","週に勤務すべき時間数","当月に勤務すべき時間数") -> 週に勤務すべき時間数 | Y140: 常勤換算後の人数 | AE140: =IF($BI$3="計画","対象時間数（週平均）","対象時間数（当月合計）") -> 対象時間数（週平均） | AJ140: =IF($BI$3="計画","週に勤務すべき時間数","当月に勤務すべき時間数") -> 週に勤務すべき時間数 | AO140: 常勤換算後の人数 | AU140: D | AW140: 非常勤で兼務
O141: =IF($BI$3="計画",X136,V136) -> 0 | S141: ÷ | T141: =IF($BI$3="計画",$BE$5,$BI$5) -> 40 | X141: ＝ | Y141: =ROUNDDOWN(O141/T141,1) -> 0 | AE141: =IF($BI$3="計画",AN136,AL136) -> 128 | AI141: ÷ | AJ141: =IF($BI$3="計画",$BE$5,$BI$5) -> 40 | AN141: ＝ | AO141: =ROUNDDOWN(AE141/AJ141,1) -> 3.2
Y142: （小数点第2位以下切り捨て） | AO142: （小数点第2位以下切り捨て）
O143: ■ 看護職員の常勤換算方法による人数 | AE143: ■ 介護職員の常勤換算方法による人数
O144: 常勤換算方法対象外の | AE144: 常勤換算方法対象外の
O145: 常勤の従業者の人数 | T145: 常勤換算方法による人数 | Y145: 合計 | AE145: 常勤の従業者の人数 | AJ145: 常勤換算方法による人数 | AO145: 合計
O146: =AA136 -> 6 | S146: ＋ | T146: =Y141 -> 0 | X146: ＝ | Y146: =ROUNDDOWN(O146+T146,1) -> 6 | AE146: =AQ136 -> 12 | AI146: ＋ | AJ146: =AO141 -> 3.2 | AN146: ＝ | AO146: =ROUNDDOWN(AE146+AJ146,1) -> 15.2

Sheet 【記載例】（ユニット型）シフト記号表
B1: ≪要 提出≫
B2: ■シフト記号表（勤務時間帯） | E2: ※24時間表記 | I2: 休憩時間1時間は「1:00」、休憩時間45分は「00:45」と入力してください。
E3: 勤務時間 | M3: 日中（夜勤時間帯以外）の時間帯 | Q3: 日中（夜勤時間帯以外）の勤務時間 | Y3: 夜勤時間帯
B4: （記号の意味） | C4: 記号 | E4: 始業時間 | G4: 終業時間 | I4: うち、休憩時間 | K4: 勤務時間 | M4: 開始 | O4: 終了 | Q4: 開始 | S4: 終了 | U4: うち、休憩時間 | W4: 勤務時間 | Y4: の勤務時間
B5: 休：休暇 | C5: 休 | D5: ： | E5: - | F5: ～ | G5: - | H5: （ | I5: - | J5: ） | K5: - | M5: - | N5: ～ | O5: - | Q5: - | R5: ～ | S5: - | T5: （ | U5: - | V5: ） | W5: - | Y5: -
B6: 出：出張 | C6: 出 | D6: ： | E6: - | F6: ～ | G6: - | H6: （ | I6: - | J6: ） | K6: - | M6: - | N6: ～ | O6: - | Q6: - | R6: ～ | S6: - | T6: （ | U6: - | V6: ） | W6: - | Y6: -
B7: 研：研修 | C7: 研 | D7: ： | E7: - | F7: ～ | G7: - | H7: （ | I7: - | J7: ） | K7: - | M7: - | N7: ～ | O7: - | Q7: - | R7: ～ | S7: - | T7: （ | U7: - | V7: ） | W7: - | Y7: -
C8: a | D8: ： | E8: 07:00:00 | F8: ～ | G8: 16:00:00 | H8: （ | I8: 01:00:00 | J8: ） | K8: =IF(OR(E8="",G8=""),"",(G8+IF(E8>G8,1,0)-E8-I8)*24) -> 8 | M8: ='【記載例】（ユニット型）'!$Q$11 -> 09:00:00 | N8: ～ | O8: ='【記載例】（ユニット型）'!$U$11 -> 17:00:00 | Q8: =IF(E8="","",IF(E8<M8,M8,IF(E8>=O8,"",E8))) -> 09:00:00 | R8: ～ | S8: =IF(G8="","",IF(G8>E8,IF(G8<O8,G8,O8),O8)) -> 16:00:00 | T8: （ | U8: 01:00:00 | V8: ） | W8: =IF(Q8="","",IF((S8+IF(Q8>S8,1,0)-Q8-U8)*24=0,"",(S8+IF(Q8>S8,1,0)-Q8-U8)*24)) -> 6 | Y8: =IF(W8="",K8,IF(OR(K8-W8=0,K8-W8<0),"-",K8-W8)) -> 2
C9: b | D9: ： | E9: 09:00:00 | F9: ～ | G9: 18:00:00 | H9: （ | I9: 01:00:00 | J9: ） | K9: =IF(OR(E9="",G9=""),"",(G9+IF(E9>G9,1,0)-E9-I9)*24) -> 8 | M9: ='【記載例】（ユニット型）'!$Q$11 -> 09:00:00 | N9: ～ | O9: ='【記載例】（ユニット型）'!$U$11 -> 17:00:00 | Q9: 09:00:00 | R9: ～ | S9: 17:00:00 | T9: （ | U9: 01:00:00 | V9: ） | W9: =IF(Q9="","",IF((S9+IF(Q9>S9,1,0)-Q9-U9)*24=0,"",(S9+IF(Q9>S9,1,0)-Q9-U9)*24)) -> 7 | Y9: =IF(W9="",K9,IF(OR(K9-W9=0,K9-W9<0),"-",K9-W9)) -> 1
C10: c | D10: ： | E10: 10:00:00 | F10: ～ | G10: 19:00:00 | H10: （ | I10: 01:00:00 | J10: ） | K10: 8 | M10: ='【記載例】（ユニット型）'!$Q$11 -> 09:00:00 | N10: ～ | O10: ='【記載例】（ユニット型）'!$U$11 -> 17:00:00 | Q10: 10:00:00 | R10: ～ | S10: 17:00:00 | T10: （ | U10: 01:00:00 | V10: ） | W10: 6 | Y10: 2
C11: d | D11: ： | E11: 12:00:00 | F11: ～ | G11: 21:00:00 | H11: （ | I11: 01:00:00 | J11: ） | K11: 8 | M11: ='【記載例】（ユニット型）'!$Q$11 -> 09:00:00 | N11: ～ | O11: ='【記載例】（ユニット型）'!$U$11 -> 17:00:00 | Q11: 12:00:00 | R11: ～ | S11: 17:00:00 | T11: （ | U11: 00:00:00 | V11: ） | W11: 5 | Y11: 3
C12: e | D12: ： | E12: 09:00:00 | F12: ～ | G12: 13:00:00 | H12: （ | I12: 00:00:00 | J12: ） | K12: 4 | M12: ='【記載例】（ユニット型）'!$Q$11 -> 09:00:00 | N12: ～ | O12: ='【記載例】（ユニット型）'!$U$11 -> 17:00:00 | Q12: 09:00:00 | R12: ～ | S12: 13:00:00 | T12: （ | U12: 00:00:00 | V12: ） | W12: 4 | Y12: -
C13: f | D13: ： | E13: 13:00:00 | F13: ～ | G13: 17:00:00 | H13: （ | I13: 00:00:00 | J13: ） | K13: 4 | M13: ='【記載例】（ユニット型）'!$Q$11 -> 09:00:00 | N13: ～ | O13: ='【記載例】（ユニット型）'!$U$11 -> 17:00:00 | Q13: 13:00:00 | R13: ～ | S13: 17:00:00 | T13: （ | U13: 00:00:00 | V13: ） | W13: 4 | Y13: -
C14: g | D14: ： | E14: 14:00:00 | F14: ～ | G14: 20:00:00 | H14: （ | I14: 00:00:00 | J14: ） | K14: 6 | M14: ='【記載例】（ユニット型）'!$Q$11 -> 09:00:00 | N14: ～ | O14: ='【記載例】（ユニット型）'!$U$11 -> 17:00:00 | Q14: 14:00:00 | R14: ～ | S14: 17:00:00 | T14: （ | U14: 00:00:00 | V14: ） | W14: 3 | Y14: 3
C15: h | D15: ： | E15: 16:00:00 | F15: ～ | G15: 09:00:00 | H15: （ | I15: 02:00:00 | J15: ） | K15: 15 | M15: ='【記載例】（ユニット型）'!$Q$11 -> 09:00:00 | N15: ～ | O15: ='【記載例】（ユニット型）'!$U$11 -> 17:00:00 | Q15: 16:00:00 | R15: ～ | S15: 17:00:00 | T15: （ | U15: 00:00:00 | V15: ） | W15: 1 | Y15: 14
C16: i | D16: ： | E16: 06:00:00 | F16: ～ | G16: 12:00:00 | H16: （ | I16: 00:00:00 | J16: ） | K16: 6 | M16: ='【記載例】（ユニット型）'!$Q$11 -> 09:00:00 | N16: ～ | O16: ='【記載例】（ユニット型）'!$U$11 -> 17:00:00 | Q16: 09:00:00 | R16: ～ | S16: 12:00:00 | T16: （ | U16: 00:00:00 | V16: ） | W16: 3 | Y16: 3
C17: j | D17: ： | F17: ～ | H17: （ | I17: 00:00:00 | J17: ） | M17: ='【記載例】（ユニット型）'!$Q$11 -> 09:00:00 | N17: ～ | O17: ='【記載例】（ユニット型）'!$U$11 -> 17:00:00 | R17: ～ | T17: （ | U17: 00:00:00 | V17: ）
C18: k | D18: ： | F18: ～ | H18: （ | I18: 00:00:00 | J18: ） | M18: ='【記載例】（ユニット型）'!$Q$11 -> 09:00:00 | N18: ～ | O18: ='【記載例】（ユニット型）'!$U$11 -> 17:00:00 | R18: ～ | T18: （ | U18: 00:00:00 | V18: ）
C19: l | D19: ： | F19: ～ | H19: （ | I19: 00:00:00 | J19: ） | M19: ='【記載例】（ユニット型）'!$Q$11 -> 09:00:00 | N19: ～ | O19: ='【記載例】（ユニット型）'!$U$11 -> 17:00:00 | R19: ～ | T19: （ | U19: 00:00:00 | V19: ）
C20: m | D20: ： | F20: ～ | H20: （ | I20: 00:00:00 | J20: ） | M20: ='【記載例】（ユニット型）'!$Q$11 -> 09:00:00 | N20: ～ | O20: ='【記載例】（ユニット型）'!$U$11 -> 17:00:00 | R20: ～ | T20: （ | U20: 00:00:00 | V20: ）
C21: n | D21: ： | F21: ～ | H21: （ | I21: 00:00:00 | J21: ） | M21: ='【記載例】（ユニット型）'!$Q$11 -> 09:00:00 | N21: ～ | O21: ='【記載例】（ユニット型）'!$U$11 -> 17:00:00 | R21: ～ | T21: （ | U21: 00:00:00 | V21: ）
C22: o | D22: ： | E22: 16:00:00 | F22: ～ | G22: 10:00:00 | H22: （ | I22: 02:00:00 | J22: ） | K22: 16 | N22: ～ | R22: ～ | T22: （ | U22: 02:00:00 | V22: ） | W22: 2 | Y22: 14
C23: p | D23: ： | F23: ～ | H23: （ | J23: ） | K23: 2 | N23: ～ | R23: ～ | T23: （ | V23: ） | W23: 2
C24: q | D24: ： | F24: ～ | H24: （ | J24: ） | K24: 3 | N24: ～ | R24: ～ | T24: （ | V24: ） | W24: 3
C25: r | D25: ： | F25: ～ | H25: （ | J25: ） | K25: 4 | N25: ～ | R25: ～ | T25: （ | V25: ） | W25: 4
C26: s | D26: ： | F26: ～ | H26: （ | J26: ） | K26: 5 | N26: ～ | R26: ～ | T26: （ | V26: ） | W26: 5
C27: t | D27: ： | F27: ～ | H27: （ | J27: ） | K27: 6 | N27: ～ | R27: ～ | T27: （ | V27: ） | W27: 6
C28: u | D28: ： | F28: ～ | H28: （ | J28: ） | K28: 7 | N28: ～ | R28: ～ | T28: （ | V28: ） | W28: 7
C29: v | D29: ： | F29: ～ | H29: （ | J29: ） | K29: 8 | N29: ～ | R29: ～ | T29: （ | V29: ） | W29: 8
C30: w | D30: ： | F30: ～ | H30: （ | J30: ） | K30: 1 | N30: ～ | R30: ～ | T30: （ | V30: ） | Y30: 1
C31: x | D31: ： | F31: ～ | H31: （ | J31: ） | K31: 2 | N31: ～ | R31: ～ | T31: （ | V31: ） | Y31: 2
C32: y | D32: ： | F32: ～ | H32: （ | J32: ） | K32: 3 | N32: ～ | R32: ～ | T32: （ | V32: ） | Y32: 3
C33: z | D33: ： | F33: ～ | H33: （ | J33: ） | K33: 4 | N33: ～ | R33: ～ | T33: （ | V33: ） | Y33: 4
C34: aa | D34: ： | F34: ～ | H34: （ | J34: ） | K34: 5 | N34: ～ | R34: ～ | T34: （ | V34: ） | Y34: 5
C35: ab | D35: ： | F35: ～ | H35: （ | J35: ） | K35: 6 | N35: ～ | R35: ～ | T35: （ | V35: ） | Y35: 6
C36: ac | D36: ： | F36: ～ | H36: （ | J36: ） | K36: 7 | N36: ～ | R36: ～ | T36: （ | V36: ） | Y36: 7
C37: ad | D37: ： | F37: ～ | H37: （ | J37: ） | K37: 8 | N37: ～ | R37: ～ | T37: （ | V37: ） | Y37: 8
C38: ae | D38: ： | F38: ～ | H38: （ | I38: 00:00:00 | J38: ） | K38: =IF(OR(E38="",G38=""),"",(G38+IF(E38>G38,1,0)-E38-I38)*24) ->  | M38: ='【記載例】（ユニット型）'!$Q$11 -> 09:00:00 | N38: ～ | O38: ='【記載例】（ユニット型）'!$U$11 -> 17:00:00 | Q38: =IF(E38="","",IF(E38<M38,M38,IF(E38>=O38,"",E38))) ->  | R38: ～ | S38: =IF(G38="","",IF(G38>E38,IF(G38<O38,G38,O38),O38)) ->  | T38: （ | U38: =I38 -> 00:00:00 | V38: ） | W38: =IF(Q38="","",IF((S38+IF(Q38>S38,1,0)-Q38-U38)*24=0,"",(S38+IF(Q38>S38,1,0)-Q38-U38)*24)) ->  | Y38: =IF(W38="",K38,IF(OR(K38-W38=0,K38-W38<0),"-",K38-W38)) -> 
C39: af | D39: ： | F39: ～ | H39: （ | I39: 00:00:00 | J39: ） | M39: ='【記載例】（ユニット型）'!$Q$11 -> 09:00:00 | N39: ～ | O39: ='【記載例】（ユニット型）'!$U$11 -> 17:00:00 | R39: ～ | T39: （ | U39: =I39 -> 00:00:00 | V39: ） | Y39: =IF(W39="",K39,IF(OR(K39-W39=0,K39-W39<0),"-",K39-W39)) -> 
C40: ag | D40: ： | F40: ～ | H40: （ | I40: 00:00:00 | J40: ） | M40: ='【記載例】（ユニット型）'!$Q$11 -> 09:00:00 | N40: ～ | O40: ='【記載例】（ユニット型）'!$U$11 -> 17:00:00 | R40: ～ | T40: （ | U40: 00:00:00 | V40: ）
C41: 早退(1) | D41: ： | F41: ～ | H41: （ | I41: 00:00:00 | J41: ） | M41: ='【記載例】（ユニット型）'!$Q$11 -> 09:00:00 | N41: ～ | O41: ='【記載例】（ユニット型）'!$U$11 -> 17:00:00 | R41: ～ | T41: （ | U41: 00:00:00 | V41: ） | AA41: 実績で早退者がいた場合に使用
C42: 早退(2) | D42: ： | F42: ～ | H42: （ | I42: 00:00:00 | J42: ） | M42: ='【記載例】（ユニット型）'!$Q$11 -> 09:00:00 | N42: ～ | O42: ='【記載例】（ユニット型）'!$U$11 -> 17:00:00 | R42: ～ | T42: （ | U42: 00:00:00 | V42: ） | AA42: 実績で早退者がいた場合に使用
C43: az | D43: ： | F43: ～ | H43: （ | I43: 00:00:00 | J43: ） | M43: ='【記載例】（ユニット型）'!$Q$11 -> 09:00:00 | N43: ～ | O43: ='【記載例】（ユニット型）'!$U$11 -> 17:00:00 | R43: ～ | T43: （ | U43: 00:00:00 | V43: ）
B44: 1日のうち | D44: ： | E44: 07:00:00 | F44: ～ | G44: 09:30:00 | H44: （ | I44: 00:00:00 | J44: ） | K44: 2.5 | M44: ='【記載例】（ユニット型）'!$Q$11 -> 09:00:00 | N44: ～ | O44: ='【記載例】（ユニット型）'!$U$11 -> 17:00:00 | Q44: 09:00:00 | R44: ～ | S44: 09:30:00 | T44: （ | U44: 00:00:00 | V44: ） | W44: 0.5 | Y44: 2
B45: 朝・夜の2回 | D45: ： | E45: 16:30:00 | F45: ～ | G45: 20:00:00 | H45: （ | I45: 00:00:00 | J45: ） | K45: 3.5 | M45: ='【記載例】（ユニット型）'!$Q$11 -> 09:00:00 | N45: ～ | O45: ='【記載例】（ユニット型）'!$U$11 -> 17:00:00 | Q45: 16:30:00 | R45: ～ | S45: 17:00:00 | T45: （ | U45: 00:00:00 | V45: ） | W45: 0.5 | Y45: 3
B46: 勤務の場合 | C46: ba | D46: ： | E46: - | F46: ～ | G46: - | H46: （ | I46: - | J46: ） | K46: =K44+K45 -> 6 | M46: ='【記載例】（ユニット型）'!$Q$11 -> 09:00:00 | N46: ～ | O46: ='【記載例】（ユニット型）'!$U$11 -> 17:00:00 | R46: ～ | S46: 17:00:00 | T46: （ | U46: - | V46: ） | W46: =W44+W45 -> 1 | Y46: 5
B47: （プルダウン対象外）→ | C47: 宿直 | D47: ： | E47: 20:00:00 | F47: ～ | G47: 07:00:00 | H47: （ | J47: ） | K47: =IF(OR(E47="",G47=""),"",(G47+IF(E47>G47,1,0)-E47-I47)*24) -> 11 | M47: ='【記載例】（ユニット型）'!$Q$11 -> 09:00:00 | N47: ～ | O47: ='【記載例】（ユニット型）'!$U$11 -> 17:00:00 | R47: ～ | S47: 17:00:00 | T47: （ | U47: 00:00:00 | V47: ） | W47: =IF(Q47="","",IF((S47+IF(Q47>S47,1,0)-Q47-U47)*24=0,"",(S47+IF(Q47>S47,1,0)-Q47-U47)*24)) ->  | Y47: 11

Sheet （ユニット型）介護老人保健施設
G1: （参考様式） | Q1: 従業者の勤務の体制及び勤務形態一覧表 | AW1: サービス種別（ | AX1: 指定介護老人保健施設（ユニット型） | BN1: ）
AF2: 令和 | AG2: 2 | AI2: ( | AJ2: =IF(AG2=0,"",YEAR(DATE(2018+AG2,1,1))) -> 2020 | AL2: ) | AM2: 年 | AN2: 4 | AP2: 月 | AW2: 事業所名（ | AX2: ○○○○ | BN2: ）
BH3: (1) | BI3: 計画
AO5: (2) 事業所における常勤の従業者が勤務すべき時間数 | BA5: 8 | BC5: 時間/日 | BE5: 40 | BG5: 時間/週 | BI5: 160 | BK5: 時間/月
BF7: 当月の日数 | BI7: =DAY(EOMONTH(DATE(AJ2,AN2,1),0)) -> 30 | BK7: 日
AO8: (介護老人保健施設） | BB8: (短期入所療養介護）
AO9: (4) 入所定員 | AS9: (5) 入所者数 | BB9: (6) 利用定員 | BF9: (7) 利用者数
B10: (3) 日中／夜勤の時間帯の区分 | AR10: 人 | AT10: 前年度の平均値 | AZ10: 人 | BE10: 人 | BG10: 前年度の平均値 | BM10: 人
B11: 日中（夜勤時間帯以外）の時間帯 | Q11: =U12 -> 09:00:00 | T11: ～ | U11: =Q12 -> 17:00:00 | AT11: （新規に指定を受ける場合） | BG11: （新規に指定を受ける場合）
B12: 夜勤時間帯 | Q12: 17:00:00 | T12: ～ | U12: 09:00:00 | AT12: 推定数 | AZ12: 人 | BG12: 推定数 | BM12: 人
B14: No | C14: (8) ユニットリーダー | D14: (9)ユニット名 | G14: (10) 職種 | M14: (11) 勤務 形態 | O14: (12) 資格 | S14: (13) 氏 名 | V14: 日中／夜勤時間帯 の区分 | AA14: (14) 勤 務 時 間 数 | BF14: =IF(BI3="計画","(15)1～4週目の勤務時間数合計","(15)1か月の勤務時間数 合計") -> (15)1～4週目の勤務時間数合計 | BH14: (16) 週平均 勤務時間数 | BJ14: (17) 兼務状況 （兼務先/兼務する職務の内容 /兼務時間数））
AA15: 1週目 | AH15: 2週目 | AO15: 3週目 | AV15: 4週目 | BC15: 5週目
AA16: 1 | AB16: 2 | AC16: 3 | AD16: 4 | AE16: 5 | AF16: 6 | AG16: 7 | AH16: 8 | AI16: 9 | AJ16: 10 | AK16: 11 | AL16: 12 | AM16: 13 | AN16: 14 | AO16: 15 | AP16: 16 | AQ16: 17 | AR16: 18 | AS16: 19 | AT16: 20 | AU16: 21 | AV16: 22 | AW16: 23 | AX16: 24 | AY16: 25 | AZ16: 26 | BA16: 27 | BB16: 28 | BC16: =IF($BI$3="実績",IF(DAY(DATE($AJ$2,$AN$2,29))=29,29,""),"") ->  | BD16: =IF($BI$3="実績",IF(DAY(DATE($AJ$2,$AN$2,30))=30,30,""),"") ->  | BE16: =IF($BI$3="実績",IF(DAY(DATE($AJ$2,$AN$2,31))=31,31,""),"") -> 
AA17: =WEEKDAY(DATE($AJ$2,$AN$2,1)) -> 4 | AB17: =WEEKDAY(DATE($AJ$2,$AN$2,2)) -> 5 | AC17: =WEEKDAY(DATE($AJ$2,$AN$2,3)) -> 6 | AD17: =WEEKDAY(DATE($AJ$2,$AN$2,4)) -> 7 | AE17: =WEEKDAY(DATE($AJ$2,$AN$2,5)) -> 1 | AF17: =WEEKDAY(DATE($AJ$2,$AN$2,6)) -> 2 | AG17: =WEEKDAY(DATE($AJ$2,$AN$2,7)) -> 3 | AH17: =WEEKDAY(DATE($AJ$2,$AN$2,8)) -> 4 | AI17: =WEEKDAY(DATE($AJ$2,$AN$2,9)) -> 5 | AJ17: =WEEKDAY(DATE($AJ$2,$AN$2,10)) -> 6 | AK17: =WEEKDAY(DATE($AJ$2,$AN$2,11)) -> 7 | AL17: =WEEKDAY(DATE($AJ$2,$AN$2,12)) -> 1 | AM17: =WEEKDAY(DATE($AJ$2,$AN$2,13)) -> 2 | AN17: =WEEKDAY(DATE($AJ$2,$AN$2,14)) -> 3 | AO17: =WEEKDAY(DATE($AJ$2,$AN$2,15)) -> 4 | AP17: =WEEKDAY(DATE($AJ$2,$AN$2,16)) -> 5 | AQ17: =WEEKDAY(DATE($AJ$2,$AN$2,17)) -> 6 | AR17: =WEEKDAY(DATE($AJ$2,$AN$2,18)) -> 7 | AS17: =WEEKDAY(DATE($AJ$2,$AN$2,19)) -> 1 | AT17: =WEEKDAY(DATE($AJ$2,$AN$2,20)) -> 2 | AU17: =WEEKDAY(DATE($AJ$2,$AN$2,21)) -> 3 | AV17: =WEEKDAY(DATE($AJ$2,$AN$2,22)) -> 4 | AW17: =WEEKDAY(DATE($AJ$2,$AN$2,23)) -> 5 | AX17: =WEEKDAY(DATE($AJ$2,$AN$2,24)) -> 6 | AY17: =WEEKDAY(DATE($AJ$2,$AN$2,25)) -> 7 | AZ17: =WEEKDAY(DATE($AJ$2,$AN$2,26)) -> 1 | BA17: =WEEKDAY(DATE($AJ$2,$AN$2,27)) -> 2 | BB17: =WEEKDAY(DATE($AJ$2,$AN$2,28)) -> 3 | BC17: =IF(BC16=29,WEEKDAY(DATE($AJ$2,$AN$2,29)),0) -> 0 | BD17: =IF(BD16=30,WEEKDAY(DATE($AJ$2,$AN$2,30)),0) -> 0 | BE17: =IF(BE16=31,WEEKDAY(DATE($AJ$2,$AN$2,31)),0) -> 0
AA18: =IF(AA17=1,"日",IF(AA17=2,"月",IF(AA17=3,"火",IF(AA17=4,"水",IF(AA17=5,"木",IF(AA17=6,"金","土")))))) -> 水 | AB18: =IF(AB17=1,"日",IF(AB17=2,"月",IF(AB17=3,"火",IF(AB17=4,"水",IF(AB17=5,"木",IF(AB17=6,"金","土")))))) -> 木 | AC18: 金 | AD18: 土 | AE18: 日 | AF18: 月 | AG18: 火 | AH18: =IF(AH17=1,"日",IF(AH17=2,"月",IF(AH17=3,"火",IF(AH17=4,"水",IF(AH17=5,"木",IF(AH17=6,"金","土")))))) -> 水 | AI18: 木 | AJ18: 金 | AK18: 土 | AL18: 日 | AM18: 月 | AN18: 火 | AO18: =IF(AO17=1,"日",IF(AO17=2,"月",IF(AO17=3,"火",IF(AO17=4,"水",IF(AO17=5,"木",IF(AO17=6,"金","土")))))) -> 水 | AP18: 木 | AQ18: 金 | AR18: 土 | AS18: 日 | AT18: 月 | AU18: 火 | AV18: =IF(AV17=1,"日",IF(AV17=2,"月",IF(AV17=3,"火",IF(AV17=4,"水",IF(AV17=5,"木",IF(AV17=6,"金","土")))))) -> 水 | AW18: 木 | AX18: 金 | AY18: 土 | AZ18: 日 | BA18: 月 | BB18: 火 | BC18: =IF(BC17=1,"日",IF(BC17=2,"月",IF(BC17=3,"火",IF(BC17=4,"水",IF(BC17=5,"木",IF(BC17=6,"金",IF(BC17=0,"","土"))))))) ->  | BD18: =IF(BD17=1,"日",IF(BD17=2,"月",IF(BD17=3,"火",IF(BD17=4,"水",IF(BD17=5,"木",IF(BD17=6,"金",IF(BD17=0,"","土"))))))) ->  | BE18: =IF(BE17=1,"日",IF(BE17=2,"月",IF(BE17=3,"火",IF(BE17=4,"水",IF(BE17=5,"木",IF(BE17=6,"金",IF(BE17=0,"","土"))))))) -> 
V19: シフト記号
B20: 1 | V20: 日中の勤務時間数 | AA20: =IF(AA19="","",VLOOKUP(AA19,'（ユニット型）シフト記号表'!$C$5:$W$46,21,FALSE)) ->  | AB20: =IF(AB19="","",VLOOKUP(AB19,'（ユニット型）シフト記号表'!$C$5:$W$46,21,FALSE)) ->  | AC20: =IF(AC19="","",VLOOKUP(AC19,'（ユニット型）シフト記号表'!$C$5:$W$46,21,FALSE)) ->  | AD20: =IF(AD19="","",VLOOKUP(AD19,'（ユニット型）シフト記号表'!$C$5:$W$46,21,FALSE)) ->  | AE20: =IF(AE19="","",VLOOKUP(AE19,'（ユニット型）シフト記号表'!$C$5:$W$46,21,FALSE)) ->  | AF20: =IF(AF19="","",VLOOKUP(AF19,'（ユニット型）シフト記号表'!$C$5:$W$46,21,FALSE)) ->  | AG20: =IF(AG19="","",VLOOKUP(AG19,'（ユニット型）シフト記号表'!$C$5:$W$46,21,FALSE)) ->  | AH20: =IF(AH19="","",VLOOKUP(AH19,'（ユニット型）シフト記号表'!$C$5:$W$46,21,FALSE)) ->  | AI20: =IF(AI19="","",VLOOKUP(AI19,'（ユニット型）シフト記号表'!$C$5:$W$46,21,FALSE)) ->  | AJ20: =IF(AJ19="","",VLOOKUP(AJ19,'（ユニット型）シフト記号表'!$C$5:$W$46,21,FALSE)) ->  | AK20: =IF(AK19="","",VLOOKUP(AK19,'（ユニット型）シフト記号表'!$C$5:$W$46,21,FALSE)) ->  | AL20: =IF(AL19="","",VLOOKUP(AL19,'（ユニット型）シフト記号表'!$C$5:$W$46,21,FALSE)) ->  | AM20: =IF(AM19="","",VLOOKUP(AM19,'（ユニット型）シフト記号表'!$C$5:$W$46,21,FALSE)) ->  | AN20: =IF(AN19="","",VLOOKUP(AN19,'（ユニット型）シフト記号表'!$C$5:$W$46,21,FALSE)) ->  | AO20: =IF(AO19="","",VLOOKUP(AO19,'（ユニット型）シフト記号表'!$C$5:$W$46,21,FALSE)) ->  | AP20: =IF(AP19="","",VLOOKUP(AP19,'（ユニット型）シフト記号表'!$C$5:$W$46,21,FALSE)) ->  | AQ20: =IF(AQ19="","",VLOOKUP(AQ19,'（ユニット型）シフト記号表'!$C$5:$W$46,21,FALSE)) ->  | AR20: =IF(AR19="","",VLOOKUP(AR19,'（ユニット型）シフト記号表'!$C$5:$W$46,21,FALSE)) ->  | AS20: =IF(AS19="","",VLOOKUP(AS19,'（ユニット型）シフト記号表'!$C$5:$W$46,21,FALSE)) ->  | AT20: =IF(AT19="","",VLOOKUP(AT19,'（ユニット型）シフト記号表'!$C$5:$W$46,21,FALSE)) ->  | AU20: =IF(AU19="","",VLOOKUP(AU19,'（ユニット型）シフト記号表'!$C$5:$W$46,21,FALSE)) ->  | AV20: =IF(AV19="","",VLOOKUP(AV19,'（ユニット型）シフト記号表'!$C$5:$W$46,21,FALSE)) ->  | AW20: =IF(AW19="","",VLOOKUP(AW19,'（ユニット型）シフト記号表'!$C$5:$W$46,21,FALSE)) ->  | AX20: =IF(AX19="","",VLOOKUP(AX19,'（ユニット型）シフト記号表'!$C$5:$W$46,21,FALSE)) ->  | AY20: =IF(AY19="","",VLOOKUP(AY19,'（ユニット型）シフト記号表'!$C$5:$W$46,21,FALSE)) ->  | AZ20: =IF(AZ19="","",VLOOKUP(AZ19,'（ユニット型）シフト記号表'!$C$5:$W$46,21,FALSE)) ->  | BA20: =IF(BA19="","",VLOOKUP(BA19,'（ユニット型）シフト記号表'!$C$5:$W$46,21,FALSE)) ->  | BB20: =IF(BB19="","",VLOOKUP(BB19,'（ユニット型）シフト記号表'!$C$5:$W$46,21,FALSE)) ->  | BC20: =IF(BC19="","",VLOOKUP(BC19,'（ユニット型）シフト記号表'!$C$5:$W$46,21,FALSE)) ->  | BD20: =IF(BD19="","",VLOOKUP(BD19,'（ユニット型）シフト記号表'!$C$5:$W$46,21,FALSE)) ->  | BE20: =IF(BE19="","",VLOOKUP(BE19,'（ユニット型）シフト記号表'!$C$5:$W$46,21,FALSE)) ->  | BF20: =IF($BI$3="計画",SUM(AA20:BB20),IF($BI$3="実績",SUM(AA20:BE20),"")) -> 0 | BH20: =IF($BI$3="計画",BF20/4,IF($BI$3="実績",(BF20/($BI$7/7)),"")) -> 0
I21: =G20 -> 0 | K21: =M20 -> 0 | V21: 夜勤時間帯の勤務時間数 | AA21: =IF(AA19="","",VLOOKUP(AA19,'（ユニット型）シフト記号表'!$C$5:$Y$46,23,FALSE)) ->  | AB21: =IF(AB19="","",VLOOKUP(AB19,'（ユニット型）シフト記号表'!$C$5:$Y$46,23,FALSE)) ->  | AC21: =IF(AC19="","",VLOOKUP(AC19,'（ユニット型）シフト記号表'!$C$5:$Y$46,23,FALSE)) ->  | AD21: =IF(AD19="","",VLOOKUP(AD19,'（ユニット型）シフト記号表'!$C$5:$Y$46,23,FALSE)) ->  | AE21: =IF(AE19="","",VLOOKUP(AE19,'（ユニット型）シフト記号表'!$C$5:$Y$46,23,FALSE)) ->  | AF21: =IF(AF19="","",VLOOKUP(AF19,'（ユニット型）シフト記号表'!$C$5:$Y$46,23,FALSE)) ->  | AG21: =IF(AG19="","",VLOOKUP(AG19,'（ユニット型）シフト記号表'!$C$5:$Y$46,23,FALSE)) ->  | AH21: =IF(AH19="","",VLOOKUP(AH19,'（ユニット型）シフト記号表'!$C$5:$Y$46,23,FALSE)) ->  | AI21: =IF(AI19="","",VLOOKUP(AI19,'（ユニット型）シフト記号表'!$C$5:$Y$46,23,FALSE)) ->  | AJ21: =IF(AJ19="","",VLOOKUP(AJ19,'（ユニット型）シフト記号表'!$C$5:$Y$46,23,FALSE)) ->  | AK21: =IF(AK19="","",VLOOKUP(AK19,'（ユニット型）シフト記号表'!$C$5:$Y$46,23,FALSE)) ->  | AL21: =IF(AL19="","",VLOOKUP(AL19,'（ユニット型）シフト記号表'!$C$5:$Y$46,23,FALSE)) ->  | AM21: =IF(AM19="","",VLOOKUP(AM19,'（ユニット型）シフト記号表'!$C$5:$Y$46,23,FALSE)) ->  | AN21: =IF(AN19="","",VLOOKUP(AN19,'（ユニット型）シフト記号表'!$C$5:$Y$46,23,FALSE)) ->  | AO21: =IF(AO19="","",VLOOKUP(AO19,'（ユニット型）シフト記号表'!$C$5:$Y$46,23,FALSE)) ->  | AP21: =IF(AP19="","",VLOOKUP(AP19,'（ユニット型）シフト記号表'!$C$5:$Y$46,23,FALSE)) ->  | AQ21: =IF(AQ19="","",VLOOKUP(AQ19,'（ユニット型）シフト記号表'!$C$5:$Y$46,23,FALSE)) ->  | AR21: =IF(AR19="","",VLOOKUP(AR19,'（ユニット型）シフト記号表'!$C$5:$Y$46,23,FALSE)) ->  | AS21: =IF(AS19="","",VLOOKUP(AS19,'（ユニット型）シフト記号表'!$C$5:$Y$46,23,FALSE)) ->  | AT21: =IF(AT19="","",VLOOKUP(AT19,'（ユニット型）シフト記号表'!$C$5:$Y$46,23,FALSE)) ->  | AU21: =IF(AU19="","",VLOOKUP(AU19,'（ユニット型）シフト記号表'!$C$5:$Y$46,23,FALSE)) ->  | AV21: =IF(AV19="","",VLOOKUP(AV19,'（ユニット型）シフト記号表'!$C$5:$Y$46,23,FALSE)) ->  | AW21: =IF(AW19="","",VLOOKUP(AW19,'（ユニット型）シフト記号表'!$C$5:$Y$46,23,FALSE)) ->  | AX21: =IF(AX19="","",VLOOKUP(AX19,'（ユニット型）シフト記号表'!$C$5:$Y$46,23,FALSE)) ->  | AY21: =IF(AY19="","",VLOOKUP(AY19,'（ユニット型）シフト記号表'!$C$5:$Y$46,23,FALSE)) ->  | AZ21: =IF(AZ19="","",VLOOKUP(AZ19,'（ユニット型）シフト記号表'!$C$5:$Y$46,23,FALSE)) ->  | BA21: =IF(BA19="","",VLOOKUP(BA19,'（ユニット型）シフト記号表'!$C$5:$Y$46,23,FALSE)) ->  | BB21: =IF(BB19="","",VLOOKUP(BB19,'（ユニット型）シフト記号表'!$C$5:$Y$46,23,FALSE)) ->  | BC21: =IF(BC19="","",VLOOKUP(BC19,'（ユニット型）シフト記号表'!$C$5:$Y$46,23,FALSE)) ->  | BD21: =IF(BD19="","",VLOOKUP(BD19,'（ユニット型）シフト記号表'!$C$5:$Y$46,23,FALSE)) ->  | BE21: =IF(BE19="","",VLOOKUP(BE19,'（ユニット型）シフト記号表'!$C$5:$Y$46,23,FALSE)) ->  | BF21: =IF($BI$3="計画",SUM(AA21:BB21),IF($BI$3="実績",SUM(AA21:BE21),"")) -> 0 | BH21: =IF($BI$3="計画",BF21/4,IF($BI$3="実績",(BF21/($BI$7/7)),"")) -> 0
V22: シフト記号
B23: =B20+1 -> 2 | V23: 日中の勤務時間数 | AA23: =IF(AA22="","",VLOOKUP(AA22,'（ユニット型）シフト記号表'!$C$5:$W$46,21,FALSE)) ->  | AB23: =IF(AB22="","",VLOOKUP(AB22,'（ユニット型）シフト記号表'!$C$5:$W$46,21,FALSE)) ->  | AC23: =IF(AC22="","",VLOOKUP(AC22,'（ユニット型）シフト記号表'!$C$5:$W$46,21,FALSE)) ->  | AD23: =IF(AD22="","",VLOOKUP(AD22,'（ユニット型）シフト記号表'!$C$5:$W$46,21,FALSE)) ->  | AE23: =IF(AE22="","",VLOOKUP(AE22,'（ユニット型）シフト記号表'!$C$5:$W$46,21,FALSE)) ->  | AF23: =IF(AF22="","",VLOOKUP(AF22,'（ユニット型）シフト記号表'!$C$5:$W$46,21,FALSE)) ->  | AG23: =IF(AG22="","",VLOOKUP(AG22,'（ユニット型）シフト記号表'!$C$5:$W$46,21,FALSE)) ->  | AH23: =IF(AH22="","",VLOOKUP(AH22,'（ユニット型）シフト記号表'!$C$5:$W$46,21,FALSE)) ->  | AI23: =IF(AI22="","",VLOOKUP(AI22,'（ユニット型）シフト記号表'!$C$5:$W$46,21,FALSE)) ->  | AJ23: =IF(AJ22="","",VLOOKUP(AJ22,'（ユニット型）シフト記号表'!$C$5:$W$46,21,FALSE)) ->  | AK23: =IF(AK22="","",VLOOKUP(AK22,'（ユニット型）シフト記号表'!$C$5:$W$46,21,FALSE)) ->  | AL23: =IF(AL22="","",VLOOKUP(AL22,'（ユニット型）シフト記号表'!$C$5:$W$46,21,FALSE)) ->  | AM23: =IF(AM22="","",VLOOKUP(AM22,'（ユニット型）シフト記号表'!$C$5:$W$46,21,FALSE)) ->  | AN23: =IF(AN22="","",VLOOKUP(AN22,'（ユニット型）シフト記号表'!$C$5:$W$46,21,FALSE)) ->  | AO23: =IF(AO22="","",VLOOKUP(AO22,'（ユニット型）シフト記号表'!$C$5:$W$46,21,FALSE)) ->  | AP23: =IF(AP22="","",VLOOKUP(AP22,'（ユニット型）シフト記号表'!$C$5:$W$46,21,FALSE)) ->  | AQ23: =IF(AQ22="","",VLOOKUP(AQ22,'（ユニット型）シフト記号表'!$C$5:$W$46,21,FALSE)) ->  | AR23: =IF(AR22="","",VLOOKUP(AR22,'（ユニット型）シフト記号表'!$C$5:$W$46,21,FALSE)) ->  | AS23: =IF(AS22="","",VLOOKUP(AS22,'（ユニット型）シフト記号表'!$C$5:$W$46,21,FALSE)) ->  | AT23: =IF(AT22="","",VLOOKUP(AT22,'（ユニット型）シフト記号表'!$C$5:$W$46,21,FALSE)) ->  | AU23: =IF(AU22="","",VLOOKUP(AU22,'（ユニット型）シフト記号表'!$C$5:$W$46,21,FALSE)) ->  | AV23: =IF(AV22="","",VLOOKUP(AV22,'（ユニット型）シフト記号表'!$C$5:$W$46,21,FALSE)) ->  | AW23: =IF(AW22="","",VLOOKUP(AW22,'（ユニット型）シフト記号表'!$C$5:$W$46,21,FALSE)) ->  | AX23: =IF(AX22="","",VLOOKUP(AX22,'（ユニット型）シフト記号表'!$C$5:$W$46,21,FALSE)) ->  | AY23: =IF(AY22="","",VLOOKUP(AY22,'（ユニット型）シフト記号表'!$C$5:$W$46,21,FALSE)) ->  | AZ23: =IF(AZ22="","",VLOOKUP(AZ22,'（ユニット型）シフト記号表'!$C$5:$W$46,21,FALSE)) ->  | BA23: =IF(BA22="","",VLOOKUP(BA22,'（ユニット型）シフト記号表'!$C$5:$W$46,21,FALSE)) ->  | BB23: =IF(BB22="","",VLOOKUP(BB22,'（ユニット型）シフト記号表'!$C$5:$W$46,21,FALSE)) ->  | BC23: =IF(BC22="","",VLOOKUP(BC22,'（ユニット型）シフト記号表'!$C$5:$W$46,21,FALSE)) ->  | BD23: =IF(BD22="","",VLOOKUP(BD22,'（ユニット型）シフト記号表'!$C$5:$W$46,21,FALSE)) ->  | BE23: =IF(BE22="","",VLOOKUP(BE22,'（ユニット型）シフト記号表'!$C$5:$W$46,21,FALSE)) ->  | BF23: =IF($BI$3="計画",SUM(AA23:BB23),IF($BI$3="実績",SUM(AA23:BE23),"")) -> 0 | BH23: =IF($BI$3="計画",BF23/4,IF($BI$3="実績",(BF23/($BI$7/7)),"")) -> 0
I24: =G23 -> 0 | K24: =M23 -> 0 | V24: 夜勤時間帯の勤務時間数 | AA24: =IF(AA22="","",VLOOKUP(AA22,'（ユニット型）シフト記号表'!$C$5:$Y$46,23,FALSE)) ->  | AB24: =IF(AB22="","",VLOOKUP(AB22,'（ユニット型）シフト記号表'!$C$5:$Y$46,23,FALSE)) ->  | AC24: =IF(AC22="","",VLOOKUP(AC22,'（ユニット型）シフト記号表'!$C$5:$Y$46,23,FALSE)) ->  | AD24: =IF(AD22="","",VLOOKUP(AD22,'（ユニット型）シフト記号表'!$C$5:$Y$46,23,FALSE)) ->  | AE24: =IF(AE22="","",VLOOKUP(AE22,'（ユニット型）シフト記号表'!$C$5:$Y$46,23,FALSE)) ->  | AF24: =IF(AF22="","",VLOOKUP(AF22,'（ユニット型）シフト記号表'!$C$5:$Y$46,23,FALSE)) ->  | AG24: =IF(AG22="","",VLOOKUP(AG22,'（ユニット型）シフト記号表'!$C$5:$Y$46,23,FALSE)) ->  | AH24: =IF(AH22="","",VLOOKUP(AH22,'（ユニット型）シフト記号表'!$C$5:$Y$46,23,FALSE)) ->  | AI24: =IF(AI22="","",VLOOKUP(AI22,'（ユニット型）シフト記号表'!$C$5:$Y$46,23,FALSE)) ->  | AJ24: =IF(AJ22="","",VLOOKUP(AJ22,'（ユニット型）シフト記号表'!$C$5:$Y$46,23,FALSE)) ->  | AK24: =IF(AK22="","",VLOOKUP(AK22,'（ユニット型）シフト記号表'!$C$5:$Y$46,23,FALSE)) ->  | AL24: =IF(AL22="","",VLOOKUP(AL22,'（ユニット型）シフト記号表'!$C$5:$Y$46,23,FALSE)) ->  | AM24: =IF(AM22="","",VLOOKUP(AM22,'（ユニット型）シフト記号表'!$C$5:$Y$46,23,FALSE)) ->  | AN24: =IF(AN22="","",VLOOKUP(AN22,'（ユニット型）シフト記号表'!$C$5:$Y$46,23,FALSE)) ->  | AO24: =IF(AO22="","",VLOOKUP(AO22,'（ユニット型）シフト記号表'!$C$5:$Y$46,23,FALSE)) ->  | AP24: =IF(AP22="","",VLOOKUP(AP22,'（ユニット型）シフト記号表'!$C$5:$Y$46,23,FALSE)) ->  | AQ24: =IF(AQ22="","",VLOOKUP(AQ22,'（ユニット型）シフト記号表'!$C$5:$Y$46,23,FALSE)) ->  | AR24: =IF(AR22="","",VLOOKUP(AR22,'（ユニット型）シフト記号表'!$C$5:$Y$46,23,FALSE)) ->  | AS24: =IF(AS22="","",VLOOKUP(AS22,'（ユニット型）シフト記号表'!$C$5:$Y$46,23,FALSE)) ->  | AT24: =IF(AT22="","",VLOOKUP(AT22,'（ユニット型）シフト記号表'!$C$5:$Y$46,23,FALSE)) ->  | AU24: =IF(AU22="","",VLOOKUP(AU22,'（ユニット型）シフト記号表'!$C$5:$Y$46,23,FALSE)) ->  | AV24: =IF(AV22="","",VLOOKUP(AV22,'（ユニット型）シフト記号表'!$C$5:$Y$46,23,FALSE)) ->  | AW24: =IF(AW22="","",VLOOKUP(AW22,'（ユニット型）シフト記号表'!$C$5:$Y$46,23,FALSE)) ->  | AX24: =IF(AX22="","",VLOOKUP(AX22,'（ユニット型）シフト記号表'!$C$5:$Y$46,23,FALSE)) ->  | AY24: =IF(AY22="","",VLOOKUP(AY22,'（ユニット型）シフト記号表'!$C$5:$Y$46,23,FALSE)) ->  | AZ24: =IF(AZ22="","",VLOOKUP(AZ22,'（ユニット型）シフト記号表'!$C$5:$Y$46,23,FALSE)) ->  | BA24: =IF(BA22="","",VLOOKUP(BA22,'（ユニット型）シフト記号表'!$C$5:$Y$46,23,FALSE)) ->  | BB24: =IF(BB22="","",VLOOKUP(BB22,'（ユニット型）シフト記号表'!$C$5:$Y$46,23,FALSE)) ->  | BC24: =IF(BC22="","",VLOOKUP(BC22,'（ユニット型）シフト記号表'!$C$5:$Y$46,23,FALSE)) ->  | BD24: =IF(BD22="","",VLOOKUP(BD22,'（ユニット型）シフト記号表'!$C$5:$Y$46,23,FALSE)) ->  | BE24: =IF(BE22="","",VLOOKUP(BE22,'（ユニット型）シフト記号表'!$C$5:$Y$46,23,FALSE)) ->  | BF24: =IF($BI$3="計画",SUM(AA24:BB24),IF($BI$3="実績",SUM(AA24:BE24),"")) -> 0 | BH24: =IF($BI$3="計画",BF24/4,IF($BI$3="実績",(BF24/($BI$7/7)),"")) -> 0
V25: シフト記号
B26: =B23+1 -> 3 | V26: 日中の勤務時間数 | AA26: =IF(AA25="","",VLOOKUP(AA25,'（ユニット型）シフト記号表'!$C$5:$W$46,21,FALSE)) ->  | AB26: =IF(AB25="","",VLOOKUP(AB25,'（ユニット型）シフト記号表'!$C$5:$W$46,21,FALSE)) ->  | AC26: =IF(AC25="","",VLOOKUP(AC25,'（ユニット型）シフト記号表'!$C$5:$W$46,21,FALSE)) ->  | AD26: =IF(AD25="","",VLOOKUP(AD25,'（ユニット型）シフト記号表'!$C$5:$W$46,21,FALSE)) ->  | AE26: =IF(AE25="","",VLOOKUP(AE25,'（ユニット型）シフト記号表'!$C$5:$W$46,21,FALSE)) ->  | AF26: =IF(AF25="","",VLOOKUP(AF25,'（ユニット型）シフト記号表'!$C$5:$W$46,21,FALSE)) ->  | AG26: =IF(AG25="","",VLOOKUP(AG25,'（ユニット型）シフト記号表'!$C$5:$W$46,21,FALSE)) ->  | AH26: =IF(AH25="","",VLOOKUP(AH25,'（ユニット型）シフト記号表'!$C$5:$W$46,21,FALSE)) ->  | AI26: =IF(AI25="","",VLOOKUP(AI25,'（ユニット型）シフト記号表'!$C$5:$W$46,21,FALSE)) ->  | AJ26: =IF(AJ25="","",VLOOKUP(AJ25,'（ユニット型）シフト記号表'!$C$5:$W$46,21,FALSE)) ->  | AK26: =IF(AK25="","",VLOOKUP(AK25,'（ユニット型）シフト記号表'!$C$5:$W$46,21,FALSE)) ->  | AL26: =IF(AL25="","",VLOOKUP(AL25,'（ユニット型）シフト記号表'!$C$5:$W$46,21,FALSE)) ->  | AM26: =IF(AM25="","",VLOOKUP(AM25,'（ユニット型）シフト記号表'!$C$5:$W$46,21,FALSE)) ->  | AN26: =IF(AN25="","",VLOOKUP(AN25,'（ユニット型）シフト記号表'!$C$5:$W$46,21,FALSE)) ->  | AO26: =IF(AO25="","",VLOOKUP(AO25,'（ユニット型）シフト記号表'!$C$5:$W$46,21,FALSE)) ->  | AP26: =IF(AP25="","",VLOOKUP(AP25,'（ユニット型）シフト記号表'!$C$5:$W$46,21,FALSE)) ->  | AQ26: =IF(AQ25="","",VLOOKUP(AQ25,'（ユニット型）シフト記号表'!$C$5:$W$46,21,FALSE)) ->  | AR26: =IF(AR25="","",VLOOKUP(AR25,'（ユニット型）シフト記号表'!$C$5:$W$46,21,FALSE)) ->  | AS26: =IF(AS25="","",VLOOKUP(AS25,'（ユニット型）シフト記号表'!$C$5:$W$46,21,FALSE)) ->  | AT26: =IF(AT25="","",VLOOKUP(AT25,'（ユニット型）シフト記号表'!$C$5:$W$46,21,FALSE)) ->  | AU26: =IF(AU25="","",VLOOKUP(AU25,'（ユニット型）シフト記号表'!$C$5:$W$46,21,FALSE)) ->  | AV26: =IF(AV25="","",VLOOKUP(AV25,'（ユニット型）シフト記号表'!$C$5:$W$46,21,FALSE)) ->  | AW26: =IF(AW25="","",VLOOKUP(AW25,'（ユニット型）シフト記号表'!$C$5:$W$46,21,FALSE)) ->  | AX26: =IF(AX25="","",VLOOKUP(AX25,'（ユニット型）シフト記号表'!$C$5:$W$46,21,FALSE)) ->  | AY26: =IF(AY25="","",VLOOKUP(AY25,'（ユニット型）シフト記号表'!$C$5:$W$46,21,FALSE)) ->  | AZ26: =IF(AZ25="","",VLOOKUP(AZ25,'（ユニット型）シフト記号表'!$C$5:$W$46,21,FALSE)) ->  | BA26: =IF(BA25="","",VLOOKUP(BA25,'（ユニット型）シフト記号表'!$C$5:$W$46,21,FALSE)) ->  | BB26: =IF(BB25="","",VLOOKUP(BB25,'（ユニット型）シフト記号表'!$C$5:$W$46,21,FALSE)) ->  | BC26: =IF(BC25="","",VLOOKUP(BC25,'（ユニット型）シフト記号表'!$C$5:$W$46,21,FALSE)) ->  | BD26: =IF(BD25="","",VLOOKUP(BD25,'（ユニット型）シフト記号表'!$C$5:$W$46,21,FALSE)) ->  | BE26: =IF(BE25="","",VLOOKUP(BE25,'（ユニット型）シフト記号表'!$C$5:$W$46,21,FALSE)) ->  | BF26: =IF($BI$3="計画",SUM(AA26:BB26),IF($BI$3="実績",SUM(AA26:BE26),"")) -> 0 | BH26: =IF($BI$3="計画",BF26/4,IF($BI$3="実績",(BF26/($BI$7/7)),"")) -> 0
I27: =G26 -> 0 | K27: =M26 -> 0 | V27: 夜勤時間帯の勤務時間数 | AA27: =IF(AA25="","",VLOOKUP(AA25,'（ユニット型）シフト記号表'!$C$5:$Y$46,23,FALSE)) ->  | AB27: =IF(AB25="","",VLOOKUP(AB25,'（ユニット型）シフト記号表'!$C$5:$Y$46,23,FALSE)) ->  | AC27: =IF(AC25="","",VLOOKUP(AC25,'（ユニット型）シフト記号表'!$C$5:$Y$46,23,FALSE)) ->  | AD27: =IF(AD25="","",VLOOKUP(AD25,'（ユニット型）シフト記号表'!$C$5:$Y$46,23,FALSE)) ->  | AE27: =IF(AE25="","",VLOOKUP(AE25,'（ユニット型）シフト記号表'!$C$5:$Y$46,23,FALSE)) ->  | AF27: =IF(AF25="","",VLOOKUP(AF25,'（ユニット型）シフト記号表'!$C$5:$Y$46,23,FALSE)) ->  | AG27: =IF(AG25="","",VLOOKUP(AG25,'（ユニット型）シフト記号表'!$C$5:$Y$46,23,FALSE)) ->  | AH27: =IF(AH25="","",VLOOKUP(AH25,'（ユニット型）シフト記号表'!$C$5:$Y$46,23,FALSE)) ->  | AI27: =IF(AI25="","",VLOOKUP(AI25,'（ユニット型）シフト記号表'!$C$5:$Y$46,23,FALSE)) ->  | AJ27: =IF(AJ25="","",VLOOKUP(AJ25,'（ユニット型）シフト記号表'!$C$5:$Y$46,23,FALSE)) ->  | AK27: =IF(AK25="","",VLOOKUP(AK25,'（ユニット型）シフト記号表'!$C$5:$Y$46,23,FALSE)) ->  | AL27: =IF(AL25="","",VLOOKUP(AL25,'（ユニット型）シフト記号表'!$C$5:$Y$46,23,FALSE)) ->  | AM27: =IF(AM25="","",VLOOKUP(AM25,'（ユニット型）シフト記号表'!$C$5:$Y$46,23,FALSE)) ->  | AN27: =IF(AN25="","",VLOOKUP(AN25,'（ユニット型）シフト記号表'!$C$5:$Y$46,23,FALSE)) ->  | AO27: =IF(AO25="","",VLOOKUP(AO25,'（ユニット型）シフト記号表'!$C$5:$Y$46,23,FALSE)) ->  | AP27: =IF(AP25="","",VLOOKUP(AP25,'（ユニット型）シフト記号表'!$C$5:$Y$46,23,FALSE)) ->  | AQ27: =IF(AQ25="","",VLOOKUP(AQ25,'（ユニット型）シフト記号表'!$C$5:$Y$46,23,FALSE)) ->  | AR27: =IF(AR25="","",VLOOKUP(AR25,'（ユニット型）シフト記号表'!$C$5:$Y$46,23,FALSE)) ->  | AS27: =IF(AS25="","",VLOOKUP(AS25,'（ユニット型）シフト記号表'!$C$5:$Y$46,23,FALSE)) ->  | AT27: =IF(AT25="","",VLOOKUP(AT25,'（ユニット型）シフト記号表'!$C$5:$Y$46,23,FALSE)) ->  | AU27: =IF(AU25="","",VLOOKUP(AU25,'（ユニット型）シフト記号表'!$C$5:$Y$46,23,FALSE)) ->  | AV27: =IF(AV25="","",VLOOKUP(AV25,'（ユニット型）シフト記号表'!$C$5:$Y$46,23,FALSE)) ->  | AW27: =IF(AW25="","",VLOOKUP(AW25,'（ユニット型）シフト記号表'!$C$5:$Y$46,23,FALSE)) ->  | AX27: =IF(AX25="","",VLOOKUP(AX25,'（ユニット型）シフト記号表'!$C$5:$Y$46,23,FALSE)) ->  | AY27: =IF(AY25="","",VLOOKUP(AY25,'（ユニット型）シフト記号表'!$C$5:$Y$46,23,FALSE)) ->  | AZ27: =IF(AZ25="","",VLOOKUP(AZ25,'（ユニット型）シフト記号表'!$C$5:$Y$46,23,FALSE)) ->  | BA27: =IF(BA25="","",VLOOKUP(BA25,'（ユニット型）シフト記号表'!$C$5:$Y$46,23,FALSE)) ->  | BB27: =IF(BB25="","",VLOOKUP(BB25,'（ユニット型）シフト記号表'!$C$5:$Y$46,23,FALSE)) ->  | BC27: =IF(BC25="","",VLOOKUP(BC25,'（ユニット型）シフト記号表'!$C$5:$Y$46,23,FALSE)) ->  | BD27: =IF(BD25="","",VLOOKUP(BD25,'（ユニット型）シフト記号表'!$C$5:$Y$46,23,FALSE)) ->  | BE27: =IF(BE25="","",VLOOKUP(BE25,'（ユニット型）シフト記号表'!$C$5:$Y$46,23,FALSE)) ->  | BF27: =IF($BI$3="計画",SUM(AA27:BB27),IF($BI$3="実績",SUM(AA27:BE27),"")) -> 0 | BH27: =IF($BI$3="計画",BF27/4,IF($BI$3="実績",(BF27/($BI$7/7)),"")) -> 0
V28: シフト記号
B29: =B26+1 -> 4 | V29: 日中の勤務時間数 | AA29: =IF(AA28="","",VLOOKUP(AA28,'（ユニット型）シフト記号表'!$C$5:$W$46,21,FALSE)) ->  | AB29: =IF(AB28="","",VLOOKUP(AB28,'（ユニット型）シフト記号表'!$C$5:$W$46,21,FALSE)) ->  | AC29: =IF(AC28="","",VLOOKUP(AC28,'（ユニット型）シフト記号表'!$C$5:$W$46,21,FALSE)) ->  | AD29: =IF(AD28="","",VLOOKUP(AD28,'（ユニット型）シフト記号表'!$C$5:$W$46,21,FALSE)) ->  | AE29: =IF(AE28="","",VLOOKUP(AE28,'（ユニット型）シフト記号表'!$C$5:$W$46,21,FALSE)) ->  | AF29: =IF(AF28="","",VLOOKUP(AF28,'（ユニット型）シフト記号表'!$C$5:$W$46,21,FALSE)) ->  | AG29: =IF(AG28="","",VLOOKUP(AG28,'（ユニット型）シフト記号表'!$C$5:$W$46,21,FALSE)) ->  | AH29: =IF(AH28="","",VLOOKUP(AH28,'（ユニット型）シフト記号表'!$C$5:$W$46,21,FALSE)) ->  | AI29: =IF(AI28="","",VLOOKUP(AI28,'（ユニット型）シフト記号表'!$C$5:$W$46,21,FALSE)) ->  | AJ29: =IF(AJ28="","",VLOOKUP(AJ28,'（ユニット型）シフト記号表'!$C$5:$W$46,21,FALSE)) ->  | AK29: =IF(AK28="","",VLOOKUP(AK28,'（ユニット型）シフト記号表'!$C$5:$W$46,21,FALSE)) ->  | AL29: =IF(AL28="","",VLOOKUP(AL28,'（ユニット型）シフト記号表'!$C$5:$W$46,21,FALSE)) ->  | AM29: =IF(AM28="","",VLOOKUP(AM28,'（ユニット型）シフト記号表'!$C$5:$W$46,21,FALSE)) ->  | AN29: =IF(AN28="","",VLOOKUP(AN28,'（ユニット型）シフト記号表'!$C$5:$W$46,21,FALSE)) ->  | AO29: =IF(AO28="","",VLOOKUP(AO28,'（ユニット型）シフト記号表'!$C$5:$W$46,21,FALSE)) ->  | AP29: =IF(AP28="","",VLOOKUP(AP28,'（ユニット型）シフト記号表'!$C$5:$W$46,21,FALSE)) ->  | AQ29: =IF(AQ28="","",VLOOKUP(AQ28,'（ユニット型）シフト記号表'!$C$5:$W$46,21,FALSE)) ->  | AR29: =IF(AR28="","",VLOOKUP(AR28,'（ユニット型）シフト記号表'!$C$5:$W$46,21,FALSE)) ->  | AS29: =IF(AS28="","",VLOOKUP(AS28,'（ユニット型）シフト記号表'!$C$5:$W$46,21,FALSE)) ->  | AT29: =IF(AT28="","",VLOOKUP(AT28,'（ユニット型）シフト記号表'!$C$5:$W$46,21,FALSE)) ->  | AU29: =IF(AU28="","",VLOOKUP(AU28,'（ユニット型）シフト記号表'!$C$5:$W$46,21,FALSE)) ->  | AV29: =IF(AV28="","",VLOOKUP(AV28,'（ユニット型）シフト記号表'!$C$5:$W$46,21,FALSE)) ->  | AW29: =IF(AW28="","",VLOOKUP(AW28,'（ユニット型）シフト記号表'!$C$5:$W$46,21,FALSE)) ->  | AX29: =IF(AX28="","",VLOOKUP(AX28,'（ユニット型）シフト記号表'!$C$5:$W$46,21,FALSE)) ->  | AY29: =IF(AY28="","",VLOOKUP(AY28,'（ユニット型）シフト記号表'!$C$5:$W$46,21,FALSE)) ->  | AZ29: =IF(AZ28="","",VLOOKUP(AZ28,'（ユニット型）シフト記号表'!$C$5:$W$46,21,FALSE)) ->  | BA29: =IF(BA28="","",VLOOKUP(BA28,'（ユニット型）シフト記号表'!$C$5:$W$46,21,FALSE)) ->  | BB29: =IF(BB28="","",VLOOKUP(BB28,'（ユニット型）シフト記号表'!$C$5:$W$46,21,FALSE)) ->  | BC29: =IF(BC28="","",VLOOKUP(BC28,'（ユニット型）シフト記号表'!$C$5:$W$46,21,FALSE)) ->  | BD29: =IF(BD28="","",VLOOKUP(BD28,'（ユニット型）シフト記号表'!$C$5:$W$46,21,FALSE)) ->  | BE29: =IF(BE28="","",VLOOKUP(BE28,'（ユニット型）シフト記号表'!$C$5:$W$46,21,FALSE)) ->  | BF29: =IF($BI$3="計画",SUM(AA29:BB29),IF($BI$3="実績",SUM(AA29:BE29),"")) -> 0 | BH29: =IF($BI$3="計画",BF29/4,IF($BI$3="実績",(BF29/($BI$7/7)),"")) -> 0
I30: =G29 -> 0 | K30: =M29 -> 0 | V30: 夜勤時間帯の勤務時間数 | AA30: =IF(AA28="","",VLOOKUP(AA28,'（ユニット型）シフト記号表'!$C$5:$Y$46,23,FALSE)) ->  | AB30: =IF(AB28="","",VLOOKUP(AB28,'（ユニット型）シフト記号表'!$C$5:$Y$46,23,FALSE)) ->  | AC30: =IF(AC28="","",VLOOKUP(AC28,'（ユニット型）シフト記号表'!$C$5:$Y$46,23,FALSE)) ->  | AD30: =IF(AD28="","",VLOOKUP(AD28,'（ユニット型）シフト記号表'!$C$5:$Y$46,23,FALSE)) ->  | AE30: =IF(AE28="","",VLOOKUP(AE28,'（ユニット型）シフト記号表'!$C$5:$Y$46,23,FALSE)) ->  | AF30: =IF(AF28="","",VLOOKUP(AF28,'（ユニット型）シフト記号表'!$C$5:$Y$46,23,FALSE)) ->  | AG30: =IF(AG28="","",VLOOKUP(AG28,'（ユニット型）シフト記号表'!$C$5:$Y$46,23,FALSE)) ->  | AH30: =IF(AH28="","",VLOOKUP(AH28,'（ユニット型）シフト記号表'!$C$5:$Y$46,23,FALSE)) ->  | AI30: =IF(AI28="","",VLOOKUP(AI28,'（ユニット型）シフト記号表'!$C$5:$Y$46,23,FALSE)) ->  | AJ30: =IF(AJ28="","",VLOOKUP(AJ28,'（ユニット型）シフト記号表'!$C$5:$Y$46,23,FALSE)) ->  | AK30: =IF(AK28="","",VLOOKUP(AK28,'（ユニット型）シフト記号表'!$C$5:$Y$46,23,FALSE)) ->  | AL30: =IF(AL28="","",VLOOKUP(AL28,'（ユニット型）シフト記号表'!$C$5:$Y$46,23,FALSE)) ->  | AM30: =IF(AM28="","",VLOOKUP(AM28,'（ユニット型）シフト記号表'!$C$5:$Y$46,23,FALSE)) ->  | AN30: =IF(AN28="","",VLOOKUP(AN28,'（ユニット型）シフト記号表'!$C$5:$Y$46,23,FALSE)) ->  | AO30: =IF(AO28="","",VLOOKUP(AO28,'（ユニット型）シフト記号表'!$C$5:$Y$46,23,FALSE)) ->  | AP30: =IF(AP28="","",VLOOKUP(AP28,'（ユニット型）シフト記号表'!$C$5:$Y$46,23,FALSE)) ->  | AQ30: =IF(AQ28="","",VLOOKUP(AQ28,'（ユニット型）シフト記号表'!$C$5:$Y$46,23,FALSE)) ->  | AR30: =IF(AR28="","",VLOOKUP(AR28,'（ユニット型）シフト記号表'!$C$5:$Y$46,23,FALSE)) ->  | AS30: =IF(AS28="","",VLOOKUP(AS28,'（ユニット型）シフト記号表'!$C$5:$Y$46,23,FALSE)) ->  | AT30: =IF(AT28="","",VLOOKUP(AT28,'（ユニット型）シフト記号表'!$C$5:$Y$46,23,FALSE)) ->  | AU30: =IF(AU28="","",VLOOKUP(AU28,'（ユニット型）シフト記号表'!$C$5:$Y$46,23,FALSE)) ->  | AV30: =IF(AV28="","",VLOOKUP(AV28,'（ユニット型）シフト記号表'!$C$5:$Y$46,23,FALSE)) ->  | AW30: =IF(AW28="","",VLOOKUP(AW28,'（ユニット型）シフト記号表'!$C$5:$Y$46,23,FALSE)) ->  | AX30: =IF(AX28="","",VLOOKUP(AX28,'（ユニット型）シフト記号表'!$C$5:$Y$46,23,FALSE)) ->  | AY30: =IF(AY28="","",VLOOKUP(AY28,'（ユニット型）シフト記号表'!$C$5:$Y$46,23,FALSE)) ->  | AZ30: =IF(AZ28="","",VLOOKUP(AZ28,'（ユニット型）シフト記号表'!$C$5:$Y$46,23,FALSE)) ->  | BA30: =IF(BA28="","",VLOOKUP(BA28,'（ユニット型）シフト記号表'!$C$5:$Y$46,23,FALSE)) ->  | BB30: =IF(BB28="","",VLOOKUP(BB28,'（ユニット型）シフト記号表'!$C$5:$Y$46,23,FALSE)) ->  | BC30: =IF(BC28="","",VLOOKUP(BC28,'（ユニット型）シフト記号表'!$C$5:$Y$46,23,FALSE)) ->  | BD30: =IF(BD28="","",VLOOKUP(BD28,'（ユニット型）シフト記号表'!$C$5:$Y$46,23,FALSE)) ->  | BE30: =IF(BE28="","",VLOOKUP(BE28,'（ユニット型）シフト記号表'!$C$5:$Y$46,23,FALSE)) ->  | BF30: =IF($BI$3="計画",SUM(AA30:BB30),IF($BI$3="実績",SUM(AA30:BE30),"")) -> 0 | BH30: =IF($BI$3="計画",BF30/4,IF($BI$3="実績",(BF30/($BI$7/7)),"")) -> 0
V31: シフト記号
B32: =B29+1 -> 5 | V32: 日中の勤務時間数 | AA32: =IF(AA31="","",VLOOKUP(AA31,'（ユニット型）シフト記号表'!$C$5:$W$46,21,FALSE)) ->  | AB32: =IF(AB31="","",VLOOKUP(AB31,'（ユニット型）シフト記号表'!$C$5:$W$46,21,FALSE)) ->  | AC32: =IF(AC31="","",VLOOKUP(AC31,'（ユニット型）シフト記号表'!$C$5:$W$46,21,FALSE)) ->  | AD32: =IF(AD31="","",VLOOKUP(AD31,'（ユニット型）シフト記号表'!$C$5:$W$46,21,FALSE)) ->  | AE32: =IF(AE31="","",VLOOKUP(AE31,'（ユニット型）シフト記号表'!$C$5:$W$46,21,FALSE)) ->  | AF32: =IF(AF31="","",VLOOKUP(AF31,'（ユニット型）シフト記号表'!$C$5:$W$46,21,FALSE)) ->  | AG32: =IF(AG31="","",VLOOKUP(AG31,'（ユニット型）シフト記号表'!$C$5:$W$46,21,FALSE)) ->  | AH32: =IF(AH31="","",VLOOKUP(AH31,'（ユニット型）シフト記号表'!$C$5:$W$46,21,FALSE)) ->  | AI32: =IF(AI31="","",VLOOKUP(AI31,'（ユニット型）シフト記号表'!$C$5:$W$46,21,FALSE)) ->  | AJ32: =IF(AJ31="","",VLOOKUP(AJ31,'（ユニット型）シフト記号表'!$C$5:$W$46,21,FALSE)) ->  | AK32: =IF(AK31="","",VLOOKUP(AK31,'（ユニット型）シフト記号表'!$C$5:$W$46,21,FALSE)) ->  | AL32: =IF(AL31="","",VLOOKUP(AL31,'（ユニット型）シフト記号表'!$C$5:$W$46,21,FALSE)) ->  | AM32: =IF(AM31="","",VLOOKUP(AM31,'（ユニット型）シフト記号表'!$C$5:$W$46,21,FALSE)) ->  | AN32: =IF(AN31="","",VLOOKUP(AN31,'（ユニット型）シフト記号表'!$C$5:$W$46,21,FALSE)) ->  | AO32: =IF(AO31="","",VLOOKUP(AO31,'（ユニット型）シフト記号表'!$C$5:$W$46,21,FALSE)) ->  | AP32: =IF(AP31="","",VLOOKUP(AP31,'（ユニット型）シフト記号表'!$C$5:$W$46,21,FALSE)) ->  | AQ32: =IF(AQ31="","",VLOOKUP(AQ31,'（ユニット型）シフト記号表'!$C$5:$W$46,21,FALSE)) ->  | AR32: =IF(AR31="","",VLOOKUP(AR31,'（ユニット型）シフト記号表'!$C$5:$W$46,21,FALSE)) ->  | AS32: =IF(AS31="","",VLOOKUP(AS31,'（ユニット型）シフト記号表'!$C$5:$W$46,21,FALSE)) ->  | AT32: =IF(AT31="","",VLOOKUP(AT31,'（ユニット型）シフト記号表'!$C$5:$W$46,21,FALSE)) ->  | AU32: =IF(AU31="","",VLOOKUP(AU31,'（ユニット型）シフト記号表'!$C$5:$W$46,21,FALSE)) ->  | AV32: =IF(AV31="","",VLOOKUP(AV31,'（ユニット型）シフト記号表'!$C$5:$W$46,21,FALSE)) ->  | AW32: =IF(AW31="","",VLOOKUP(AW31,'（ユニット型）シフト記号表'!$C$5:$W$46,21,FALSE)) ->  | AX32: =IF(AX31="","",VLOOKUP(AX31,'（ユニット型）シフト記号表'!$C$5:$W$46,21,FALSE)) ->  | AY32: =IF(AY31="","",VLOOKUP(AY31,'（ユニット型）シフト記号表'!$C$5:$W$46,21,FALSE)) ->  | AZ32: =IF(AZ31="","",VLOOKUP(AZ31,'（ユニット型）シフト記号表'!$C$5:$W$46,21,FALSE)) ->  | BA32: =IF(BA31="","",VLOOKUP(BA31,'（ユニット型）シフト記号表'!$C$5:$W$46,21,FALSE)) ->  | BB32: =IF(BB31="","",VLOOKUP(BB31,'（ユニット型）シフト記号表'!$C$5:$W$46,21,FALSE)) ->  | BC32: =IF(BC31="","",VLOOKUP(BC31,'（ユニット型）シフト記号表'!$C$5:$W$46,21,FALSE)) ->  | BD32: =IF(BD31="","",VLOOKUP(BD31,'（ユニット型）シフト記号表'!$C$5:$W$46,21,FALSE)) ->  | BE32: =IF(BE31="","",VLOOKUP(BE31,'（ユニット型）シフト記号表'!$C$5:$W$46,21,FALSE)) ->  | BF32: =IF($BI$3="計画",SUM(AA32:BB32),IF($BI$3="実績",SUM(AA32:BE32),"")) -> 0 | BH32: =IF($BI$3="計画",BF32/4,IF($BI$3="実績",(BF32/($BI$7/7)),"")) -> 0
I33: =G32 -> 0 | K33: =M32 -> 0 | V33: 夜勤時間帯の勤務時間数 | AA33: =IF(AA31="","",VLOOKUP(AA31,'（ユニット型）シフト記号表'!$C$5:$Y$46,23,FALSE)) ->  | AB33: =IF(AB31="","",VLOOKUP(AB31,'（ユニット型）シフト記号表'!$C$5:$Y$46,23,FALSE)) ->  | AC33: =IF(AC31="","",VLOOKUP(AC31,'（ユニット型）シフト記号表'!$C$5:$Y$46,23,FALSE)) ->  | AD33: =IF(AD31="","",VLOOKUP(AD31,'（ユニット型）シフト記号表'!$C$5:$Y$46,23,FALSE)) ->  | AE33: =IF(AE31="","",VLOOKUP(AE31,'（ユニット型）シフト記号表'!$C$5:$Y$46,23,FALSE)) ->  | AF33: =IF(AF31="","",VLOOKUP(AF31,'（ユニット型）シフト記号表'!$C$5:$Y$46,23,FALSE)) ->  | AG33: =IF(AG31="","",VLOOKUP(AG31,'（ユニット型）シフト記号表'!$C$5:$Y$46,23,FALSE)) ->  | AH33: =IF(AH31="","",VLOOKUP(AH31,'（ユニット型）シフト記号表'!$C$5:$Y$46,23,FALSE)) ->  | AI33: =IF(AI31="","",VLOOKUP(AI31,'（ユニット型）シフト記号表'!$C$5:$Y$46,23,FALSE)) ->  | AJ33: =IF(AJ31="","",VLOOKUP(AJ31,'（ユニット型）シフト記号表'!$C$5:$Y$46,23,FALSE)) ->  | AK33: =IF(AK31="","",VLOOKUP(AK31,'（ユニット型）シフト記号表'!$C$5:$Y$46,23,FALSE)) ->  | AL33: =IF(AL31="","",VLOOKUP(AL31,'（ユニット型）シフト記号表'!$C$5:$Y$46,23,FALSE)) ->  | AM33: =IF(AM31="","",VLOOKUP(AM31,'（ユニット型）シフト記号表'!$C$5:$Y$46,23,FALSE)) ->  | AN33: =IF(AN31="","",VLOOKUP(AN31,'（ユニット型）シフト記号表'!$C$5:$Y$46,23,FALSE)) ->  | AO33: =IF(AO31="","",VLOOKUP(AO31,'（ユニット型）シフト記号表'!$C$5:$Y$46,23,FALSE)) ->  | AP33: =IF(AP31="","",VLOOKUP(AP31,'（ユニット型）シフト記号表'!$C$5:$Y$46,23,FALSE)) ->  | AQ33: =IF(AQ31="","",VLOOKUP(AQ31,'（ユニット型）シフト記号表'!$C$5:$Y$46,23,FALSE)) ->  | AR33: =IF(AR31="","",VLOOKUP(AR31,'（ユニット型）シフト記号表'!$C$5:$Y$46,23,FALSE)) ->  | AS33: =IF(AS31="","",VLOOKUP(AS31,'（ユニット型）シフト記号表'!$C$5:$Y$46,23,FALSE)) ->  | AT33: =IF(AT31="","",VLOOKUP(AT31,'（ユニット型）シフト記号表'!$C$5:$Y$46,23,FALSE)) ->  | AU33: =IF(AU31="","",VLOOKUP(AU31,'（ユニット型）シフト記号表'!$C$5:$Y$46,23,FALSE)) ->  | AV33: =IF(AV31="","",VLOOKUP(AV31,'（ユニット型）シフト記号表'!$C$5:$Y$46,23,FALSE)) ->  | AW33: =IF(AW31="","",VLOOKUP(AW31,'（ユニット型）シフト記号表'!$C$5:$Y$46,23,FALSE)) ->  | AX33: =IF(AX31="","",VLOOKUP(AX31,'（ユニット型）シフト記号表'!$C$5:$Y$46,23,FALSE)) ->  | AY33: =IF(AY31="","",VLOOKUP(AY31,'（ユニット型）シフト記号表'!$C$5:$Y$46,23,FALSE)) ->  | AZ33: =IF(AZ31="","",VLOOKUP(AZ31,'（ユニット型）シフト記号表'!$C$5:$Y$46,23,FALSE)) ->  | BA33: =IF(BA31="","",VLOOKUP(BA31,'（ユニット型）シフト記号表'!$C$5:$Y$46,23,FALSE)) ->  | BB33: =IF(BB31="","",VLOOKUP(BB31,'（ユニット型）シフト記号表'!$C$5:$Y$46,23,FALSE)) ->  | BC33: =IF(BC31="","",VLOOKUP(BC31,'（ユニット型）シフト記号表'!$C$5:$Y$46,23,FALSE)) ->  | BD33: =IF(BD31="","",VLOOKUP(BD31,'（ユニット型）シフト記号表'!$C$5:$Y$46,23,FALSE)) ->  | BE33: =IF(BE31="","",VLOOKUP(BE31,'（ユニット型）シフト記号表'!$C$5:$Y$46,23,FALSE)) ->  | BF33: =IF($BI$3="計画",SUM(AA33:BB33),IF($BI$3="実績",SUM(AA33:BE33),"")) -> 0 | BH33: =IF($BI$3="計画",BF33/4,IF($BI$3="実績",(BF33/($BI$7/7)),"")) -> 0
V34: シフト記号
B35: =B32+1 -> 6 | V35: 日中の勤務時間数 | AA35: =IF(AA34="","",VLOOKUP(AA34,'（ユニット型）シフト記号表'!$C$5:$W$46,21,FALSE)) ->  | AB35: =IF(AB34="","",VLOOKUP(AB34,'（ユニット型）シフト記号表'!$C$5:$W$46,21,FALSE)) ->  | AC35: =IF(AC34="","",VLOOKUP(AC34,'（ユニット型）シフト記号表'!$C$5:$W$46,21,FALSE)) ->  | AD35: =IF(AD34="","",VLOOKUP(AD34,'（ユニット型）シフト記号表'!$C$5:$W$46,21,FALSE)) ->  | AE35: =IF(AE34="","",VLOOKUP(AE34,'（ユニット型）シフト記号表'!$C$5:$W$46,21,FALSE)) ->  | AF35: =IF(AF34="","",VLOOKUP(AF34,'（ユニット型）シフト記号表'!$C$5:$W$46,21,FALSE)) ->  | AG35: =IF(AG34="","",VLOOKUP(AG34,'（ユニット型）シフト記号表'!$C$5:$W$46,21,FALSE)) ->  | AH35: =IF(AH34="","",VLOOKUP(AH34,'（ユニット型）シフト記号表'!$C$5:$W$46,21,FALSE)) ->  | AI35: =IF(AI34="","",VLOOKUP(AI34,'（ユニット型）シフト記号表'!$C$5:$W$46,21,FALSE)) ->  | AJ35: =IF(AJ34="","",VLOOKUP(AJ34,'（ユニット型）シフト記号表'!$C$5:$W$46,21,FALSE)) ->  | AK35: =IF(AK34="","",VLOOKUP(AK34,'（ユニット型）シフト記号表'!$C$5:$W$46,21,FALSE)) ->  | AL35: =IF(AL34="","",VLOOKUP(AL34,'（ユニット型）シフト記号表'!$C$5:$W$46,21,FALSE)) ->  | AM35: =IF(AM34="","",VLOOKUP(AM34,'（ユニット型）シフト記号表'!$C$5:$W$46,21,FALSE)) ->  | AN35: =IF(AN34="","",VLOOKUP(AN34,'（ユニット型）シフト記号表'!$C$5:$W$46,21,FALSE)) ->  | AO35: =IF(AO34="","",VLOOKUP(AO34,'（ユニット型）シフト記号表'!$C$5:$W$46,21,FALSE)) ->  | AP35: =IF(AP34="","",VLOOKUP(AP34,'（ユニット型）シフト記号表'!$C$5:$W$46,21,FALSE)) ->  | AQ35: =IF(AQ34="","",VLOOKUP(AQ34,'（ユニット型）シフト記号表'!$C$5:$W$46,21,FALSE)) ->  | AR35: =IF(AR34="","",VLOOKUP(AR34,'（ユニット型）シフト記号表'!$C$5:$W$46,21,FALSE)) ->  | AS35: =IF(AS34="","",VLOOKUP(AS34,'（ユニット型）シフト記号表'!$C$5:$W$46,21,FALSE)) ->  | AT35: =IF(AT34="","",VLOOKUP(AT34,'（ユニット型）シフト記号表'!$C$5:$W$46,21,FALSE)) ->  | AU35: =IF(AU34="","",VLOOKUP(AU34,'（ユニット型）シフト記号表'!$C$5:$W$46,21,FALSE)) ->  | AV35: =IF(AV34="","",VLOOKUP(AV34,'（ユニット型）シフト記号表'!$C$5:$W$46,21,FALSE)) ->  | AW35: =IF(AW34="","",VLOOKUP(AW34,'（ユニット型）シフト記号表'!$C$5:$W$46,21,FALSE)) ->  | AX35: =IF(AX34="","",VLOOKUP(AX34,'（ユニット型）シフト記号表'!$C$5:$W$46,21,FALSE)) ->  | AY35: =IF(AY34="","",VLOOKUP(AY34,'（ユニット型）シフト記号表'!$C$5:$W$46,21,FALSE)) ->  | AZ35: =IF(AZ34="","",VLOOKUP(AZ34,'（ユニット型）シフト記号表'!$C$5:$W$46,21,FALSE)) ->  | BA35: =IF(BA34="","",VLOOKUP(BA34,'（ユニット型）シフト記号表'!$C$5:$W$46,21,FALSE)) ->  | BB35: =IF(BB34="","",VLOOKUP(BB34,'（ユニット型）シフト記号表'!$C$5:$W$46,21,FALSE)) ->  | BC35: =IF(BC34="","",VLOOKUP(BC34,'（ユニット型）シフト記号表'!$C$5:$W$46,21,FALSE)) ->  | BD35: =IF(BD34="","",VLOOKUP(BD34,'（ユニット型）シフト記号表'!$C$5:$W$46,21,FALSE)) ->  | BE35: =IF(BE34="","",VLOOKUP(BE34,'（ユニット型）シフト記号表'!$C$5:$W$46,21,FALSE)) ->  | BF35: =IF($BI$3="計画",SUM(AA35:BB35),IF($BI$3="実績",SUM(AA35:BE35),"")) -> 0 | BH35: =IF($BI$3="計画",BF35/4,IF($BI$3="実績",(BF35/($BI$7/7)),"")) -> 0
I36: =G35 -> 0 | K36: =M35 -> 0 | V36: 夜勤時間帯の勤務時間数 | AA36: =IF(AA34="","",VLOOKUP(AA34,'（ユニット型）シフト記号表'!$C$5:$Y$46,23,FALSE)) ->  | AB36: =IF(AB34="","",VLOOKUP(AB34,'（ユニット型）シフト記号表'!$C$5:$Y$46,23,FALSE)) ->  | AC36: =IF(AC34="","",VLOOKUP(AC34,'（ユニット型）シフト記号表'!$C$5:$Y$46,23,FALSE)) ->  | AD36: =IF(AD34="","",VLOOKUP(AD34,'（ユニット型）シフト記号表'!$C$5:$Y$46,23,FALSE)) ->  | AE36: =IF(AE34="","",VLOOKUP(AE34,'（ユニット型）シフト記号表'!$C$5:$Y$46,23,FALSE)) ->  | AF36: =IF(AF34="","",VLOOKUP(AF34,'（ユニット型）シフト記号表'!$C$5:$Y$46,23,FALSE)) ->  | AG36: =IF(AG34="","",VLOOKUP(AG34,'（ユニット型）シフト記号表'!$C$5:$Y$46,23,FALSE)) ->  | AH36: =IF(AH34="","",VLOOKUP(AH34,'（ユニット型）シフト記号表'!$C$5:$Y$46,23,FALSE)) ->  | AI36: =IF(AI34="","",VLOOKUP(AI34,'（ユニット型）シフト記号表'!$C$5:$Y$46,23,FALSE)) ->  | AJ36: =IF(AJ34="","",VLOOKUP(AJ34,'（ユニット型）シフト記号表'!$C$5:$Y$46,23,FALSE)) ->  | AK36: =IF(AK34="","",VLOOKUP(AK34,'（ユニット型）シフト記号表'!$C$5:$Y$46,23,FALSE)) ->  | AL36: =IF(AL34="","",VLOOKUP(AL34,'（ユニット型）シフト記号表'!$C$5:$Y$46,23,FALSE)) ->  | AM36: =IF(AM34="","",VLOOKUP(AM34,'（ユニット型）シフト記号表'!$C$5:$Y$46,23,FALSE)) ->  | AN36: =IF(AN34="","",VLOOKUP(AN34,'（ユニット型）シフト記号表'!$C$5:$Y$46,23,FALSE)) ->  | AO36: =IF(AO34="","",VLOOKUP(AO34,'（ユニット型）シフト記号表'!$C$5:$Y$46,23,FALSE)) ->  | AP36: =IF(AP34="","",VLOOKUP(AP34,'（ユニット型）シフト記号表'!$C$5:$Y$46,23,FALSE)) ->  | AQ36: =IF(AQ34="","",VLOOKUP(AQ34,'（ユニット型）シフト記号表'!$C$5:$Y$46,23,FALSE)) ->  | AR36: =IF(AR34="","",VLOOKUP(AR34,'（ユニット型）シフト記号表'!$C$5:$Y$46,23,FALSE)) ->  | AS36: =IF(AS34="","",VLOOKUP(AS34,'（ユニット型）シフト記号表'!$C$5:$Y$46,23,FALSE)) ->  | AT36: =IF(AT34="","",VLOOKUP(AT34,'（ユニット型）シフト記号表'!$C$5:$Y$46,23,FALSE)) ->  | AU36: =IF(AU34="","",VLOOKUP(AU34,'（ユニット型）シフト記号表'!$C$5:$Y$46,23,FALSE)) ->  | AV36: =IF(AV34="","",VLOOKUP(AV34,'（ユニット型）シフト記号表'!$C$5:$Y$46,23,FALSE)) ->  | AW36: =IF(AW34="","",VLOOKUP(AW34,'（ユニット型）シフト記号表'!$C$5:$Y$46,23,FALSE)) ->  | AX36: =IF(AX34="","",VLOOKUP(AX34,'（ユニット型）シフト記号表'!$C$5:$Y$46,23,FALSE)) ->  | AY36: =IF(AY34="","",VLOOKUP(AY34,'（ユニット型）シフト記号表'!$C$5:$Y$46,23,FALSE)) ->  | AZ36: =IF(AZ34="","",VLOOKUP(AZ34,'（ユニット型）シフト記号表'!$C$5:$Y$46,23,FALSE)) ->  | BA36: =IF(BA34="","",VLOOKUP(BA34,'（ユニット型）シフト記号表'!$C$5:$Y$46,23,FALSE)) ->  | BB36: =IF(BB34="","",VLOOKUP(BB34,'（ユニット型）シフト記号表'!$C$5:$Y$46,23,FALSE)) ->  | BC36: =IF(BC34="","",VLOOKUP(BC34,'（ユニット型）シフト記号表'!$C$5:$Y$46,23,FALSE)) ->  | BD36: =IF(BD34="","",VLOOKUP(BD34,'（ユニット型）シフト記号表'!$C$5:$Y$46,23,FALSE)) ->  | BE36: =IF(BE34="","",VLOOKUP(BE34,'（ユニット型）シフト記号表'!$C$5:$Y$46,23,FALSE)) ->  | BF36: =IF($BI$3="計画",SUM(AA36:BB36),IF($BI$3="実績",SUM(AA36:BE36),"")) -> 0 | BH36: =IF($BI$3="計画",BF36/4,IF($BI$3="実績",(BF36/($BI$7/7)),"")) -> 0
V37: シフト記号
B38: =B35+1 -> 7 | V38: 日中の勤務時間数 | AA38: =IF(AA37="","",VLOOKUP(AA37,'（ユニット型）シフト記号表'!$C$5:$W$46,21,FALSE)) ->  | AB38: =IF(AB37="","",VLOOKUP(AB37,'（ユニット型）シフト記号表'!$C$5:$W$46,21,FALSE)) ->  | AC38: =IF(AC37="","",VLOOKUP(AC37,'（ユニット型）シフト記号表'!$C$5:$W$46,21,FALSE)) ->  | AD38: =IF(AD37="","",VLOOKUP(AD37,'（ユニット型）シフト記号表'!$C$5:$W$46,21,FALSE)) ->  | AE38: =IF(AE37="","",VLOOKUP(AE37,'（ユニット型）シフト記号表'!$C$5:$W$46,21,FALSE)) ->  | AF38: =IF(AF37="","",VLOOKUP(AF37,'（ユニット型）シフト記号表'!$C$5:$W$46,21,FALSE)) ->  | AG38: =IF(AG37="","",VLOOKUP(AG37,'（ユニット型）シフト記号表'!$C$5:$W$46,21,FALSE)) ->  | AH38: =IF(AH37="","",VLOOKUP(AH37,'（ユニット型）シフト記号表'!$C$5:$W$46,21,FALSE)) ->  | AI38: =IF(AI37="","",VLOOKUP(AI37,'（ユニット型）シフト記号表'!$C$5:$W$46,21,FALSE)) ->  | AJ38: =IF(AJ37="","",VLOOKUP(AJ37,'（ユニット型）シフト記号表'!$C$5:$W$46,21,FALSE)) ->  | AK38: =IF(AK37="","",VLOOKUP(AK37,'（ユニット型）シフト記号表'!$C$5:$W$46,21,FALSE)) ->  | AL38: =IF(AL37="","",VLOOKUP(AL37,'（ユニット型）シフト記号表'!$C$5:$W$46,21,FALSE)) ->  | AM38: =IF(AM37="","",VLOOKUP(AM37,'（ユニット型）シフト記号表'!$C$5:$W$46,21,FALSE)) ->  | AN38: =IF(AN37="","",VLOOKUP(AN37,'（ユニット型）シフト記号表'!$C$5:$W$46,21,FALSE)) ->  | AO38: =IF(AO37="","",VLOOKUP(AO37,'（ユニット型）シフト記号表'!$C$5:$W$46,21,FALSE)) ->  | AP38: =IF(AP37="","",VLOOKUP(AP37,'（ユニット型）シフト記号表'!$C$5:$W$46,21,FALSE)) ->  | AQ38: =IF(AQ37="","",VLOOKUP(AQ37,'（ユニット型）シフト記号表'!$C$5:$W$46,21,FALSE)) ->  | AR38: =IF(AR37="","",VLOOKUP(AR37,'（ユニット型）シフト記号表'!$C$5:$W$46,21,FALSE)) ->  | AS38: =IF(AS37="","",VLOOKUP(AS37,'（ユニット型）シフト記号表'!$C$5:$W$46,21,FALSE)) ->  | AT38: =IF(AT37="","",VLOOKUP(AT37,'（ユニット型）シフト記号表'!$C$5:$W$46,21,FALSE)) ->  | AU38: =IF(AU37="","",VLOOKUP(AU37,'（ユニット型）シフト記号表'!$C$5:$W$46,21,FALSE)) ->  | AV38: =IF(AV37="","",VLOOKUP(AV37,'（ユニット型）シフト記号表'!$C$5:$W$46,21,FALSE)) ->  | AW38: =IF(AW37="","",VLOOKUP(AW37,'（ユニット型）シフト記号表'!$C$5:$W$46,21,FALSE)) ->  | AX38: =IF(AX37="","",VLOOKUP(AX37,'（ユニット型）シフト記号表'!$C$5:$W$46,21,FALSE)) ->  | AY38: =IF(AY37="","",VLOOKUP(AY37,'（ユニット型）シフト記号表'!$C$5:$W$46,21,FALSE)) ->  | AZ38: =IF(AZ37="","",VLOOKUP(AZ37,'（ユニット型）シフト記号表'!$C$5:$W$46,21,FALSE)) ->  | BA38: =IF(BA37="","",VLOOKUP(BA37,'（ユニット型）シフト記号表'!$C$5:$W$46,21,FALSE)) ->  | BB38: =IF(BB37="","",VLOOKUP(BB37,'（ユニット型）シフト記号表'!$C$5:$W$46,21,FALSE)) ->  | BC38: =IF(BC37="","",VLOOKUP(BC37,'（ユニット型）シフト記号表'!$C$5:$W$46,21,FALSE)) ->  | BD38: =IF(BD37="","",VLOOKUP(BD37,'（ユニット型）シフト記号表'!$C$5:$W$46,21,FALSE)) ->  | BE38: =IF(BE37="","",VLOOKUP(BE37,'（ユニット型）シフト記号表'!$C$5:$W$46,21,FALSE)) ->  | BF38: =IF($BI$3="計画",SUM(AA38:BB38),IF($BI$3="実績",SUM(AA38:BE38),"")) -> 0 | BH38: =IF($BI$3="計画",BF38/4,IF($BI$3="実績",(BF38/($BI$7/7)),"")) -> 0
I39: =G38 -> 0 | K39: =M38 -> 0 | V39: 夜勤時間帯の勤務時間数 | AA39: =IF(AA37="","",VLOOKUP(AA37,'（ユニット型）シフト記号表'!$C$5:$Y$46,23,FALSE)) ->  | AB39: =IF(AB37="","",VLOOKUP(AB37,'（ユニット型）シフト記号表'!$C$5:$Y$46,23,FALSE)) ->  | AC39: =IF(AC37="","",VLOOKUP(AC37,'（ユニット型）シフト記号表'!$C$5:$Y$46,23,FALSE)) ->  | AD39: =IF(AD37="","",VLOOKUP(AD37,'（ユニット型）シフト記号表'!$C$5:$Y$46,23,FALSE)) ->  | AE39: =IF(AE37="","",VLOOKUP(AE37,'（ユニット型）シフト記号表'!$C$5:$Y$46,23,FALSE)) ->  | AF39: =IF(AF37="","",VLOOKUP(AF37,'（ユニット型）シフト記号表'!$C$5:$Y$46,23,FALSE)) ->  | AG39: =IF(AG37="","",VLOOKUP(AG37,'（ユニット型）シフト記号表'!$C$5:$Y$46,23,FALSE)) ->  | AH39: =IF(AH37="","",VLOOKUP(AH37,'（ユニット型）シフト記号表'!$C$5:$Y$46,23,FALSE)) ->  | AI39: =IF(AI37="","",VLOOKUP(AI37,'（ユニット型）シフト記号表'!$C$5:$Y$46,23,FALSE)) ->  | AJ39: =IF(AJ37="","",VLOOKUP(AJ37,'（ユニット型）シフト記号表'!$C$5:$Y$46,23,FALSE)) ->  | AK39: =IF(AK37="","",VLOOKUP(AK37,'（ユニット型）シフト記号表'!$C$5:$Y$46,23,FALSE)) ->  | AL39: =IF(AL37="","",VLOOKUP(AL37,'（ユニット型）シフト記号表'!$C$5:$Y$46,23,FALSE)) ->  | AM39: =IF(AM37="","",VLOOKUP(AM37,'（ユニット型）シフト記号表'!$C$5:$Y$46,23,FALSE)) ->  | AN39: =IF(AN37="","",VLOOKUP(AN37,'（ユニット型）シフト記号表'!$C$5:$Y$46,23,FALSE)) ->  | AO39: =IF(AO37="","",VLOOKUP(AO37,'（ユニット型）シフト記号表'!$C$5:$Y$46,23,FALSE)) ->  | AP39: =IF(AP37="","",VLOOKUP(AP37,'（ユニット型）シフト記号表'!$C$5:$Y$46,23,FALSE)) ->  | AQ39: =IF(AQ37="","",VLOOKUP(AQ37,'（ユニット型）シフト記号表'!$C$5:$Y$46,23,FALSE)) ->  | AR39: =IF(AR37="","",VLOOKUP(AR37,'（ユニット型）シフト記号表'!$C$5:$Y$46,23,FALSE)) ->  | AS39: =IF(AS37="","",VLOOKUP(AS37,'（ユニット型）シフト記号表'!$C$5:$Y$46,23,FALSE)) ->  | AT39: =IF(AT37="","",VLOOKUP(AT37,'（ユニット型）シフト記号表'!$C$5:$Y$46,23,FALSE)) ->  | AU39: =IF(AU37="","",VLOOKUP(AU37,'（ユニット型）シフト記号表'!$C$5:$Y$46,23,FALSE)) ->  | AV39: =IF(AV37="","",VLOOKUP(AV37,'（ユニット型）シフト記号表'!$C$5:$Y$46,23,FALSE)) ->  | AW39: =IF(AW37="","",VLOOKUP(AW37,'（ユニット型）シフト記号表'!$C$5:$Y$46,23,FALSE)) ->  | AX39: =IF(AX37="","",VLOOKUP(AX37,'（ユニット型）シフト記号表'!$C$5:$Y$46,23,FALSE)) ->  | AY39: =IF(AY37="","",VLOOKUP(AY37,'（ユニット型）シフト記号表'!$C$5:$Y$46,23,FALSE)) ->  | AZ39: =IF(AZ37="","",VLOOKUP(AZ37,'（ユニット型）シフト記号表'!$C$5:$Y$46,23,FALSE)) ->  | BA39: =IF(BA37="","",VLOOKUP(BA37,'（ユニット型）シフト記号表'!$C$5:$Y$46,23,FALSE)) ->  | BB39: =IF(BB37="","",VLOOKUP(BB37,'（ユニット型）シフト記号表'!$C$5:$Y$46,23,FALSE)) ->  | BC39: =IF(BC37="","",VLOOKUP(BC37,'（ユニット型）シフト記号表'!$C$5:$Y$46,23,FALSE)) ->  | BD39: =IF(BD37="","",VLOOKUP(BD37,'（ユニット型）シフト記号表'!$C$5:$Y$46,23,FALSE)) ->  | BE39: =IF(BE37="","",VLOOKUP(BE37,'（ユニット型）シフト記号表'!$C$5:$Y$46,23,FALSE)) ->  | BF39: =IF($BI$3="計画",SUM(AA39:BB39),IF($BI$3="実績",SUM(AA39:BE39),"")) -> 0 | BH39: =IF($BI$3="計画",BF39/4,IF($BI$3="実績",(BF39/($BI$7/7)),"")) -> 0
V40: シフト記号
B41: =B38+1 -> 8 | V41: 日中の勤務時間数 | AA41: =IF(AA40="","",VLOOKUP(AA40,'（ユニット型）シフト記号表'!$C$5:$W$46,21,FALSE)) ->  | AB41: =IF(AB40="","",VLOOKUP(AB40,'（ユニット型）シフト記号表'!$C$5:$W$46,21,FALSE)) ->  | AC41: =IF(AC40="","",VLOOKUP(AC40,'（ユニット型）シフト記号表'!$C$5:$W$46,21,FALSE)) ->  | AD41: =IF(AD40="","",VLOOKUP(AD40,'（ユニット型）シフト記号表'!$C$5:$W$46,21,FALSE)) ->  | AE41: =IF(AE40="","",VLOOKUP(AE40,'（ユニット型）シフト記号表'!$C$5:$W$46,21,FALSE)) ->  | AF41: =IF(AF40="","",VLOOKUP(AF40,'（ユニット型）シフト記号表'!$C$5:$W$46,21,FALSE)) ->  | AG41: =IF(AG40="","",VLOOKUP(AG40,'（ユニット型）シフト記号表'!$C$5:$W$46,21,FALSE)) ->  | AH41: =IF(AH40="","",VLOOKUP(AH40,'（ユニット型）シフト記号表'!$C$5:$W$46,21,FALSE)) ->  | AI41: =IF(AI40="","",VLOOKUP(AI40,'（ユニット型）シフト記号表'!$C$5:$W$46,21,FALSE)) ->  | AJ41: =IF(AJ40="","",VLOOKUP(AJ40,'（ユニット型）シフト記号表'!$C$5:$W$46,21,FALSE)) ->  | AK41: =IF(AK40="","",VLOOKUP(AK40,'（ユニット型）シフト記号表'!$C$5:$W$46,21,FALSE)) ->  | AL41: =IF(AL40="","",VLOOKUP(AL40,'（ユニット型）シフト記号表'!$C$5:$W$46,21,FALSE)) ->  | AM41: =IF(AM40="","",VLOOKUP(AM40,'（ユニット型）シフト記号表'!$C$5:$W$46,21,FALSE)) ->  | AN41: =IF(AN40="","",VLOOKUP(AN40,'（ユニット型）シフト記号表'!$C$5:$W$46,21,FALSE)) ->  | AO41: =IF(AO40="","",VLOOKUP(AO40,'（ユニット型）シフト記号表'!$C$5:$W$46,21,FALSE)) ->  | AP41: =IF(AP40="","",VLOOKUP(AP40,'（ユニット型）シフト記号表'!$C$5:$W$46,21,FALSE)) ->  | AQ41: =IF(AQ40="","",VLOOKUP(AQ40,'（ユニット型）シフト記号表'!$C$5:$W$46,21,FALSE)) ->  | AR41: =IF(AR40="","",VLOOKUP(AR40,'（ユニット型）シフト記号表'!$C$5:$W$46,21,FALSE)) ->  | AS41: =IF(AS40="","",VLOOKUP(AS40,'（ユニット型）シフト記号表'!$C$5:$W$46,21,FALSE)) ->  | AT41: =IF(AT40="","",VLOOKUP(AT40,'（ユニット型）シフト記号表'!$C$5:$W$46,21,FALSE)) ->  | AU41: =IF(AU40="","",VLOOKUP(AU40,'（ユニット型）シフト記号表'!$C$5:$W$46,21,FALSE)) ->  | AV41: =IF(AV40="","",VLOOKUP(AV40,'（ユニット型）シフト記号表'!$C$5:$W$46,21,FALSE)) ->  | AW41: =IF(AW40="","",VLOOKUP(AW40,'（ユニット型）シフト記号表'!$C$5:$W$46,21,FALSE)) ->  | AX41: =IF(AX40="","",VLOOKUP(AX40,'（ユニット型）シフト記号表'!$C$5:$W$46,21,FALSE)) ->  | AY41: =IF(AY40="","",VLOOKUP(AY40,'（ユニット型）シフト記号表'!$C$5:$W$46,21,FALSE)) ->  | AZ41: =IF(AZ40="","",VLOOKUP(AZ40,'（ユニット型）シフト記号表'!$C$5:$W$46,21,FALSE)) ->  | BA41: =IF(BA40="","",VLOOKUP(BA40,'（ユニット型）シフト記号表'!$C$5:$W$46,21,FALSE)) ->  | BB41: =IF(BB40="","",VLOOKUP(BB40,'（ユニット型）シフト記号表'!$C$5:$W$46,21,FALSE)) ->  | BC41: =IF(BC40="","",VLOOKUP(BC40,'（ユニット型）シフト記号表'!$C$5:$W$46,21,FALSE)) ->  | BD41: =IF(BD40="","",VLOOKUP(BD40,'（ユニット型）シフト記号表'!$C$5:$W$46,21,FALSE)) ->  | BE41: =IF(BE40="","",VLOOKUP(BE40,'（ユニット型）シフト記号表'!$C$5:$W$46,21,FALSE)) ->  | BF41: =IF($BI$3="計画",SUM(AA41:BB41),IF($BI$3="実績",SUM(AA41:BE41),"")) -> 0 | BH41: =IF($BI$3="計画",BF41/4,IF($BI$3="実績",(BF41/($BI$7/7)),"")) -> 0
I42: =G41 -> 0 | K42: =M41 -> 0 | V42: 夜勤時間帯の勤務時間数 | AA42: =IF(AA40="","",VLOOKUP(AA40,'（ユニット型）シフト記号表'!$C$5:$Y$46,23,FALSE)) ->  | AB42: =IF(AB40="","",VLOOKUP(AB40,'（ユニット型）シフト記号表'!$C$5:$Y$46,23,FALSE)) ->  | AC42: =IF(AC40="","",VLOOKUP(AC40,'（ユニット型）シフト記号表'!$C$5:$Y$46,23,FALSE)) ->  | AD42: =IF(AD40="","",VLOOKUP(AD40,'（ユニット型）シフト記号表'!$C$5:$Y$46,23,FALSE)) ->  | AE42: =IF(AE40="","",VLOOKUP(AE40,'（ユニット型）シフト記号表'!$C$5:$Y$46,23,FALSE)) ->  | AF42: =IF(AF40="","",VLOOKUP(AF40,'（ユニット型）シフト記号表'!$C$5:$Y$46,23,FALSE)) ->  | AG42: =IF(AG40="","",VLOOKUP(AG40,'（ユニット型）シフト記号表'!$C$5:$Y$46,23,FALSE)) ->  | AH42: =IF(AH40="","",VLOOKUP(AH40,'（ユニット型）シフト記号表'!$C$5:$Y$46,23,FALSE)) ->  | AI42: =IF(AI40="","",VLOOKUP(AI40,'（ユニット型）シフト記号表'!$C$5:$Y$46,23,FALSE)) ->  | AJ42: =IF(AJ40="","",VLOOKUP(AJ40,'（ユニット型）シフト記号表'!$C$5:$Y$46,23,FALSE)) ->  | AK42: =IF(AK40="","",VLOOKUP(AK40,'（ユニット型）シフト記号表'!$C$5:$Y$46,23,FALSE)) ->  | AL42: =IF(AL40="","",VLOOKUP(AL40,'（ユニット型）シフト記号表'!$C$5:$Y$46,23,FALSE)) ->  | AM42: =IF(AM40="","",VLOOKUP(AM40,'（ユニット型）シフト記号表'!$C$5:$Y$46,23,FALSE)) ->  | AN42: =IF(AN40="","",VLOOKUP(AN40,'（ユニット型）シフト記号表'!$C$5:$Y$46,23,FALSE)) ->  | AO42: =IF(AO40="","",VLOOKUP(AO40,'（ユニット型）シフト記号表'!$C$5:$Y$46,23,FALSE)) ->  | AP42: =IF(AP40="","",VLOOKUP(AP40,'（ユニット型）シフト記号表'!$C$5:$Y$46,23,FALSE)) ->  | AQ42: =IF(AQ40="","",VLOOKUP(AQ40,'（ユニット型）シフト記号表'!$C$5:$Y$46,23,FALSE)) ->  | AR42: =IF(AR40="","",VLOOKUP(AR40,'（ユニット型）シフト記号表'!$C$5:$Y$46,23,FALSE)) ->  | AS42: =IF(AS40="","",VLOOKUP(AS40,'（ユニット型）シフト記号表'!$C$5:$Y$46,23,FALSE)) ->  | AT42: =IF(AT40="","",VLOOKUP(AT40,'（ユニット型）シフト記号表'!$C$5:$Y$46,23,FALSE)) ->  | AU42: =IF(AU40="","",VLOOKUP(AU40,'（ユニット型）シフト記号表'!$C$5:$Y$46,23,FALSE)) ->  | AV42: =IF(AV40="","",VLOOKUP(AV40,'（ユニット型）シフト記号表'!$C$5:$Y$46,23,FALSE)) ->  | AW42: =IF(AW40="","",VLOOKUP(AW40,'（ユニット型）シフト記号表'!$C$5:$Y$46,23,FALSE)) ->  | AX42: =IF(AX40="","",VLOOKUP(AX40,'（ユニット型）シフト記号表'!$C$5:$Y$46,23,FALSE)) ->  | AY42: =IF(AY40="","",VLOOKUP(AY40,'（ユニット型）シフト記号表'!$C$5:$Y$46,23,FALSE)) ->  | AZ42: =IF(AZ40="","",VLOOKUP(AZ40,'（ユニット型）シフト記号表'!$C$5:$Y$46,23,FALSE)) ->  | BA42: =IF(BA40="","",VLOOKUP(BA40,'（ユニット型）シフト記号表'!$C$5:$Y$46,23,FALSE)) ->  | BB42: =IF(BB40="","",VLOOKUP(BB40,'（ユニット型）シフト記号表'!$C$5:$Y$46,23,FALSE)) ->  | BC42: =IF(BC40="","",VLOOKUP(BC40,'（ユニット型）シフト記号表'!$C$5:$Y$46,23,FALSE)) ->  | BD42: =IF(BD40="","",VLOOKUP(BD40,'（ユニット型）シフト記号表'!$C$5:$Y$46,23,FALSE)) ->  | BE42: =IF(BE40="","",VLOOKUP(BE40,'（ユニット型）シフト記号表'!$C$5:$Y$46,23,FALSE)) ->  | BF42: =IF($BI$3="計画",SUM(AA42:BB42),IF($BI$3="実績",SUM(AA42:BE42),"")) -> 0 | BH42: =IF($BI$3="計画",BF42/4,IF($BI$3="実績",(BF42/($BI$7/7)),"")) -> 0
V43: シフト記号
B44: =B41+1 -> 9 | V44: 日中の勤務時間数 | AA44: =IF(AA43="","",VLOOKUP(AA43,'（ユニット型）シフト記号表'!$C$5:$W$46,21,FALSE)) ->  | AB44: =IF(AB43="","",VLOOKUP(AB43,'（ユニット型）シフト記号表'!$C$5:$W$46,21,FALSE)) ->  | AC44: =IF(AC43="","",VLOOKUP(AC43,'（ユニット型）シフト記号表'!$C$5:$W$46,21,FALSE)) ->  | AD44: =IF(AD43="","",VLOOKUP(AD43,'（ユニット型）シフト記号表'!$C$5:$W$46,21,FALSE)) ->  | AE44: =IF(AE43="","",VLOOKUP(AE43,'（ユニット型）シフト記号表'!$C$5:$W$46,21,FALSE)) ->  | AF44: =IF(AF43="","",VLOOKUP(AF43,'（ユニット型）シフト記号表'!$C$5:$W$46,21,FALSE)) ->  | AG44: =IF(AG43="","",VLOOKUP(AG43,'（ユニット型）シフト記号表'!$C$5:$W$46,21,FALSE)) ->  | AH44: =IF(AH43="","",VLOOKUP(AH43,'（ユニット型）シフト記号表'!$C$5:$W$46,21,FALSE)) ->  | AI44: =IF(AI43="","",VLOOKUP(AI43,'（ユニット型）シフト記号表'!$C$5:$W$46,21,FALSE)) ->  | AJ44: =IF(AJ43="","",VLOOKUP(AJ43,'（ユニット型）シフト記号表'!$C$5:$W$46,21,FALSE)) ->  | AK44: =IF(AK43="","",VLOOKUP(AK43,'（ユニット型）シフト記号表'!$C$5:$W$46,21,FALSE)) ->  | AL44: =IF(AL43="","",VLOOKUP(AL43,'（ユニット型）シフト記号表'!$C$5:$W$46,21,FALSE)) ->  | AM44: =IF(AM43="","",VLOOKUP(AM43,'（ユニット型）シフト記号表'!$C$5:$W$46,21,FALSE)) ->  | AN44: =IF(AN43="","",VLOOKUP(AN43,'（ユニット型）シフト記号表'!$C$5:$W$46,21,FALSE)) ->  | AO44: =IF(AO43="","",VLOOKUP(AO43,'（ユニット型）シフト記号表'!$C$5:$W$46,21,FALSE)) ->  | AP44: =IF(AP43="","",VLOOKUP(AP43,'（ユニット型）シフト記号表'!$C$5:$W$46,21,FALSE)) ->  | AQ44: =IF(AQ43="","",VLOOKUP(AQ43,'（ユニット型）シフト記号表'!$C$5:$W$46,21,FALSE)) ->  | AR44: =IF(AR43="","",VLOOKUP(AR43,'（ユニット型）シフト記号表'!$C$5:$W$46,21,FALSE)) ->  | AS44: =IF(AS43="","",VLOOKUP(AS43,'（ユニット型）シフト記号表'!$C$5:$W$46,21,FALSE)) ->  | AT44: =IF(AT43="","",VLOOKUP(AT43,'（ユニット型）シフト記号表'!$C$5:$W$46,21,FALSE)) ->  | AU44: =IF(AU43="","",VLOOKUP(AU43,'（ユニット型）シフト記号表'!$C$5:$W$46,21,FALSE)) ->  | AV44: =IF(AV43="","",VLOOKUP(AV43,'（ユニット型）シフト記号表'!$C$5:$W$46,21,FALSE)) ->  | AW44: =IF(AW43="","",VLOOKUP(AW43,'（ユニット型）シフト記号表'!$C$5:$W$46,21,FALSE)) ->  | AX44: =IF(AX43="","",VLOOKUP(AX43,'（ユニット型）シフト記号表'!$C$5:$W$46,21,FALSE)) ->  | AY44: =IF(AY43="","",VLOOKUP(AY43,'（ユニット型）シフト記号表'!$C$5:$W$46,21,FALSE)) ->  | AZ44: =IF(AZ43="","",VLOOKUP(AZ43,'（ユニット型）シフト記号表'!$C$5:$W$46,21,FALSE)) ->  | BA44: =IF(BA43="","",VLOOKUP(BA43,'（ユニット型）シフト記号表'!$C$5:$W$46,21,FALSE)) ->  | BB44: =IF(BB43="","",VLOOKUP(BB43,'（ユニット型）シフト記号表'!$C$5:$W$46,21,FALSE)) ->  | BC44: =IF(BC43="","",VLOOKUP(BC43,'（ユニット型）シフト記号表'!$C$5:$W$46,21,FALSE)) ->  | BD44: =IF(BD43="","",VLOOKUP(BD43,'（ユニット型）シフト記号表'!$C$5:$W$46,21,FALSE)) ->  | BE44: =IF(BE43="","",VLOOKUP(BE43,'（ユニット型）シフト記号表'!$C$5:$W$46,21,FALSE)) ->  | BF44: =IF($BI$3="計画",SUM(AA44:BB44),IF($BI$3="実績",SUM(AA44:BE44),"")) -> 0 | BH44: =IF($BI$3="計画",BF44/4,IF($BI$3="実績",(BF44/($BI$7/7)),"")) -> 0
I45: =G44 -> 0 | K45: =M44 -> 0 | V45: 夜勤時間帯の勤務時間数 | AA45: =IF(AA43="","",VLOOKUP(AA43,'（ユニット型）シフト記号表'!$C$5:$Y$46,23,FALSE)) ->  | AB45: =IF(AB43="","",VLOOKUP(AB43,'（ユニット型）シフト記号表'!$C$5:$Y$46,23,FALSE)) ->  | AC45: =IF(AC43="","",VLOOKUP(AC43,'（ユニット型）シフト記号表'!$C$5:$Y$46,23,FALSE)) ->  | AD45: =IF(AD43="","",VLOOKUP(AD43,'（ユニット型）シフト記号表'!$C$5:$Y$46,23,FALSE)) ->  | AE45: =IF(AE43="","",VLOOKUP(AE43,'（ユニット型）シフト記号表'!$C$5:$Y$46,23,FALSE)) ->  | AF45: =IF(AF43="","",VLOOKUP(AF43,'（ユニット型）シフト記号表'!$C$5:$Y$46,23,FALSE)) ->  | AG45: =IF(AG43="","",VLOOKUP(AG43,'（ユニット型）シフト記号表'!$C$5:$Y$46,23,FALSE)) ->  | AH45: =IF(AH43="","",VLOOKUP(AH43,'（ユニット型）シフト記号表'!$C$5:$Y$46,23,FALSE)) ->  | AI45: =IF(AI43="","",VLOOKUP(AI43,'（ユニット型）シフト記号表'!$C$5:$Y$46,23,FALSE)) ->  | AJ45: =IF(AJ43="","",VLOOKUP(AJ43,'（ユニット型）シフト記号表'!$C$5:$Y$46,23,FALSE)) ->  | AK45: =IF(AK43="","",VLOOKUP(AK43,'（ユニット型）シフト記号表'!$C$5:$Y$46,23,FALSE)) ->  | AL45: =IF(AL43="","",VLOOKUP(AL43,'（ユニット型）シフト記号表'!$C$5:$Y$46,23,FALSE)) ->  | AM45: =IF(AM43="","",VLOOKUP(AM43,'（ユニット型）シフト記号表'!$C$5:$Y$46,23,FALSE)) ->  | AN45: =IF(AN43="","",VLOOKUP(AN43,'（ユニット型）シフト記号表'!$C$5:$Y$46,23,FALSE)) ->  | AO45: =IF(AO43="","",VLOOKUP(AO43,'（ユニット型）シフト記号表'!$C$5:$Y$46,23,FALSE)) ->  | AP45: =IF(AP43="","",VLOOKUP(AP43,'（ユニット型）シフト記号表'!$C$5:$Y$46,23,FALSE)) ->  | AQ45: =IF(AQ43="","",VLOOKUP(AQ43,'（ユニット型）シフト記号表'!$C$5:$Y$46,23,FALSE)) ->  | AR45: =IF(AR43="","",VLOOKUP(AR43,'（ユニット型）シフト記号表'!$C$5:$Y$46,23,FALSE)) ->  | AS45: =IF(AS43="","",VLOOKUP(AS43,'（ユニット型）シフト記号表'!$C$5:$Y$46,23,FALSE)) ->  | AT45: =IF(AT43="","",VLOOKUP(AT43,'（ユニット型）シフト記号表'!$C$5:$Y$46,23,FALSE)) ->  | AU45: =IF(AU43="","",VLOOKUP(AU43,'（ユニット型）シフト記号表'!$C$5:$Y$46,23,FALSE)) ->  | AV45: =IF(AV43="","",VLOOKUP(AV43,'（ユニット型）シフト記号表'!$C$5:$Y$46,23,FALSE)) ->  | AW45: =IF(AW43="","",VLOOKUP(AW43,'（ユニット型）シフト記号表'!$C$5:$Y$46,23,FALSE)) ->  | AX45: =IF(AX43="","",VLOOKUP(AX43,'（ユニット型）シフト記号表'!$C$5:$Y$46,23,FALSE)) ->  | AY45: =IF(AY43="","",VLOOKUP(AY43,'（ユニット型）シフト記号表'!$C$5:$Y$46,23,FALSE)) ->  | AZ45: =IF(AZ43="","",VLOOKUP(AZ43,'（ユニット型）シフト記号表'!$C$5:$Y$46,23,FALSE)) ->  | BA45: =IF(BA43="","",VLOOKUP(BA43,'（ユニット型）シフト記号表'!$C$5:$Y$46,23,FALSE)) ->  | BB45: =IF(BB43="","",VLOOKUP(BB43,'（ユニット型）シフト記号表'!$C$5:$Y$46,23,FALSE)) ->  | BC45: =IF(BC43="","",VLOOKUP(BC43,'（ユニット型）シフト記号表'!$C$5:$Y$46,23,FALSE)) ->  | BD45: =IF(BD43="","",VLOOKUP(BD43,'（ユニット型）シフト記号表'!$C$5:$Y$46,23,FALSE)) ->  | BE45: =IF(BE43="","",VLOOKUP(BE43,'（ユニット型）シフト記号表'!$C$5:$Y$46,23,FALSE)) ->  | BF45: =IF($BI$3="計画",SUM(AA45:BB45),IF($BI$3="実績",SUM(AA45:BE45),"")) -> 0 | BH45: =IF($BI$3="計画",BF45/4,IF($BI$3="実績",(BF45/($BI$7/7)),"")) -> 0
V46: シフト記号
B47: =B44+1 -> 10 | V47: 日中の勤務時間数 | AA47: =IF(AA46="","",VLOOKUP(AA46,'（ユニット型）シフト記号表'!$C$5:$W$46,21,FALSE)) ->  | AB47: =IF(AB46="","",VLOOKUP(AB46,'（ユニット型）シフト記号表'!$C$5:$W$46,21,FALSE)) ->  | AC47: =IF(AC46="","",VLOOKUP(AC46,'（ユニット型）シフト記号表'!$C$5:$W$46,21,FALSE)) ->  | AD47: =IF(AD46="","",VLOOKUP(AD46,'（ユニット型）シフト記号表'!$C$5:$W$46,21,FALSE)) ->  | AE47: =IF(AE46="","",VLOOKUP(AE46,'（ユニット型）シフト記号表'!$C$5:$W$46,21,FALSE)) ->  | AF47: =IF(AF46="","",VLOOKUP(AF46,'（ユニット型）シフト記号表'!$C$5:$W$46,21,FALSE)) ->  | AG47: =IF(AG46="","",VLOOKUP(AG46,'（ユニット型）シフト記号表'!$C$5:$W$46,21,FALSE)) ->  | AH47: =IF(AH46="","",VLOOKUP(AH46,'（ユニット型）シフト記号表'!$C$5:$W$46,21,FALSE)) ->  | AI47: =IF(AI46="","",VLOOKUP(AI46,'（ユニット型）シフト記号表'!$C$5:$W$46,21,FALSE)) ->  | AJ47: =IF(AJ46="","",VLOOKUP(AJ46,'（ユニット型）シフト記号表'!$C$5:$W$46,21,FALSE)) ->  | AK47: =IF(AK46="","",VLOOKUP(AK46,'（ユニット型）シフト記号表'!$C$5:$W$46,21,FALSE)) ->  | AL47: =IF(AL46="","",VLOOKUP(AL46,'（ユニット型）シフト記号表'!$C$5:$W$46,21,FALSE)) ->  | AM47: =IF(AM46="","",VLOOKUP(AM46,'（ユニット型）シフト記号表'!$C$5:$W$46,21,FALSE)) ->  | AN47: =IF(AN46="","",VLOOKUP(AN46,'（ユニット型）シフト記号表'!$C$5:$W$46,21,FALSE)) ->  | AO47: =IF(AO46="","",VLOOKUP(AO46,'（ユニット型）シフト記号表'!$C$5:$W$46,21,FALSE)) ->  | AP47: =IF(AP46="","",VLOOKUP(AP46,'（ユニット型）シフト記号表'!$C$5:$W$46,21,FALSE)) ->  | AQ47: =IF(AQ46="","",VLOOKUP(AQ46,'（ユニット型）シフト記号表'!$C$5:$W$46,21,FALSE)) ->  | AR47: =IF(AR46="","",VLOOKUP(AR46,'（ユニット型）シフト記号表'!$C$5:$W$46,21,FALSE)) ->  | AS47: =IF(AS46="","",VLOOKUP(AS46,'（ユニット型）シフト記号表'!$C$5:$W$46,21,FALSE)) ->  | AT47: =IF(AT46="","",VLOOKUP(AT46,'（ユニット型）シフト記号表'!$C$5:$W$46,21,FALSE)) ->  | AU47: =IF(AU46="","",VLOOKUP(AU46,'（ユニット型）シフト記号表'!$C$5:$W$46,21,FALSE)) ->  | AV47: =IF(AV46="","",VLOOKUP(AV46,'（ユニット型）シフト記号表'!$C$5:$W$46,21,FALSE)) ->  | AW47: =IF(AW46="","",VLOOKUP(AW46,'（ユニット型）シフト記号表'!$C$5:$W$46,21,FALSE)) ->  | AX47: =IF(AX46="","",VLOOKUP(AX46,'（ユニット型）シフト記号表'!$C$5:$W$46,21,FALSE)) ->  | AY47: =IF(AY46="","",VLOOKUP(AY46,'（ユニット型）シフト記号表'!$C$5:$W$46,21,FALSE)) ->  | AZ47: =IF(AZ46="","",VLOOKUP(AZ46,'（ユニット型）シフト記号表'!$C$5:$W$46,21,FALSE)) ->  | BA47: =IF(BA46="","",VLOOKUP(BA46,'（ユニット型）シフト記号表'!$C$5:$W$46,21,FALSE)) ->  | BB47: =IF(BB46="","",VLOOKUP(BB46,'（ユニット型）シフト記号表'!$C$5:$W$46,21,FALSE)) ->  | BC47: =IF(BC46="","",VLOOKUP(BC46,'（ユニット型）シフト記号表'!$C$5:$W$46,21,FALSE)) ->  | BD47: =IF(BD46="","",VLOOKUP(BD46,'（ユニット型）シフト記号表'!$C$5:$W$46,21,FALSE)) ->  | BE47: =IF(BE46="","",VLOOKUP(BE46,'（ユニット型）シフト記号表'!$C$5:$W$46,21,FALSE)) ->  | BF47: =IF($BI$3="計画",SUM(AA47:BB47),IF($BI$3="実績",SUM(AA47:BE47),"")) -> 0 | BH47: =IF($BI$3="計画",BF47/4,IF($BI$3="実績",(BF47/($BI$7/7)),"")) -> 0
I48: =G47 -> 0 | K48: =M47 -> 0 | V48: 夜勤時間帯の勤務時間数 | AA48: =IF(AA46="","",VLOOKUP(AA46,'（ユニット型）シフト記号表'!$C$5:$Y$46,23,FALSE)) ->  | AB48: =IF(AB46="","",VLOOKUP(AB46,'（ユニット型）シフト記号表'!$C$5:$Y$46,23,FALSE)) ->  | AC48: =IF(AC46="","",VLOOKUP(AC46,'（ユニット型）シフト記号表'!$C$5:$Y$46,23,FALSE)) ->  | AD48: =IF(AD46="","",VLOOKUP(AD46,'（ユニット型）シフト記号表'!$C$5:$Y$46,23,FALSE)) ->  | AE48: =IF(AE46="","",VLOOKUP(AE46,'（ユニット型）シフト記号表'!$C$5:$Y$46,23,FALSE)) ->  | AF48: =IF(AF46="","",VLOOKUP(AF46,'（ユニット型）シフト記号表'!$C$5:$Y$46,23,FALSE)) ->  | AG48: =IF(AG46="","",VLOOKUP(AG46,'（ユニット型）シフト記号表'!$C$5:$Y$46,23,FALSE)) ->  | AH48: =IF(AH46="","",VLOOKUP(AH46,'（ユニット型）シフト記号表'!$C$5:$Y$46,23,FALSE)) ->  | AI48: =IF(AI46="","",VLOOKUP(AI46,'（ユニット型）シフト記号表'!$C$5:$Y$46,23,FALSE)) ->  | AJ48: =IF(AJ46="","",VLOOKUP(AJ46,'（ユニット型）シフト記号表'!$C$5:$Y$46,23,FALSE)) ->  | AK48: =IF(AK46="","",VLOOKUP(AK46,'（ユニット型）シフト記号表'!$C$5:$Y$46,23,FALSE)) ->  | AL48: =IF(AL46="","",VLOOKUP(AL46,'（ユニット型）シフト記号表'!$C$5:$Y$46,23,FALSE)) ->  | AM48: =IF(AM46="","",VLOOKUP(AM46,'（ユニット型）シフト記号表'!$C$5:$Y$46,23,FALSE)) ->  | AN48: =IF(AN46="","",VLOOKUP(AN46,'（ユニット型）シフト記号表'!$C$5:$Y$46,23,FALSE)) ->  | AO48: =IF(AO46="","",VLOOKUP(AO46,'（ユニット型）シフト記号表'!$C$5:$Y$46,23,FALSE)) ->  | AP48: =IF(AP46="","",VLOOKUP(AP46,'（ユニット型）シフト記号表'!$C$5:$Y$46,23,FALSE)) ->  | AQ48: =IF(AQ46="","",VLOOKUP(AQ46,'（ユニット型）シフト記号表'!$C$5:$Y$46,23,FALSE)) ->  | AR48: =IF(AR46="","",VLOOKUP(AR46,'（ユニット型）シフト記号表'!$C$5:$Y$46,23,FALSE)) ->  | AS48: =IF(AS46="","",VLOOKUP(AS46,'（ユニット型）シフト記号表'!$C$5:$Y$46,23,FALSE)) ->  | AT48: =IF(AT46="","",VLOOKUP(AT46,'（ユニット型）シフト記号表'!$C$5:$Y$46,23,FALSE)) ->  | AU48: =IF(AU46="","",VLOOKUP(AU46,'（ユニット型）シフト記号表'!$C$5:$Y$46,23,FALSE)) ->  | AV48: =IF(AV46="","",VLOOKUP(AV46,'（ユニット型）シフト記号表'!$C$5:$Y$46,23,FALSE)) ->  | AW48: =IF(AW46="","",VLOOKUP(AW46,'（ユニット型）シフト記号表'!$C$5:$Y$46,23,FALSE)) ->  | AX48: =IF(AX46="","",VLOOKUP(AX46,'（ユニット型）シフト記号表'!$C$5:$Y$46,23,FALSE)) ->  | AY48: =IF(AY46="","",VLOOKUP(AY46,'（ユニット型）シフト記号表'!$C$5:$Y$46,23,FALSE)) ->  | AZ48: =IF(AZ46="","",VLOOKUP(AZ46,'（ユニット型）シフト記号表'!$C$5:$Y$46,23,FALSE)) ->  | BA48: =IF(BA46="","",VLOOKUP(BA46,'（ユニット型）シフト記号表'!$C$5:$Y$46,23,FALSE)) ->  | BB48: =IF(BB46="","",VLOOKUP(BB46,'（ユニット型）シフト記号表'!$C$5:$Y$46,23,FALSE)) ->  | BC48: =IF(BC46="","",VLOOKUP(BC46,'（ユニット型）シフト記号表'!$C$5:$Y$46,23,FALSE)) ->  | BD48: =IF(BD46="","",VLOOKUP(BD46,'（ユニット型）シフト記号表'!$C$5:$Y$46,23,FALSE)) ->  | BE48: =IF(BE46="","",VLOOKUP(BE46,'（ユニット型）シフト記号表'!$C$5:$Y$46,23,FALSE)) ->  | BF48: =IF($BI$3="計画",SUM(AA48:BB48),IF($BI$3="実績",SUM(AA48:BE48),"")) -> 0 | BH48: =IF($BI$3="計画",BF48/4,IF($BI$3="実績",(BF48/($BI$7/7)),"")) -> 0
V49: シフト記号
B50: =B47+1 -> 11 | V50: 日中の勤務時間数 | AA50: =IF(AA49="","",VLOOKUP(AA49,'（ユニット型）シフト記号表'!$C$5:$W$46,21,FALSE)) ->  | AB50: =IF(AB49="","",VLOOKUP(AB49,'（ユニット型）シフト記号表'!$C$5:$W$46,21,FALSE)) ->  | AC50: =IF(AC49="","",VLOOKUP(AC49,'（ユニット型）シフト記号表'!$C$5:$W$46,21,FALSE)) ->  | AD50: =IF(AD49="","",VLOOKUP(AD49,'（ユニット型）シフト記号表'!$C$5:$W$46,21,FALSE)) ->  | AE50: =IF(AE49="","",VLOOKUP(AE49,'（ユニット型）シフト記号表'!$C$5:$W$46,21,FALSE)) ->  | AF50: =IF(AF49="","",VLOOKUP(AF49,'（ユニット型）シフト記号表'!$C$5:$W$46,21,FALSE)) ->  | AG50: =IF(AG49="","",VLOOKUP(AG49,'（ユニット型）シフト記号表'!$C$5:$W$46,21,FALSE)) ->  | AH50: =IF(AH49="","",VLOOKUP(AH49,'（ユニット型）シフト記号表'!$C$5:$W$46,21,FALSE)) ->  | AI50: =IF(AI49="","",VLOOKUP(AI49,'（ユニット型）シフト記号表'!$C$5:$W$46,21,FALSE)) ->  | AJ50: =IF(AJ49="","",VLOOKUP(AJ49,'（ユニット型）シフト記号表'!$C$5:$W$46,21,FALSE)) ->  | AK50: =IF(AK49="","",VLOOKUP(AK49,'（ユニット型）シフト記号表'!$C$5:$W$46,21,FALSE)) ->  | AL50: =IF(AL49="","",VLOOKUP(AL49,'（ユニット型）シフト記号表'!$C$5:$W$46,21,FALSE)) ->  | AM50: =IF(AM49="","",VLOOKUP(AM49,'（ユニット型）シフト記号表'!$C$5:$W$46,21,FALSE)) ->  | AN50: =IF(AN49="","",VLOOKUP(AN49,'（ユニット型）シフト記号表'!$C$5:$W$46,21,FALSE)) ->  | AO50: =IF(AO49="","",VLOOKUP(AO49,'（ユニット型）シフト記号表'!$C$5:$W$46,21,FALSE)) ->  | AP50: =IF(AP49="","",VLOOKUP(AP49,'（ユニット型）シフト記号表'!$C$5:$W$46,21,FALSE)) ->  | AQ50: =IF(AQ49="","",VLOOKUP(AQ49,'（ユニット型）シフト記号表'!$C$5:$W$46,21,FALSE)) ->  | AR50: =IF(AR49="","",VLOOKUP(AR49,'（ユニット型）シフト記号表'!$C$5:$W$46,21,FALSE)) ->  | AS50: =IF(AS49="","",VLOOKUP(AS49,'（ユニット型）シフト記号表'!$C$5:$W$46,21,FALSE)) ->  | AT50: =IF(AT49="","",VLOOKUP(AT49,'（ユニット型）シフト記号表'!$C$5:$W$46,21,FALSE)) ->  | AU50: =IF(AU49="","",VLOOKUP(AU49,'（ユニット型）シフト記号表'!$C$5:$W$46,21,FALSE)) ->  | AV50: =IF(AV49="","",VLOOKUP(AV49,'（ユニット型）シフト記号表'!$C$5:$W$46,21,FALSE)) ->  | AW50: =IF(AW49="","",VLOOKUP(AW49,'（ユニット型）シフト記号表'!$C$5:$W$46,21,FALSE)) ->  | AX50: =IF(AX49="","",VLOOKUP(AX49,'（ユニット型）シフト記号表'!$C$5:$W$46,21,FALSE)) ->  | AY50: =IF(AY49="","",VLOOKUP(AY49,'（ユニット型）シフト記号表'!$C$5:$W$46,21,FALSE)) ->  | AZ50: =IF(AZ49="","",VLOOKUP(AZ49,'（ユニット型）シフト記号表'!$C$5:$W$46,21,FALSE)) ->  | BA50: =IF(BA49="","",VLOOKUP(BA49,'（ユニット型）シフト記号表'!$C$5:$W$46,21,FALSE)) ->  | BB50: =IF(BB49="","",VLOOKUP(BB49,'（ユニット型）シフト記号表'!$C$5:$W$46,21,FALSE)) ->  | BC50: =IF(BC49="","",VLOOKUP(BC49,'（ユニット型）シフト記号表'!$C$5:$W$46,21,FALSE)) ->  | BD50: =IF(BD49="","",VLOOKUP(BD49,'（ユニット型）シフト記号表'!$C$5:$W$46,21,FALSE)) ->  | BE50: =IF(BE49="","",VLOOKUP(BE49,'（ユニット型）シフト記号表'!$C$5:$W$46,21,FALSE)) ->  | BF50: =IF($BI$3="計画",SUM(AA50:BB50),IF($BI$3="実績",SUM(AA50:BE50),"")) -> 0 | BH50: =IF($BI$3="計画",BF50/4,IF($BI$3="実績",(BF50/($BI$7/7)),"")) -> 0
I51: =G50 -> 0 | K51: =M50 -> 0 | V51: 夜勤時間帯の勤務時間数 | AA51: =IF(AA49="","",VLOOKUP(AA49,'（ユニット型）シフト記号表'!$C$5:$Y$46,23,FALSE)) ->  | AB51: =IF(AB49="","",VLOOKUP(AB49,'（ユニット型）シフト記号表'!$C$5:$Y$46,23,FALSE)) ->  | AC51: =IF(AC49="","",VLOOKUP(AC49,'（ユニット型）シフト記号表'!$C$5:$Y$46,23,FALSE)) ->  | AD51: =IF(AD49="","",VLOOKUP(AD49,'（ユニット型）シフト記号表'!$C$5:$Y$46,23,FALSE)) ->  | AE51: =IF(AE49="","",VLOOKUP(AE49,'（ユニット型）シフト記号表'!$C$5:$Y$46,23,FALSE)) ->  | AF51: =IF(AF49="","",VLOOKUP(AF49,'（ユニット型）シフト記号表'!$C$5:$Y$46,23,FALSE)) ->  | AG51: =IF(AG49="","",VLOOKUP(AG49,'（ユニット型）シフト記号表'!$C$5:$Y$46,23,FALSE)) ->  | AH51: =IF(AH49="","",VLOOKUP(AH49,'（ユニット型）シフト記号表'!$C$5:$Y$46,23,FALSE)) ->  | AI51: =IF(AI49="","",VLOOKUP(AI49,'（ユニット型）シフト記号表'!$C$5:$Y$46,23,FALSE)) ->  | AJ51: =IF(AJ49="","",VLOOKUP(AJ49,'（ユニット型）シフト記号表'!$C$5:$Y$46,23,FALSE)) ->  | AK51: =IF(AK49="","",VLOOKUP(AK49,'（ユニット型）シフト記号表'!$C$5:$Y$46,23,FALSE)) ->  | AL51: =IF(AL49="","",VLOOKUP(AL49,'（ユニット型）シフト記号表'!$C$5:$Y$46,23,FALSE)) ->  | AM51: =IF(AM49="","",VLOOKUP(AM49,'（ユニット型）シフト記号表'!$C$5:$Y$46,23,FALSE)) ->  | AN51: =IF(AN49="","",VLOOKUP(AN49,'（ユニット型）シフト記号表'!$C$5:$Y$46,23,FALSE)) ->  | AO51: =IF(AO49="","",VLOOKUP(AO49,'（ユニット型）シフト記号表'!$C$5:$Y$46,23,FALSE)) ->  | AP51: =IF(AP49="","",VLOOKUP(AP49,'（ユニット型）シフト記号表'!$C$5:$Y$46,23,FALSE)) ->  | AQ51: =IF(AQ49="","",VLOOKUP(AQ49,'（ユニット型）シフト記号表'!$C$5:$Y$46,23,FALSE)) ->  | AR51: =IF(AR49="","",VLOOKUP(AR49,'（ユニット型）シフト記号表'!$C$5:$Y$46,23,FALSE)) ->  | AS51: =IF(AS49="","",VLOOKUP(AS49,'（ユニット型）シフト記号表'!$C$5:$Y$46,23,FALSE)) ->  | AT51: =IF(AT49="","",VLOOKUP(AT49,'（ユニット型）シフト記号表'!$C$5:$Y$46,23,FALSE)) ->  | AU51: =IF(AU49="","",VLOOKUP(AU49,'（ユニット型）シフト記号表'!$C$5:$Y$46,23,FALSE)) ->  | AV51: =IF(AV49="","",VLOOKUP(AV49,'（ユニット型）シフト記号表'!$C$5:$Y$46,23,FALSE)) ->  | AW51: =IF(AW49="","",VLOOKUP(AW49,'（ユニット型）シフト記号表'!$C$5:$Y$46,23,FALSE)) ->  | AX51: =IF(AX49="","",VLOOKUP(AX49,'（ユニット型）シフト記号表'!$C$5:$Y$46,23,FALSE)) ->  | AY51: =IF(AY49="","",VLOOKUP(AY49,'（ユニット型）シフト記号表'!$C$5:$Y$46,23,FALSE)) ->  | AZ51: =IF(AZ49="","",VLOOKUP(AZ49,'（ユニット型）シフト記号表'!$C$5:$Y$46,23,FALSE)) ->  | BA51: =IF(BA49="","",VLOOKUP(BA49,'（ユニット型）シフト記号表'!$C$5:$Y$46,23,FALSE)) ->  | BB51: =IF(BB49="","",VLOOKUP(BB49,'（ユニット型）シフト記号表'!$C$5:$Y$46,23,FALSE)) ->  | BC51: =IF(BC49="","",VLOOKUP(BC49,'（ユニット型）シフト記号表'!$C$5:$Y$46,23,FALSE)) ->  | BD51: =IF(BD49="","",VLOOKUP(BD49,'（ユニット型）シフト記号表'!$C$5:$Y$46,23,FALSE)) ->  | BE51: =IF(BE49="","",VLOOKUP(BE49,'（ユニット型）シフト記号表'!$C$5:$Y$46,23,FALSE)) ->  | BF51: =IF($BI$3="計画",SUM(AA51:BB51),IF($BI$3="実績",SUM(AA51:BE51),"")) -> 0 | BH51: =IF($BI$3="計画",BF51/4,IF($BI$3="実績",(BF51/($BI$7/7)),"")) -> 0
V52: シフト記号
B53: =B50+1 -> 12 | V53: 日中の勤務時間数 | AA53: =IF(AA52="","",VLOOKUP(AA52,'（ユニット型）シフト記号表'!$C$5:$W$46,21,FALSE)) ->  | AB53: =IF(AB52="","",VLOOKUP(AB52,'（ユニット型）シフト記号表'!$C$5:$W$46,21,FALSE)) ->  | AC53: =IF(AC52="","",VLOOKUP(AC52,'（ユニット型）シフト記号表'!$C$5:$W$46,21,FALSE)) ->  | AD53: =IF(AD52="","",VLOOKUP(AD52,'（ユニット型）シフト記号表'!$C$5:$W$46,21,FALSE)) ->  | AE53: =IF(AE52="","",VLOOKUP(AE52,'（ユニット型）シフト記号表'!$C$5:$W$46,21,FALSE)) ->  | AF53: =IF(AF52="","",VLOOKUP(AF52,'（ユニット型）シフト記号表'!$C$5:$W$46,21,FALSE)) ->  | AG53: =IF(AG52="","",VLOOKUP(AG52,'（ユニット型）シフト記号表'!$C$5:$W$46,21,FALSE)) ->  | AH53: =IF(AH52="","",VLOOKUP(AH52,'（ユニット型）シフト記号表'!$C$5:$W$46,21,FALSE)) ->  | AI53: =IF(AI52="","",VLOOKUP(AI52,'（ユニット型）シフト記号表'!$C$5:$W$46,21,FALSE)) ->  | AJ53: =IF(AJ52="","",VLOOKUP(AJ52,'（ユニット型）シフト記号表'!$C$5:$W$46,21,FALSE)) ->  | AK53: =IF(AK52="","",VLOOKUP(AK52,'（ユニット型）シフト記号表'!$C$5:$W$46,21,FALSE)) ->  | AL53: =IF(AL52="","",VLOOKUP(AL52,'（ユニット型）シフト記号表'!$C$5:$W$46,21,FALSE)) ->  | AM53: =IF(AM52="","",VLOOKUP(AM52,'（ユニット型）シフト記号表'!$C$5:$W$46,21,FALSE)) ->  | AN53: =IF(AN52="","",VLOOKUP(AN52,'（ユニット型）シフト記号表'!$C$5:$W$46,21,FALSE)) ->  | AO53: =IF(AO52="","",VLOOKUP(AO52,'（ユニット型）シフト記号表'!$C$5:$W$46,21,FALSE)) ->  | AP53: =IF(AP52="","",VLOOKUP(AP52,'（ユニット型）シフト記号表'!$C$5:$W$46,21,FALSE)) ->  | AQ53: =IF(AQ52="","",VLOOKUP(AQ52,'（ユニット型）シフト記号表'!$C$5:$W$46,21,FALSE)) ->  | AR53: =IF(AR52="","",VLOOKUP(AR52,'（ユニット型）シフト記号表'!$C$5:$W$46,21,FALSE)) ->  | AS53: =IF(AS52="","",VLOOKUP(AS52,'（ユニット型）シフト記号表'!$C$5:$W$46,21,FALSE)) ->  | AT53: =IF(AT52="","",VLOOKUP(AT52,'（ユニット型）シフト記号表'!$C$5:$W$46,21,FALSE)) ->  | AU53: =IF(AU52="","",VLOOKUP(AU52,'（ユニット型）シフト記号表'!$C$5:$W$46,21,FALSE)) ->  | AV53: =IF(AV52="","",VLOOKUP(AV52,'（ユニット型）シフト記号表'!$C$5:$W$46,21,FALSE)) ->  | AW53: =IF(AW52="","",VLOOKUP(AW52,'（ユニット型）シフト記号表'!$C$5:$W$46,21,FALSE)) ->  | AX53: =IF(AX52="","",VLOOKUP(AX52,'（ユニット型）シフト記号表'!$C$5:$W$46,21,FALSE)) ->  | AY53: =IF(AY52="","",VLOOKUP(AY52,'（ユニット型）シフト記号表'!$C$5:$W$46,21,FALSE)) ->  | AZ53: =IF(AZ52="","",VLOOKUP(AZ52,'（ユニット型）シフト記号表'!$C$5:$W$46,21,FALSE)) ->  | BA53: =IF(BA52="","",VLOOKUP(BA52,'（ユニット型）シフト記号表'!$C$5:$W$46,21,FALSE)) ->  | BB53: =IF(BB52="","",VLOOKUP(BB52,'（ユニット型）シフト記号表'!$C$5:$W$46,21,FALSE)) ->  | BC53: =IF(BC52="","",VLOOKUP(BC52,'（ユニット型）シフト記号表'!$C$5:$W$46,21,FALSE)) ->  | BD53: =IF(BD52="","",VLOOKUP(BD52,'（ユニット型）シフト記号表'!$C$5:$W$46,21,FALSE)) ->  | BE53: =IF(BE52="","",VLOOKUP(BE52,'（ユニット型）シフト記号表'!$C$5:$W$46,21,FALSE)) ->  | BF53: =IF($BI$3="計画",SUM(AA53:BB53),IF($BI$3="実績",SUM(AA53:BE53),"")) -> 0 | BH53: =IF($BI$3="計画",BF53/4,IF($BI$3="実績",(BF53/($BI$7/7)),"")) -> 0
I54: =G53 -> 0 | K54: =M53 -> 0 | V54: 夜勤時間帯の勤務時間数 | AA54: =IF(AA52="","",VLOOKUP(AA52,'（ユニット型）シフト記号表'!$C$5:$Y$46,23,FALSE)) ->  | AB54: =IF(AB52="","",VLOOKUP(AB52,'（ユニット型）シフト記号表'!$C$5:$Y$46,23,FALSE)) ->  | AC54: =IF(AC52="","",VLOOKUP(AC52,'（ユニット型）シフト記号表'!$C$5:$Y$46,23,FALSE)) ->  | AD54: =IF(AD52="","",VLOOKUP(AD52,'（ユニット型）シフト記号表'!$C$5:$Y$46,23,FALSE)) ->  | AE54: =IF(AE52="","",VLOOKUP(AE52,'（ユニット型）シフト記号表'!$C$5:$Y$46,23,FALSE)) ->  | AF54: =IF(AF52="","",VLOOKUP(AF52,'（ユニット型）シフト記号表'!$C$5:$Y$46,23,FALSE)) ->  | AG54: =IF(AG52="","",VLOOKUP(AG52,'（ユニット型）シフト記号表'!$C$5:$Y$46,23,FALSE)) ->  | AH54: =IF(AH52="","",VLOOKUP(AH52,'（ユニット型）シフト記号表'!$C$5:$Y$46,23,FALSE)) ->  | AI54: =IF(AI52="","",VLOOKUP(AI52,'（ユニット型）シフト記号表'!$C$5:$Y$46,23,FALSE)) ->  | AJ54: =IF(AJ52="","",VLOOKUP(AJ52,'（ユニット型）シフト記号表'!$C$5:$Y$46,23,FALSE)) ->  | AK54: =IF(AK52="","",VLOOKUP(AK52,'（ユニット型）シフト記号表'!$C$5:$Y$46,23,FALSE)) ->  | AL54: =IF(AL52="","",VLOOKUP(AL52,'（ユニット型）シフト記号表'!$C$5:$Y$46,23,FALSE)) ->  | AM54: =IF(AM52="","",VLOOKUP(AM52,'（ユニット型）シフト記号表'!$C$5:$Y$46,23,FALSE)) ->  | AN54: =IF(AN52="","",VLOOKUP(AN52,'（ユニット型）シフト記号表'!$C$5:$Y$46,23,FALSE)) ->  | AO54: =IF(AO52="","",VLOOKUP(AO52,'（ユニット型）シフト記号表'!$C$5:$Y$46,23,FALSE)) ->  | AP54: =IF(AP52="","",VLOOKUP(AP52,'（ユニット型）シフト記号表'!$C$5:$Y$46,23,FALSE)) ->  | AQ54: =IF(AQ52="","",VLOOKUP(AQ52,'（ユニット型）シフト記号表'!$C$5:$Y$46,23,FALSE)) ->  | AR54: =IF(AR52="","",VLOOKUP(AR52,'（ユニット型）シフト記号表'!$C$5:$Y$46,23,FALSE)) ->  | AS54: =IF(AS52="","",VLOOKUP(AS52,'（ユニット型）シフト記号表'!$C$5:$Y$46,23,FALSE)) ->  | AT54: =IF(AT52="","",VLOOKUP(AT52,'（ユニット型）シフト記号表'!$C$5:$Y$46,23,FALSE)) ->  | AU54: =IF(AU52="","",VLOOKUP(AU52,'（ユニット型）シフト記号表'!$C$5:$Y$46,23,FALSE)) ->  | AV54: =IF(AV52="","",VLOOKUP(AV52,'（ユニット型）シフト記号表'!$C$5:$Y$46,23,FALSE)) ->  | AW54: =IF(AW52="","",VLOOKUP(AW52,'（ユニット型）シフト記号表'!$C$5:$Y$46,23,FALSE)) ->  | AX54: =IF(AX52="","",VLOOKUP(AX52,'（ユニット型）シフト記号表'!$C$5:$Y$46,23,FALSE)) ->  | AY54: =IF(AY52="","",VLOOKUP(AY52,'（ユニット型）シフト記号表'!$C$5:$Y$46,23,FALSE)) ->  | AZ54: =IF(AZ52="","",VLOOKUP(AZ52,'（ユニット型）シフト記号表'!$C$5:$Y$46,23,FALSE)) ->  | BA54: =IF(BA52="","",VLOOKUP(BA52,'（ユニット型）シフト記号表'!$C$5:$Y$46,23,FALSE)) ->  | BB54: =IF(BB52="","",VLOOKUP(BB52,'（ユニット型）シフト記号表'!$C$5:$Y$46,23,FALSE)) ->  | BC54: =IF(BC52="","",VLOOKUP(BC52,'（ユニット型）シフト記号表'!$C$5:$Y$46,23,FALSE)) ->  | BD54: =IF(BD52="","",VLOOKUP(BD52,'（ユニット型）シフト記号表'!$C$5:$Y$46,23,FALSE)) ->  | BE54: =IF(BE52="","",VLOOKUP(BE52,'（ユニット型）シフト記号表'!$C$5:$Y$46,23,FALSE)) ->  | BF54: =IF($BI$3="計画",SUM(AA54:BB54),IF($BI$3="実績",SUM(AA54:BE54),"")) -> 0 | BH54: =IF($BI$3="計画",BF54/4,IF($BI$3="実績",(BF54/($BI$7/7)),"")) -> 0
V55: シフト記号
